{"text_format":"1","workbook":"xlsx","n_sheets":7,"sheets":["Main Form "," Terminology","Product Order Form","Personal Note to Customer","ProductTable","lists","tabnames"],"not_rendered":{"charts":0,"images":11,"macros":1,"external_links":0,"defined_names":19,"comments":0,"pivot_tables":0},"unopened":[],"bounds":{"document_bytes":16777216,"sheet_cells":100000,"rows_first":2000,"rows_last":500,"rows_between":2000,"halvings":0,"cell_chars":16384,"cell_head_chars":4096},"cells_cut":0,"cells_raw":0,"read":"whole","date_system":"1900"}

{"sheet":"Main Form ","index":0,"n_rows":399,"n_cols":6,"rows_kept":399,"cut":false,"hidden":false,"merged":[[70,3,70,4],[132,3,132,4],[46,3,46,4],[243,3,243,4],[268,3,268,4],[301,3,301,4],[103,3,103,4],[105,3,105,4],[153,3,153,4],[175,3,175,4],[174,3,174,4],[179,3,179,4],[205,0,205,5],[163,0,163,5],[170,3,170,4],[177,3,177,4],[150,3,150,4],[128,3,128,4],[141,3,141,4],[160,3,160,4],[161,3,161,4],[111,3,111,4],[144,3,144,4],[172,3,172,4],[87,3,87,4],[85,3,85,4],[86,3,86,4],[90,3,90,4],[91,3,91,4],[92,3,92,4],[137,3,137,4],[122,3,122,4],[114,3,114,4],[108,3,108,4],[142,3,142,4],[131,3,131,4],[123,3,123,4],[126,3,126,4],[120,3,120,4],[146,3,146,4],[154,3,154,4],[79,3,79,4],[80,3,80,4],[78,0,78,5],[60,3,60,4],[77,3,77,4],[182,3,182,4],[185,3,185,4],[173,3,173,4],[166,3,166,4],[96,3,96,4],[97,3,97,4],[98,3,98,4],[106,3,106,4],[159,3,159,4],[165,3,165,4],[164,3,164,4],[167,3,167,4],[168,3,168,4],[181,3,181,4],[180,3,180,4],[127,3,127,4],[119,3,119,4],[104,3,104,4],[124,3,124,4],[129,3,129,4],[145,3,145,4],[102,3,102,4],[121,3,121,4],[139,3,139,4],[110,3,110,4],[94,3,94,4],[151,3,151,4],[390,1,390,2],[390,3,390,5],[376,0,376,5],[380,0,380,5],[381,1,381,5],[382,1,382,5],[385,1,385,5],[387,1,387,5],[378,3,378,4],[379,3,379,4],[389,1,389,5],[377,3,377,4],[383,1,383,5],[384,1,384,5],[386,1,386,5],[388,1,388,5],[49,3,49,4],[55,3,55,4],[51,3,51,4],[65,3,65,4],[64,3,64,4],[66,3,66,4],[67,3,67,4],[81,3,81,4],[84,3,84,4],[59,3,59,4],[58,3,58,4],[62,3,62,4],[73,3,73,4],[57,3,57,4],[71,3,71,4],[61,3,61,4],[218,3,218,4],[217,3,217,4],[198,3,198,4],[188,3,188,4],[195,3,195,4],[214,3,214,4],[190,3,190,4],[206,3,206,4],[186,3,186,4],[187,3,187,4],[193,3,193,4],[204,3,204,4],[209,3,209,4],[200,3,200,4],[201,3,201,4],[213,3,213,4],[152,3,152,4],[176,3,176,4],[169,3,169,4],[171,3,171,4],[155,3,155,4],[45,3,45,4],[191,3,191,4],[183,3,183,4],[184,3,184,4],[189,3,189,4],[202,3,202,4],[203,3,203,4],[100,3,100,4],[115,3,115,4],[88,3,88,4],[112,3,112,4],[138,3,138,4],[136,0,136,5],[89,3,89,4],[158,3,158,4],[134,3,134,4],[101,3,101,4],[148,3,148,4],[93,3,93,4],[113,3,113,4],[157,0,157,5],[149,3,149,4],[156,3,156,4],[147,3,147,4],[117,3,117,4],[133,3,133,4],[116,3,116,4],[135,3,135,4],[143,3,143,4],[53,3,53,4],[72,3,72,4],[83,3,83,4],[54,3,54,4],[41,3,41,4],[95,3,95,4],[75,3,75,4],[47,3,47,4],[194,3,194,4],[82,3,82,4],[99,3,99,4],[69,3,69,4],[68,3,68,4],[52,3,52,4],[42,3,42,4],[43,3,43,4],[44,3,44,4],[1,0,1,5],[15,1,15,2],[28,1,28,4],[2,0,2,4],[13,4,14,4],[18,0,18,1],[26,0,26,1],[19,1,19,3],[6,0,6,5],[14,1,14,2],[20,1,20,3],[23,1,23,2],[21,1,21,3],[16,1,16,4],[22,1,22,3],[35,3,35,4],[37,0,37,5],[38,0,38,5],[216,3,216,4],[235,3,235,4],[222,3,222,4],[237,0,237,5],[245,3,245,4],[232,3,232,4],[251,3,251,4],[234,3,234,4],[212,3,212,4],[233,3,233,4],[223,3,223,4],[248,3,248,4],[219,3,219,4],[225,3,225,4],[220,3,220,4],[221,3,221,4],[2,7,2,12],[4,7,4,12],[5,7,5,12],[7,0,11,5],[29,1,29,4],[109,3,109,4],[107,0,107,5],[31,0,31,5],[40,0,40,5],[33,3,33,4],[39,3,39,4],[36,3,36,4],[34,3,34,4],[48,3,48,4],[56,3,56,4],[63,3,63,4],[50,3,50,4],[140,3,140,4],[296,3,296,4],[279,3,279,4],[293,3,293,4],[294,3,294,4],[289,3,289,4],[273,3,273,4],[244,3,244,4],[196,3,196,4],[247,3,247,4],[241,3,241,4],[207,3,207,4],[287,3,287,4],[236,3,236,4],[224,3,224,4],[228,3,228,4],[227,3,227,4],[246,3,246,4],[240,3,240,4],[239,3,239,4],[215,3,215,4],[226,3,226,4],[265,3,265,4],[242,3,242,4],[230,3,230,4],[208,3,208,4],[197,3,197,4],[199,3,199,4],[192,3,192,4],[256,3,256,4],[211,3,211,4],[272,3,272,4],[258,3,258,4],[374,3,374,4],[375,3,375,4],[372,0,372,5],[297,3,297,4],[278,3,278,4],[276,3,276,4],[274,3,274,4],[249,3,249,4],[260,3,260,4],[261,3,261,4],[252,3,252,4],[262,3,262,4],[267,3,267,4],[254,3,254,4],[255,3,255,4],[275,3,275,4],[269,3,269,4],[277,3,277,4],[263,3,263,4],[270,3,270,4],[253,0,253,5],[266,3,266,4],[264,0,264,5],[259,3,259,4],[311,3,311,4],[330,0,330,5],[331,3,331,4],[332,3,332,4],[333,3,333,4],[334,3,334,4],[335,3,335,4],[322,0,322,5],[325,3,325,4],[326,3,326,4],[327,3,327,4],[328,3,328,4],[329,3,329,4],[323,3,323,4],[300,3,300,4],[308,3,308,4],[309,3,309,4],[310,3,310,4],[373,3,373,4],[365,3,365,4],[366,3,366,4],[371,3,371,4],[358,0,358,5],[359,3,359,4],[368,3,368,4],[367,3,367,4],[369,3,369,4],[360,3,360,4],[361,3,361,4],[362,3,362,4],[363,3,363,4],[364,3,364,4],[370,3,370,4],[352,3,352,4],[353,3,353,4],[354,3,354,4],[355,3,355,4],[356,3,356,4],[357,3,357,4],[342,3,342,4],[338,3,338,4],[339,3,339,4],[343,3,343,4],[312,0,312,5],[313,3,313,4],[317,3,317,4],[315,3,315,4],[316,3,316,4],[314,3,314,4],[319,3,319,4],[320,3,320,4],[321,3,321,4],[318,3,318,4],[344,3,344,4],[340,3,340,4],[345,3,345,4],[346,3,346,4],[347,3,347,4],[348,3,348,4],[349,3,349,4],[350,3,350,4],[351,3,351,4],[341,3,341,4],[336,0,336,5],[337,3,337,4],[74,3,74,4],[76,3,76,4],[299,0,299,5],[303,3,303,4],[304,3,304,4],[305,3,305,4],[306,3,306,4],[307,3,307,4],[282,0,282,5],[284,3,284,4],[285,3,285,4],[283,3,283,4],[291,3,291,4],[286,3,286,4],[288,3,288,4],[292,3,292,4],[281,3,281,4],[280,3,280,4],[178,3,178,4],[210,3,210,4],[130,3,130,4],[125,3,125,4],[118,3,118,4],[250,3,250,4],[238,0,238,5],[257,3,257,4],[231,3,231,4],[229,3,229,4],[295,3,295,4],[290,3,290,4],[298,3,298,4],[271,3,271,4],[323,63,323,64],[323,69,323,70],[323,75,323,76],[323,81,323,82],[323,87,323,88],[323,93,323,94],[323,99,323,100],[323,105,323,106],[323,111,323,112],[323,9,323,10],[323,15,323,16],[323,21,323,22],[323,27,323,28],[323,33,323,34],[323,39,323,40],[323,45,323,46],[323,51,323,52],[323,57,323,58],[323,171,323,172],[323,177,323,178],[323,183,323,184],[323,189,323,190],[323,195,323,196],[323,201,323,202],[323,207,323,208],[323,213,323,214],[323,219,323,220],[323,117,323,118],[323,123,323,124],[323,129,323,130],[323,135,323,136],[323,141,323,142],[323,147,323,148],[323,153,323,154],[323,159,323,160],[323,165,323,166],[323,279,323,280],[323,285,323,286],[323,291,323,292],[323,297,323,298],[323,303,323,304],[323,309,323,310],[323,315,323,316],[323,321,323,322],[323,327,323,328],[323,225,323,226],[323,231,323,232],[323,237,323,238],[323,243,323,244],[323,249,323,250],[323,255,323,256],[323,261,323,262],[323,267,323,268],[323,273,323,274],[323,387,323,388],[323,393,323,394],[323,399,323,400],[323,405,323,406],[323,411,323,412],[323,417,323,418],[323,423,323,424],[323,429,323,430],[323,435,323,436],[323,333,323,334],[323,339,323,340],[323,345,323,346],[323,351,323,352],[323,357,323,358],[323,363,323,364],[323,369,323,370],[323,375,323,376],[323,381,323,382],[323,495,323,496],[323,501,323,502],[323,507,323,508],[323,513,323,514],[323,519,323,520],[323,525,323,526],[323,531,323,532],[323,537,323,538],[323,543,323,544],[323,441,323,442],[323,447,323,448],[323,453,323,454],[323,459,323,460],[323,465,323,466],[323,471,323,472],[323,477,323,478],[323,483,323,484],[323,489,323,490],[323,603,323,604],[323,609,323,610],[323,615,323,616],[323,621,323,622],[323,627,323,628],[323,633,323,634],[323,639,323,640],[323,645,323,646],[323,651,323,652],[323,549,323,550],[323,555,323,556],[323,561,323,562],[323,567,323,568],[323,573,323,574],[323,579,323,580],[323,585,323,586],[323,591,323,592],[323,597,323,598],[323,711,323,712],[323,717,323,718],[323,723,323,724],[323,729,323,730],[323,735,323,736],[323,741,323,742],[323,747,323,748],[323,753,323,754],[323,759,323,760],[323,657,323,658],[323,663,323,664],[323,669,323,670],[323,675,323,676],[323,681,323,682],[323,687,323,688],[323,693,323,694],[323,699,323,700],[323,705,323,706],[323,819,323,820],[323,825,323,826],[323,831,323,832],[323,837,323,838],[323,843,323,844],[323,849,323,850],[323,855,323,856],[323,861,323,862],[323,867,323,868],[323,765,323,766],[323,771,323,772],[323,777,323,778],[323,783,323,784],[323,789,323,790],[323,795,323,796],[323,801,323,802],[323,807,323,808],[323,813,323,814],[323,927,323,928],[323,933,323,934],[323,939,323,940],[323,945,323,946],[323,951,323,952],[323,957,323,958],[323,963,323,964],[323,969,323,970],[323,975,323,976],[323,873,323,874],[323,879,323,880],[323,885,323,886],[323,891,323,892],[323,897,323,898],[323,903,323,904],[323,909,323,910],[323,915,323,916],[323,921,323,922],[323,1035,323,1036],[323,1041,323,1042],[323,1047,323,1048],[323,1053,323,1054],[323,1059,323,1060],[323,1065,323,1066],[323,1071,323,1072],[323,1077,323,1078],[323,1083,323,1084],[323,981,323,982],[323,987,323,988],[323,993,323,994],[323,999,323,1000],[323,1005,323,1006],[323,1011,323,1012],[323,1017,323,1018],[323,1023,323,1024],[323,1029,323,1030],[323,1143,323,1144],[323,1149,323,1150],[323,1155,323,1156],[323,1161,323,1162],[323,1167,323,1168],[323,1173,323,1174],[323,1179,323,1180],[323,1185,323,1186],[323,1191,323,1192],[323,1089,323,1090],[323,1095,323,1096],[323,1101,323,1102],[323,1107,323,1108],[323,1113,323,1114],[323,1119,323,1120],[323,1125,323,1126],[323,1131,323,1132],[323,1137,323,1138],[323,1251,323,1252],[323,1257,323,1258],[323,1263,323,1264],[323,1269,323,1270],[323,1275,323,1276],[323,1281,323,1282],[323,1287,323,1288],[323,1293,323,1294],[323,1299,323,1300],[323,1197,323,1198],[323,1203,323,1204],[323,1209,323,1210],[323,1215,323,1216],[323,1221,323,1222],[323,1227,323,1228],[323,1233,323,1234],[323,1239,323,1240],[323,1245,323,1246],[323,1359,323,1360],[323,1365,323,1366],[323,1371,323,1372],[323,1377,323,1378],[323,1383,323,1384],[323,1389,323,1390],[323,1395,323,1396],[323,1401,323,1402],[323,1407,323,1408],[323,1305,323,1306],[323,1311,323,1312],[323,1317,323,1318],[323,1323,323,1324],[323,1329,323,1330],[323,1335,323,1336],[323,1341,323,1342],[323,1347,323,1348],[323,1353,323,1354],[323,1467,323,1468],[323,1473,323,1474],[323,1479,323,1480],[323,1485,323,1486],[323,1491,323,1492],[323,1497,323,1498],[323,1503,323,1504],[323,1509,323,1510],[323,1515,323,1516],[323,1413,323,1414],[323,1419,323,1420],[323,1425,323,1426],[323,1431,323,1432],[323,1437,323,1438],[323,1443,323,1444],[323,1449,323,1450],[323,1455,323,1456],[323,1461,323,1462],[323,1575,323,1576],[323,1581,323,1582],[323,1587,323,1588],[323,1593,323,1594],[323,1599,323,1600],[323,1605,323,1606],[323,1611,323,1612],[323,1617,323,1618],[323,1623,323,1624],[323,1521,323,1522],[323,1527,323,1528],[323,1533,323,1534],[323,1539,323,1540],[323,1545,323,1546],[323,1551,323,1552],[323,1557,323,1558],[323,1563,323,1564],[323,1569,323,1570],[323,1683,323,1684],[323,1689,323,1690],[323,1695,323,1696],[323,1701,323,1702],[323,1707,323,1708],[323,1713,323,1714],[323,1719,323,1720],[323,1725,323,1726],[323,1731,323,1732],[323,1629,323,1630],[323,1635,323,1636],[323,1641,323,1642],[323,1647,323,1648],[323,1653,323,1654],[323,1659,323,1660],[323,1665,323,1666],[323,1671,323,1672],[323,1677,323,1678],[323,1791,323,1792],[323,1797,323,1798],[323,1803,323,1804],[323,1809,323,1810],[323,1815,323,1816],[323,1821,323,1822],[323,1827,323,1828],[323,1833,323,1834],[323,1839,323,1840],[323,1737,323,1738],[323,1743,323,1744],[323,1749,323,1750],[323,1755,323,1756],[323,1761,323,1762],[323,1767,323,1768],[323,1773,323,1774],[323,1779,323,1780],[323,1785,323,1786],[323,1899,323,1900],[323,1905,323,1906],[323,1911,323,1912],[323,1917,323,1918],[323,1923,323,1924],[323,1929,323,1930],[323,1935,323,1936],[323,1941,323,1942],[323,1947,323,1948],[323,1845,323,1846],[323,1851,323,1852],[323,1857,323,1858],[323,1863,323,1864],[323,1869,323,1870],[323,1875,323,1876],[323,1881,323,1882],[323,1887,323,1888],[323,1893,323,1894],[323,2007,323,2008],[323,2013,323,2014],[323,2019,323,2020],[323,2025,323,2026],[323,2031,323,2032],[323,2037,323,2038],[323,2043,323,2044],[323,2049,323,2050],[323,2055,323,2056],[323,1953,323,1954],[323,1959,323,1960],[323,1965,323,1966],[323,1971,323,1972],[323,1977,323,1978],[323,1983,323,1984],[323,1989,323,1990],[323,1995,323,1996],[323,2001,323,2002],[323,2115,323,2116],[323,2121,323,2122],[323,2127,323,2128],[323,2133,323,2134],[323,2139,323,2140],[323,2145,323,2146],[323,2151,323,2152],[323,2157,323,2158],[323,2163,323,2164],[323,2061,323,2062],[323,2067,323,2068],[323,2073,323,2074],[323,2079,323,2080],[323,2085,323,2086],[323,2091,323,2092],[323,2097,323,2098],[323,2103,323,2104],[323,2109,323,2110],[323,2223,323,2224],[323,2229,323,2230],[323,2235,323,2236],[323,2241,323,2242],[323,2247,323,2248],[323,2253,323,2254],[323,2259,323,2260],[323,2265,323,2266],[323,2271,323,2272],[323,2169,323,2170],[323,2175,323,2176],[323,2181,323,2182],[323,2187,323,2188],[323,2193,323,2194],[323,2199,323,2200],[323,2205,323,2206],[323,2211,323,2212],[323,2217,323,2218],[323,2331,323,2332],[323,2337,323,2338],[323,2343,323,2344],[323,2349,323,2350],[323,2355,323,2356],[323,2361,323,2362],[323,2367,323,2368],[323,2373,323,2374],[323,2379,323,2380],[323,2277,323,2278],[323,2283,323,2284],[323,2289,323,2290],[323,2295,323,2296],[323,2301,323,2302],[323,2307,323,2308],[323,2313,323,2314],[323,2319,323,2320],[323,2325,323,2326],[323,2439,323,2440],[323,2445,323,2446],[323,2451,323,2452],[323,2457,323,2458],[323,2463,323,2464],[323,2469,323,2470],[323,2475,323,2476],[323,2481,323,2482],[323,2487,323,2488],[323,2385,323,2386],[323,2391,323,2392],[323,2397,323,2398],[323,2403,323,2404],[323,2409,323,2410],[323,2415,323,2416],[323,2421,323,2422],[323,2427,323,2428],[323,2433,323,2434],[323,2547,323,2548],[323,2553,323,2554],[323,2559,323,2560],[323,2565,323,2566],[323,2571,323,2572],[323,2577,323,2578],[323,2583,323,2584],[323,2589,323,2590],[323,2595,323,2596],[323,2493,323,2494],[323,2499,323,2500],[323,2505,323,2506],[323,2511,323,2512],[323,2517,323,2518],[323,2523,323,2524],[323,2529,323,2530],[323,2535,323,2536],[323,2541,323,2542],[323,2655,323,2656],[323,2661,323,2662],[323,2667,323,2668],[323,2673,323,2674],[323,2679,323,2680],[323,2685,323,2686],[323,2691,323,2692],[323,2697,323,2698],[323,2703,323,2704],[323,2601,323,2602],[323,2607,323,2608],[323,2613,323,2614],[323,2619,323,2620],[323,2625,323,2626],[323,2631,323,2632],[323,2637,323,2638],[323,2643,323,2644],[323,2649,323,2650],[323,2763,323,2764],[323,2769,323,2770],[323,2775,323,2776],[323,2781,323,2782],[323,2787,323,2788],[323,2793,323,2794],[323,2799,323,2800],[323,2805,323,2806],[323,2811,323,2812],[323,2709,323,2710],[323,2715,323,2716],[323,2721,323,2722],[323,2727,323,2728],[323,2733,323,2734],[323,2739,323,2740],[323,2745,323,2746],[323,2751,323,2752],[323,2757,323,2758],[323,2871,323,2872],[323,2877,323,2878],[323,2883,323,2884],[323,2889,323,2890],[323,2895,323,2896],[323,2901,323,2902],[323,2907,323,2908],[323,2913,323,2914],[323,2919,323,2920],[323,2817,323,2818],[323,2823,323,2824],[323,2829,323,2830],[323,2835,323,2836],[323,2841,323,2842],[323,2847,323,2848],[323,2853,323,2854],[323,2859,323,2860],[323,2865,323,2866],[323,2979,323,2980],[323,2985,323,2986],[323,2991,323,2992],[323,2997,323,2998],[323,3003,323,3004],[323,3009,323,3010],[323,3015,323,3016],[323,3021,323,3022],[323,3027,323,3028],[323,2925,323,2926],[323,2931,323,2932],[323,2937,323,2938],[323,2943,323,2944],[323,2949,323,2950],[323,2955,323,2956],[323,2961,323,2962],[323,2967,323,2968],[323,2973,323,2974],[323,3087,323,3088],[323,3093,323,3094],[323,3099,323,3100],[323,3105,323,3106],[323,3111,323,3112],[323,3117,323,3118],[323,3123,323,3124],[323,3129,323,3130],[323,3135,323,3136],[323,3033,323,3034],[323,3039,323,3040],[323,3045,323,3046],[323,3051,323,3052],[323,3057,323,3058],[323,3063,323,3064],[323,3069,323,3070],[323,3075,323,3076],[323,3081,323,3082],[323,3195,323,3196],[323,3201,323,3202],[323,3207,323,3208],[323,3213,323,3214],[323,3219,323,3220],[323,3225,323,3226],[323,3231,323,3232],[323,3237,323,3238],[323,3243,323,3244],[323,3141,323,3142],[323,3147,323,3148],[323,3153,323,3154],[323,3159,323,3160],[323,3165,323,3166],[323,3171,323,3172],[323,3177,323,3178],[323,3183,323,3184],[323,3189,323,3190],[323,3303,323,3304],[323,3309,323,3310],[323,3315,323,3316],[323,3321,323,3322],[323,3327,323,3328],[323,3333,323,3334],[323,3339,323,3340],[323,3345,323,3346],[323,3351,323,3352],[323,3249,323,3250],[323,3255,323,3256],[323,3261,323,3262],[323,3267,323,3268],[323,3273,323,3274],[323,3279,323,3280],[323,3285,323,3286],[323,3291,323,3292],[323,3297,323,3298],[323,3411,323,3412],[323,3417,323,3418],[323,3423,323,3424],[323,3429,323,3430],[323,3435,323,3436],[323,3441,323,3442],[323,3447,323,3448],[323,3453,323,3454],[323,3459,323,3460],[323,3357,323,3358],[323,3363,323,3364],[323,3369,323,3370],[323,3375,323,3376],[323,3381,323,3382],[323,3387,323,3388],[323,3393,323,3394],[323,3399,323,3400],[323,3405,323,3406],[323,3519,323,3520],[323,3525,323,3526],[323,3531,323,3532],[323,3537,323,3538],[323,3543,323,3544],[323,3549,323,3550],[323,3555,323,3556],[323,3561,323,3562],[323,3567,323,3568],[323,3465,323,3466],[323,3471,323,3472],[323,3477,323,3478],[323,3483,323,3484],[323,3489,323,3490],[323,3495,323,3496],[323,3501,323,3502],[323,3507,323,3508],[323,3513,323,3514],[323,3627,323,3628],[323,3633,323,3634],[323,3639,323,3640],[323,3645,323,3646],[323,3651,323,3652],[323,3657,323,3658],[323,3663,323,3664],[323,3669,323,3670],[323,3675,323,3676],[323,3573,323,3574],[323,3579,323,3580],[323,3585,323,3586],[323,3591,323,3592],[323,3597,323,3598],[323,3603,323,3604],[323,3609,323,3610],[323,3615,323,3616],[323,3621,323,3622],[323,3735,323,3736],[323,3741,323,3742],[323,3747,323,3748],[323,3753,323,3754],[323,3759,323,3760],[323,3765,323,3766],[323,3771,323,3772],[323,3777,323,3778],[323,3783,323,3784],[323,3681,323,3682],[323,3687,323,3688]],"merged_total":3109,"flags":["merged_cut"]}
[]
["SAMPLES, COLLATERAL & TRAINING MATERIALS ORDER FORM"]
[]
["Handgards Samples Contact Information:"]
["samples@handgards.com"]
["(915)779-6606 ",null,null,null,null,"Rev - 02/13/20"]
["REQUIRED INFORMATION"]
["1.    Any additional items needed must be requested using its proper Handgards item number. Please use the Product Table tab.\n2.    All shipments will be shipped via UPS ground. Expedited shipments will require approval from Regional Sales Manager.\n3.    Handgards does not back order samples.  You will be informed once you receive your order confirmation.\n4.    To help with the increasing cost of freight and materials we are enforcing the limits on orders.  Regional manager approval will be needed on ALL sample orders.  Please send the sample order form to your HGI Regional. "]
[]
[]
[]
[]
[]
["Date Ordered: ",null,null,"Date Required:"]
["Requested by:"]
["Telephone No.:"]
["Email:"]
[]
["Shipping Information"]
["Customer:"]
["Attention To:"]
["Address: 1"]
["Address 2:"]
["City:"]
["State:"]
["Zip Code:"]
[]
["Date of Show:"]
["Name of Show:"]
["Samples for:"]
[]
["HANDGARDS  CATALOGS  "]
["QUANTITY","ITEM#","MODEL#","DESCRIPTION",null,"Order Limit"]
[null,400100027,"PS-35","HGI Full Line Catalog",null,25]
[null,400100041,"PS-74","HGI Glove Catalog",null,25]
[null,400100044,"PS-78","HGI Presentation Folder",null,25]
[null,410601450,"PS-1450","HGI Expendables Catalog ",null,25]
["DOT CATALOG"]
["PAPERLESS ONLY - Download at http://extranet.handgards.com/dot/2017DOTCatalog.pdf"]
["DOWNLOAD ONLY",null,null,"DOT Catalog"]
["HANDGARDS GLOVE LITERATURE/POS"]
[null,400100075,"PS-32","HGI Handwashing Procedure Sign",null,25]
[null,400100116,"PS-32 VG","ValuGards Handwashing Procedure Sign",null,25]
[null,400100139,"PS-112","HGI Right Glove, Task, Price Sheet",null,25]
[null,400100148,"PS-130","HGI Latex Alternatives Sheet",null,25]
[null,410601277,"PS-1277","HGI Nitrile Environmental Benefits",null,25]
[null,410601380,"PS-1380","HGI Beyond The Center of the Plate",null,25]
[null,410601235,"PS-1235","HGI Hand Glove Chart Sheet",null,25]
[null,400100196,"PS-179","HGI Poly Glove Sheet",null,25]
[null,400100203,"PS-187","HGI Quickserve Poly Glove Sheet",null,25]
[null,410601205,"PS-1205","Grip Gards Stretch Hybrid Clear Glove Sheet",null,25]
[null,410601207,"PS-1207","Grip Gards Stretch Hybrid Blue Glove Sheet",null,25]
[null,410601206,"PS-1206","Glovegards Poly Glove Sheet",null,25]
[null,410601461,"PS-1461","Planetgards Compostable Glove Sheet",null,25]
[null,410601239,"PS-1239","ValuGards Stretch Poly Clear Glove Sheet",null,25]
[null,400100204,"PS-188","ValuGards Poly Glove Sheet",null,25]
[null,400100193,"PS-176","HGI Vinyl Glove Sheet",null,25]
[null,410601225,"PS-1225","HGI Black Vinyl Glove Sheet",null,25]
[null,400100123,"PS-96","ValuGards Blue Vinyl Glove Sheet",null,25]
[null,400100212,"PS-196","ValuGards Vinyl Glove Sheet",null,25]
[null,400100194,"PS-177","HGI Synthetic Glove Sheet",null,25]
[null,400100195,"PS-178","HGI Ultratouch Synthetic Glove Sheet",null,25]
[null,400100200,"PS-183","HGI Synthetic with Aloe Glove Sheet ",null,25]
[null,400100192,"PS-175","HGI Latex Glove Sheet",null,25]
[null,400500070,"PS-14 ","ValuGards Latex Glove Sheet",null,25]
[null,400100202,"PS-186","HGI Examgards Glove Sheet",null,25]
[null,400100222,"PS-206","HGI Exam Black Nitrile Glove Sheet",null,25]
[null,400100223,"PS-207","HGI Exam Blue Nitrile Glove Sheet",null,25]
[null,400100197,"PS-180","HGI Blue Nitrile Glove Sheet",null,25]
[null,410601275,"PS-1275","HGI Black Nitrile Glove Sheet",null,25]
[null,410601257,"PS-1257","SoftFit Thin Nitrile Steel Blue Glove Sheet",null,25]
[null,410601259,"PS-1259","SoftFit Thin Nitrile Clear Glove Sheet",null,25]
[null,400100183,"PS-166","ValuGards White Nitrile Glove Sheet",null,25]
[null,410601261,"PS-1261","ValuGards Nitrile Purple Glove Sheet",null,25]
[null,410601280,"PS-1280","HGI Reusable Gloves Sheet",null,25]
[null,410601281,"PS-1281","HGI Neoprene Heavy Duty Gloves Sheet",null,25]
[null,410601282,"PS-1282","HGI Cut Resistant Glove Sheet",null,25]
[null,410601480,"PS-1480","ValuGards Bulk Pack Vinyl, Latex, Nitrile Sheet",null,25]
["HANDGARDS LITERATURE/POS"]
[null,400100098,"PS-98","Carry Your Bags Sheet",null,25]
[null,400100034,"BP-1","High Density Freezer Bags & Bun Rack Cover Sheet",null,25]
[null,400100033,"LD-1","Low Density Storage Bags Sheet",null,25]
[null,400100038,"NG-8","Neatgards Apparel Sheet",null,25]
[null,400100086,"PH-1","Panhandlers Pan Liners Sheet",null,25]
[null,400100036,"ZG-1","ZipGards Reclosable Bags Sheet",null,25]
[null,400100129,"PS-113","High Density Sandwich Bags Sheet",null,25]
[null,400100114,"PS-114","High Density Pre-Portion Bags",null,25]
[null,400100216,"PS-200","HGI Dirty Jobs Dirt Cheap Sheet",null,25]
[null,400100224,"PS-208","HGI New Child Bibs Sheet",null,25]
[null,410601310,"PS-1310","Panhandlers Soup Liner - It's Soup Season Sheet",null,25]
[null,410601311,"PS-1311","HGI Holiday Season Pan Liners Sheet",null,25]
[null,410601313,"PS-1313","HGI Panhandler Cost WS 11X17 Sheet",null,25]
[null,410601321,"PS-1321","HGI Food Plate Sandwich Bags Sheet",null,25]
[null,410601325,"PS-1325","HGI High Density Food Sheet",null,25]
[null,410601330,"PS-1330","HGI High Density Reclosable Bags Sheet",null,25]
[null,410601340,"PS-1340","HGI High Clarity PolyPropylene Bags (Bopp) Sheet ",null,25]
[null,410601452,"PS-1452","HGI Wood Expendables Sheet",null,25]
[null,410601453,"PS-1453","HGI Bamboo Expendables Sheet",null,25]
[null,410601454,"PS-1454","HGI Plastic Expendables Sheet",null,25]
[null,410601455,"PS-1455 ","HGI Headwear Expendables Sheet",null,25]
[null,410601459,"PS-1459","HGI Chef Hat Flat Velcro Sheet",null,25]
[null,410601456,"PS-1456","HGI Custom Printing Capabilities Sheet",null,25]
[null,410601457,"PS-1457","Made in the USA Sheet",null,25]
[null,410601458,"PS-1458","Doing Our Part Recycle Sheet",null,25]
[null,400100103,"PS-103","Water Conservation Sheet",null,25]
[null,410601322,"PS-1322","One Stop Shop School Sheet",null,25]
[null,410601500,"PS-1500","HGI Why Preportion Easy 123",null,25]
["HANDGARDS GLOVE KITS"]
[null,400200163,"KIT-163","HGI Poly Glove Kit",null,25]
[null,400200170,"KIT-170","HGI Quickserve Poly Glove Kit",null,25]
[null,410701205,"KIT-1205","Grip Gards Stretch Hybrid Clear Glove Kit",null,25]
[null,410701207,"KIT-1207","Grip Gards Stretch Hybrid Blue Glove Kit",null,25]
[null,410701206,"KIT-1206","Glove Gards Poly - OFSM Glove Kit",null,25]
[null,410701461,"KIT-1461","Planetgards Compostable Glove Kit",null,25]
[null,410701239,"KIT-1239","ValuGards Stretch Poly Clear Glove Kit",null,25]
[null,400500054,"KIT-18","ValuGards Poly Glove Kit",null,25]
[null,400200160,"KIT-160","HGI Vinyl Glove Kit",null,25]
[null,410701225,"KIT-1225","HGI Black Vinyl Glove Kit",null,25]
[null,400500097,"KIT-97","HGI Exam Vinyl Glove Kit",null,25]
[null,400200168,"KIT-168","ValuGards Vinyl Colorgards Gloves Kit",null,25]
[null,400200125,"KIT-125","ValuGards Vinyl Glove Kit",null,25]
[null,400200161,"KIT-161","HGI Synthetic Glove Kit",null,25]
[null,400200162,"KIT-162","HGI Ultratouch Synthetic Glove Kit",null,25]
[null,400200167,"KIT-167","HGI Synthetic Aloe Gloves Kit",null,25]
[null,400200159,"KIT-159","HGI Latex Glove Kit",null,25]
[null,400500096,"KIT-96","HGI Exam Latex Glove Kit",null,25]
[null,400100070,"KIT-14","ValuGards Latex Glove Kit",null,25]
[null,400500098,"KIT-98","HGI Exam Nitrile Glove Kit",null,25]
[null,400200182,"KIT-182","HGI Exam Black Nitrile Glove Kit",null,25]
[null,400200183,"KIT-183","HGI Exam Blue Nitrile Glove Kit",null,25]
[null,400200164,"KIT-164","HGI Nitrile Blue Glove Kit",null,25]
[null,410701275,"KIT-1275","HGI Black Nitrile Glove Kit",null,25]
[null,410701257,"KIT-1257","SoftFit Thin Nitrile Steel Blue Glove Kit",null,25]
[null,410701259,"KIT-1259","SoftFit Thin Nitrile Clear Glove Kit",null,25]
[null,400200166,"KIT-166","ValuGards Nitrile White Kit",null,25]
[null,410701261,"KIT-1261","ValuGards Purple Nitrile Glove Kit",null,25]
["HANDGARDS MAILERS/KITS"]
[null,400200108,"KIT- BP-1","High Density Freezer Bags Kit",null,25]
[null,400200110,"KIT- LD-1","Low Density Storage Bags Kit",null,25]
[null,400200105,"KIT- NG-8","Neatgards Apparel Sample Kit",null,25]
[null,400100121,"KIT- PH-1","Panhandlers OPL/SPL/ORB Kit",null,25]
[null,400200106,"KIT- ZG-1","Low Density Zipgards Reclosable Bags Kit",null,25]
[null,400200113,"KIT-113","High Density Sandwich Bags Kit",null,25]
[null,400200114,"KIT-114","High Density Preportion Variety Bags Kit",null,25]
[null,400200120,"KIT-120","Dirty Jobs Dirt Cheap Kit",null,25]
[null,400200208,"KIT-208","HGI New Child Bibs Kit",null,25]
[null,410701310,"KIT-1310","HGI Soup Season Kit",null,25]
[null,410701311,"KIT-1311","HGI ORB/OPL Holiday Kit",null,25]
[null,410701312,"KIT-1312","HGI Recipe Holiday Card Kit",null,25]
[null,410701321,"KIT-1321","HGI Food Plate Kit",null,25]
[null,410701325,"KIT-1325","HGI HD Food Sheets Kit",null,25]
[null,410701330,"KIT-1330","HGI High Density Reclosable Bags Kit",null,25]
[null,410701340,"KIT-1340","HGI High Clarity PolyPropylene Bags (BOPP) Kit ",null,25]
[null,410701452,"KIT-1452","HGI Expendables Kit - Wood",null,25]
[null,410701453,"KIT-1453","HGI Expendables Kit - Bamboo",null,25]
[null,410701454,"KIT-1454","HGI Expendables Kit - Plastic",null,25]
[null,410701455,"KIT-1455","HGI Expendables Kit - Headwear",null,25]
["HANDGARDS COMPLETE FOODSHOW / TRADE SHOW SET UP"]
["     ",400200146,"HGI Setup","Table set up (Handgards Line of Products)",null,1]
[null,400200147,"PFG Setup","Table set up (PFG Line of Products)",null,1]
[null,400200148,"BEK Setup","Table set up (BEK Line of Products)",null,1]
[null,400200149,"SYS Setup","Table set up (Sysco Line of Products)",null,1]
[null,400200150,"CPN Setup","Table setup (Companions Line of Products)",null,1]
["SYSCO LITERATURE/POS"]
[null,400100089,"PS-89","Sysco Full Line Catalog",null,25]
[null,400100050,"PS-84","Sysco Glove Catalog",null,25]
[null,430602090,"PS-2090","Sysco Expendables Catalog",null,25]
[null,400100117,"PS-32 SYS","Sysco Handwashing Procedure Sign",null,25]
[null,400100176,"PS-159","Sysco Latex Alternative (HGI Items)",null,25]
[null,400100179,"PS-162","Sysco Latex Alternative (Sysco Items)",null,25]
[null,430602332,"PS-2332","Sysco Vinyl Alternatives Sheet",null,25]
[null,420602084,"PS-2084","Sysco Right Glove Right Task Sheet",null,25]
[null,430602091,"PS-2091","Sysco Glove Sizing Chart Sheet",null,25]
[null,430602120,"PS-2120","Sysco Beyond the Center of the Plate",null,25]
[null,430602370,"PS-2370","Sysco Classic Poly Glove Sheet",null,25]
[null,430602380,"PS-2380","Sysco Reliance Poly Glove Sheet",null,25]
[null,430602207,"PS-2207","Sysco Stretch Poly Glove Sheet",null,25]
[null,400100135,"PS-95 SYS","Sysco Quickserve Poly Glove Sheet",null,25]
[null,430602208,"PS-2208","Sysco Classic Stretch Hybrid Glove Sheet",null,25]
[null,430602300,"PS-2300","Sysco Classic Vinyl Glove Sheet",null,25]
[null,430602316,"PS-2316","Sysco Reliance Vinyl Glove Sheet",null,25]
[null,400100152,"PS-134","HGI Brand UltraTouch Synthetic Gloves - w/Sysco Logo Sheet",null,25]
[null,430602390,"PS-2390","Sysco Classic Synthetic Glove Sheet",null,25]
[null,430602350,"PS-2350","Sysco Classic Latex Glove Sheet",null,25]
[null,430602360,"PS-2360","Sysco Reliance Latex Glove Sheet",null,25]
[null,400100300,"PS-300","Sysco Classic Cobalt Nitrile Glove Sheet",null,25]
[null,430602504,"PS-2504","Sysco Classic Black Nitrile Glove Sheet",null,25]
[null,430602550,"PS-2550","Sysco Imperial PVC/LTX Package Change Sheet",null,25]
[null,400100120,"PS-86 SYS","Sysco Pan Liners Sheet",null,25]
[null,400100136,"PS-118","Sysco Low Density Relosable Bags Sheet",null,25]
[null,400100207,"PS-191","Sysco High Density Food Storage Bags",null,25]
[null,400100208,"PS-192","Sysco Low Density Food Storage Bags",null,25]
[null,400100209,"PS-193","Sysco High Density Storage Bags Sheet",null,25]
[null,430602580,"PS-2580","Sysco High Density Daily Preportioning Bags Sheet",null,25]
[null,420602310,"PS-2310","Sysco Soup Season Sheet",null,25]
[null,430602320,"PS-2320","Sysco Why Preportion Easy 123",null,25]
[null,430602323,"PS-2323","Sysco Bun Pan Sheet",null,25]
[null,420602340,"PS-2340","Sysco High Clarity Polypropylene Bag Sheet",null,25]
[null,430603000,"PS-3000","Sysco Child Bib Sheet",null,25]
[null,400100304,"PS-304","Sysco Apparel Sheet",null,25]
[null,430602092,"PS-2092","Sysco Wood Expendable Sheet",null,25]
[null,430602093,"PS-2093","Sysco Bamboo Expendable Sheet",null,25]
[null,430602094,"PS-2094","Sysco Plastic Expendable Sheet",null,25]
[null,430602095,"PS-2095","Sysco Headwear Expendable Sheet",null,25]
[null,430602096,"PS-2096","Sysco Chef Hat Velcro Sheet",null,25]
["SYSCO MAILERS/KITS"]
[null,430702370,"KIT-2370","Sysco Classic Poly Glove Kit",null,25]
[null,430702380,"KIT-2380","Sysco Reliance Poly Glove Kit",null,25]
[null,430702207,"KIT-2207","Sysco Stretch Poly Glove Kit",null,25]
[null,400500095,"KIT-95","Sysco Quickserve Poly Glove Kit",null,25]
[null,430702208,"KIT-2208","Sysco Classic Stretch Hybrid Glove Kit",null,25]
[null,430702300,"KIT-2300","Sysco Classic Vinyl Glove Kit",null,25]
[null,430702316,"KIT-2316","Sysco Reliance Vinyl Glove Kit",null,25]
[null,400500025,"KIT 132-3","Sysco Imperial Vinyl-Exam Glove Kit",null,25]
[null,400200127,"KIT-127","Sysco UltraTouch Synthetic Glove Kit",null,25]
[null,430702390,"KIT-2390","Sysco Classic Synthetic GloveKit",null,25]
[null,430702350,"KIT-2350","Sysco Classic Latex Glove Kit",null,25]
[null,430702360,"KIT-2360","Sysco Reliance Latex Glove Kit",null,25]
[null,400500017,"KIT 132-5","Sysco Imperial Latex-Exam Glove Kit",null,25]
[null,400500300,"KIT-300","Sysco Cobalt Nitrile Glove Kit",null,25]
[null,430702504,"KIT-2504","Sysco Black Nitrile Glove Kit",null,25]
[null,400200143,"KIT-143","Sysco Panhandlers Products Kit   ",null,25]
[null,400200151,"KIT-151","Sysco Low Density Reclosable Bags Kit",null,25]
[null,400200152,"KIT-152","Sysco High Density Freezer Bag Kit",null,25]
[null,400200153,"KIT-153","Sysco High Density Food Storage Bag Kit",null,25]
[null,400200156,"KIT-156","Sysco Low Density Storage Bags Kit",null,25]
[null,430702580,"KIT-2580","Sysco High Density Daily Preportioning Bags Kit",null,25]
[null,420702310,"KIT-2310","Sysco Soup Season Kit",null,25]
[null,430702311,"KIT-2311","Sysco Recipe Holiday Card Kit",null,25]
[null,430702323,"KIT-2323","Sysco Bun Pan Kit",null,25]
[null,420702340,"KIT-2340","Sysco High Clarity Polypropylene Bag Kit",null,25]
[null,400500304,"KIT-304","Sysco Apparel Kit",null,25]
[null,430703000,"KIT-3000","Sysco Child Bib Kit ",null,25]
[null,430702092,"KIT-2092","Sysco Wood Expendable Kit ",null,25]
[null,430702093,"KIT-2093","Sysco Bamboo Expendable Kit ",null,25]
[null,430702094,"KIT-2094","Sysco Plastic Expendable Kit ",null,25]
[null,430702095,"KIT-2095","Sysco Headwear Expendable Kit  ",null,25]
["BEN E. KEITH LITERATURE/POS"]
["PAPERLESS ONLY - Download at www.handgardsuniversity.com"]
["DOWNLOAD ONLY",400300050,"PS-24","Ben E. Keith Full Line Catalog"]
["DOWNLOAD ONLY",400100119,"PS-86 ","Ben E. Keith Panhandlers Products Sheet"]
["DOWNLOAD ONLY",400100178,"PS-161 ","BEK Latex Glove Alternatives (BEK Items)"]
["DOWNLOAD ONLY",400100175,"PS-158","BEK Latex Gloves Alternatives (HGI Items)"]
["DOWNLOAD ONLY",450605201,"PS-5201","BEK Beyond The Center of the Plate"]
["DOWNLOAD ONLY",450605213,"PS-5213","BEK Vinyl Glove Sheet"]
["DOWNLOAD ONLY",450605223,"PS-5223","BEK Latex Glove Sheet"]
["DOWNLOAD ONLY",450605233,"PS-5233","BEK Poly Glove Sheet"]
["DOWNLOAD ONLY",450605234,"PS-5234","BEK Stretch Poly Gloves Sheet"]
["DOWNLOAD ONLY",450605270,"PS-5270","BEK Planetgards Compostable Sheet"]
["DOWNLOAD ONLY",450605253,"PS-5253","BEK Nitrile Glove Sheet"]
["DOWNLOAD ONLY",450605254,"PS-5254","BEK FS Black Nitrile Glove Sheet"]
["DOWNLOAD ONLY",450605284,"PS-5284","BEK Reclosable Bags Sheet"]
["DOWNLOAD ONLY",450605282,"PS-5285","BEK High Density Reclosable Bags Sheet"]
["BEN E. KEITH MAILERS/KITS"]
[null,450705213,"KIT-5213","BEK Vinyl Glove Kit",null,25]
[null,450705223,"KIT-5223","BEK Latex Glove Kit",null,25]
[null,450705233,"KIT-5233","BEK Poly Glove Kit",null,25]
[null,400500301,"KIT-5234","BEK Stretch Poly Gloves Kit",null,25]
[null,450705270,"KIT-5270","BEK Planetgards Compostable Glove Kit",null,25]
[null,450705253,"KIT-5253","BEK Purple Nitrile Glove Kit",null,25]
[null,450705254,"KIT-5254","BEK FS Black Nitrile Glove Kit ",null,25]
[null,450705284,"KIT-5284","BEK Reclosable Bags Kit",null,25]
[null,450705285,"KIT-5285","BEK High Density Reclosable Bags Kit",null,25]
[null,450705310,"KIT-5310","BEK Recipe Holiday Card Kit",null,25]
["PFG LITERATURE/POS"]
[null,400100162,"PS-145","PFG Full Line Catalog",null,25]
[null,440604215,"PS-4215","PFG Expendables Catalog",null,25]
[null,400100168,"PS-151","PFG Glove Product Sheet",null,25]
[null,440604428,"PS-4428","PFG Beyond The Center of the Plate",null,25]
[null,440604429,"PS-4429","PFG Parade of Gloves Sheet",null,25]
[null,400100173,"PS-156","PFG Back of the House Sheet",null,25]
[null,400100177,"PS-160","PFG Latex Glove Alternatives (HGI Items)",null,25]
[null,400100180,"PS-163","PFG Latex Glove Alternatives (PFG Items)",null,25]
[null,440604240,"PS-4240","PFG Vinyl Alternatives Sheet",null,25]
[null,440604230,"PS-4230","PFG FM Vinyl Powdered Glove Sheet",null,25]
[null,440604271,"PS-4271","PFG SS Vinyl Powdered Glove Sheet",null,25]
[null,440604242,"PS-4242","PFG FM Synthetic PF Glove Sheet",null,25]
[null,400100213,"PS-197","PFG SS Ultra Synthetic Glove Sheet",null,25]
[null,440604281,"PS-4281","PFG SS Latex Powdered Glove Sheet",null,25]
[null,440604261,"PS-4261","PFG SS Nitrile Amethyst Glove Sheet",null,25]
[null,440604262,"PS-4262","PFG FM Nitrile Black FS Glove Sheet",null,25]
[null,440604263,"PS-4263","PFG Nitrile Gloves (Stop Latex) Sheet",null,25]
["PFG MAILERS/KITS"]
[null,400500048,"KIT-48","PFG FM Poly Glove Kit",null,25]
[null,400500061,"KIT-61","PFG SS Poly Glove Kit",null,25]
[null,400500047,"KIT-47","PFG FM Vinyl Glove Kit",null,25]
[null,400500058,"KIT-58","PFG SS Vinyl Glove Kit",null,25]
[null,440704230,"KIT-4230","PFG FM Vinyl Powdered Glove Kit",null,25]
[null,440704271,"KIT-4271","PFG SS Vinyl Powdered Glove Kit",null,25]
[null,440704242,"KIT-4242","PFG FM Synthetic Glove Kit",null,25]
[null,400200175,"KIT-175","PFG SS UltraTouch Synthetic Glove Kit",null,25]
[null,400500056,"KIT-56","PFG FM Latex Glove Kit",null,25]
[null,400500060,"KIT-60","PFG SS Latex Glove Kit",null,25]
[null,440704281,"KIT-4281","PFG SS Latex Powdered Glove Kit",null,25]
[null,440704262,"KIT-4262","PFG FM Nitrile Black Glove Kit",null,25]
[null,440704261,"KIT-4261","PFG SS Nitrile Amethyst Glove Kit",null,25]
[null,440704411,"KIT-4411","PFG FM Poly Apron Kit",null,25]
[null,400500062,"KIT-62","PFG SS Poly Apron Kit",null,25]
[null,420704420,"KIT-4420","PFG Recipe Holiday Card Kit",null,25]
["UniPro Companions Literature/POS"]
[null,470605100,"PS-5100","Companions Right Glove Right Task Sheet",null,25]
[null,470605101,"PS-5101","UniPro Beyond The Center of the Plate",null,25]
[null,470605102,"PS-5102","Companions Glove Catalog",null,25]
[null,470605111,"PS-5111","Companions Essentials Stretch Hybrid Sheet",null,25]
[null,470605120,"PS-5120 ","Companions Essentials General Purpose Vinyl Sheet",null,25]
[null,470605121,"PS-5121","Companions Essentials Vinyl Sheet",null,25]
[null,470605135,"PS-5135","Companions Essentials Latex Sheet",null,25]
[null,470605140,"PS-5140","Companions Essentials Thin Nitrile Sheet",null,25]
[null,470605110,"PS-5110","Companions Merit Poly Sheet",null,25]
[null,470605125,"PS-5125","Companions Merit Black Vinyl Sheet",null,25]
[null,470605126,"PS-5126","Companions Merit Vinyl Sheet",null,25]
[null,470605130,"PS-5130","Companions Merit Latex Sheet",null,25]
["UniPro Companions Kits"]
[null,470705111,"KT-5111","Companions Essentials Stretch Hybrid Glove Kit",null,25]
[null,470705120,"KT-5120 ","Companions Essentials General Purpose Vinyl Glove Kit",null,25]
[null,470705121,"KT-5121","Companions Essentials Vinyl Glove Kit",null,25]
[null,470705135,"KT-5135","Companions Essentials Latex Glove Kit",null,25]
[null,470705140,"KT-5140","Companions Essentials Thin Nitrile Glove Kit",null,25]
[null,470705110,"KT-5110","Companions Merit Poly Glove Kit",null,25]
[null,470705125,"KT-5125","Companions Merit Black Vinyl Glove Kit",null,25]
[null,470705126,"KT-5126","Companions Merit Vinyl Glove Kit",null,25]
[null,470705130,"KT-5130","Companions Merit Latex Glove Kit",null,25]
["Affex Literature/POS"]
[null,480603001,"PS-3001","Affex Glove Catalog",null,25]
[null,480603003,"PS-3003","Affex Right Gove Segments & Applications",null,25]
[null,480603010,"PS-3010","Affex Stretch Hybrid Glove Sheet",null,25]
[null,480603020,"PS-3020","Affex General Purpose Vinyl Glove Sheet",null,25]
[null,480603021,"PS-3021","Affex Black Vinyl Glove Sheet",null,25]
[null,480603030,"PS-3030","Affex Latex Glove Sheet",null,25]
[null,480603041,"PS-3041","Affex Thin Nitrile Royal Blue Glove Sheet",null,25]
["Affex Kits"]
[null,480703010,"KT-3010","Affex Stretch Hybrid Glove Kit",null,25]
[null,480703020,"KT-3020","Affex General Purpose Vinyl Glove Kit",null,25]
[null,480703021,"KT-3021","Affex Black Vinyl Glove Kit",null,25]
[null,480703030,"KT-3030","Affex Latex Glove Kit",null,25]
[null,480703041,"KT-3041","Affex Thin Nitrile Royal Blue Glove Kit",null,25]
["Latin America Sysco Literature/POS"]
[null,460601000,"PS-1000","HGI Latinoamérica Catalago",null,25]
[null,460601001,"PS-1001","El Guante Adecuado, Para La Tarea Adecuada, Al Precio Adecuado ",null,25]
[null,460601002,"PS-1002","Identificador de Talla de Guantes ",null,25]
[null,460601015,"PS-1015","Guantes Híbrido Elásticos Grip Gards",null,25]
[null,460601075,"PS-1075","Pan Liners Handgards ",null,25]
[null,460601150,"PS-1150","Sysco Latinoamerica Catalogo ",null,25]
[null,460601151,"PS-1151","Procedimiento Adecuado Para Lavarse Las Manos Sysco",null,25]
[null,460601152,"PS-1152","Identificador de Talla de Guantes, Características, Usos y Sectores ",null,25]
[null,460601160,"PS-1160","Guantes Cobalto de Nitrilo de Alto Rendimiento Sysco Classic ",null,25]
[null,460601161,"PS-1161","Guantes Negros de Nitrilo de Alto Rendimiento Sysco Classic ",null,25]
[null,460601172,"PS-1172","Guantes de Vinilo Sysco Reliance ",null,25]
[null,460601180,"PS-1180","Guantes de Látex Sysco Reliance",null,25]
[null,460601190,"PS-1190","Guantes de Polietileno Sysco Reliance ",null,25]
[null,460601195,"PS-1195","Guantes de Polietileno Elásticos Sysco Classic ",null,25]
[null,460601197,"PS-1197","Guantes de Polietileno QuickServe Sysco Classic ",null,25]
[null,460601020,"PS-1020","Bolsas de Alta Densidad para Congelador Sysco ",null,25]
[null,460601030,"PS-1030","Porque Usar Bolsas de Almacenamiento Sysco ",null,25]
[null,460601076,"PS-1076","Hoja de Cálculo para Panliners Sysco",null,25]
[null,460601077,"PS-1077","Felices Fiestas Sysco ",null,25]
[null,460601260,"PS-1260","Bolsas de Baja Densidad con Cierre Sysco ",null,25]
[null,460601304,"PS-1304","Vestimenta Sysco ",null,25]
["Latin America Kits"]
[null,460701015,"KT-1015","Guantes Híbrido Elásticos Grip Gards Kit",null,25]
[null,460701160,"KT-1160","Guantes Cobalto de Nitrilo de Alto Rendimiento Sysco Classic Kit",null,25]
[null,460701161,"KT-1161","Guantes Negros de Nitrilo de Alto Rendimiento Sysco Classic Kit",null,25]
[null,460701172,"KT-1172","Guantes de Vinilo Sysco Reliance Kit ",null,25]
[null,460701180,"KT-1180","Guantes de Látex Sysco Reliance Kit",null,25]
[null,460701190,"KT-1190","Guantes de Polietileno Sysco Reliance Kit",null,25]
[null,460701195,"KT-1195","Guantes de Polietileno Elásticos Sysco Classic Kit",null,25]
[null,460701197,"KT-1197","Guantes de Polietileno QuickServe Sysco Classic Kit",null,25]
[null,460701075,"KT-1075","Pan Liners Handgards  Kit",null,25]
[null,460701020,"KT-1020","Bolsas de Alta Densidad para Congelador Sysco Kit",null,25]
[null,460701077,"KT-1077","Sysco Felices Fiestas Kit",null,25]
[null,460701260,"KT-1260","Bolsas de Baja Densidad con Cierre Sysco Kit",null,25]
[null,460701304,"KT-1304","Vestimenta Sysco Kit",null,25]
[" Corrugates - Display Holders "]
[null,400900013,"Glove Display","Glove Display Holder - Corrugate",null,1]
[null,400900014,"HGI Display","HGI Expendables Display Holder-Corrugate",null,1]
[null,400900015,"KIT-15","Expendables Display Refill KIT",null,1]
["HOLDERS FOR DISPENSERS"]
[null,403981012,"CB-900CW","Saddle Pack Holders for PB/SB8.5",null,1]
[null,403981013,"CB-900DW","Saddle Pack Holders for PB/D100",null,1]
[null,403981023,null,"QSG - QuickServe Holders",null,4]
["ADDITIONAL ITEMS NEEDED- See tabs for specific product entry, use this for Special Items"]
["QUANTITY","DESCRIPTION"]
[]
[]
[]
[]
[]
[]
[]
[]
["NAME","ABBREVIATION",null,"DESCRIPTION"]
["DISPENSER","DP",null,"Inner Box"]
["CASE","CS",null,"Full Case"]
["SADDLE PACK","SP",null,"200 bags per saddle pack"]
["EACH","EA",null,"1 single item"]
["MASTER CASE","MC",null,"Not available in all products  (subway/quick serve glove/aprons)"]
["KNOCK DOWN","Knock down",null,"Empty case, broken down  "]
["ROLL","RL"]
["FLAT PACK","FP",null,"Stacked, loose bags (not saddle packs)"]

{"sheet":" Terminology","index":1,"n_rows":20,"n_cols":13,"rows_kept":20,"cut":false,"hidden":false,"merged":[[0,0,1,4],[0,6,1,10],[0,12,1,15],[19,0,20,4],[19,6,20,10],[19,12,20,15]]}
["CASE (Outer case)",null,null,null,null,null,"DISPENSER (Inner Case)",null,null,null,null,null,"SADDLE PACK (SP)"]
[]
[]
[]
[]
[]
[]
[]
[]
[]
[]
[]
[]
[]
[]
[]
[]
[]
[]
["HEADER (HD)",null,null,null,null,null,"PAIR (PR)",null,null,null,null,null,"EACH (EA)"]

{"sheet":"Product Order Form","index":2,"n_rows":78,"n_cols":15,"rows_kept":78,"cut":false,"hidden":false,"merged":[[8,7,8,14],[9,7,10,14],[9,0,10,6],[5,7,5,14]]}
[]
[]
[]
["SAMPLES, COLLATERAL & TRAINING MATERIALS ORDER GUIDE"]
["Handgards Samples Contact Information:"]
["samples@handgards.com"]
["(915)779-6606 "]
[]
[]
["Enter Products Here",null,null,null,null,null,null,"Automatic Data Fill"]
[]
["HGI Item Number","Customer #","Type","Label","Product Brand","Qty","Describe Pack type of product you need","HGI XREF # (internal use)","xref index","cust number index","Case Pack","Model #","Color","Description","Size"]
[null,{"$f":"IF($A13<>\"\",VLOOKUP($A13,n_maindatatable2,5,FALSE),\"\")","v":""},{"$f":"IF($A13<>\"\",VLOOKUP($A13,n_maindatatable2,2,FALSE),\"\")","v":""},{"$f":"IF($A13<>\"\",VLOOKUP($A13,n_maindatatable2,3,FALSE),\"\")","v":""},{"$f":"IF($A13<>\"\",VLOOKUP($A13,n_maindatatable2,4,FALSE),\"\")","v":""},null,null,{"$f":"IF(A13<>\"\",+I13,\"\")","v":""},{"$f":"INDEX(n_datatable,MATCH($C13&$D13&$E13&$A13,n_catcolumn&n_custcolumn&n_brandcolumn&n_hginumbercolumn,0),5)","v":{"$error":"#NAME?"}},{"$f":"INDEX(n_datatable,MATCH($C13&$D13&$E13&$A13,n_catcolumn&n_custcolumn&n_brandcolumn,0),6)","v":{"$error":"#NAME?"}},{"$f":"IF($A13<>\"\",VLOOKUP($A13,n_maindatatable2,9,FALSE),\"\")","v":""},{"$f":"IF($A13<>\"\",VLOOKUP($A13,n_maindatatable2,7,FALSE),\"\")","v":""},{"$f":"IF($A13<>\"\",VLOOKUP($A13,n_maindatatable2,10,FALSE),\"\")","v":""},{"$f":"IF($A13<>\"\",VLOOKUP($A13,n_maindatatable2,8,FALSE),\"\")","v":""},{"$f":"IF($A13<>\"\",VLOOKUP($A13,n_maindatatable2,6,FALSE),\"\")","v":""}]
[null,"","","","",null,null,"",{"$f":"INDEX(n_datatable,MATCH($C14&$D14&$E14&$A14,n_catcolumn&n_custcolumn&n_brandcolumn&n_hginumbercolumn,0),5)","v":{"$error":"#NAME?"}},{"$f":"INDEX(n_datatable,MATCH($C14&$D14&$E14&$A14,n_catcolumn&n_custcolumn&n_brandcolumn,0),6)","v":{"$error":"#NAME?"}},"","","","",""]
[null,"","","","",null,null,"",{"$f":"INDEX(n_datatable,MATCH($C15&$D15&$E15&$A15,n_catcolumn&n_custcolumn&n_brandcolumn&n_hginumbercolumn,0),5)","v":{"$error":"#NAME?"}},{"$f":"INDEX(n_datatable,MATCH($C15&$D15&$E15&$A15,n_catcolumn&n_custcolumn&n_brandcolumn,0),6)","v":{"$error":"#NAME?"}},"","","","",""]
[null,"","","","",null,null,"",{"$f":"INDEX(n_datatable,MATCH($C16&$D16&$E16&$A16,n_catcolumn&n_custcolumn&n_brandcolumn&n_hginumbercolumn,0),5)","v":{"$error":"#NAME?"}},{"$f":"INDEX(n_datatable,MATCH($C16&$D16&$E16&$A16,n_catcolumn&n_custcolumn&n_brandcolumn,0),6)","v":{"$error":"#NAME?"}},"","","","",""]
[null,"","","","",null,null,"",{"$f":"INDEX(n_datatable,MATCH($C17&$D17&$E17&$A17,n_catcolumn&n_custcolumn&n_brandcolumn&n_hginumbercolumn,0),5)","v":{"$error":"#NAME?"}},{"$f":"INDEX(n_datatable,MATCH($C17&$D17&$E17&$A17,n_catcolumn&n_custcolumn&n_brandcolumn,0),6)","v":{"$error":"#NAME?"}},"","","","",""]
[null,"","","","",null,null,"",{"$f":"INDEX(n_datatable,MATCH($C18&$D18&$E18&$A18,n_catcolumn&n_custcolumn&n_brandcolumn&n_hginumbercolumn,0),5)","v":{"$error":"#NAME?"}},{"$f":"INDEX(n_datatable,MATCH($C18&$D18&$E18&$A18,n_catcolumn&n_custcolumn&n_brandcolumn,0),6)","v":{"$error":"#NAME?"}},"","","","",""]
[null,"","","","",null,null,"",{"$f":"INDEX(n_datatable,MATCH($C19&$D19&$E19&$A19,n_catcolumn&n_custcolumn&n_brandcolumn&n_hginumbercolumn,0),5)","v":{"$error":"#NAME?"}},{"$f":"INDEX(n_datatable,MATCH($C19&$D19&$E19&$A19,n_catcolumn&n_custcolumn&n_brandcolumn,0),6)","v":{"$error":"#NAME?"}},"","","","",""]
[null,"","","","",null,null,"",{"$f":"INDEX(n_datatable,MATCH($C20&$D20&$E20&$A20,n_catcolumn&n_custcolumn&n_brandcolumn&n_hginumbercolumn,0),5)","v":{"$error":"#NAME?"}},{"$f":"INDEX(n_datatable,MATCH($C20&$D20&$E20&$A20,n_catcolumn&n_custcolumn&n_brandcolumn,0),6)","v":{"$error":"#NAME?"}},"","","","",""]
[null,"","","","",null,null,"",{"$f":"INDEX(n_datatable,MATCH($C21&$D21&$E21&$A21,n_catcolumn&n_custcolumn&n_brandcolumn&n_hginumbercolumn,0),5)","v":{"$error":"#NAME?"}},{"$f":"INDEX(n_datatable,MATCH($C21&$D21&$E21&$A21,n_catcolumn&n_custcolumn&n_brandcolumn,0),6)","v":{"$error":"#NAME?"}},"","","","",""]
[null,"","","","",null,null,"",{"$f":"INDEX(n_datatable,MATCH($C22&$D22&$E22&$A22,n_catcolumn&n_custcolumn&n_brandcolumn&n_hginumbercolumn,0),5)","v":{"$error":"#NAME?"}},{"$f":"INDEX(n_datatable,MATCH($C22&$D22&$E22&$A22,n_catcolumn&n_custcolumn&n_brandcolumn,0),6)","v":{"$error":"#NAME?"}},"","","","",""]
[null,"","","","",null,null,{"$f":"IF(A23<>\"\",+I23,\"\")","v":""},{"$f":"INDEX(n_datatable,MATCH($C23&$D23&$E23&$A23,n_catcolumn&n_custcolumn&n_brandcolumn&n_hginumbercolumn,0),5)","v":{"$error":"#NAME?"}},{"$f":"INDEX(n_datatable,MATCH($C23&$D23&$E23&$A23,n_catcolumn&n_custcolumn&n_brandcolumn,0),6)","v":{"$error":"#NAME?"}},"","","","",""]
[null,"","","","",null,null,"",{"$f":"INDEX(n_datatable,MATCH($C24&$D24&$E24&$A24,n_catcolumn&n_custcolumn&n_brandcolumn&n_hginumbercolumn,0),5)","v":{"$error":"#NAME?"}},{"$f":"INDEX(n_datatable,MATCH($C24&$D24&$E24&$A24,n_catcolumn&n_custcolumn&n_brandcolumn,0),6)","v":{"$error":"#NAME?"}},"","","","",""]
[null,"","","","",null,null,"",{"$f":"INDEX(n_datatable,MATCH($C25&$D25&$E25&$A25,n_catcolumn&n_custcolumn&n_brandcolumn&n_hginumbercolumn,0),5)","v":{"$error":"#NAME?"}},{"$f":"INDEX(n_datatable,MATCH($C25&$D25&$E25&$A25,n_catcolumn&n_custcolumn&n_brandcolumn,0),6)","v":{"$error":"#NAME?"}},"","","","",""]
[null,"","","","",null,null,"",{"$f":"INDEX(n_datatable,MATCH($C26&$D26&$E26&$A26,n_catcolumn&n_custcolumn&n_brandcolumn&n_hginumbercolumn,0),5)","v":{"$error":"#NAME?"}},{"$f":"INDEX(n_datatable,MATCH($C26&$D26&$E26&$A26,n_catcolumn&n_custcolumn&n_brandcolumn,0),6)","v":{"$error":"#NAME?"}},"","","","",""]
[null,"","","","",null,null,"",{"$f":"INDEX(n_datatable,MATCH($C27&$D27&$E27&$A27,n_catcolumn&n_custcolumn&n_brandcolumn&n_hginumbercolumn,0),5)","v":{"$error":"#NAME?"}},{"$f":"INDEX(n_datatable,MATCH($C27&$D27&$E27&$A27,n_catcolumn&n_custcolumn&n_brandcolumn,0),6)","v":{"$error":"#NAME?"}},"","","","",""]
[null,"","","","",null,null,"",{"$f":"INDEX(n_datatable,MATCH($C28&$D28&$E28&$A28,n_catcolumn&n_custcolumn&n_brandcolumn&n_hginumbercolumn,0),5)","v":{"$error":"#NAME?"}},{"$f":"INDEX(n_datatable,MATCH($C28&$D28&$E28&$A28,n_catcolumn&n_custcolumn&n_brandcolumn,0),6)","v":{"$error":"#NAME?"}},"","","","",""]
[null,"","","","",null,null,"",{"$f":"INDEX(n_datatable,MATCH($C29&$D29&$E29&$A29,n_catcolumn&n_custcolumn&n_brandcolumn&n_hginumbercolumn,0),5)","v":{"$error":"#NAME?"}},{"$f":"INDEX(n_datatable,MATCH($C29&$D29&$E29&$A29,n_catcolumn&n_custcolumn&n_brandcolumn,0),6)","v":{"$error":"#NAME?"}},"","","","",""]
[null,"","","","",null,null,"",{"$f":"INDEX(n_datatable,MATCH($C30&$D30&$E30&$A30,n_catcolumn&n_custcolumn&n_brandcolumn&n_hginumbercolumn,0),5)","v":{"$error":"#NAME?"}},{"$f":"INDEX(n_datatable,MATCH($C30&$D30&$E30&$A30,n_catcolumn&n_custcolumn&n_brandcolumn,0),6)","v":{"$error":"#NAME?"}},"","","","",""]
[null,"","","","",null,null,"",{"$f":"INDEX(n_datatable,MATCH($C31&$D31&$E31&$A31,n_catcolumn&n_custcolumn&n_brandcolumn&n_hginumbercolumn,0),5)","v":{"$error":"#NAME?"}},{"$f":"INDEX(n_datatable,MATCH($C31&$D31&$E31&$A31,n_catcolumn&n_custcolumn&n_brandcolumn,0),6)","v":{"$error":"#NAME?"}},"","","","",""]
[null,"","","","",null,null,"",{"$f":"INDEX(n_datatable,MATCH($C32&$D32&$E32&$A32,n_catcolumn&n_custcolumn&n_brandcolumn&n_hginumbercolumn,0),5)","v":{"$error":"#NAME?"}},{"$f":"INDEX(n_datatable,MATCH($C32&$D32&$E32&$A32,n_catcolumn&n_custcolumn&n_brandcolumn,0),6)","v":{"$error":"#NAME?"}},"","","","",""]
[null,"","","","",null,null,"",{"$f":"INDEX(n_datatable,MATCH($C33&$D33&$E33&$A33,n_catcolumn&n_custcolumn&n_brandcolumn&n_hginumbercolumn,0),5)","v":{"$error":"#NAME?"}},{"$f":"INDEX(n_datatable,MATCH($C33&$D33&$E33&$A33,n_catcolumn&n_custcolumn&n_brandcolumn,0),6)","v":{"$error":"#NAME?"}},"","","","",""]
[null,"","","","",null,null,"",{"$f":"INDEX(n_datatable,MATCH($C34&$D34&$E34&$A34,n_catcolumn&n_custcolumn&n_brandcolumn&n_hginumbercolumn,0),5)","v":{"$error":"#NAME?"}},{"$f":"INDEX(n_datatable,MATCH($C34&$D34&$E34&$A34,n_catcolumn&n_custcolumn&n_brandcolumn,0),6)","v":{"$error":"#NAME?"}},"","","","",""]
[null,"","","","",null,null,"",{"$f":"INDEX(n_datatable,MATCH($C35&$D35&$E35&$A35,n_catcolumn&n_custcolumn&n_brandcolumn&n_hginumbercolumn,0),5)","v":{"$error":"#NAME?"}},{"$f":"INDEX(n_datatable,MATCH($C35&$D35&$E35&$A35,n_catcolumn&n_custcolumn&n_brandcolumn,0),6)","v":{"$error":"#NAME?"}},"","","","",""]
[null,"","","","",null,null,"",{"$f":"INDEX(n_datatable,MATCH($C36&$D36&$E36&$A36,n_catcolumn&n_custcolumn&n_brandcolumn&n_hginumbercolumn,0),5)","v":{"$error":"#NAME?"}},{"$f":"INDEX(n_datatable,MATCH($C36&$D36&$E36&$A36,n_catcolumn&n_custcolumn&n_brandcolumn,0),6)","v":{"$error":"#NAME?"}},"","","","",""]
[null,"","","","",null,null,"",{"$f":"INDEX(n_datatable,MATCH($C37&$D37&$E37&$A37,n_catcolumn&n_custcolumn&n_brandcolumn&n_hginumbercolumn,0),5)","v":{"$error":"#NAME?"}},{"$f":"INDEX(n_datatable,MATCH($C37&$D37&$E37&$A37,n_catcolumn&n_custcolumn&n_brandcolumn,0),6)","v":{"$error":"#NAME?"}},"","","","",""]
[null,"","","","",null,null,"",{"$f":"INDEX(n_datatable,MATCH($C38&$D38&$E38&$A38,n_catcolumn&n_custcolumn&n_brandcolumn&n_hginumbercolumn,0),5)","v":{"$error":"#NAME?"}},{"$f":"INDEX(n_datatable,MATCH($C38&$D38&$E38&$A38,n_catcolumn&n_custcolumn&n_brandcolumn,0),6)","v":{"$error":"#NAME?"}},"","","","",""]
[null,"","","","",null,null,"",{"$f":"INDEX(n_datatable,MATCH($C39&$D39&$E39&$A39,n_catcolumn&n_custcolumn&n_brandcolumn&n_hginumbercolumn,0),5)","v":{"$error":"#NAME?"}},{"$f":"INDEX(n_datatable,MATCH($C39&$D39&$E39&$A39,n_catcolumn&n_custcolumn&n_brandcolumn,0),6)","v":{"$error":"#NAME?"}},"","","","",""]
[null,"","","","",null,null,"",{"$f":"INDEX(n_datatable,MATCH($C40&$D40&$E40&$A40,n_catcolumn&n_custcolumn&n_brandcolumn&n_hginumbercolumn,0),5)","v":{"$error":"#NAME?"}},{"$f":"INDEX(n_datatable,MATCH($C40&$D40&$E40&$A40,n_catcolumn&n_custcolumn&n_brandcolumn,0),6)","v":{"$error":"#NAME?"}},"","","","",""]
[null,"","","","",null,null,"",{"$f":"INDEX(n_datatable,MATCH($C41&$D41&$E41&$A41,n_catcolumn&n_custcolumn&n_brandcolumn&n_hginumbercolumn,0),5)","v":{"$error":"#NAME?"}},{"$f":"INDEX(n_datatable,MATCH($C41&$D41&$E41&$A41,n_catcolumn&n_custcolumn&n_brandcolumn,0),6)","v":{"$error":"#NAME?"}},"","","","",""]
[null,"","","","",null,null,"",{"$f":"INDEX(n_datatable,MATCH($C42&$D42&$E42&$A42,n_catcolumn&n_custcolumn&n_brandcolumn&n_hginumbercolumn,0),5)","v":{"$error":"#NAME?"}},{"$f":"INDEX(n_datatable,MATCH($C42&$D42&$E42&$A42,n_catcolumn&n_custcolumn&n_brandcolumn,0),6)","v":{"$error":"#NAME?"}},"","","","",""]
[null,"","","","",null,null,"",{"$f":"INDEX(n_datatable,MATCH($C43&$D43&$E43&$A43,n_catcolumn&n_custcolumn&n_brandcolumn&n_hginumbercolumn,0),5)","v":{"$error":"#NAME?"}},{"$f":"INDEX(n_datatable,MATCH($C43&$D43&$E43&$A43,n_catcolumn&n_custcolumn&n_brandcolumn,0),6)","v":{"$error":"#NAME?"}},"","","","",""]
[null,"","","","",null,null,"",{"$f":"INDEX(n_datatable,MATCH($C44&$D44&$E44&$A44,n_catcolumn&n_custcolumn&n_brandcolumn&n_hginumbercolumn,0),5)","v":{"$error":"#NAME?"}},{"$f":"INDEX(n_datatable,MATCH($C44&$D44&$E44&$A44,n_catcolumn&n_custcolumn&n_brandcolumn,0),6)","v":{"$error":"#NAME?"}},"","","","",""]
[null,{"$f":"IF($A45<>\"\",VLOOKUP($A45,n_maindatatable2,5,FALSE),\"\")","v":""},{"$f":"IF($A45<>\"\",VLOOKUP($A45,n_maindatatable2,2,FALSE),\"\")","v":""},{"$f":"IF($A45<>\"\",VLOOKUP($A45,n_maindatatable2,3,FALSE),\"\")","v":""},{"$f":"IF($A45<>\"\",VLOOKUP($A45,n_maindatatable2,4,FALSE),\"\")","v":""},null,null,"",{"$f":"INDEX(n_datatable,MATCH($C45&$D45&$E45&$A45,n_catcolumn&n_custcolumn&n_brandcolumn&n_hginumbercolumn,0),5)","v":{"$error":"#NAME?"}},{"$f":"INDEX(n_datatable,MATCH($C45&$D45&$E45&$A45,n_catcolumn&n_custcolumn&n_brandcolumn,0),6)","v":{"$error":"#NAME?"}},{"$f":"IF($A45<>\"\",VLOOKUP($A45,n_maindatatable2,9,FALSE),\"\")","v":""},{"$f":"IF($A45<>\"\",VLOOKUP($A45,n_maindatatable2,7,FALSE),\"\")","v":""},{"$f":"IF($A45<>\"\",VLOOKUP($A45,n_maindatatable2,10,FALSE),\"\")","v":""},{"$f":"IF($A45<>\"\",VLOOKUP($A45,n_maindatatable2,8,FALSE),\"\")","v":""},{"$f":"IF($A45<>\"\",VLOOKUP($A45,n_maindatatable2,6,FALSE),\"\")","v":""}]
[null,"","","","",null,null,"",{"$f":"INDEX(n_datatable,MATCH($C46&$D46&$E46&$A46,n_catcolumn&n_custcolumn&n_brandcolumn&n_hginumbercolumn,0),5)","v":{"$error":"#NAME?"}},{"$f":"INDEX(n_datatable,MATCH($C46&$D46&$E46&$A46,n_catcolumn&n_custcolumn&n_brandcolumn,0),6)","v":{"$error":"#NAME?"}},"","","","",""]
[null,"","","","",null,null,"",{"$f":"INDEX(n_datatable,MATCH($C47&$D47&$E47&$A47,n_catcolumn&n_custcolumn&n_brandcolumn&n_hginumbercolumn,0),5)","v":{"$error":"#NAME?"}},{"$f":"INDEX(n_datatable,MATCH($C47&$D47&$E47&$A47,n_catcolumn&n_custcolumn&n_brandcolumn,0),6)","v":{"$error":"#NAME?"}},"","","","",""]
[null,"","","","",null,null,"",{"$f":"INDEX(n_datatable,MATCH($C48&$D48&$E48&$A48,n_catcolumn&n_custcolumn&n_brandcolumn&n_hginumbercolumn,0),5)","v":{"$error":"#NAME?"}},{"$f":"INDEX(n_datatable,MATCH($C48&$D48&$E48&$A48,n_catcolumn&n_custcolumn&n_brandcolumn,0),6)","v":{"$error":"#NAME?"}},"","","","",""]
[null,"","","","",null,null,"",{"$f":"INDEX(n_datatable,MATCH($C49&$D49&$E49&$A49,n_catcolumn&n_custcolumn&n_brandcolumn&n_hginumbercolumn,0),5)","v":{"$error":"#NAME?"}},{"$f":"INDEX(n_datatable,MATCH($C49&$D49&$E49&$A49,n_catcolumn&n_custcolumn&n_brandcolumn,0),6)","v":{"$error":"#NAME?"}},"","","","",""]
[null,"","","","",null,null,"",{"$f":"INDEX(n_datatable,MATCH($C50&$D50&$E50&$A50,n_catcolumn&n_custcolumn&n_brandcolumn&n_hginumbercolumn,0),5)","v":{"$error":"#NAME?"}},{"$f":"INDEX(n_datatable,MATCH($C50&$D50&$E50&$A50,n_catcolumn&n_custcolumn&n_brandcolumn,0),6)","v":{"$error":"#NAME?"}},"","","","",""]
[null,"","","","",null,null,"",{"$f":"INDEX(n_datatable,MATCH($C51&$D51&$E51&$A51,n_catcolumn&n_custcolumn&n_brandcolumn&n_hginumbercolumn,0),5)","v":{"$error":"#NAME?"}},{"$f":"INDEX(n_datatable,MATCH($C51&$D51&$E51&$A51,n_catcolumn&n_custcolumn&n_brandcolumn,0),6)","v":{"$error":"#NAME?"}},"","","","",""]
[null,"","","","",null,null,"",{"$f":"INDEX(n_datatable,MATCH($C52&$D52&$E52&$A52,n_catcolumn&n_custcolumn&n_brandcolumn&n_hginumbercolumn,0),5)","v":{"$error":"#NAME?"}},{"$f":"INDEX(n_datatable,MATCH($C52&$D52&$E52&$A52,n_catcolumn&n_custcolumn&n_brandcolumn,0),6)","v":{"$error":"#NAME?"}},"","","","",""]
[null,"","","","",null,null,"",{"$f":"INDEX(n_datatable,MATCH($C53&$D53&$E53&$A53,n_catcolumn&n_custcolumn&n_brandcolumn&n_hginumbercolumn,0),5)","v":{"$error":"#NAME?"}},{"$f":"INDEX(n_datatable,MATCH($C53&$D53&$E53&$A53,n_catcolumn&n_custcolumn&n_brandcolumn,0),6)","v":{"$error":"#NAME?"}},"","","","",""]
[null,"","","","",null,null,"",{"$f":"INDEX(n_datatable,MATCH($C54&$D54&$E54&$A54,n_catcolumn&n_custcolumn&n_brandcolumn&n_hginumbercolumn,0),5)","v":{"$error":"#NAME?"}},{"$f":"INDEX(n_datatable,MATCH($C54&$D54&$E54&$A54,n_catcolumn&n_custcolumn&n_brandcolumn,0),6)","v":{"$error":"#NAME?"}},"","","","",""]
[null,"","","","",null,null,"",{"$f":"INDEX(n_datatable,MATCH($C55&$D55&$E55&$A55,n_catcolumn&n_custcolumn&n_brandcolumn&n_hginumbercolumn,0),5)","v":{"$error":"#NAME?"}},{"$f":"INDEX(n_datatable,MATCH($C55&$D55&$E55&$A55,n_catcolumn&n_custcolumn&n_brandcolumn,0),6)","v":{"$error":"#NAME?"}},"","","","",""]
[null,"","","","",null,null,"",{"$f":"INDEX(n_datatable,MATCH($C56&$D56&$E56&$A56,n_catcolumn&n_custcolumn&n_brandcolumn&n_hginumbercolumn,0),5)","v":{"$error":"#NAME?"}},{"$f":"INDEX(n_datatable,MATCH($C56&$D56&$E56&$A56,n_catcolumn&n_custcolumn&n_brandcolumn,0),6)","v":{"$error":"#NAME?"}},"","","","",""]
[null,"","","","",null,null,"",{"$f":"INDEX(n_datatable,MATCH($C57&$D57&$E57&$A57,n_catcolumn&n_custcolumn&n_brandcolumn&n_hginumbercolumn,0),5)","v":{"$error":"#NAME?"}},{"$f":"INDEX(n_datatable,MATCH($C57&$D57&$E57&$A57,n_catcolumn&n_custcolumn&n_brandcolumn,0),6)","v":{"$error":"#NAME?"}},"","","","",""]
[null,"","","","",null,null,"",{"$f":"INDEX(n_datatable,MATCH($C58&$D58&$E58&$A58,n_catcolumn&n_custcolumn&n_brandcolumn&n_hginumbercolumn,0),5)","v":{"$error":"#NAME?"}},{"$f":"INDEX(n_datatable,MATCH($C58&$D58&$E58&$A58,n_catcolumn&n_custcolumn&n_brandcolumn,0),6)","v":{"$error":"#NAME?"}},"","","","",""]
[null,"","","","",null,null,"",{"$f":"INDEX(n_datatable,MATCH($C59&$D59&$E59&$A59,n_catcolumn&n_custcolumn&n_brandcolumn&n_hginumbercolumn,0),5)","v":{"$error":"#NAME?"}},{"$f":"INDEX(n_datatable,MATCH($C59&$D59&$E59&$A59,n_catcolumn&n_custcolumn&n_brandcolumn,0),6)","v":{"$error":"#NAME?"}},"","","","",""]
[null,"","","","",null,null,"",{"$f":"INDEX(n_datatable,MATCH($C60&$D60&$E60&$A60,n_catcolumn&n_custcolumn&n_brandcolumn&n_hginumbercolumn,0),5)","v":{"$error":"#NAME?"}},{"$f":"INDEX(n_datatable,MATCH($C60&$D60&$E60&$A60,n_catcolumn&n_custcolumn&n_brandcolumn,0),6)","v":{"$error":"#NAME?"}},"","","","",""]
[null,"","","","",null,null,"",{"$f":"INDEX(n_datatable,MATCH($C61&$D61&$E61&$A61,n_catcolumn&n_custcolumn&n_brandcolumn&n_hginumbercolumn,0),5)","v":{"$error":"#NAME?"}},{"$f":"INDEX(n_datatable,MATCH($C61&$D61&$E61&$A61,n_catcolumn&n_custcolumn&n_brandcolumn,0),6)","v":{"$error":"#NAME?"}},"","","","",""]
[null,"","","","",null,null,"",{"$f":"INDEX(n_datatable,MATCH($C62&$D62&$E62&$A62,n_catcolumn&n_custcolumn&n_brandcolumn&n_hginumbercolumn,0),5)","v":{"$error":"#NAME?"}},{"$f":"INDEX(n_datatable,MATCH($C62&$D62&$E62&$A62,n_catcolumn&n_custcolumn&n_brandcolumn,0),6)","v":{"$error":"#NAME?"}},"","","","",""]
[null,"","","","",null,null,"",{"$f":"INDEX(n_datatable,MATCH($C63&$D63&$E63&$A63,n_catcolumn&n_custcolumn&n_brandcolumn&n_hginumbercolumn,0),5)","v":{"$error":"#NAME?"}},{"$f":"INDEX(n_datatable,MATCH($C63&$D63&$E63&$A63,n_catcolumn&n_custcolumn&n_brandcolumn,0),6)","v":{"$error":"#NAME?"}},"","","","",""]
[null,"","","","",null,null,"",{"$f":"INDEX(n_datatable,MATCH($C64&$D64&$E64&$A64,n_catcolumn&n_custcolumn&n_brandcolumn&n_hginumbercolumn,0),5)","v":{"$error":"#NAME?"}},{"$f":"INDEX(n_datatable,MATCH($C64&$D64&$E64&$A64,n_catcolumn&n_custcolumn&n_brandcolumn,0),6)","v":{"$error":"#NAME?"}},"","","","",""]
[null,"","","","",null,null,"",{"$f":"INDEX(n_datatable,MATCH($C65&$D65&$E65&$A65,n_catcolumn&n_custcolumn&n_brandcolumn&n_hginumbercolumn,0),5)","v":{"$error":"#NAME?"}},{"$f":"INDEX(n_datatable,MATCH($C65&$D65&$E65&$A65,n_catcolumn&n_custcolumn&n_brandcolumn,0),6)","v":{"$error":"#NAME?"}},"","","","",""]
[null,"","","","",null,null,"",{"$f":"INDEX(n_datatable,MATCH($C66&$D66&$E66&$A66,n_catcolumn&n_custcolumn&n_brandcolumn&n_hginumbercolumn,0),5)","v":{"$error":"#NAME?"}},{"$f":"INDEX(n_datatable,MATCH($C66&$D66&$E66&$A66,n_catcolumn&n_custcolumn&n_brandcolumn,0),6)","v":{"$error":"#NAME?"}},"","","","",""]
[null,"","","","",null,null,"",{"$f":"INDEX(n_datatable,MATCH($C67&$D67&$E67&$A67,n_catcolumn&n_custcolumn&n_brandcolumn&n_hginumbercolumn,0),5)","v":{"$error":"#NAME?"}},{"$f":"INDEX(n_datatable,MATCH($C67&$D67&$E67&$A67,n_catcolumn&n_custcolumn&n_brandcolumn,0),6)","v":{"$error":"#NAME?"}},"","","","",""]
[null,"","","","",null,null,"",{"$f":"INDEX(n_datatable,MATCH($C68&$D68&$E68&$A68,n_catcolumn&n_custcolumn&n_brandcolumn&n_hginumbercolumn,0),5)","v":{"$error":"#NAME?"}},{"$f":"INDEX(n_datatable,MATCH($C68&$D68&$E68&$A68,n_catcolumn&n_custcolumn&n_brandcolumn,0),6)","v":{"$error":"#NAME?"}},"","","","",""]
[null,"","","","",null,null,"",{"$f":"INDEX(n_datatable,MATCH($C69&$D69&$E69&$A69,n_catcolumn&n_custcolumn&n_brandcolumn&n_hginumbercolumn,0),5)","v":{"$error":"#NAME?"}},{"$f":"INDEX(n_datatable,MATCH($C69&$D69&$E69&$A69,n_catcolumn&n_custcolumn&n_brandcolumn,0),6)","v":{"$error":"#NAME?"}},"","","","",""]
[null,"","","","",null,null,"",{"$f":"INDEX(n_datatable,MATCH($C70&$D70&$E70&$A70,n_catcolumn&n_custcolumn&n_brandcolumn&n_hginumbercolumn,0),5)","v":{"$error":"#NAME?"}},{"$f":"INDEX(n_datatable,MATCH($C70&$D70&$E70&$A70,n_catcolumn&n_custcolumn&n_brandcolumn,0),6)","v":{"$error":"#NAME?"}},"","","","",""]
[null,"","","","",null,null,"",{"$f":"INDEX(n_datatable,MATCH($C71&$D71&$E71&$A71,n_catcolumn&n_custcolumn&n_brandcolumn&n_hginumbercolumn,0),5)","v":{"$error":"#NAME?"}},{"$f":"INDEX(n_datatable,MATCH($C71&$D71&$E71&$A71,n_catcolumn&n_custcolumn&n_brandcolumn,0),6)","v":{"$error":"#NAME?"}},"","","","",""]
[null,"","","","",null,null,"",{"$f":"INDEX(n_datatable,MATCH($C72&$D72&$E72&$A72,n_catcolumn&n_custcolumn&n_brandcolumn&n_hginumbercolumn,0),5)","v":{"$error":"#NAME?"}},{"$f":"INDEX(n_datatable,MATCH($C72&$D72&$E72&$A72,n_catcolumn&n_custcolumn&n_brandcolumn,0),6)","v":{"$error":"#NAME?"}},"","","","",""]
[null,"","","","",null,null,"",{"$f":"INDEX(n_datatable,MATCH($C73&$D73&$E73&$A73,n_catcolumn&n_custcolumn&n_brandcolumn&n_hginumbercolumn,0),5)","v":{"$error":"#NAME?"}},{"$f":"INDEX(n_datatable,MATCH($C73&$D73&$E73&$A73,n_catcolumn&n_custcolumn&n_brandcolumn,0),6)","v":{"$error":"#NAME?"}},"","","","",""]
[null,"","","","",null,null,"",{"$f":"INDEX(n_datatable,MATCH($C74&$D74&$E74&$A74,n_catcolumn&n_custcolumn&n_brandcolumn&n_hginumbercolumn,0),5)","v":{"$error":"#NAME?"}},{"$f":"INDEX(n_datatable,MATCH($C74&$D74&$E74&$A74,n_catcolumn&n_custcolumn&n_brandcolumn,0),6)","v":{"$error":"#NAME?"}},"","","","",""]
[null,"","","","",null,null,"",{"$f":"INDEX(n_datatable,MATCH($C75&$D75&$E75&$A75,n_catcolumn&n_custcolumn&n_brandcolumn&n_hginumbercolumn,0),5)","v":{"$error":"#NAME?"}},{"$f":"INDEX(n_datatable,MATCH($C75&$D75&$E75&$A75,n_catcolumn&n_custcolumn&n_brandcolumn,0),6)","v":{"$error":"#NAME?"}},"","","","",""]
[null,"","","","",null,null,"",{"$f":"INDEX(n_datatable,MATCH($C76&$D76&$E76&$A76,n_catcolumn&n_custcolumn&n_brandcolumn&n_hginumbercolumn,0),5)","v":{"$error":"#NAME?"}},{"$f":"INDEX(n_datatable,MATCH($C76&$D76&$E76&$A76,n_catcolumn&n_custcolumn&n_brandcolumn,0),6)","v":{"$error":"#NAME?"}},"","","","",""]
[null,"","","","",null,null,{"$f":"IF(A77<>\"\",+I77,\"\")","v":""},{"$f":"INDEX(n_datatable,MATCH($C77&$D77&$E77&$A77,n_catcolumn&n_custcolumn&n_brandcolumn&n_hginumbercolumn,0),5)","v":{"$error":"#NAME?"}},{"$f":"INDEX(n_datatable,MATCH($C77&$D77&$E77&$A77,n_catcolumn&n_custcolumn&n_brandcolumn,0),6)","v":{"$error":"#NAME?"}},"","","","",""]
[null,"","","","",null,null,{"$f":"IF(A78<>\"\",+I78,\"\")","v":""},{"$f":"INDEX(n_datatable,MATCH($C78&$D78&$E78&$A78,n_catcolumn&n_custcolumn&n_brandcolumn&n_hginumbercolumn,0),5)","v":{"$error":"#NAME?"}},{"$f":"INDEX(n_datatable,MATCH($C78&$D78&$E78&$A78,n_catcolumn&n_custcolumn&n_brandcolumn,0),6)","v":{"$error":"#NAME?"}},"","","","",""]

{"sheet":"Personal Note to Customer","index":3,"n_rows":0,"n_cols":0,"rows_kept":0,"cut":false,"hidden":false,"merged":[]}

{"sheet":"ProductTable","index":4,"n_rows":816,"n_cols":26,"rows_kept":816,"cut":false,"hidden":false,"merged":[]}
["ItemNo.","Type","Label","Brand","CustNo","Size","Model","Description","CasePack","Color","PP/PF","Bag Type","Prod Description","Cust/Comp Case Pack","Case Qty","Product Type","Brand","Cuff Type","Length","Print","Print Color","Closure","Input","Input",null,"PackType"]
[303764051,"Apparel","BEK","BEK","883617","28 x 46","BEK AMEW APRON 883617","Medium Duty Embossed Apron","1/100","White","",null,null,null,null,null,null,null,null,null,null,null,null,"303981010 - Handgards - Accessory - LGHW - 10.25 x 5.25 x 3.5 - Wire Glove Dispenser Holder",null,"Case(Outer Case)"]
["303764052","Apparel","BEK","BEK","883615","28 x 46","BEK AMSW APRON 883615","Medium Duty Smooth Apron","1/100","White","","Full Saddle","Valugards High Density Random Print Portion Bags","1/2000",2000,"High Density Preportion bags","Valugards","",null,"\"Thursday\"","Brown","1½\" Flip Lock","303679044 - Handgards - Bags - VAL PB8.5 TH - 5.5 x 5.5 - Valugards High Density Random Print Portion Bags","303981012 - Handgards - Accessory - CB-900CW - 6 x 6 x 11.5 - Saddle Pack Dispensing Holders",null,"Dispenser(Inner case)"]
["303764053","Apparel","BEK","BEK","883604","28 x 46","BEK AHEW APRON 883604","Heavy Duty Embossed Apron","1/100","White","","Full Saddle","High Density Doggie Bag","1/1000",1000,"High Density Specialty Bag","TuffGards","",null,"\"Don't Forget Me\"","Red","2\" Flip Lock","303679212 - Handgards - Bags - DB30E - 7 x 12 - High Density Doggie Bag","303981013 - Handgards - Accessory - CB-900DW - 6 x 9 x 11.5 - Saddle Pack Dispensing Holders",null,"Saddle Pack (SP)"]
["303764054","Apparel","BEK","BEK","883628","28 x 46","BEK AMEC APRON 883628","Medium Duty Embossed Apron","1/100","Clear","","Full Saddle","Valugards High Density Random Print Portion Bags","1/2000",2000,"High Density Preportion bags","Valugards","",null,"\"Saturday\"","Orange","1½\" Flip Lock","303679046 - Handgards - Bags - VAL PB8.5 SA - 5.5 x 5.5 - Valugards High Density Random Print Portion Bags","303577561 - Handgards - Apparel - AB - 15 x 19.75 - Low Density Embossed Adult Bibs",null,"Header (HD)"]
["303679785","Bags","BEK","BEK","875027","6.5 x 7","BEK SB8.5 BAG 875027","High Density Sandwich Bags","1/2000","Clear","","","Synthetic Disposable Gloves","4/100",400,"Synthetic","Handgards","Rolled",null,"","","","304362512 - Handgards - Gloves - SYN 4/100 PF - M - Synthetic Disposable Gloves","303578501 - Handgards - Apparel - ABW - 15.5 x 20 - Low Density Embossed Adult Bibs",null,"Pair (PR)"]
["303679786","Bags","BEK","BEK","875400","18 x 24","BEK FB24 BAG 875400","High Density Freezer Bags","1/250","Clear","","Full Saddle","Valugards High Density Random Print Portion Bags","1/2000",2000,"High Density Preportion bags","Valugards","",null,"\"Friday\"","Green","1½\" Flip Lock","303679045 - Handgards - Bags - VAL PB8.5 FR - 5.5 x 5.5 - Valugards High Density Random Print Portion Bags","303578502 - Handgards - Apparel - ABL - 15.5 x 20 - Low Density Embossed Adult Bibs-Lobster",null,"Each (EA)"]
["303679787","Bags","BEK","BEK","875501","27 x 37","BEK FB37 BAG 875501","High Density Freezer Bags","1/200","Clear","","","Saddle Pack Dispensing Holders","2/1",2,"Saddle Pack Wire Dispenser Holder","Handgards","",null,"","","","303981013 - Handgards - Accessory - CB-900DW - 6 x 9 x 11.5 - Saddle Pack Dispensing Holders","303578502 - Sysco - Apparel - ABL - 15.5 x 20 - Low Density Embossed Adult Bibs-Lobster"]
["303679910","Bags","BEK","BEK","875548","52 x 80","BEK RP8052 BAG 875548","High Density Bun Pan Rack Cover","1/50","Clear","","Full Saddle","High Density Hot Dog Bag","1/2000",2000,"High Density Specialty Bag","TuffGards","",null,"None","None","2½\" Flip Lock","303679597 - Handgards - Bags - HD4.5 - 8.5 x 4.5 - High Density Hot Dog Bag","303578505 - Handgards - Apparel - ABC - 15.5 x 20 - Low Density Embossed Adult Bibs"]
["303679989","Bags","BEK","BEK","875401","10 x 14","BEK FB14 BAG 875401","High Density Freezer Bags","1/1000","Clear","","","Synthetic Disposable Gloves","4/100",400,"Synthetic","Handgards","Rolled","Wrist","","","","304362512 - Sysco - Gloves - SYN 4/100 PF - M - Synthetic Disposable Gloves","303578521 - Handgards - Apparel - CB4 - 10.5 x 15 - Low Density Embossed Child Bibs"]
["304985195","Bags","BEK","BEK","875006","6.5 x 7.5","BEK SB7.5 BAG 875006","High Density Sandwich Bags","1/2000","Clear","","Full Saddle","High Density Sandwich Bags","1/2000",2000,"High Density Food Storage Bag","TuffGards","",null,"\"Hamburger\"","Red","1¾\" Flip Lock","303679599 - Handgards - Bags - SB8.5HB - 6.5 x 7 - High Density Sandwich Bags","303764019 - Handgards - Apparel - AMEC - 28 x 46 - Medium Duty Embossed Apron"]
["304986410","Bags","BEK","BEK","129705","6.5 x 6","BEK ZG6 PINT 129705","ZipGard Resealable Bags","1/500","Clear"]
["304986420","Bags","BEK","BEK","129706","7 x 8","BEK ZG32 QUART 129706","ZipGard Resealable Bags","1/500","Clear"]
["304986430","Bags","BEK","BEK","129707","10.5 x 10.5","BEK ZG128 GAL 129707","ZipGard Resealable Bags","1/250","Clear"]
["304986435","Bags","BEK","BEK","129708","13 x 15.5","BEK ZG256 2GAL 129708","ZipGard Resealable Bags","1/100","Clear"]
["303363501","Gloves","BEK","BEK","883959","S","BEK STRTCH POLY 10/100 SM GLV 883959","Poly Disposable Gloves","10/100","Clear","Powder Free","","Low Density Embossed Adult Bibs","1/500",500,"Low Density Poly Bibs","NeatGards","",null,"Red Gingham","Red","","303577561 - Handgards - Apparel - AB - 15 x 19.75 - Low Density Embossed Adult Bibs","303764022 - Handgards - Apparel - AHEW - 28 x 46 - Heavy Duty Embossed Apron"]
["303363502","Gloves","BEK","BEK","883960","M","BEK STRTCH POLY 10/100 MD GLV 883960","Poly Disposable Gloves","10/100","Clear","Powder Free","Full Saddle","High Density Sandwich Bags","1/2000",2000,"High Density Food Storage Bag","TuffGards","",null,"None","None","2\" Flip Lock","303679580 - Handgards - Bags - SB9.5 - 7.5 x 7.5 - High Density Sandwich Bags","303764022 - BEK - Apparel - AHEW - 28 x 46 - Heavy Duty Embossed Apron"]
["303363503","Gloves","BEK","BEK","883961","L","BEK STRTCH POLY 10/100 LG GLV 883961","Poly Disposable Gloves","10/100","Clear","Powder Free","","Wire Glove Dispenser Holder","2/1",2,"Wire Glove Dispenser Holder","Handgards","",null,"","","","303981010 - Handgards - Accessory - LGHW - 10.25 x 5.25 x 3.5 - Wire Glove Dispenser Holder","303764022 - Sysco - Apparel - AHEW - 28 x 46 - Heavy Duty Embossed Apron"]
["303363504","Gloves","BEK","BEK","883962","XL","BEK STRTCH POLY 10/100 XL GLV 883962","Poly Disposable Gloves","10/100","Clear","Powder Free","Full Saddle","High Density Sandwich Bags","1/2000",2000,"High Density Food Storage Bag","TuffGards","",null,"\"Chicken Sandwich\"","Rust","1¾\" Flip Lock","303679591 - Handgards - Bags - SB8.5 CK - 6.5 x 7 - High Density Sandwich Bags","303764022 - PFS - Apparel - AHEW - 28 x 46 - Heavy Duty Embossed Apron"]
[303363511,"Gloves","BEK","BEK","883956","S","BEK POLY 4/500 SM GLV 883956","Poly Disposable Gloves","4/500","Clear","Powder Free","","Synthetic Disposable Gloves","4/100",400,"Synthetic","Handgards","Rolled","Wrist","","","","304362512 - BEK - Gloves - SYN 4/100 PF - M - Synthetic Disposable Gloves","303764023 - Handgards - Apparel - AHSC - 28 x 46 - Heavy Duty Smooth Apron"]
["303363512","Gloves","BEK","BEK","883957","M","BEK POLY 4/500 MD GLV 883957","Poly Disposable Gloves","4/500","Clear","Powder Free","Full Saddle","High Density Sandwich Bags","1/2000",2000,"High Density Food Storage Bag","TuffGards","",null,"\"Cheeseburger\"","Orange","1¾\" Flip Lock","303679600 - Handgards - Bags - SB8.5 CB - 6.5 x 7 - High Density Sandwich Bags","303764024 - Handgards - Apparel - AMSC - 28 x 46 - Medium Duty Smooth Apron"]
["303363513","Gloves","BEK","BEK","883958","L","BEK POLY 4/500 LG GLV 883958","Poly Disposable Gloves","4/500","Clear","Powder Free","","Saddle Pack Dispensing Holders","2/1",2,"Saddle Pack Wire Dispenser Holder","Handgards","",null,"","","","303981012 - Handgards - Accessory - CB-900CW - 6 x 6 x 11.5 - Saddle Pack Dispensing Holders","303764025 - Handgards - Apparel - AMSW - 28 x 46 - Medium Duty Smooth Apron"]
["304340391","Gloves","BEK","BEK","116131","S","BEK Nitrile Purple 10/100 SM PF 116131","Nitrile Disposable Gloves","10/100","Purple","Powder Free","","Latex Exam Disposable Gloves","10/100",1000,"Latex","ExamGards","Rolled",null,"","","","304750073 - Handgards - Gloves - LTX EXAM 10/100 PF - L - Latex Exam Disposable Gloves","303764027 - Handgards - Apparel - AHSW - 28 x 46 - Heavy Duty Smooth Apron"]
["304340392","Gloves","BEK","BEK","116132","M","BEK Nitrile Purple 10/100 MD PF 116132","Nitrile Disposable Gloves","10/100","Purple","Powder Free","Roll Pack","Low Density Food Storage Bags","1/500",500,"Low Density Food Storage Bags","TuffGards","",null,"None","None","None","304985492 - Handgards - Bags - LD10824 - 10 x 8 x 24 - Low Density Food Storage Bags","303764830 - Handgards - Apparel - AHSR - 28 x 46 - Heavy Duty Smooth Apron"]
["304340393","Gloves","BEK","BEK","116133","L","BEK Nitrile Purple 10/100 LG PF 116133","Nitrile Disposable Gloves","10/100","Purple","Powder Free","","Latex Exam Disposable Gloves","10/100",1000,"Latex","ExamGards","Rolled",null,"","","","304750074 - Handgards - Gloves - LTX EXAM 10/100 PF - XL - Latex Exam Disposable Gloves","303764832 - Handgards - Apparel - AHSY - 28 x 46 - Heavy Duty Smooth Apron"]
["304340394","Gloves","BEK","BEK","116134","XL","BEK Nitrile Purple 10/100 XL PF 116134","Nitrile Disposable Gloves","10/100","Purple","Powder Free",null,null,null,null,null,null,null,null,null,null,null,null,"304663100 - Handgards - Apparel - VAL2442 - 24 x 42 - Light Duty Embossed Apron - Economy"]
["304362845","Gloves","BEK","BEK","883828","S","BEK PVC 4/100 SM GLV 883828","Vinyl Disposable Gloves","4/100","Clear","Powdered",null,null,null,null,null,null,null,null,null,null,null,null,"303678904 - Handgards - Bags - D50 - 8.5 x 8.5 - High Density Deli Bag"]
["304362846","Gloves","BEK","BEK","883829","M","BEK PVC 4/100 MD GLV 883829","Vinyl Disposable Gloves","4/100","Clear","Powdered",null,null,null,null,null,null,null,null,null,null,null,null,"303679040 - Handgards - Bags - VAL PB8.5 SU - 5.5 x 5.5 - Valugards High Density Random Print Portion Bags"]
["304362847","Gloves","BEK","BEK","883830","L","BEK PVC 4/100 LG GLV 883830","Vinyl Disposable Gloves","4/100","Clear","Powdered",null,null,null,null,null,null,null,null,null,null,null,null,"303679041 - Handgards - Bags - VAL PB8.5 MO - 5.5 x 5.5 - Valugards High Density Random Print Portion Bags"]
["304362951","Gloves","BEK","BEK","883834","S","BEK PVC PF 4/100 SM GLV 883834","Vinyl Disposable Gloves","4/100","Clear","Powder Free",null,null,null,null,null,null,null,null,null,null,null,null,"303679212 - Handgards - Bags - DB30E - 7 x 12 - High Density Doggie Bag"]
["304362952","Gloves","BEK","BEK","883835","M","BEK PVC PF 4/100 MD GLV 883835","Vinyl Disposable Gloves","4/100","Clear","Powder Free",null,null,null,null,null,null,null,null,null,null,null,null,"303679353 - Handgards - Bags - D190 - 10 x 8.5 - High Density Deli Sandwich Bags"]
["304362953","Gloves","BEK","BEK","883840","L","BEK PVC PF 4/100 LG GLV 883840","Vinyl Disposable Gloves","4/100","Clear","Powder Free",null,null,null,null,null,null,null,null,null,null,null,null,"303679580 - Handgards - Bags - SB9.5 - 7.5 x 7.5 - High Density Sandwich Bags"]
["304362954","Gloves","BEK","BEK","883847","XL","BEK PVC PF 4/100 XL GLV 883847","Vinyl Disposable Gloves","4/100","Clear","Powder Free","","Nitrile Disposable Gloves","4/100",400,"Nitrile","Handgards","Rolled",null,"","","","304362521 - Handgards - Gloves - NIT 4/100 PP - S - Nitrile Disposable Gloves","303679591 - Handgards - Bags - SB8.5 CK - 6.5 x 7 - High Density Sandwich Bags"]
["304762871","Gloves","BEK","BEK","883813","S","BEK LTX4/100 SM LATEX GLV 883813","Latex Disposable Gloves","4/100","Ivory","Powdered","Flat Pack","Low Density Reclosable Quart Slide Zip bags","1/250",250,"Low Density Reclosable bags","ZipGards","",null,"Write-on Block","Green","Resealable (Slide Zipper)","304985472 - Handgards - Bags - SZ 32 - 7 x 8 - Low Density Reclosable Quart Slide Zip bags","303679592 - Handgards - Bags - HD8 - 5.25 x 8 - High Density Hot Dog Bag"]
["304762872","Gloves","BEK","BEK","883814","M","BEK LTX4/100 MD LATEX GLV 883814","Latex Disposable Gloves","4/100","Ivory","Powdered","","Ultratouch Synthetic Disposable Gloves","10/100",1000,"Synthetic","UltraTouch","Rolled","Wrist","","","","304363262 - PFS - Gloves - ULTRATOUCH 10/100 PF - M - Ultratouch Synthetic Disposable Gloves","303679597 - Handgards - Bags - HD4.5 - 8.5 x 4.5 - High Density Hot Dog Bag"]
["304762873","Gloves","BEK","BEK","883815","L","BEK LTX4/100 LG LATEX GLV 883815","Latex Disposable Gloves","4/100","Ivory","Powdered","Flat Pack","High Density Reclosable freezer 2 Gallon bags","1/100",100,"High Density Reclosable bags","ZipGards","",null,"Write-on block","Red","Resealable (Zipper)","304985464 - Handgards - Bags - ZG 256 FRZR - 13 x 15.5 - High Density Reclosable freezer 2 Gallon bags","303679599 - Handgards - Bags - SB8.5HB - 6.5 x 7 - High Density Sandwich Bags"]
["304762874","Gloves","BEK","BEK","883737","XL","BEK LTX4/100 XL GLV 883737","Latex Disposable Gloves","4/100","Ivory","Powdered","","Ultratouch Synthetic Disposable Gloves","10/100",1000,"Synthetic","UltraTouch","Rolled",null,"","","","304363261 - Handgards - Gloves - ULTRATOUCH 10/100 PF - S - Ultratouch Synthetic Disposable Gloves","303679600 - Handgards - Bags - SB8.5 CB - 6.5 x 7 - High Density Sandwich Bags"]
["304762991","Gloves","BEK","BEK","883794","S","BEK LTX PF 4/100 SM GLV 883794","Latex Disposable Gloves","4/100","Ivory","Powder Free","","Ultratouch Synthetic Disposable Gloves","10/100",1000,"Synthetic","UltraTouch","Rolled",null,"","","","304363262 - Handgards - Gloves - ULTRATOUCH 10/100 PF - M - Ultratouch Synthetic Disposable Gloves","303679606 - Handgards - Bags - D100 - 10 x 8.5 - High Density Deli Sandwich Bags"]
["304762992","Gloves","BEK","BEK","883796","M","BEK LTX PF 4/100 MD GLV 883796","Latex Disposable Gloves","4/100","Ivory","Powder Free","Full Saddle","High Density Deli Sandwich Bags","1/2000",2000,"High Density Specialty Bag","TuffGards","",null,"\"Deli Fresh\"","Red/Gr/Gld","2\" Flip Lock","303679353 - Handgards - Bags - D190 - 10 x 8.5 - High Density Deli Sandwich Bags","303679613 - Handgards - Bags - SB5.6CE - 5.5 x 5.5 - High Density Cookie Bags"]
["304762993","Gloves","BEK","BEK","883797","L","BEK LTX PF 4/100 LG GLV 883797","Latex Disposable Gloves","4/100","Ivory","Powder Free","Full Saddle","Valugards High Density Random Print Portion Bags","1/2000",2000,"High Density Preportion bags","Valugards","",null,"\"Tuesday\"","Yellow","1½\" Flip Lock","303679042 - Handgards - Bags - VAL PB8.5 TU - 5.5 x 5.5 - Valugards High Density Random Print Portion Bags","303679613 - Sysco - Bags - SB5.6CE - 5.5 x 5.5 - High Density Cookie Bags"]
["304762994","Gloves","BEK","BEK","883800","XL","BEK LTX PF 4/100 XL GLV 883800","Latex Disposable Gloves","4/100","Ivory","Powder Free","Full Saddle","Valugards High Density Random Print Portion Bags","1/2000",2000,"High Density Preportion bags","Valugards","",null,"\"Wednesday'","Red","1½\" Flip Lock","303679043 - Handgards - Bags - VAL PB8.5 WE - 5.5 x 5.5 - Valugards High Density Random Print Portion Bags","303679614 - Handgards - Bags - HD10 - 5.25 x 10 - High Density Hot Dog Bag"]
["304363451","Gloves","BEK","BEK","130879","S","BEK NIT BLACK PF 10/100 SM 130879","Nitrile Disposable Gloves","10/100","Black","Powder Free"]
["304363452","Gloves","BEK","BEK","130880","M","BEK NIT BLACK PF 10/100 MD 130880","Nitrile Disposable Gloves","10/100","Black","Powder Free"]
["304363453","Gloves","BEK","BEK","130881","L","BEK NIT BLACK PF 10/100 LG 130881","Nitrile Disposable Gloves","10/100","Black","Powder Free"]
["304363454","Gloves","BEK","BEK","130882","XL","BEK NIT BLACK PF 10/100 XL 130882","Nitrile Disposable Gloves","10/100","Black","Powder Free"]
["303981012","Accessory","Handgards","Handgards","","6 x 6 x 11.5","CB-900CW","Saddle Pack Dispensing Holders","2/1","White","","","Latex Exam Disposable Gloves","10/100",1000,"Latex","Examgards","Rolled","Wrist","","","","304750063 - Sysco - Gloves - LTX EXAM 10/100 PP - L - Latex Exam Disposable Gloves","303679617 - Handgards - Bags - SB8.5B - 6.5 x 7 - High Density Sandwich Bags"]
["303981013","Accessory","Handgards","Handgards","","6 x 9 x 11.5","CB-900DW","Saddle Pack Dispensing Holders","2/1","White","","Roll Pack","Low Density Food Storage Bags","1/1000",1000,"Low Density Food Storage Bags","TuffGards","",null,"None","None","None","304985487 - Handgards - Bags - LD6312 - 6 x 3 x 12 - Low Density Food Storage Bags","303679628 - Handgards - Bags - SW25 - 3.5 x 10 - High Density Silverware Bags"]
["303577561","Apparel","Handgards","NeatGards","","15 x 19.75","AB","Low Density Embossed Adult Bibs","1/500","White","","","Latex Exam Disposable Gloves","10/100",1000,"Latex","Examgards","Rolled","Wrist","","","","304750062 - Sysco - Gloves - LTX EXAM 10/100 PP - M - Latex Exam Disposable Gloves","303679629 - Handgards - Bags - SB40 - 4 x 4.75 - High Density Sandwich Bags"]
["303578501","Apparel","Handgards","NeatGards","","15.5 x 20","ABW","Low Density Embossed Adult Bibs","1/500","White","","Roll Pack","Low Density Food Storage Bags","1/1000",1000,"Low Density Food Storage Bags","TuffGards","",null,"None","None","None","304985488 - Handgards - Bags - LD8418 - 8 x 4 x 18 - Low Density Food Storage Bags","303679630 - Handgards - Bags - D50 - 8.5 x 8.5 - High Density Deli Sandwich Bags"]
["303578502","Apparel","Handgards","NeatGards","","15.5 x 20","ABL","Low Density Embossed Adult Bibs-Lobster","1/500","White","","","Latex Exam Disposable Gloves","10/100",1000,"Latex","Examgards","Rolled",null,"","","","304750063 - Handgards - Gloves - LTX EXAM 10/100 PP - L - Latex Exam Disposable Gloves","303679640 - Handgards - Bags - D90 - 8.5 x 8.5 - High Density Deli Sandwich Bags"]
["303578505","Apparel","Handgards","NeatGards","","15.5 x 20","ABC","Low Density Embossed Adult Bibs","1/500","White","","Roll Pack","Low Density Food Storage Bags","1/1000",1000,"Low Density Food Storage Bags","TuffGards","","","None","None","None","304985482 - Sysco - Bags - LD5.5 - 5.5 X 4.75 X 19 - Low Density Food Storage Bags","303679640 - Sysco - Bags - D90 - 8.5 x 8.5 - High Density Deli Sandwich Bags"]
["303578521","Apparel","Handgards","NeatGards","","10.5 x 15","CB4","Low Density Embossed Child Bibs","1/500","White","","","Latex Exam Disposable Gloves","10/100",1000,"Latex","Examgards","Rolled",null,"","","","304750062 - Handgards - Gloves - LTX EXAM 10/100 PP - M - Latex Exam Disposable Gloves","303679653 - Handgards - Bags - PP20 - 8.5 x 12 - High Density Pizza Bag"]
["303764019","Apparel","Handgards","NeatGards","","28 x 46","AMEC","Medium Duty Embossed Apron","1/100","Clear","","Roll Pack","Low Density Food Storage Bags","1/1000",1000,"Low Density Food Storage Bags","TuffGards","",null,"None","None","None","304985482 - Handgards - Bags - LD5.5 - 5.5 X 4.75 X 19 - Low Density Food Storage Bags","303679771 - Handgards - Bags - VAL PB50 SU - 8.5 x 8.5 - Valugards High Density Random Print Portion Bags"]
["303764020","Apparel","Handgards","NeatGards","","28 x 46","AMEW","Medium Duty Embossed Apron","1/100","White","","","Latex Exam Disposable Gloves","10/100",1000,"Latex","Examgards","Rolled",null,"","","","304750061 - Handgards - Gloves - LTX EXAM 10/100 PP - S - Latex Exam Disposable Gloves","303679772 - Handgards - Bags - VAL PB50 MO - 8.5 x 8.5 - Valugards High Density Random Print Portion Bags"]
["303764021","Apparel","Handgards","NeatGards","","28 x 46","ALEW","Light Duty Embossed Apron","1/100","White","","Roll Pack","Low Density Food Storage Bags","1/1000",1000,"Low Density Food Storage Bags","TuffGards","","","None","None","None","304985482 - Sysco - Bags - LD5.5 - 5.5 X 4.75 X 19 - Low Density Food Storage Bags","303679773 - Handgards - Bags - VAL PB50 TU - 8.5 x 8.5 - Valugards High Density Random Print Portion Bags"]
["303764022","Apparel","Handgards","NeatGards","","28 x 46","AHEW","Heavy Duty Embossed Apron","1/100","White","","","Latex Exam Disposable Gloves","10/100",1000,"Latex","Examgards","Rolled","Wrist","","","","304750061 - Sysco - Gloves - LTX EXAM 10/100 PP - S - Latex Exam Disposable Gloves","303679774 - Handgards - Bags - VAL PB50 WE - 8.5 x 8.5 - Valugards High Density Random Print Portion Bags"]
["303764023","Apparel","Handgards","NeatGards","","28 x 46","AHSC","Heavy Duty Smooth Apron","1/100","Clear","","","Nylon Hairnet Light Brown Large Lightweight (Lot 112)","10/144",1440,"Hairnets","SYS Classic","","","","","","305113003 - Sysco - Expendables - HAIRNET NYLON LT BRWN LG - L - Nylon Hairnet Light Brown Large Lightweight (Lot 112)","303679775 - Handgards - Bags - VAL PB50 TH - 8.5 x 8.5 - Valugards High Density Random Print Portion Bags"]
["303764024","Apparel","Handgards","NeatGards","","28 x 46","AMSC","Medium Duty Smooth Apron","1/200","Clear","","","Nylon Hairnet Dark Brown Large Lightweight (Lot 110)","10/144",1440,"Hairnets","NeatGards","",null,"","","","305113004 - Handgards - Expendables - HAIRNET NYLON DKBN LG - L - Nylon Hairnet Dark Brown Large Lightweight (Lot 110)","303679776 - Handgards - Bags - VAL PB50 FR - 8.5 x 8.5 - Valugards High Density Random Print Portion Bags"]
["303764025","Apparel","Handgards","NeatGards","","28 x 46","AMSW","Medium Duty Smooth Apron","1/100","White","","","Synthetic Disposable Gloves","4/100",400,"Synthetic","Handgards","Rolled",null,"","","","304362514 - Handgards - Gloves - SYN 4/100 PF - XL - Synthetic Disposable Gloves","303679777 - Handgards - Bags - VAL PB50 SA - 8.5 x 8.5 - Valugards High Density Random Print Portion Bags"]
["303764026","Apparel","Handgards","NeatGards","","28 x 46","ALSW","Light Duty Smooth Apron","1/100","White","","","Synthetic Disposable Gloves","4/100",400,"Synthetic","Handgards","Rolled","Wrist","","","","304362514 - Sysco - Gloves - SYN 4/100 PF - XL - Synthetic Disposable Gloves","303679804 - Handgards - Bags - ZG6HD - 6.5 x 6 - High Density Reclosable Bags"]
["303764027","Apparel","Handgards","NeatGards","","28 x 46","AHSW","Heavy Duty Smooth Apron","1/100","White","","","Frill Wood Picks - 3 in (Lot 390)","10/1000",10000,"Frill Wood Picks","Handgards","",null,"","","","305214008 - Handgards - Expendables - PICK WOOD FRILL 3 - 3 inch - Frill Wood Picks - 3 in (Lot 390)","303679806 - Handgards - Bags - ZG32HD - 7 x 8 - High Density Reclosable Bags"]
["303764830","Apparel","Handgards","NeatGards","","28 x 46","AHSR","Heavy Duty Smooth Apron","1/50","Red","","","Frill Wood Picks - 4 in (Lot 391)","10/1000",10000,"Frill Wood Picks","Handgards","",null,"","","","305214009 - Handgards - Expendables - PICK WOOD FRILL 4 - 4 inch - Frill Wood Picks - 4 in (Lot 391)","303679809 - Handgards - Bags - ZG128HD - 10.5 x 10.5 - High Density Reclosable Bags"]
["303764832","Apparel","Handgards","NeatGards","","28 x 46","AHSY","Heavy Duty Smooth Apron","1/50","Yellow","","","Chopsticks Bamboo 9 in - Grade AB in Red env (Lot 416)","10/100",1000,"Chopsticks-Bamboo","Handgards","",null,"","","","305214010 - Handgards - Expendables - CHOPSTICK BAMBOO 9 RD ENV - 9 inch - Chopsticks Bamboo 9 in - Grade AB in Red env (Lot 416)","303679810 - Handgards - Bags - PB8.5SU - 6.5 x 7 - High Density Daily Preportioning Bags"]
["304663100","Apparel","Handgards","Valugards","","24 x 42","VAL2442","Light Duty Embossed Apron - Economy","10/100","White","","","Sandwich Wood Picks - 3.5 in (Lot 287)","4/12/750",36000,"Sandwich Picks - Wood","Handgards","",null,"","","","305214001 - Handgards - Expendables - PICK SANDWICH WOOD 3.5 - 3.5 inch - Sandwich Wood Picks - 3.5 in (Lot 287)","303679811 - Handgards - Bags - PB8.5MO - 6.5 x 7 - High Density Daily Preportioning Bags"]
["304663104","Apparel","Handgards","Valugards","","28 x 46","VAL2846","Light Duty Embossed Apron - Economy","10/100","White","","","Coffee Wood Stirrers - 5.5 in (Lot 296)","10/1000",10000,"Coffee Wood Stirrers","Handgards","",null,"","","","305214002 - Handgards - Expendables - STIRRER COFF WOOD 5.5 - 5.5 inch - Coffee Wood Stirrers - 5.5 in (Lot 296)","303679812 - Handgards - Bags - PB8.5TU - 6.5 x 7 - High Density Daily Preportioning Bags"]
["304663122","Apparel","Handgards","NeatGards","","24 x 42","AP 2442","Medium Duty Embossed Apron","10/100","White","","","Coffee Wood Stirrers - 7.5 in (Lot 298)","5/1000",5000,"Coffee Wood Stirrers","Handgards","",null,"","","","305214003 - Handgards - Expendables - STIRRER COFF WOOD 7.5 - 7.5 inch - Coffee Wood Stirrers - 7.5 in (Lot 298)","303679813 - Handgards - Bags - PB8.5WE - 6.5 x 7 - High Density Daily Preportioning Bags"]
["303678659","Bags","Handgards","TuffGards","","6.5 x 7","SB8.5","High Density Specialty Bag - Food Plate","1/2000","Clear","","","Parasol Wood Picks (Lot 350)","50/144",7200,"Parasol Wood Picks","Handgards","",null,"","","","305214004 - Handgards - Expendables - PICK PARASOL PAPER -  - Parasol Wood Picks (Lot 350)","303679814 - Handgards - Bags - PB8.5TH - 6.5 x 7 - High Density Daily Preportioning Bags"]
["303678904","Bags","Handgards","TuffGards","","8.5 x 8.5","D50","High Density Deli Bag","1/2000","Clear","","","Poly Disposable Elbow Length Embossed Gloves","1/250",250,"Poly","Handgards","Straight",null,"","","","303120273 - Handgards - Gloves - ERE 1/250 - OSFA - Poly Disposable Elbow Length Embossed Gloves","303679815 - Handgards - Bags - PB8.5FR - 6.5 x 7 - High Density Daily Preportioning Bags"]
["303679212","Bags","Handgards","TuffGards","","7 x 12","DB30E","High Density Doggie Bag","1/1000","White","","","Quickserve Poly Disposable Gloves","20/50",1000,"Poly","Quickserve","Straight",null,"","","","303362365 - Handgards - Gloves - QUICKSERVE CPE IMP - OSFA - Quickserve Poly Disposable Gloves","303679816 - Handgards - Bags - PB8.5SA - 6.5 x 7 - High Density Daily Preportioning Bags"]
["303679353","Bags","Handgards","TuffGards","","10 x 8.5","D190","High Density Deli Sandwich Bags","1/2000","Clear","","","Quickserve Poly Disposable Gloves","20/50",1000,"Poly","Quickserve","Straight","Wrist","","","","303362365 - Sysco - Gloves - QUICKSERVE CPE IMP - OSFA - Quickserve Poly Disposable Gloves","303679817 - Handgards - Bags - PB8.5WK - 6.5 x 7 - High Density Weekly Preportioning Bags"]
["303679580","Bags","Handgards","TuffGards","","7.5 x 7.5","SB9.5","High Density Sandwich Bags","1/2000","Clear","","","Quickserve Poly Disposable Gloves","1/1000",1000,"Poly","Quickserve","Straight",null,"","","","303362370 - Handgards - Gloves - QUICKSERVE HD BLUE - OSFA - Quickserve Poly Disposable Gloves","303679817 - Sysco - Bags - PB8.5WK - 6.5 x 7 - High Density Weekly Preportioning Bags"]
["303679591","Bags","Handgards","TuffGards","","6.5 x 7","SB8.5 CK","High Density Sandwich Bags","1/2000","Clear","","Full Saddle","High Density Daily Preportioning Bags","1/2000",2000,"High Density Preportion bags","TuffGards","",null,"\"Wednesday'","Red","1¾\" Flip Lock","303679813 - Handgards - Bags - PB8.5WE - 6.5 x 7 - High Density Daily Preportioning Bags","303679820 - Handgards - Bags - PB100SU - 10 x 8.5 - High Density Daily Preportioning Bags"]
["303679592","Bags","Handgards","TuffGards","","5.25 x 8","HD8","High Density Hot Dog Bag","1/2000","Clear","","Full Saddle","Valugards High Density Random Print Portion Bags","1/2000",2000,"High Density Preportion bags","Valugards","",null,"\"Saturday\"","Black","2\" Flip Lock","303679777 - Handgards - Bags - VAL PB50 SA - 8.5 x 8.5 - Valugards High Density Random Print Portion Bags","303679821 - Handgards - Bags - PB100MO - 10 x 8.5 - High Density Daily Preportioning Bags"]
["303679597","Bags","Handgards","TuffGards","","8.5 x 4.5","HD4.5","High Density Hot Dog Bag","1/2000","Clear","","Full Saddle","High Density Deli Sandwich Bags","1/2000",2000,"High Density Specialty Bag","TuffGards","",null,"\"Deli Fresh\"","Red/Gr/Gld","2\" Flip Lock","303679640 - Handgards - Bags - D90 - 8.5 x 8.5 - High Density Deli Sandwich Bags","303679822 - Handgards - Bags - PB100TU - 10 x 8.5 - High Density Daily Preportioning Bags"]
["303679599","Bags","Handgards","TuffGards","","6.5 x 7","SB8.5HB","High Density Sandwich Bags","1/2000","Clear","","Full Saddle","High Density Daily Preportioning Bags","1/2000",2000,"High Density Preportion bags","TuffGards","",null,"\"Monday\"","Blue","2\" Flip Lock","303679821 - Handgards - Bags - PB100MO - 10 x 8.5 - High Density Daily Preportioning Bags","303679823 - Handgards - Bags - PB100WE - 10 x 8.5 - High Density Daily Preportioning Bags"]
["303679600","Bags","Handgards","TuffGards","","6.5 x 7","SB8.5 CB","High Density Sandwich Bags","1/2000","Clear","","Full Saddle","High Density Daily Preportioning Bags","1/2000",2000,"High Density Preportion bags","TuffGards","",null,"\"Tuesday\"","Yellow","2\" Flip Lock","303679822 - Handgards - Bags - PB100TU - 10 x 8.5 - High Density Daily Preportioning Bags","303679824 - Handgards - Bags - PB100TH - 10 x 8.5 - High Density Daily Preportioning Bags"]
["303679606","Bags","Handgards","TuffGards","","10 x 8.5","D100","High Density Deli Sandwich Bags","1/2000","Clear","","Full Saddle","Valugards High Density Random Print Portion Bags","1/2000",2000,"High Density Preportion bags","Valugards","",null,"\"Friday\"","Green","2\" Flip Lock","303679776 - Handgards - Bags - VAL PB50 FR - 8.5 x 8.5 - Valugards High Density Random Print Portion Bags","303679825 - Handgards - Bags - PB100FR - 10 x 8.5 - High Density Daily Preportioning Bags"]
["303679613","Bags","Handgards","TuffGards","","5.5 x 5.5","SB5.6CE","High Density Cookie Bags","1/2000","Clear","","","Synthetic Disposable Gloves","4/100",400,"Synthetic","Handgards","Rolled","Wrist","","","","304362513 - Sysco - Gloves - SYN 4/100 PF - L - Synthetic Disposable Gloves","303679826 - Handgards - Bags - PB100SA - 10 x 8.5 - High Density Daily Preportioning Bags"]
["303679614","Bags","Handgards","TuffGards","","5.25 x 10","HD10","High Density Hot Dog Bag","1/2000","Clear","","","Arrow Picks Plastic - Black 3.5 inch Round (Lot 235)","10/1000",10000,"Arrow Picks - Plastic","","",null,"","","","305210218 - Handgards - Expendables - ARROW PICK BLACK 3.5 - 3.5 inch - Arrow Picks Plastic - Black 3.5 inch Round (Lot 235)","303679827 - Handgards - Bags - PB100WK - 10 x 8.5 - High Density Weekly Preportioning Bags"]
["303679616","Bags","Handgards","TuffGards","","6.5 x 7","SB8.5R","High Density Sandwich Bags","1/2000","Clear","","","Low Density Embossed Child Bibs","1/500",500,"Low Density Poly Bibs","NeatGards","",null,"Stock Print","Various","","303578521 - Handgards - Apparel - CB4 - 10.5 x 15 - Low Density Embossed Child Bibs","303679870 - Handgards - Bags - PB100T - 10 x 8.5 - High Density Color Tinted Preportioning Bags"]
["303679617","Bags","Handgards","TuffGards","","6.5 x 7","SB8.5B","High Density Sandwich Bags","1/2000","Clear","","Flat Pack","Nylon Ovenable Pan Liners","1/100",100,"Nylon Pan Liners","PanHandlers","",null,"None","None","Twist Tie","304985022 - Handgards - Bags - OPL34X16 - 34 x 16 - Nylon Ovenable Pan Liners","303679871 - Handgards - Bags - PB100T - 10 x 8.5 - High Density Color Tinted Preportioning Bags"]
["303679628","Bags","Handgards","TuffGards","","3.5 x 10","SW25","High Density Silverware Bags","1/2000","Clear","","Roll Pack","High Density Steam Pan Liners","1/250",250,"High Density Pan Liners","PanHandlers","",null,"None","None","Twist Tie","303679982 - Handgards - Bags - SPL18X14 - 18 x 14 - High Density Steam Pan Liners","303679872 - Handgards - Bags - PB100T - 10 x 8.5 - High Density Color Tinted Preportioning Bags"]
["303679629","Bags","Handgards","TuffGards","","4 x 4.75","SB40","High Density Sandwich Bags","1/2000","Clear","","Flat Pack","Nylon Ovenable Pan Liners","1/100",100,"Nylon Pan Liners","PanHandlers","",null,"None","None","Twist Tie","304985024 - Handgards - Bags - OPL24X10 - 24 x 10 - Nylon Ovenable Pan Liners","303679873 - Handgards - Bags - PB100T - 10 x 8.5 - High Density Color Tinted Preportioning Bags"]
["303679630","Bags","Handgards","TuffGards","","8.5 x 8.5","D50","High Density Deli Sandwich Bags","1/2000","Clear","","","Low Density Embossed Adult Bibs-Lobster","1/500",500,"Low Density Poly Bibs","NeatGards","",null,"Lobster","Red","","303578502 - Handgards - Apparel - ABL - 15.5 x 20 - Low Density Embossed Adult Bibs-Lobster","303679874 - Handgards - Bags - PB100T - 10 x 8.5 - High Density Color Tinted Preportioning Bags"]
["303679640","Bags","Handgards","TuffGards","","8.5 x 8.5","D90","High Density Deli Sandwich Bags","1/2000","Clear","","Flat Pack","Nylon Ovenable Pan Liners","1/100",100,"Nylon Pan Liners","PanHandlers","",null,"None","None","Twist Tie","304985025 - Handgards - Bags - OPL24X12 - 24 x 12 - Nylon Ovenable Pan Liners","303679875 - Handgards - Bags - PB100T - 10 x 8.5 - High Density Color Tinted Preportioning Bags"]
["303679653","Bags","Handgards","TuffGards","","8.5 x 12","PP20","High Density Pizza Bag","1/2000","White","","Flat Pack","Nylon Ovenable Pan Liners","1/100",100,"Nylon Pan Liners","PanHandlers","","","None","None","Twist Tie","304985025 - Sysco - Bags - OPL24X12 - 24 x 12 - Nylon Ovenable Pan Liners","303679876 - Handgards - Bags - PB100T - 10 x 8.5 - High Density Color Tinted Preportioning Bags"]
["303679771","Bags","Handgards","Valugards","","8.5 x 8.5","VAL PB50 SU","Valugards High Density Random Print Portion Bags","1/2000","Clear","","","Low Density Embossed Adult Bibs-Lobster","1/500",500,"Low Density Poly Bibs","NeatGards","","","Lobster","Red","","303578502 - Sysco - Apparel - ABL - 15.5 x 20 - Low Density Embossed Adult Bibs-Lobster","303679890 - Handgards - Bags - PB8.5T - 6.5 x 7 - High Density Color Tinted Preportioning Bags"]
["303679772","Bags","Handgards","Valugards","","8.5 x 8.5","VAL PB50 MO","Valugards High Density Random Print Portion Bags","1/2000","Clear","","Flat Pack","Nylon Ovenable Pan Liners","1/100",100,"Nylon Pan Liners","PanHandlers","",null,"None","None","Twist Tie","304985027 - Handgards - Bags - OPL19.5X10 - 19.5 x 10 - Nylon Ovenable Pan Liners","303679891 - Handgards - Bags - PB8.5T - 6.5 x 7 - High Density Color Tinted Preportioning Bags"]
["303679773","Bags","Handgards","Valugards","","8.5 x 8.5","VAL PB50 TU","Valugards High Density Random Print Portion Bags","1/2000","Clear","","Flat Pack","Nylon Ovenable Pan Liners","1/100",100,"Nylon Pan Liners","PanHandlers","",null,"None","None","Twist Tie","304985021 - Handgards - Bags - OPL34X12 - 34 x 12 - Nylon Ovenable Pan Liners","303679892 - Handgards - Bags - PB8.5T - 6.5 x 7 - High Density Color Tinted Preportioning Bags"]
["303679774","Bags","Handgards","Valugards","","8.5 x 8.5","VAL PB50 WE","Valugards High Density Random Print Portion Bags","1/2000","Clear","","","Vinyl Disposable Gloves","4/100",400,"Vinyl","Handgards","Rolled","Wrist","","","","304362392 - BEK - Gloves - PVC 4/100 PP - M - Vinyl Disposable Gloves","303679893 - Handgards - Bags - PB8.5T - 6.5 x 7 - High Density Color Tinted Preportioning Bags"]
["303679775","Bags","Handgards","Valugards","","8.5 x 8.5","VAL PB50 TH","Valugards High Density Random Print Portion Bags","1/2000","Clear","","","Vinyl Disposable Gloves","4/100",400,"Vinyl","Handgards","Rolled",null,"","","","304362392 - Handgards - Gloves - PVC 4/100 PP - M - Vinyl Disposable Gloves","303679894 - Handgards - Bags - PB8.5T - 6.5 x 7 - High Density Color Tinted Preportioning Bags"]
["303679776","Bags","Handgards","Valugards","","8.5 x 8.5","VAL PB50 FR","Valugards High Density Random Print Portion Bags","1/2000","Clear","",null,null,null,null,null,null,null,null,null,null,null,null,"303679895 - Handgards - Bags - PB8.5T - 6.5 x 7 - High Density Color Tinted Preportioning Bags"]
["303679777","Bags","Handgards","Valugards","","8.5 x 8.5","VAL PB50 SA","Valugards High Density Random Print Portion Bags","1/2000","Clear","",null,null,null,null,null,null,null,null,null,null,null,null,"303679896 - Handgards - Bags - PB8.5T - 6.5 x 7 - High Density Color Tinted Preportioning Bags"]
["303679801","Bags","Handgards","ZipGards","","13 x 15.5","ZG256HD","High Density Reclosable Bags","1/100","Clear","",null,null,null,null,null,null,null,null,null,null,null,null,"303679897 - Handgards - Bags - PB100T - 10 x 8.5 - High Density Color Tinted Preportioning Bags-Variety Case"]
["303679804","Bags","Handgards","ZipGards","","6.5 x 6","ZG6HD","High Density Reclosable Bags","1/500","Clear","",null,null,null,null,null,null,null,null,null,null,null,null,"303679897 - Handgards - Bags - PB100T - 10 x 8.5 - High Density Color Tinted Preportioning Bags-Variety Case"]
["303679806","Bags","Handgards","ZipGards","","7 x 8","ZG32HD","High Density Reclosable Bags","1/500","Clear","",null,null,null,null,null,null,null,null,null,null,null,null,"303679898 - Handgards - Bags - PB8.5T - 6.5 x 7 - High Density Color Tinted Preportioning Bags-Variety Case"]
["303679809","Bags","Handgards","ZipGards","","10.5 x 10.5","ZG128HD","High Density Reclosable Bags","1/250","Clear","","","Synthetic Disposable Gloves","4/100",400,"Synthetic","Handgards","Rolled","Wrist","","","","304362502 - BEK - Gloves - SYN 4/100 PP - M - Synthetic Disposable Gloves","303679943 - Handgards - Bags - SPL24X12 - 24 x 12 - High Density Steam Pan Liners"]
["303679810","Bags","Handgards","TuffGards","","6.5 x 7","PB8.5SU","High Density Daily Preportioning Bags","1/2000","Clear","","","Synthetic Disposable Gloves","4/100",400,"Synthetic","Handgards","Rolled","Wrist","","","","304362502 - Sysco - Gloves - SYN 4/100 PP - M - Synthetic Disposable Gloves","303679944 - Handgards - Bags - SPL19.5X10 - 19.5 x 10 - High Density Steam Pan Liners"]
["303679811","Bags","Handgards","TuffGards","","6.5 x 7","PB8.5MO","High Density Daily Preportioning Bags","1/2000","Clear","","","Synthetic Disposable Gloves","4/100",400,"Synthetic","Handgards","Rolled",null,"","","","304362503 - Handgards - Gloves - SYN 4/100 PP - L - Synthetic Disposable Gloves","303679946 - Handgards - Bags - SPL15X12 - 15 x 12 - High Density Steam Pan Liners"]
["303679812","Bags","Handgards","TuffGards","","6.5 x 7","PB8.5TU","High Density Daily Preportioning Bags","1/2000","Clear","","","Synthetic Disposable Gloves","4/100",400,"Synthetic","Handgards","Rolled","Wrist","","","","304362501 - BEK - Gloves - SYN 4/100 PP - S - Synthetic Disposable Gloves","303679959 - Handgards - Bags - FB18 - 18 x 18 - High Density Ice Bag"]
["303679813","Bags","Handgards","TuffGards","","6.5 x 7","PB8.5WE","High Density Daily Preportioning Bags","1/2000","Clear","","","Synthetic Disposable Gloves","4/100",400,"Synthetic","Handgards","Rolled",null,"","","","304362502 - Handgards - Gloves - SYN 4/100 PP - M - Synthetic Disposable Gloves","303679971 - Handgards - Bags - RP8052 - 52 x 80 - High Density Bun Pan Rack Cover"]
["303679814","Bags","Handgards","TuffGards","","6.5 x 7","PB8.5TH","High Density Daily Preportioning Bags","1/2000","Clear","","","Synthetic Disposable Gloves","4/100",400,"Synthetic","Handgards","Rolled","Wrist","","","","304362502 - PFS - Gloves - SYN 4/100 PP - M - Synthetic Disposable Gloves","303679971 - BEK - Bags - RP8052 - 52 x 80 - High Density Bun Pan Rack Cover"]
["303679815","Bags","Handgards","TuffGards","","6.5 x 7","PB8.5FR","High Density Daily Preportioning Bags","1/2000","Clear","",null,null,null,null,null,null,null,null,null,null,null,null,"303679971 - Sysco - Bags - RP8052 - 52 x 80 - High Density Bun Pan Rack Cover"]
["303679816","Bags","Handgards","TuffGards","","6.5 x 7","PB8.5SA","High Density Daily Preportioning Bags","1/2000","Clear","",null,null,null,null,null,null,null,null,null,null,null,null,"303679974 - Handgards - Bags - FB9 RM - 6.5 x 9 - High Density Freezer Bags"]
["303679817","Bags","Handgards","TuffGards","","6.5 x 7","PB8.5WK","High Density Weekly Preportioning Bags","1/2000","Clear","",null,null,null,null,null,null,null,null,null,null,null,null,"303679974 - Sysco - Bags - FB9 RM - 6.5 x 9 - High Density Freezer Bags"]
["303679827","Bags","Handgards","TuffGards","","10 x 8.5","PB100WK","High Density Weekly Preportioning Bags","1/2000","Clear","","","Vinyl Disposable Gloves","4/100",400,"Vinyl","Handgards","Rolled",null,"","","","304362411 - Handgards - Gloves - PVC 4/100 PF - S - Vinyl Disposable Gloves","303679977 - Sysco - Bags - FB24 RM - 18 x 24 - High Density Freezer Bags"]
["303679890","Bags","Handgards","TuffGards","","6.5 x 7","PB8.5T","High Density Color Tinted Preportioning Bags","1/2000","Black","","","Vinyl Disposable Gloves","4/100",400,"Vinyl","Handgards","Rolled","Wrist","","","","304362411 - Sysco - Gloves - PVC 4/100 PF - S - Vinyl Disposable Gloves","303679977 - Sysco - Bags - FB24 RM - 18 x 24 - High Density Freezer Bags"]
["303679891","Bags","Handgards","TuffGards","","6.5 x 7","PB8.5T","High Density Color Tinted Preportioning Bags","1/2000","Blue","","","Vinyl Disposable Gloves","4/100",400,"Vinyl","Handgards","Rolled","Wrist","","","","304362411 - BEK - Gloves - PVC 4/100 PF - S - Vinyl Disposable Gloves","303679977 - BEK - Bags - FB24 RM - 18 x 24 - High Density Freezer Bags"]
["303679892","Bags","Handgards","TuffGards","","6.5 x 7","PB8.5T","High Density Color Tinted Preportioning Bags","1/2000","Yellow","","","Vinyl Disposable Gloves","4/100",400,"Vinyl","Handgards","Rolled","Wrist","","","","304362411 - PFS - Gloves - PVC 4/100 PF - S - Vinyl Disposable Gloves","303679978 - Handgards - Bags - FB30 RM - 18 x 30 - High Density Freezer Bags"]
["303679893","Bags","Handgards","TuffGards","","6.5 x 7","PB8.5T","High Density Color Tinted Preportioning Bags","1/2000","Red","","","Nitrile Disposable Gloves","4/100",400,"Nitrile","Handgards","Rolled",null,"","","","304362523 - Handgards - Gloves - NIT 4/100 PP - L - Nitrile Disposable Gloves","303679979 - Handgards - Bags - FB37 RM - 27 x 37 - High Density Freezer Bags"]
["303679894","Bags","Handgards","TuffGards","","6.5 x 7","PB8.5T","High Density Color Tinted Preportioning Bags","1/2000","Brown","","","Nitrile Disposable Gloves","4/100",400,"Nitrile","Handgards","Rolled",null,"","","","304362524 - Handgards - Gloves - NIT 4/100 PP - XL - Nitrile Disposable Gloves","303679979 - BEK - Bags - FB37 RM - 27 x 37 - High Density Freezer Bags"]
["303679895","Bags","Handgards","TuffGards","","6.5 x 7","PB8.5T","High Density Color Tinted Preportioning Bags","1/2000","Green","","","Nitrile Disposable Gloves","4/100",400,"Nitrile","Handgards","Rolled",null,"","","","304362531 - Handgards - Gloves - NIT 4/100 PF - S - Nitrile Disposable Gloves"]
["303679896","Bags","Handgards","TuffGards","","6.5 x 7","PB8.5T","High Density Color Tinted Preportioning Bags","1/2000","Orange","","","Nitrile Disposable Gloves","4/100",400,"Nitrile","Handgards","Rolled",null,"","","","304362532 - Handgards - Gloves - NIT 4/100 PF - M - Nitrile Disposable Gloves","303679979 - Sysco - Bags - FB37 RM - 27 x 37 - High Density Freezer Bags"]
["303679898","Bags","Handgards","TuffGards","","6.5 x 7","PB8.5T","High Density Color Tinted Preportioning Bags-Variety Case","1/2000","Clear","","","Synthetic Disposable Gloves with Aloe","4/100",400,"Synthetic","Handgards","Rolled",null,"","","","304363044 - Handgards - Gloves - SYN ALOE 4/100 PF - XL - Synthetic Disposable Gloves with Aloe","303679981 - Handgards - Bags - SPL34X25 - 34 x 25 - High Density Steam Pan Liners"]
["303679911","Bags","Handgards","Tuffgards","","18 x 22","HD SHEET 18X22","High Density Food Sheet","1/1000","Clear","","","Valugards Synthetic Disposable Gloves","4/100",400,"Synthetic","Valugards","Rolled",null,"","","","304363252 - Handgards - Gloves - VAL SYN 4/100 PP - M - Valugards Synthetic Disposable Gloves","303679982 - Handgards - Bags - SPL18X14 - 18 x 14 - High Density Steam Pan Liners"]
["303679939","Bags","Handgards","Panhandlers","","19 x 14","SPL19X14","High Density Steam Pan Liners","1/250","Clear","",null,null,null,null,null,null,null,null,null,null,null,null,"303679982 - Sysco - Bags - SPL18X14 - 18 x 14 - High Density Steam Pan Liners"]
["303679943","Bags","Handgards","PanHandlers","","24 x 12","SPL24X12","High Density Steam Pan Liners","1/250","Clear","","Flat Pack","Low Density Reclosable Gallon Slide Zip bags","1/250",250,"Low Density Reclosable bags","ZipGards","","","Write-on Block","Orange","Resealable (Slide Zipper)","304985474 - Sysco - Bags - SZ 128 - 10.5 x 11 - Low Density Reclosable Gallon Slide Zip bags","304985021 - Handgards - Bags - OPL34X12 - 34 x 12 - Nylon Ovenable Pan Liners"]
["303679944","Bags","Handgards","PanHandlers","","19.5 x 10","SPL19.5X10","High Density Steam Pan Liners","1/250","Clear","","","Ultratouch Synthetic Disposable Gloves","10/100",1000,"Synthetic","UltraTouch","Rolled","Wrist","","","","304363263 - PFS - Gloves - ULTRATOUCH 10/100 PF - L - Ultratouch Synthetic Disposable Gloves","304985022 - Handgards - Bags - OPL34X16 - 34 x 16 - Nylon Ovenable Pan Liners"]
["303679946","Bags","Handgards","PanHandlers","","15 x 12","SPL15X12","High Density Steam Pan Liners","1/500","Clear","","Flat Pack","Low Density Reclosable Gallon Slide Zip bags","1/250",250,"Low Density Reclosable bags","ZipGards","",null,"Write-on Block","Orange","Resealable (Slide Zipper)","304985474 - Handgards - Bags - SZ 128 - 10.5 x 11 - Low Density Reclosable Gallon Slide Zip bags","304985024 - Handgards - Bags - OPL24X10 - 24 x 10 - Nylon Ovenable Pan Liners"]
["303679951","Bags","Handgards","Tuffgards","","60 x 80","RP60X80","High Density Bun Pan Rack Cover","1/50","Clear","","","Ultratouch Synthetic Disposable Gloves","10/100",1000,"Synthetic","UltraTouch","Rolled",null,"","","","304363263 - Handgards - Gloves - ULTRATOUCH 10/100 PF - L - Ultratouch Synthetic Disposable Gloves","304985025 - Handgards - Bags - OPL24X12 - 24 x 12 - Nylon Ovenable Pan Liners"]
["303679952","Bags","Handgards","Tuffgards","","27 x 35","FB35 RM","Low Density Food Storage Bags","1/200","Clear","","","Ultratouch Synthetic Disposable Gloves","10/100",1000,"Synthetic","UltraTouch","Rolled","Wrist","","","","304363264 - PFS - Gloves - ULTRATOUCH 10/100 PF - XL - Ultratouch Synthetic Disposable Gloves","304985025 - Sysco - Bags - OPL24X12 - 24 x 12 - Nylon Ovenable Pan Liners"]
["303679959","Bags","Handgards","TuffGards","","18 x 18","FB18","High Density Ice Bag","1/300","Clear","","Full Saddle","High Density Daily Preportioning Bags","1/2000",2000,"High Density Preportion bags","TuffGards","",null,"\"Friday\"","Green","1¾\" Flip Lock","303679815 - Handgards - Bags - PB8.5FR - 6.5 x 7 - High Density Daily Preportioning Bags","304985027 - Handgards - Bags - OPL19.5X10 - 19.5 x 10 - Nylon Ovenable Pan Liners"]
["303679971","Bags","Handgards","TuffGards","","52 x 80","RP8052","High Density Bun Pan Rack Cover","1/50","Clear","","Full Saddle","High Density Daily Preportioning Bags","1/2000",2000,"High Density Preportion bags","TuffGards","",null,"\"Sunday\"","Black","1¾\" Flip Lock","303679810 - Handgards - Bags - PB8.5SU - 6.5 x 7 - High Density Daily Preportioning Bags","304985029 - Handgards - Bags - OPL18X10 - 18 x 10 - Nylon Ovenable Pan Liners"]
["303679974","Bags","Handgards","TuffGards","","6.5 x 9","FB9 RM","High Density Freezer Bags","1/2000","Clear","","Flat Pack","High Density Reclosable Bags","1/250",250,"High Density Reclosable bags","ZipGards","",null,"None","None","Resealable (Zipper)","303679809 - Handgards - Bags - ZG128HD - 10.5 x 10.5 - High Density Reclosable Bags","304985030 - Handgards - Bags - OPL18X14 - 18 x 14 - Nylon Ovenable Pan Insert Liners"]
["303679975","Bags","Handgards","TuffGards","","10 x 14","FB14 RM","High Density Freezer Bags","1/1000","Clear","",null,null,null,null,null,null,null,null,null,null,null,null,"304985032 - Handgards - Bags - ORB24X17 - 24 x 17 - Nylon Ovenable Roasting Bags"]
["303679976","Bags","Handgards","TuffGards","","12 x 18","FB18 RM","High Density Freezer Bags","1/1000","Clear","",null,null,null,null,null,null,null,null,null,null,null,null,"304985033 - Handgards - Bags - OPL18X24 - 18 x 24 - Nylon Ovenable Pan Insert Liners"]
["303679977","Bags","Handgards","TuffGards","","18 x 24","FB24 RM","High Density Freezer Bags","1/250","Clear","",null,null,null,null,null,null,null,null,null,null,null,null,"304985034 - Handgards - Bags - ORB34X25 - 34 x 25 - Nylon Ovenable Roasting Bags"]
["303679978","Bags","Handgards","TuffGards","","18 x 30","FB30 RM","High Density Freezer Bags","1/200","Clear","",null,null,null,null,null,null,null,null,null,null,null,null,"304985036 - Handgards - Bags - OPL25.5X17.5 - 25.5 x 17.5 - Nylon Ovenable Pan Liners Sheets"]
["303679979","Bags","Handgards","TuffGards","","27 x 37","FB37 RM","High Density Freezer Bags","1/200","Clear","","","Latex Disposable Gloves","4/100",400,"Latex","Handgards","Rolled","Wrist","","","","304762821 - PFS - Gloves - LTX 4/100 PP - S - Latex Disposable Gloves","304985038 - Handgards - Bags - OPL15X12 - 15 x 12 - Nylon Ovenable Pan Liners"]
["303679980","Bags","Handgards","PanHandlers","","24 x 17","SPL24X17","High Density Steam Pan Liners","1/250","Clear","","","Latex Disposable Gloves","4/100",400,"Latex","Handgards","Rolled",null,"","","","304762822 - Handgards - Gloves - LTX 4/100 PP - M - Latex Disposable Gloves","304985044 - Handgards - Bags - OPL 20X18 - 20 x 18 - Nylon Ovenable Pan Insert Liners"]
["303679981","Bags","Handgards","PanHandlers","","34 x 25","SPL34X25","High Density Steam Pan Liners","1/250","Clear","","","Latex Disposable Gloves","4/100",400,"Latex","Handgards","Rolled","Wrist","","","","304762822 - PFS - Gloves - LTX 4/100 PP - M - Latex Disposable Gloves","304985046 - Handgards - Bags - OPL20.8X12.8 - 20.8 x 12.8 - Nylon Ovenable Pan Liners"]
["303679982","Bags","Handgards","PanHandlers","","18 x 14","SPL18X14","High Density Steam Pan Liners","1/250","Clear","","","Latex Disposable Gloves","4/100",400,"Latex","Handgards","Rolled","Wrist","","","","304762822 - BEK - Gloves - LTX 4/100 PP - M - Latex Disposable Gloves","304985050 - Handgards - Bags - OPL13X18 - 13 x 18 - Nylon Ovenable Pan Liners"]
["304985021","Bags","Handgards","PanHandlers","","34 x 12","OPL34X12","Nylon Ovenable Pan Liners","1/100","Clear","","","Latex Disposable Gloves","4/100",400,"Latex","Handgards","Rolled","Wrist","","","","304763023 - PFS - Gloves - LTX 4/100 PF - L - Latex Disposable Gloves","304985055 - Handgards - Bags - OPL 19X14 - 19 x 14 - Nylon Ovenable Pan Liners"]
["304985022","Bags","Handgards","PanHandlers","","34 x 16","OPL34X16","Nylon Ovenable Pan Liners","1/100","Clear","","","Latex Disposable Gloves","4/100",400,"Latex","Handgards","Rolled","Wrist","","","","304763023 - Sysco - Gloves - LTX 4/100 PF - L - Latex Disposable Gloves","304985056 - Handgards - Bags - OPL 20.5X28.5 - 20.5x28.5 - Nylon Ovenable Pan Liner Sheets"]
["304985025","Bags","Handgards","PanHandlers","","24 x 12","OPL24X12","Nylon Ovenable Pan Liners","1/100","Clear","","","Latex Textured Disposable Gloves","4/100",400,"Latex","GripGards","Rolled",null,"","","","304763321 - Handgards - Gloves - LTX TXT 4/100 PP - S - Latex Textured Disposable Gloves","304985110 - Handgards - Bags - ZG6 - 6.5 x 6 - Low Density Reclosable Pint Bags"]
["304985027","Bags","Handgards","PanHandlers","","19.5 x 10","OPL19.5X10","Nylon Ovenable Pan Liners","1/100","Clear","","","Latex Textured Disposable Gloves","4/100",400,"Latex","GripGards","Rolled",null,"","","","304763322 - Handgards - Gloves - LTX TXT 4/100 PP - M - Latex Textured Disposable Gloves","304985110 - Sysco - Bags - ZG6 - 6.5 x 6 - Low Density Reclosable Pint Bags"]
["304985030","Bags","Handgards","PanHandlers","","18 x 14","OPL18X14","Nylon Ovenable Pan Insert Liners","1/100","Clear","","","Latex Textured Disposable Gloves","4/100",400,"Latex","GripGards","Rolled",null,"","","","304763324 - Handgards - Gloves - LTX TXT 4/100 PP - XL - Latex Textured Disposable Gloves","304985120 - Handgards - Bags - ZG32 - 7 x 8 - Low Density Reclosable Quart Bags"]
["304985032","Bags","Handgards","PanHandlers","","24 x 17","ORB24X17","Nylon Ovenable Roasting Bags","1/100","Clear","","","Latex Disposable Gloves","4/100",400,"Latex","Handgards","Rolled","Wrist","","","","304763024 - BEK - Gloves - LTX 4/100 PF - XL - Latex Disposable Gloves","304985120 - Sysco - Bags - ZG32 - 7 x 8 - Low Density Reclosable Quart Bags"]
["304985033","Bags","Handgards","PanHandlers","","18 x 24","OPL18X24","Nylon Ovenable Pan Insert Liners","1/100","Clear","","","Latex Disposable Gloves","4/100",400,"Latex","Handgards","Rolled","Wrist","","","","304763024 - Sysco - Gloves - LTX 4/100 PF - XL - Latex Disposable Gloves","304985130 - Handgards - Bags - ZG128 - 10.5 x 10.5 - Low Density Reclosable Gallon Bags"]
["304985034","Bags","Handgards","PanHandlers","","34 x 25","ORB34X25","Nylon Ovenable Roasting Bags","1/100","Clear","","","Latex Textured Disposable Gloves","4/100",400,"Latex","GripGards","Rolled",null,"","","","304763311 - Handgards - Gloves - LTX TXT 4/100 PF - S - Latex Textured Disposable Gloves","304985130 - Sysco - Bags - ZG128 - 10.5 x 10.5 - Low Density Reclosable Gallon Bags"]
["304985036","Bags","Handgards","PanHandlers","","25.5 x 17.5","OPL25.5X17.5","Nylon Ovenable Pan Liners Sheets","1/100","Clear","","","Latex Textured Disposable Gloves","4/100",400,"Latex","GripGards","Rolled",null,"","","","304763312 - Handgards - Gloves - LTX TXT 4/100 PF - M - Latex Textured Disposable Gloves","304985135 - Handgards - Bags - ZG256 - 13 x 15.5 - Low Density 2 Gallon Reclosable Bags"]
["304985038","Bags","Handgards","PanHandlers","","15 x 12","OPL15X12","Nylon Ovenable Pan Liners","1/100","Clear","","","Latex Textured Disposable Gloves","4/100",400,"Latex","GripGards","Rolled",null,"","","","304763313 - Handgards - Gloves - LTX TXT 4/100 PF - L - Latex Textured Disposable Gloves","304985135 - Sysco - Bags - ZG256 - 13 x 15.5 - Low Density 2 Gallon Reclosable Bags"]
["304985044","Bags","Handgards","PanHandlers","","20 x 18","OPL20X18","Nylon Ovenable Pan Insert Liners","1/100","Clear","","","Latex Textured Disposable Gloves","4/100",400,"Latex","GripGards","Rolled",null,"","","","304763314 - Handgards - Gloves - LTX TXT 4/100 PF - XL - Latex Textured Disposable Gloves","304985170 - Handgards - Bags - SB7.5 - 6.5 x 7.5 - High Density Sandwich Bags"]
["304985050","Bags","Handgards","Panhandlers","","13 x 18","OPL13X18","Nylon Ovenable Pan Liners","1/100","Clear","","","Latex Disposable Gloves","10/100",1000,"Latex","Handgards","Rolled","Wrist","","","","304763003 - Sysco - Gloves - LTX 10/100 PF - L - Latex Disposable Gloves","304985170 - BEK - Bags - SB7.5 - 6.5 x 7.5 - High Density Sandwich Bags"]
["304985053","Bags","Handgards","Panhandlers","","15 x 15","OPL15X15","Nylon Ovenable Pan Liners","1/100","Clear","","","Latex Disposable Gloves","10/100",1000,"Latex","Handgards","Rolled",null,"","","","304763004 - Handgards - Gloves - LTX 10/100 PF - XL - Latex Disposable Gloves","304985170 - Sysco - Bags - SB7.5 - 6.5 x 7.5 - High Density Sandwich Bags"]
["304985055","Bags","Handgards","PanHandlers","","19 x 14","OPL19X14","Nylon Ovenable Pan Liners","1/100","Clear","","","Latex Disposable Gloves","4/100",400,"Latex","Handgards","Rolled",null,"","","","304763021 - Handgards - Gloves - LTX 4/100 PF - S - Latex Disposable Gloves","304985171 - Handgards - Bags - SW10 - 3.5 x 10.75 - High Density Silverware Bags"]
["304985056","Bags","Handgards","PanHandlers","","20.5x28.5","OPL20.5X28.5","Nylon Ovenable Pan Liner Sheets","1/100","Clear","","","Latex Disposable Gloves","4/100",400,"Latex","Handgards","Rolled","Wrist","","","","304763021 - PFS - Gloves - LTX 4/100 PF - S - Latex Disposable Gloves","304985171 - Sysco - Bags - SW10 - 3.5 x 10.75 - High Density Silverware Bags"]
["304985057","Bags","Handgards","PanHandlers","","23 x 14","OPL23X14","Nylon Ovenable Pan Liners","1/100","Clear","","","Latex Disposable Gloves","4/100",400,"Latex","Handgards","Rolled","Wrist","","","","304763021 - Sysco - Gloves - LTX 4/100 PF - S - Latex Disposable Gloves","304985211 - Handgards - Bags - SB8.5 - 6.5 x 7 - High Density Sandwich Bags"]
["304985064","Bags","Handgards","Panhandlers","","34 x 22","OPL34X22","Nylon Ovenable Pan Liners","1/100","Clear","","","Latex Disposable Gloves","4/100",400,"Latex","Handgards","Rolled","Wrist","","","","304763021 - BEK - Gloves - LTX 4/100 PF - S - Latex Disposable Gloves","304985211 - BEK - Bags - SB8.5 - 6.5 x 7 - High Density Sandwich Bags"]
["304985065","Bags","Handgards","Panhandlers","","34 x 12","OPL34X12","Nylon Ovenable Pan Liners","1/250","Clear","","","Latex Disposable Gloves","4/100",400,"Latex","Handgards","Rolled","Wrist","","","","304763022 - PFS - Gloves - LTX 4/100 PF - M - Latex Disposable Gloves","304985211 - Sysco - Bags - SB8.5 - 6.5 x 7 - High Density Sandwich Bags"]
["304985066","Bags","Handgards","Panhandlers","","20.5x28.5","OPL20.5X28.5","Nylon Ovenable Pan Liner sheets","1/50","Clear","","","Latex Disposable Gloves","4/100",400,"Latex","Handgards","Rolled",null,"","","","304763023 - Handgards - Gloves - LTX 4/100 PF - L - Latex Disposable Gloves","304985220 - Handgards - Bags - SB5.5 - 5.5 x 5.5 - High Density Sandwich Bags"]
["304985110","Bags","Handgards","ZipGards","","6.5 x 6","ZG6","Low Density Reclosable Pint Bags","1/500","Clear","","","Latex Disposable Gloves","4/100",400,"Latex","Handgards","Rolled","Wrist","","","","304763023 - BEK - Gloves - LTX 4/100 PF - L - Latex Disposable Gloves","304985220 - Sysco - Bags - SB5.5 - 5.5 x 5.5 - High Density Sandwich Bags"]
["304985120","Bags","Handgards","ZipGards","","7 x 8","ZG32","Low Density Reclosable Quart Bags","1/500","Clear","","","Latex Disposable Gloves","4/100",400,"Latex","Handgards","Rolled",null,"","","","304763022 - Handgards - Gloves - LTX 4/100 PF - M - Latex Disposable Gloves","304985350 - Handgards - Bags - LD6315 - 6 x 3 x 15 - Low Density Food Storage Bags"]
["304985130","Bags","Handgards","ZipGards","","10.5 x 10.5","ZG128","Low Density Reclosable Gallon Bags","1/250","Clear","","","Latex Disposable Gloves","4/100",400,"Latex","Handgards","Rolled","Wrist","","","","304763022 - BEK - Gloves - LTX 4/100 PF - M - Latex Disposable Gloves","304985350 - Sysco - Bags - LD6315 - 6 x 3 x 15 - Low Density Food Storage Bags"]
["304985135","Bags","Handgards","ZipGards","","13 x 15.5","ZG256","Low Density 2 Gallon Reclosable Bags","1/100","Clear","","","Latex Disposable Gloves","4/100",400,"Latex","Handgards","Rolled","Wrist","","","","304763022 - Sysco - Gloves - LTX 4/100 PF - M - Latex Disposable Gloves","304985350 - Sysco - Bags - LD6315 - 6 x 3 x 15 - Low Density Food Storage Bags"]
["304985170","Bags","Handgards","TuffGards","","6.5 x 7.5","SB7.5","High Density Sandwich Bags","1/2000","Clear","","Roll Pack","Low Density Food Storage Bags","1/1000",1000,"Low Density Food Storage Bags","TuffGards","",null,"None","None","None","304985352 - Handgards - Bags - LD8418 - 8 x 4 x 18 - Low Density Food Storage Bags","304985351 - Handgards - Bags - LD68 - 6 x 8 - Low Density Food Storage Bags"]
["304985171","Bags","Handgards","TuffGards","","3.5 x 10.75","SW10","High Density Silverware Bags","1/2000","Clear","","Roll Pack","Low Density Food Storage Bags","1/250",250,"Low Density Food Storage Bags","TuffGards","",null,"None","None","None","304985389 - Handgards - Bags - LDR1824 - 18 x 24 - Low Density Food Storage Bags","304985352 - Handgards - Bags - LD8418 - 8 x 4 x 18 - Low Density Food Storage Bags"]
["304985211","Bags","Handgards","TuffGards","","6.5 x 7","SB8.5","High Density Sandwich Bags","1/2000","Clear","","Flat Pack","Nylon Ovenable Pan Liners","1/50",50,"Nylon Pan Liners","Valugards","",null,"None","None","Twist Tie","304985401 - Handgards - Bags - VAL OPL 24X12 - 24 x 12 - Nylon Ovenable Pan Liners","304985352 - Sysco - Bags - LD8418 - 8 x 4 x 18 - Low Density Food Storage Bags"]
["304985220","Bags","Handgards","TuffGards","","5.5 x 5.5","SB5.5","High Density Sandwich Bags","1/2000","Clear","","Roll Pack","Low Density Food Storage Bags","1/1000",1000,"Low Density Food Storage Bags","TuffGards","","","None","None","None","304985352 - Sysco - Bags - LD8418 - 8 x 4 x 18 - Low Density Food Storage Bags","304985352 - Sysco - Bags - LD8418 - 8 x 4 x 18 - Low Density Food Storage Bags"]
["304985350","Bags","Handgards","TuffGards","","6 x 3 x 15","LD6315","Low Density Food Storage Bags","1/1000","Clear","","Roll Pack","Low Density Food Storage Bags","1/1000",1000,"Low Density Food Storage Bags","TuffGards","",null,"None","None","None","304985353 - Handgards - Bags - LD5418 - 5 x 4.5 x 18 - Low Density Food Storage Bags","304985353 - Handgards - Bags - LD5418 - 5 x 4.5 x 18 - Low Density Food Storage Bags"]
["304985351","Bags","Handgards","TuffGards","","6 x 8","LD68","Low Density Food Storage Bags","1/1000","Clear","","Roll Pack","Low Density Food Storage Bags","1/1000",1000,"Low Density Food Storage Bags","TuffGards","",null,"None","None","None","304985350 - Handgards - Bags - LD6315 - 6 x 3 x 15 - Low Density Food Storage Bags","304985354 - Handgards - Bags - LD4212 - 4 x 2 x 12 - Low Density Food Storage Bags"]
["304985352","Bags","Handgards","TuffGards","","8 x 4 x 18","LD8418","Low Density Food Storage Bags","1/1000","Clear","","Roll Pack","Low Density Food Storage Bags","1/1000",1000,"Low Density Food Storage Bags","TuffGards","",null,"None","None","None","304985351 - Handgards - Bags - LD68 - 6 x 8 - Low Density Food Storage Bags","304985356 - Handgards - Bags - LD8315 - 8 x 3 x 15 - Low Density Food Storage Bags"]
["304985353","Bags","Handgards","TuffGards","","5 x 4.5 x 18","LD5418","Low Density Food Storage Bags","1/1000","Clear","","Roll Pack","Low Density Food Storage Bags","1/200",200,"Low Density Food Storage Bags","TuffGards","","","None","None","None","304985386 - Sysco - Bags - LD21635 - 21 x 6 x 35 - Low Density Food Storage Bags","304985356 - Sysco - Bags - LD8315 - 8 x 3 x 15 - Low Density Food Storage Bags"]
["304985354","Bags","Handgards","TuffGards","","4 x 2 x 12","LD4212","Low Density Food Storage Bags","1/1000","Clear","","Full Saddle","High Density Sandwich Bags","1/2000",2000,"High Density Food Storage Bag","TuffGards","","","None","None","1½\" Flip Lock","304985220 - Sysco - Bags - SB5.5 - 5.5 x 5.5 - High Density Sandwich Bags","304985356 - Sysco - Bags - LD8315 - 8 x 3 x 15 - Low Density Food Storage Bags"]
["304985356","Bags","Handgards","TuffGards","","8 x 3 x 15","LD8315","Low Density Food Storage Bags","1/1000","Clear","","Roll Pack","Low Density Food Storage Bags","1/1000",1000,"Low Density Food Storage Bags","TuffGards","","","None","None","None","304985350 - Sysco - Bags - LD6315 - 6 x 3 x 15 - Low Density Food Storage Bags","304985357 - Handgards - Bags - LD6312 - 6 x 3 x 12 - Low Density Food Storage Bags"]
["304985357","Bags","Handgards","TuffGards","","6 x 3 x 12","LD6312","Low Density Food Storage Bags","1/1000","Clear","","Roll Pack","Low Density Food Storage Bags","1/1000",1000,"Low Density Food Storage Bags","TuffGards","",null,"None","None","None","304985388 - Handgards - Bags - LDR1014 - 10 x 14 - Low Density Food Storage Bags","304985358 - Handgards - Bags - LD428 - 4 x 2 x 8 - Low Density Food Storage Bags"]
["304985358","Bags","Handgards","TuffGards","","4 x 2 x 8","LD428","Low Density Food Storage Bags","1/1000","Clear","","Full Saddle","High Density Sandwich Bags","1/2000",2000,"High Density Food Storage Bag","TuffGards","","","None","None","1¾\" Flip Lock","304985211 - BEK - Bags - SB8.5 - 6.5 x 7 - High Density Sandwich Bags","304985358 - Sysco - Bags - LD428 - 4 x 2 x 8 - Low Density Food Storage Bags"]
["304985361","Bags","Handgards","TuffGards","","10 x 8 x 24","LD10824","Low Density Food Storage Bags","1/500","Clear","","Full Saddle","High Density Sandwich Bags","1/2000",2000,"High Density Food Storage Bag","TuffGards","","","None","None","1¾\" Flip Lock","304985211 - Sysco - Bags - SB8.5 - 6.5 x 7 - High Density Sandwich Bags","304985358 - Sysco - Bags - LD428 - 4 x 2 x 8 - Low Density Food Storage Bags"]
["304985362","Bags","Handgards","TuffGards","","12 x 8 x 30","LD12830","Low Density Food Storage Bags","1/500","Clear","","Roll Pack","Low Density Food Storage Bags","1/1000",1000,"Low Density Food Storage Bags","TuffGards","","","None","None","None","304985350 - Sysco - Bags - LD6315 - 6 x 3 x 15 - Low Density Food Storage Bags","304985361 - Handgards - Bags - LD10824 - 10 x 8 x 24 - Low Density Food Storage Bags"]
["304985370","Bags","Handgards","TuffGards","","8 x 4 x 18","LD8418","Low Density Food Storage Bags","1/1000","Clear","","Full Saddle","High Density Sandwich Bags","1/2000",2000,"High Density Food Storage Bag","TuffGards","",null,"None","None","1½\" Flip Lock","304985220 - Handgards - Bags - SB5.5 - 5.5 x 5.5 - High Density Sandwich Bags","304985362 - Handgards - Bags - LD12830 - 12 x 8 x 30 - Low Density Food Storage Bags"]
["304985388","Bags","Handgards","TuffGards","","10 x 14","LDR1014","Low Density Food Storage Bags","1/1000","Clear","","Roll Pack","Low Density Food Storage Bags","1/1000",1000,"Low Density Food Storage Bags","TuffGards","","","None","None","None","304985352 - Sysco - Bags - LD8418 - 8 x 4 x 18 - Low Density Food Storage Bags","304985370 - Handgards - Bags - LD8418 - 8 x 4 x 18 - Low Density Food Storage Bags"]
["304985389","Bags","Handgards","TuffGards","","18 x 24","LDR1824","Low Density Food Storage Bags","1/250","Clear","","Roll Pack","Low Density Food Storage Bags","1/500",500,"Low Density Food Storage Bags","TuffGards","","","None","None","None","304985388 - Sysco - Bags - LDR1014 - 10 x 14 - Low Density Food Storage Bags","304985386 - Handgards - Bags - LD21635 - 21 x 6 x 35 - Low Density Food Storage Bags"]
["304985403","Bags","Handgards","Valugards","","34 x 16","VAL OPL 34X16","Nylon Ovenable Pan Liners","1/50","Clear","","Roll Pack","Low Density Food Storage Bags","1/1000",1000,"Low Density Food Storage Bags","TuffGards","",null,"None","None","None","304985356 - Handgards - Bags - LD8315 - 8 x 3 x 15 - Low Density Food Storage Bags","304985388 - Handgards - Bags - LDR1014 - 10 x 14 - Low Density Food Storage Bags"]
["304985431","Bags","Handgards","PanHandlers","","34 x 18","OPL34X18","Nylon Ovenable Pan Liners","1/50","Clear","","Flat Pack","Nylon Ovenable Pan Liners","1/50",50,"Nylon Pan Liners","Valugards","",null,"None","None","Twist Tie","304985403 - Handgards - Bags - VAL OPL 34X16 - 34 x 16 - Nylon Ovenable Pan Liners","304985388 - Sysco - Bags - LDR1014 - 10 x 14 - Low Density Food Storage Bags"]
["304985445","Bags","Handgards","Valugards","","6.5 x 7","VAL SB8.5","Valugards High Density Sandwich Bags","1/2000","Clear",""]
["304985461","Bags","Handgards","ZipGards","","6.5 x 6","ZG 6 FRZR","Low Density Reclosable freezer Pint bags","1/500","Clear","","Full Saddle","Valugards High Density Random Print Portion Bags","1/2000",2000,"High Density Preportion bags","Valugards","",null,"\"Monday\"","Blue","1½\" Flip Lock","303679041 - Handgards - Bags - VAL PB8.5 MO - 5.5 x 5.5 - Valugards High Density Random Print Portion Bags","304985389 - Handgards - Bags - LDR1824 - 18 x 24 - Low Density Food Storage Bags"]
["304985462","Bags","Handgards","ZipGards","","7 x 8","ZG 32 FRZR","Low Density Reclosable freezer Quart bags","1/500","Clear","","","Synthetic Disposable Gloves","10/100",1000,"Synthetic","Handgards","Rolled",null,"","","","304362554 - Handgards - Gloves - SYN 10/100 PP - XL - Synthetic Disposable Gloves","304985401 - Handgards - Bags - VAL OPL 24X12 - 24 x 12 - Nylon Ovenable Pan Liners"]
["304985463","Bags","Handgards","ZipGards","","10.5 x 10.5","ZG 128 FRZR","Low Density Reclosable freezer Gallon bags","1/200","Clear","","","Valugards Synthetic Disposable Gloves","4/100",400,"Synthetic","Valugards","Rolled",null,"","","","304363251 - Handgards - Gloves - VAL SYN 4/100 PP - S - Valugards Synthetic Disposable Gloves","304985402 - Handgards - Bags - VAL OPL 18X24 - 18 x 24 - Nylon Ovenable Pan Liners"]
["304985464","Bags","Handgards","ZipGards","","13 x 15.5","ZG 256 FRZR","Low Density Reclosable freezer 2 Gallon bags","1/100","Clear","",null,null,null,null,null,null,null,null,null,null,null,null,"304985403 - Handgards - Bags - VAL OPL 34X16 - 34 x 16 - Nylon Ovenable Pan Liners"]
["304985472","Bags","Handgards","ZipGards","","7 x 8","SZ 32","Low Density Reclosable Quart Slide Zip bags","1/250","Clear","","","Vinyl Disposable Gloves","4/100",400,"Vinyl","Valugards","Rolled",null,"","","","304363183 - Handgards - Gloves - PVC 4/100 PP RED - L - Vinyl Disposable Gloves","304985431 - Handgards - Bags - OPL 34X18 - 34 x 18 - Nylon Ovenable Pan Liners"]
["304985474","Bags","Handgards","ZipGards","","10.5 x 11","SZ 128","Low Density Reclosable Gallon Slide Zip bags","1/250","Clear","","","Valugards Synthetic Disposable Gloves","4/100",400,"Synthetic","Valugards","Rolled",null,"","","","304363244 - Handgards - Gloves - VAL SYN 4/100 PF - XL - Valugards Synthetic Disposable Gloves","304985445 - Handgards - Bags - VAL SB8.5 - 6.5 x 7 - Valugards High Density Sandwich Bags"]
["304985482","Bags","Handgards","TuffGards","","5.5 X 4.75 X 19","LD5.5","Low Density Food Storage Bags","1/1000","Clear","","","Valugards Synthetic Disposable Gloves","4/100",400,"Synthetic","Valugards","Rolled",null,"","","","304363253 - Handgards - Gloves - VAL SYN 4/100 PP - L - Valugards Synthetic Disposable Gloves","304985461 - Handgards - Bags - ZG 6 FRZR - 6.5 x 6 - High Density Reclosable freezer Pint bags"]
["304985488","Bags","Handgards","TuffGards","","8 x 4 x 18","LD8418","Low Density Food Storage Bags","1/1000","Clear","","","Synthetic Disposable Gloves with Aloe","4/100",400,"Synthetic","Handgards","Rolled",null,"","","","304363042 - Handgards - Gloves - SYN ALOE 4/100 PF - M - Synthetic Disposable Gloves with Aloe","304985463 - Handgards - Bags - ZG 128 FRZR - 10.5 x 10.5 - High Density Reclosable freezer Gallon bags"]
["304985490","Bags","Handgards","TuffGards","","10 x 8 x 24","LD10824","Low Density Food Storage Bags","1/500","Clear","","","Valugards Synthetic Disposable Gloves","4/100",400,"Synthetic","Valugards","Rolled",null,"","","","304363241 - Handgards - Gloves - VAL SYN 4/100 PF - S - Valugards Synthetic Disposable Gloves"]
["304985492","Bags","Handgards","TuffGards","","10 x 8 x 24","LD10824","Low Density Food Storage Bags","1/500","Clear","","","Valugards Synthetic Disposable Gloves","4/100",400,"Synthetic","Valugards","Rolled",null,"","","","304363243 - Handgards - Gloves - VAL SYN 4/100 PF - L - Valugards Synthetic Disposable Gloves"]
["304985495","Bags","Handgards","TuffGards","","7 x 7","LDF 7X7","Low Density Sandwich Bags","1/2000","Clear","","","Valugards Synthetic Disposable Gloves","4/100",400,"Synthetic","Valugards","Rolled",null,"","","","304363254 - Handgards - Gloves - VAL SYN 4/100 PP - XL - Valugards Synthetic Disposable Gloves"]
["304985542","Bags","Handgards","TuffGards","","18 x 24","LDR1824","Low Density Food Storage Bags","1/250","Clear","","","Synthetic Disposable Gloves with Aloe","4/100",400,"Synthetic","Handgards","Rolled",null,"","","","304363041 - Handgards - Gloves - SYN ALOE 4/100 PF - S - Synthetic Disposable Gloves with Aloe"]
["304985550","Bags","Handgards","Valugards","","10 x 11","VAL SB 10X11 YL","Valugards High Density Sandwich Bags","1/2000","Yellow","","","Synthetic Disposable Gloves with Aloe","4/100",400,"Synthetic","Handgards","Rolled",null,"","","","304363043 - Handgards - Gloves - SYN ALOE 4/100 PF - L - Synthetic Disposable Gloves with Aloe"]
["304985551","Bags","Handgards","Valugards","","10 x 11","VAL SB 10X11 CLR","Valugards High Density Sandwich Bags","1/2000","Clear","","","Vinyl Disposable Gloves","4/100",400,"Vinyl","Valugards","Rolled",null,"","","","304363052 - Handgards - Gloves - PVC 4/100 PF YELLOW - M - Vinyl Disposable Gloves"]
["304986136","Bags","Handgards","Tuffgards","","10 x 4 x 20","LD10420","Low Density Food Storage Bags","1/1000","Clear","","","Synthetic Exam Disposable Gloves","10/100",1000,"Synthetic","ExamGards","Rolled","Wrist","","","","304362143 - Sysco - Gloves - SYN EXAM 10/100 PF - L - Synthetic Exam Disposable Gloves"]
["304986137","Bags","Handgards","Tuffgards","","8 x 4 x 12","LD8412","Low Density Food Storage Bags","1/1000","Clear","","","Synthetic Exam Disposable Gloves","10/100",1000,"Synthetic","ExamGards","Rolled",null,"","","","304362144 - Handgards - Gloves - SYN EXAM 10/100 PF - XL - Synthetic Exam Disposable Gloves"]
["304986140","Bags","Handgards","Tuffgards","","10 x 14","LD1014","Low Density Food Storage Bags","1/1000","Clear","","","Synthetic Disposable Gloves","10/100",1000,"Synthetic","Handgards","Rolled",null,"","","","304362131 - Handgards - Gloves - SYN 10/100 PF - S - Synthetic Disposable Gloves"]
["304986205","Bags","Handgards","Zipgards","","4 x 6","ZG4","Low Density Reclosable Snack Bags","1/1000","Clear","","","Synthetic Disposable Gloves","10/100",1000,"Synthetic","Handgards","Rolled",null,"","","","304362132 - Handgards - Gloves - SYN 10/100 PF - M - Synthetic Disposable Gloves"]
["304991015","Bags","Handgards","Handgards","","5 x 7","BOPP 5 X 7 BAGS","Polypropylene Bags","1/1000","Clear","","Full Saddle","High Density Specialty Bag - Food Plate","1/2000",2000,"High Density Food Storage Bag","TuffGards","",null,"\"Food Plate\"","Various","1½\" Flip Lock","303678659 - Handgards - Bags - SB8.5 - 6.5 x 7 - High Density Specialty Bag - Food Plate","304985472 - Handgards - Bags - SZ 32 - 7 x 8 - Low Density Reclosable Quart Slide Zip bags"]
["304991016","Bags","Handgards","Handgards",null,"6 x 8","BOPP 6 x 8 BAGS","Polypropylene Bags","1/1000","Clear"]
["304991017","Bags","Handgards","Handgards","","8 x 10","BOPP 8 X 10 BAGS","Polypropylene Bags","1/1000","Clear","","Full Saddle","Valugards High Density Random Print Portion Bags","1/2000",2000,"High Density Preportion bags","Valugards","",null,"\"Sunday\"","Black","1½\" Flip Lock","303679040 - Handgards - Bags - VAL PB8.5 SU - 5.5 x 5.5 - Valugards High Density Random Print Portion Bags","304985474 - Sysco - Bags - SZ 128 - 10.5 x 11 - Low Density Reclosable Gallon Slide Zip bags"]
["304993025","Bags","Handgards","Handgards","","5 x 5","BOPP 5 X 5 BAGS","Polypropylene Bags ","1/1000","Clear","","","Vinyl Disposable Gloves","10/100",1000,"Vinyl","Handgards","Rolled",null,"","","","304362191 - Handgards - Gloves - PVC 10/100 PP - S - Vinyl Disposable Gloves"]
["304993026","Bags","Handgards","Handgards","","5.25 x 7.25","BOPP 5.25 X 7.25 BAGS","Polypropylene Bags - Adhesive Strip","1/1000","Clear","","","Vinyl Disposable Gloves","10/100",1000,"Vinyl","Handgards","Rolled","Wrist","","","","304362191 - Sysco - Gloves - PVC 10/100 PP - S - Vinyl Disposable Gloves","304985482 - Handgards - Bags - LD5.5 - 5.5 X 4.75 X 19 - Low Density Food Storage Bags"]
["304993027","Bags","Handgards","Handgards","","6.5 x 6.5","BOPP 6.5 X 6.5 BAGS","Polypropylene Bags - Adhesive Strip","1/1000","Clear","","","Vinyl Disposable Gloves","10/100",1000,"Vinyl","Handgards","Rolled",null,"","","","304362192 - Handgards - Gloves - PVC 10/100 PP - M - Vinyl Disposable Gloves","304985482 - Sysco - Bags - LD5.5 - 5.5 X 4.75 X 19 - Low Density Food Storage Bags"]
["304993028","Bags","Handgards","Handgards","","8 x 10","BOPP 8 X 10 BAGS","Polypropylene Bags - Adhesive Strip","1/1000","Clear","","","Vinyl Disposable Gloves","10/100",1000,"Vinyl","Handgards","Rolled","Wrist","","","","304362192 - Sysco - Gloves - PVC 10/100 PP - M - Vinyl Disposable Gloves","304985482 - Sysco - Bags - LD5.5 - 5.5 X 4.75 X 19 - Low Density Food Storage Bags"]
["304993029","Bags","Handgards","Handgards","","10 x 8","BOPP 10 X 8 BAGS","Polypropylene Bags - Adhesive Strip","1/1000","Clear","","","Heavy Duty Smooth Apron","1/50",50,"Low Density Poly Aprons","NeatGards","",null,"","","","303764832 - Handgards - Apparel - AHSY - 28 x 46 - Heavy Duty Smooth Apron","304985487 - Handgards - Bags - LD6312 - 6 x 3 x 12 - Low Density Food Storage Bags"]
["304993030","Bags","Handgards","Handgards","","7 x 7","BOPP 7 X 7 BAGS","Polypropylene Bags - Adhesive Strip","1/1000","Clear","","","Light Duty Embossed Apron - Economy","10/100",1000,"Low Density Poly Aprons","Valugards","",null,"","","","304663100 - Handgards - Apparel - VAL2442 - 24 x 42 - Light Duty Embossed Apron - Economy","304985488 - Handgards - Bags - LD8418 - 8 x 4 x 18 - Low Density Food Storage Bags"]
["304993031","Bags","Handgards","Handgards","","9 x 7","BOPP 9 X 7 BAGS","Polypropylene Bags - Adhesive Strip","1/1000","Clear","","","Light Duty Embossed Apron - Economy","10/100",1000,"Low Density Poly Aprons","Valugards","",null,"","","","304663104 - Handgards - Apparel - VAL2846 - 28 x 46 - Light Duty Embossed Apron - Economy","304985490 - Handgards - Bags - LD10824 - 10 x 8 x 24 - Low Density Food Storage Bags"]
["304993033","Bags","Handgards","Handgards","","11.5 x 6","BOPP 11.5 X 6 BAGS","Polypropylene Bags - Adhesive Strip","1/1000","Clear","","","Synthetic Disposable Gloves","10/100",1000,"Synthetic","Handgards","Rolled",null,"","","","304362133 - Handgards - Gloves - SYN 10/100 PF - L - Synthetic Disposable Gloves"]
["304993034","Bags","Handgards","Handgards","","5 x 3.25 x 11","BOPP 5 X 3.25 X 11 BAGS","Polypropylene Bags - Adhesive Strip","1/1000","Clear","","","Medium Duty Embossed Apron","10/100",1000,"Low Density Poly Aprons","NeatGards","",null,"","","","304663122 - Handgards - Apparel - AP 2442 - 24 x 42 - Medium Duty Embossed Apron","304985464 - Handgards - Bags - ZG 256 FRZR - 13 x 15.5 - High Density Reclosable freezer 2 Gallon bags"]
["304993035","Bags","Handgards","Handgards","","4 x 4","BOPP 4 X 4 BAGS","Polypropylene Bags - Adhesive Strip","1/1000","Clear","","","Light Duty Embossed Apron - Economy","10/100",1000,"Low Density Poly Aprons","Valugards","",null,"","","","304663100 - Handgards - Apparel - VAL2442 - 24 x 42 - Light Duty Embossed Apron - Economy","304985488 - Handgards - Bags - LD8418 - 8 x 4 x 18 - Low Density Food Storage Bags"]
["304993036","Bags","Handgards","Handgards","","4.5 x 4.5","BOPP 4.5 X 4.5 BAGS","Polypropylene Bags - Adhesive Strip","1/1000","Clear","","","Light Duty Embossed Apron - Economy","10/100",1000,"Low Density Poly Aprons","Valugards","",null,"","","","304663104 - Handgards - Apparel - VAL2846 - 28 x 46 - Light Duty Embossed Apron - Economy","304985490 - Handgards - Bags - LD10824 - 10 x 8 x 24 - Low Density Food Storage Bags"]
["304993037","Bags","Handgards","Handgards","","5 x 5","BOPP 5 X 5 BAGS","Polypropylene Bags - Adhesive Strip","1/1000","Clear","","","Synthetic Disposable Gloves","10/100",1000,"Synthetic","Handgards","Rolled",null,"","","","304362133 - Handgards - Gloves - SYN 10/100 PF - L - Synthetic Disposable Gloves"]
["304993038","Bags","Handgards","Handgards","","5.5 x 5.5","BOPP 5.5 X 5.5 BAGS","Polypropylene Bags - Adhesive Strip","1/1000","Clear","","","Medium Duty Embossed Apron","10/100",1000,"Low Density Poly Aprons","NeatGards","",null,"","","","304663122 - Handgards - Apparel - AP 2442 - 24 x 42 - Medium Duty Embossed Apron","304985464 - Handgards - Bags - ZG 256 FRZR - 13 x 15.5 - High Density Reclosable freezer 2 Gallon bags"]
["305111224","Expendables","Handgards","NeatGards","","21 inch","CAP BOUFFANT 21 WE PLT","Bouffant Paper Cap 21\" - Pleated","5/100","White","","","Synthetic Exam Disposable Gloves","10/100",1000,"Synthetic","ExamGards","Rolled","Wrist","","","","304362141 - Sysco - Gloves - SYN EXAM 10/100 PF - S - Synthetic Exam Disposable Gloves","304985542 - Handgards - Bags - LDR1824 - 18 x 24 - Low Density Food Storage Bags"]
["305111225","Expendables","Handgards","NeatGards","","21 inch","CAP 21 WE ROUND CRWN","Overseas Paper Round Crown","5/100","White","","","Synthetic Exam Disposable Gloves","10/100",1000,"Synthetic","ExamGards","Rolled",null,"","","","304362142 - Handgards - Gloves - SYN EXAM 10/100 PF - M - Synthetic Exam Disposable Gloves","304985550 - Handgards - Bags - VAL SB 10X11 YL - 10 x 11 - Valugards High Density Sandwich Bags"]
["305113004","Expendables","Handgards","NeatGards","","L","HAIRNET NYLON DKBN LG","Nylon Hairnet Dark Brown Large Lightweight","10/144","Dark Brown","","","Skewers Wood - 10 in (Lot 650)","3/10/100",3000,"Skewers - Wood","Handgards","",null,"","","","305214015 - Handgards - Expendables - SKEWER WOOD 10 - 10 inch - Skewers Wood - 10 in (Lot 650)","304985551 - Handgards - Bags - VAL SB 10X11 CLR - 10 x 11 - Valugards High Density Sandwich Bags"]
["305113005","Expendables","Handgards","NeatGards","","L","HAIRNET NYLON BK LG","Nylon Hairnet Dark Black Large Lightweight","10/144","Black","","","Skewers Wood - 4.5 in (Lot 655)","10/10/100",10000,"Skewers - Wood","Handgards","",null,"","","","305214016 - Handgards - Expendables - SKEWER WOOD 4.5 - 4.5 inch - Skewers Wood - 4.5 in (Lot 655)","304985610 - Handgards - Bags - ZL6 - 6.5 x 6 - High Density ZipLess Reclosable Pint bags"]
["305113550","Expendables","Handgards","Neatgards","","18 in","BEARDCOVERS 10/100","Beard Covers","10/100","White","","","Toothpicks Wood Minted Flvr - Cello Wrapped (Lot 700)","12/1000",12000,"Toothpicks - Wood","Handgards","",null,"","","","305214017 - Handgards - Expendables - TOOTHPICK MINT WRAPPED -  - Toothpicks Wood Minted Flvr - Cello Wrapped (Lot 700)","304985610 - PFS - Bags - ZL6 - 6.5 x 6 - High Density ZipLess Reclosable Pint bags"]
["305115017","Expendables","Handgards","NeatGards","","7 inch","CHEF HAT WIDE PLT WE 7","Chef Hats Paper Wide Pleated - 7 inch with sizer","12/1","White","","","Toothpicks Wood Minted Flvr - Paper Wrapped - \"Thank You\" (Lot 701)","12/500",500,"Toothpicks - Wood","Handgards","",null,"","","","305214018 - Handgards - Expendables - TOOTHPICK MINT PPR WRPD -  - Toothpicks Wood Minted Flvr - Paper Wrapped - \"Thank You\" (Lot 701)","304985620 - Handgards - Bags - ZL32 - 7 x 8 - High Density ZipLess Reclosable Quart bags"]
["305115018","Expendables","Handgards","NeatGards","","9 inch","CHEF HAT WIDE PLT WE 9","Chef Hats Paper Wide Pleated - 9 inch with sizer","12/1","White","","","Toothpicks Round Wood - Unwrapped (Lot 750)","12/1000",12000,"Toothpicks - Wood","Handgards","",null,"","","","305214019 - Handgards - Expendables - TOOTHPICK WOOD ROUND UNWRP -  - Toothpicks Round Wood - Unwrapped (Lot 750)","304985620 - PFS - Bags - ZL32 - 7 x 8 - High Density ZipLess Reclosable Quart bags"]
["305115019","Expendables","Handgards","NeatGards","","10 inch","CHEF HAT WIDE PLT WE 10","Chef Hats Paper Wide Pleated - 10 inch with sizer","12/1","White","","","Toothpicks Round Wood - Cello Wrapped (Lot 755)","12/1000",12000,"Toothpicks - Wood","Handgards","",null,"","","","305214020 - Handgards - Expendables - TOOTHPICK WOOD ROUND WRPD -  - Toothpicks Round Wood - Cello Wrapped (Lot 755)","304985630 - Handgards - Bags - ZL128 - 10.5 x 10.5 - High Density ZipLess Reclosable Gallon bags"]
["305115020","Expendables","Handgards","NeatGards","","7 inch","CHEF HAT FLUTED PLT WE 7","Chef Hats Paper Fluted Small Pleats Econo - 7 inch","12/1","White","","","Valugards Poly Disposable Gloves","4/200",800,"Poly","Valugards","Gauntlet",null,"","","","303111211 - Handgards - Gloves - VAL OEG 4/200 - S - Valugards Poly Disposable Gloves"]
["305115021","Expendables","Handgards","NeatGards","","9 inch","CHEF HAT FLUTED PLT WE 9","Chef Hats Paper Fluted Small Pleats Econo - 9 inch","12/1","White","","","Valugards Poly Disposable Gloves","4/200",800,"Poly","Valugards","Gauntlet",null,"","","","303111212 - Handgards - Gloves - VAL OEG 4/200 - M - Valugards Poly Disposable Gloves"]
["305115022","Expendables","Handgards","NeatGards","","10 inch","CHEF HAT FLUTED PLT WE 10","Chef Hats Paper Fluted Small Pleats Econo - 10 inch","12/1","White","","","Vinyl Exam Disposable Gloves","10/100",1000,"Vinyl","ExamGards","Rolled",null,"","","","304362074 - Handgards - Gloves - PVC EXAM 10/100 PF - XL - Vinyl Exam Disposable Gloves","304985630 - PFS - Bags - ZL128 - 10.5 x 10.5 - High Density ZipLess Reclosable Gallon bags"]
["305115031","Expendables","Handgards","NeatGards",null,"8 inch","CHEF HATS PLEATED VELCRO 8","Non-Woven Chef Hats Velcro Pleated Flat Pack - 8 inch","5/10","White"]
["305115032","Expendables","Handgards","NeatGards",null,"10 inch","CHEF HATS PLEATED VELCRO 10 ","Non-Woven Chef Hats Velcro Pleated Flat Pack - 10 inch","5/10","White"]
["305210224","Expendables","Handgards","Handgards","","N/A","STEAK MARKER RED RARE","Steak Markers Plastic - Red - Rare","2/1000","Red","N/A","","Vinyl Exam Disposable Powdered Gloves","10/100",1000,"Vinyl","Examgards","Rolled","Wrist","","","","304362081 - Sysco - Gloves - PVC EXAM 10/100 PP - S - Vinyl Exam Disposable Powdered Gloves","305111222 - Sysco - Expendables - CAP PAPER OVERSEAS BLUE STRIPE PEAKED CROWN - 21 inch - Overseas Paper Peaked Crown (Lot 015)"]
["305210225","Expendables","Handgards","Handgards","","N/A","STEAK MARKER WHITE MED","Steak Markers Plastic - White - Medium","2/1000","White","N/A","","Vinyl Exam Disposable Powdered Gloves","10/100",1000,"Vinyl","Examgards","Rolled",null,"","","","304362082 - Handgards - Gloves - PVC EXAM 10/100 PP - M - Vinyl Exam Disposable Powdered Gloves","305111224 - Handgards - Expendables - CAP BOUFFANT 21 WE PLT - 21 inch - Bouffant Paper Cap 21\" - Pleated (Lot 010)"]
["305210226","Expendables","Handgards","Handgards","","N/A","STEAK MARKER YELLOW MDWELL","Steak Markers Plastic - Yellow - Medium Well","2/1000","Yellow","N/A","","Vinyl Exam Disposable Gloves","10/100",1000,"Vinyl","ExamGards","Rolled",null,"","","","304362072 - Handgards - Gloves - PVC EXAM 10/100 PF - M - Vinyl Exam Disposable Gloves","305111224 - Sysco - Expendables - CAP BOUFFANT 21 WE PLT - 21 inch - Bouffant Paper Cap 21\" - Pleated (Lot 010)"]
["305210227","Expendables","Handgards","Handgards","","N/A","STEAK MARKER TAN WELL","Steak Markers Plastic - Tan - Well","2/1000","Tan","N/A","","Vinyl Exam Disposable Gloves","10/100",1000,"Vinyl","ExamGards","Rolled","Wrist","","","","304362072 - Sysco - Gloves - PVC EXAM 10/100 PF - M - Vinyl Exam Disposable Gloves","305111225 - Handgards - Expendables - CAP 21 WE ROUND CRWN - 21 inch - Overseas Paper Round Crown (Lot 020)"]
["305210228","Expendables","Handgards","Handgards","","3 inch","SWORD PICK ASSRTD COLOR 3","Sword Picks Plastic - Assorted colors - 3 in","10/1000","Assorted","","","Vinyl Exam Disposable Gloves","10/100",1000,"Vinyl","ExamGards","Rolled",null,"","","","304362073 - Handgards - Gloves - PVC EXAM 10/100 PF - L - Vinyl Exam Disposable Gloves","305111225 - Sysco - Expendables - CAP 21 WE ROUND CRWN - 21 inch - Overseas Paper Round Crown (Lot 020)"]
["305210229","Expendables","Handgards","Handgards","","3.5 inch","PICK PRISM TRI PLAS BK3.5","Prism Plastic Picks - Black - Tri shaped - 3.5 in","1/2500","Black","","","Vinyl Exam Disposable Gloves","10/100",1000,"Vinyl","ExamGards","Rolled","Wrist","","","","304362073 - Sysco - Gloves - PVC EXAM 10/100 PF - L - Vinyl Exam Disposable Gloves","305113003 - Handgards - Expendables - HAIRNET NYLON LT BRWN LG - L - Nylon Hairnet Light Brown Large Lightweight (Lot 112)"]
["305210230","Expendables","Handgards","Handgards","","5.5 inch","PLASTIC SIP STIRRER 5.5","Plastic Sip Stirrer Unwrapped","10/1000","Black","","","Vinyl Disposable Gloves","10/100",1000,"Vinyl","Handgards","Rolled",null,"","","","304362193 - Handgards - Gloves - PVC 10/100 PP - L - Vinyl Disposable Gloves","305113003 - Sysco - Expendables - HAIRNET NYLON LT BRWN LG - L - Nylon Hairnet Light Brown Large Lightweight (Lot 112)"]
["305210231","Expendables","Handgards","Handgards","","7.5 inch","PLASTIC SIP STIRRER 7.5","Plastic Sip Stirrer unwrapped","10/100","Black","","","Vinyl Disposable Gloves","10/100",1000,"Vinyl","Handgards","Rolled","Wrist","","","","304362193 - Sysco - Gloves - PVC 10/100 PP - L - Vinyl Disposable Gloves","305113004 - Handgards - Expendables - HAIRNET NYLON DKBN LG - L - Nylon Hairnet Dark Brown Large Lightweight (Lot 110)"]
["305210232","Expendables","Handgards","Handgards",null,"3.5 inch","PICK PRISM TRICRYSTAL 3.5","Prism Plastic Picks - Crystal -Tri shaped - 3.5 inch","10/100","Crystal"]
["305214001","Expendables","Handgards","Handgards","","3.5 inch","PICK SANDWICH WOOD 3.5","Sandwich Wood Picks - 3.5 in","4/12/750","Wood","","","Vinyl Disposable Gloves","10/100",1000,"Vinyl","Handgards","Rolled",null,"","","","304362194 - Handgards - Gloves - PVC 10/100 PP - XL - Vinyl Disposable Gloves","305113004 - Sysco - Expendables - HAIRNET NYLON DKBN LG - L - Nylon Hairnet Dark Brown Large Lightweight (Lot 110)"]
["305214002","Expendables","Handgards","Handgards","","5.5 inch","STIRRER COFF WOOD 5.5","Coffee Wood Stirrers - 5.5 in","10/1000","Wood","","","Vinyl Disposable Gloves","10/100",1000,"Vinyl","Handgards","Rolled","Wrist","","","","304362194 - Sysco - Gloves - PVC 10/100 PP - XL - Vinyl Disposable Gloves","305113005 - Handgards - Expendables - HAIRNET NYLON BK LG - L - Nylon Hairnet Dark Black Large Lightweight (Lot 111)"]
["305214003","Expendables","Handgards","Handgards","","7.5 inch","STIRRER COFF WOOD 7.5","Coffee Wood Stirrers - 7.5 in","5/1000","Wood","","","Vinyl Disposable Gloves","4/100",400,"Vinyl","Handgards","Rolled",null,"","","","304362391 - Handgards - Gloves - PVC 4/100 PP - S - Vinyl Disposable Gloves","305113005 - Sysco - Expendables - HAIRNET NYLON BK LG - L - Nylon Hairnet Dark Black Large Lightweight (Lot 111)"]
["305214004","Expendables","Handgards","Handgards","","N/A","PICK PARASOL PAPER","Parasol Wood Picks","50/144","Wood","N/A","","Vinyl Disposable Gloves","4/100",400,"Vinyl","Handgards","Rolled","Wrist","","","","304362391 - BEK - Gloves - PVC 4/100 PP - S - Vinyl Disposable Gloves","305115017 - Handgards - Expendables - CHEF HAT WIDE PLT WE 7 - 7 inch - Chef Hats Paper Wide Pleated - 7 inch with sizer (Lot 120)"]
["305214005","Expendables","Handgards","Handgards","","4 inch","PICK WOOD BAMBOO KNOT 4","Bamboo Knot Picks - 4 in","10/100","Bamboo","","","Vinyl Disposable Gloves","4/100",400,"Vinyl","Handgards","Rolled","Wrist","","","","304362391 - PFS - Gloves - PVC 4/100 PP - S - Vinyl Disposable Gloves","305115017 - Sysco - Expendables - CHEF HAT WIDE PLT WE 7 - 7 inch - Chef Hats Paper Wide Pleated - 7 inch with sizer (Lot 120)"]
["305214006","Expendables","Handgards","Handgards","","7 inch","PICK WOOD BAMBOO KNOT 7","Bamboo Knot Picks - 7 in","10/100","Bamboo","","","Vinyl Disposable Gloves","4/100",400,"Vinyl","Handgards","Rolled","Wrist","","","","304362391 - Sysco - Gloves - PVC 4/100 PP - S - Vinyl Disposable Gloves","305115018 - Handgards - Expendables - CHEF HAT WIDE PLT WE 9 - 9 inch - Chef Hats Paper Wide Pleated - 9 inch with sizer (Lot 121)"]
["305214008","Expendables","Handgards","Handgards","","3 inch","PICK WOOD FRILL 3","Frill Wood Picks - 3 in (Lot 390)","10/1000","Wood","","","Chef Hats Paper Fluted Small Pleats Econo - 7 inch (Lot 125)","12/1",12,"Chef Hats","NeatGards","",null,"","","","305115020 - Handgards - Expendables - CHEF HAT FLUTED PLT WE 7 - 7 inch - Chef Hats Paper Fluted Small Pleats Econo - 7 inch (Lot 125)","305115018 - Sysco - Expendables - CHEF HAT WIDE PLT WE 9 - 9 inch - Chef Hats Paper Wide Pleated - 9 inch with sizer (Lot 121)"]
["305214009","Expendables","Handgards","Handgards","","4 inch","PICK WOOD FRILL 4","Frill Wood Picks - 4 in","10/1000","Wood","","","Arrow Picks Plastic - Assorted Colors 3.5 inch Round (Lot 200)","10/1000",10000,"Arrow Picks - Plastic","","","","","","","305210216 - Sysco - Expendables - ARROW PICK ASSRTD COLOR 3.5 - 3.5 inch - Arrow Picks Plastic - Assorted Colors 3.5 inch Round (Lot 200)","305115019 - Handgards - Expendables - CHEF HAT WIDE PLT WE 10 - 10 inch - Chef Hats Paper Wide Pleated - 10 inch with sizer (Lot 122)"]
["305214010","Expendables","Handgards","Handgards","","9 inch","CHOPSTICK BAMBOO 9 RD ENV","Chopsticks Bamboo 9 in - Grade AB in Red env","10/100","Bamboo","","","Chopsticks Bamboo 9 in - Higher Grade- Connected-White env (Lot 472)","10/100",1000,"Chopsticks-Bamboo","Handgards","",null,"","","","305214011 - Handgards - Expendables - CHOPSTICK BAMBOO 9 WRPED - 9 inch - Chopsticks Bamboo 9 in - Higher Grade- Connected-White env (Lot 472)","305115019 - Sysco - Expendables - CHEF HAT WIDE PLT WE 10 - 10 inch - Chef Hats Paper Wide Pleated - 10 inch with sizer (Lot 122)"]
["305214011","Expendables","Handgards","Handgards","","9 inch","CHOPSTICK BAMBOO 9 WRPED","Chopsticks Bamboo 9 in - Higher Grade- Connected-White env","10/100","Bamboo","","","Skewers Bamboo - 10 in (Lot 601)","10/10/100",10000,"Skewers - Bamboo","Handgards","",null,"","","","305214012 - Handgards - Expendables - SKEWER BAMBOO 10 - 10 inch - Skewers Bamboo - 10 in (Lot 601)"]
["305214012","Expendables","Handgards","Handgards","","10 inch","SKEWER BAMBOO 10","Skewers Bamboo - 10 in","10/10/100","Bamboo","","","Skewers Bamboo - 8 in (Lot 603)","10/10/100",10000,"Skewers - Bamboo","Handgards","",null,"","","","305214013 - Handgards - Expendables - SKEWER BAMBOO 8 - 8 inch - Skewers Bamboo - 8 in (Lot 603)","305115020 - Handgards - Expendables - CHEF HAT FLUTED PLT WE 7 - 7 inch - Chef Hats Paper Fluted Small Pleats Econo - 7 inch (Lot 125)"]
["305214013","Expendables","Handgards","Handgards","","8 inch","SKEWER BAMBOO 8","Skewers Bamboo - 8 in","10/10/100","Bamboo","","","Skewers Bamboo - 6 in (Lot 605)","10/10/100",10000,"Skewers - Bamboo","Handgards","",null,"","","","305214014 - Handgards - Expendables - SKEWER BAMBOO 6 - 6 inch - Skewers Bamboo - 6 in (Lot 605)","305115020 - Sysco - Expendables - CHEF HAT FLUTED PLT WE 7 - 7 inch - Chef Hats Paper Fluted Small Pleats Econo - 7 inch (Lot 125)"]
["305214014","Expendables","Handgards","Handgards","","6 inch","SKEWER BAMBOO 6","Skewers Bamboo - 6 in","10/10/100","Bamboo","","","Bamboo Knot Picks - 4 in (Lot 360)","10/100",1000,"Bamboo Knot Picks","Handgards","",null,"","","","305214005 - Handgards - Expendables - PICK WOOD BAMBOO KNOT 4 - 4 inch - Bamboo Knot Picks - 4 in (Lot 360)","305115021 - Handgards - Expendables - CHEF HAT FLUTED PLT WE 9 - 9 inch - Chef Hats Paper Fluted Small Pleats Econo - 9 inch (Lot 126)"]
["305214015","Expendables","Handgards","Handgards","","10 inch","SKEWER WOOD 10","Skewers Wood - 10 In","3/10/100","Wood","","","Bamboo Knot Picks - 7 in (Lot 361)","10/100",1000,"Bamboo Knot Picks","Handgards","",null,"","","","305214006 - Handgards - Expendables - PICK WOOD BAMBOO KNOT 7 - 7 inch - Bamboo Knot Picks - 7 in (Lot 361)"]
["305214016","Expendables","Handgards","Handgards","","4.5 inch","SKEWER WOOD 4.5","Skewers Wood - 4.5 in","10/10/100","Wood","","","Valugards Vinyl Gloves","10/100",1000,"Vinyl","Valugards","Rolled",null,"","","","304340182 - Handgards - Gloves - VAL PVC 10/100 PF - M - Valugards Vinyl Gloves","305115021 - Sysco - Expendables - CHEF HAT FLUTED PLT WE 9 - 9 inch - Chef Hats Paper Fluted Small Pleats Econo - 9 inch (Lot 126)"]
["305214017","Expendables","Handgards","Handgards","","N/A","TOOTHPICK MINT WRAPPED","Toothpicks Wood Minted Flvr - Cello Wrapped","12/1000","Wood","N/A","","Valugards Vinyl Gloves","10/100",1000,"Vinyl","Valugards","Rolled","Wrist","","","","304340182 - PFS - Gloves - VAL PVC 10/100 PF - M - Valugards Vinyl Gloves","305115022 - Handgards - Expendables - CHEF HAT FLUTED PLT WE 10 - 10 inch - Chef Hats Paper Fluted Small Pleats Econo - 10 inch (Lot 130)"]
["305214018","Expendables","Handgards","Handgards","","N/A","TOOTHPICK MINT PPR WRPD","Toothpicks Wood Minted Flvr - Paper Wrapped -","12/500","Wood","N/A","","Valugards Vinyl Gloves","10/100",1000,"Vinyl","Valugards","Rolled","Wrist","","","","304340182 - Sysco - Gloves - VAL PVC 10/100 PF - M - Valugards Vinyl Gloves","305115022 - Sysco - Expendables - CHEF HAT FLUTED PLT WE 10 - 10 inch - Chef Hats Paper Fluted Small Pleats Econo - 10 inch (Lot 130)"]
["305214019","Expendables","Handgards","Handgards","","N/A","TOOTHPICK WOOD ROUND UNWRP","Toothpicks Round Wood - Unwrapped","12/1000","Wood","N/A","","Valugards Vinyl Gloves","10/100",1000,"Vinyl","Valugards","Rolled",null,"","","","304340183 - Handgards - Gloves - VAL PVC 10/100 PF - L - Valugards Vinyl Gloves","305210216 - Handgards - Expendables - ARROW PICK ASSRTD COLOR 3.5 - 3.5 inch - Arrow Picks Plastic - Assorted Colors 3.5 inch Round (Lot 200)"]
["305214020","Expendables","Handgards","Handgards","","N/A","TOOTHPICK WOOD ROUND WRPD","Toothpicks Round Wood - Cello Wrapped","12/1000","Wood","N/A","","Valugards Vinyl Gloves","10/100",1000,"Vinyl","Valugards","Rolled","Wrist","","","","304340174 - PFS - Gloves - VAL PVC 10/100 PP - XL - Valugards Vinyl Gloves","305210216 - Sysco - Expendables - ARROW PICK ASSRTD COLOR 3.5 - 3.5 inch - Arrow Picks Plastic - Assorted Colors 3.5 inch Round (Lot 200)"]
["305214023","Expendables","Handgards","Handgards","","7.5 inch","STIRRER COFF WOOD 7.5 PPRWRPD","Wood coffee stirrer paper wrapped","10/500","Wood","","","Valugards Vinyl Gloves","10/100",1000,"Vinyl","Valugards","Rolled",null,"","","","304340181 - Handgards - Gloves - VAL PVC 10/100 PF - S - Valugards Vinyl Gloves","305210218 - Handgards - Expendables - ARROW PICK BLACK 3.5 - 3.5 inch - Arrow Picks Plastic - Black 3.5 inch Round (Lot 235)"]
["305214027","Expendables","Handgards","Handgards","","3.5 inch","BAMBOO PADDLE PICKS 3.5","Bamboo Paddle Picks","10/100","Bamboo","","","Valugards Vinyl Gloves","10/100",1000,"Vinyl","Valugards","Rolled","Wrist","","","","304340181 - Sysco - Gloves - VAL PVC 10/100 PF - S - Valugards Vinyl Gloves","305210218 - Sysco - Expendables - ARROW PICK BLACK 3.5 - 3.5 inch - Arrow Picks Plastic - Black 3.5 inch Round (Lot 235)"]
["305214028","Expendables","Handgards","Handgards","","4.5 inch","BAMBOO PADDLE PICKS 4.5","Bamboo Paddle Picks","10/100","Bamboo","","","Valugards Vinyl Gloves","10/100",1000,"Vinyl","Valugards","Rolled","Wrist","","","","304340181 - PFS - Gloves - VAL PVC 10/100 PF - S - Valugards Vinyl Gloves","305210219 - Handgards - Expendables - SWORD PICK BLACK 4.5 - 4.5 inch - Sword Picks Plastic - Black - 4.5 in (Lot 245)"]
["305214029","Expendables","Handgards","Handgards","","6 inch","BAMBOO PADDLE PCK 6","Bamboo Paddle Picks","10/100","Bamboo","","","Valugards Poly Disposable Gloves","10/500",5000,"Poly","Valugards","Straight",null,"","","","303363006 - Handgards - Gloves - VAL 10/500 - S - Valugards Poly Disposable Gloves","305210219 - Sysco - Expendables - SWORD PICK BLACK 4.5 - 4.5 inch - Sword Picks Plastic - Black - 4.5 in (Lot 245)"]
["305214031","Expendables","Handgards","Handgards","","3.5 inch","BAMBOO PDL STK MRKR-RARE","Bamboo Paddle Steak Markers -Rare","10/500","Bamboo","","","Valugards Poly Disposable Gloves","10/500",5000,"Poly","Valugards","Straight","Wrist","","","","303363006 - BEK - Gloves - VAL 10/500 - S - Valugards Poly Disposable Gloves","305210221 - Handgards - Expendables - PICK PRISM TRI PLAS CRYSTAL 3.5 - 3.5 inch - Prism Plastic Picks - Crystal - Triangle shaped - 3.5 in (Lot 270)"]
["305214032","Expendables","Handgards","Handgards","","3.5 inch","BAMBOO STEAK MARKERS MD RARE","Bamboo Paddle Steak Markers - Medium Rare","10/500","Bamboo","","","Valugards Poly Disposable Gloves","10/500",5000,"Poly","Valugards","Straight",null,"","","","303363007 - Handgards - Gloves - VAL 10/500 - M - Valugards Poly Disposable Gloves","305210221 - Sysco - Expendables - PICK PRISM TRI PLAS CRYSTAL 3.5 - 3.5 inch - Prism Plastic Picks - Crystal - Triangle shaped - 3.5 in (Lot 270)"]
["305214033","Expendables","Handgards","Handgards","","3.5 inch","BAMBOO STEAK MARKERS MEDIUM","Bamboo Paddle Steak Markers - Medium","10/500","Bamboo","","","Valugards Poly Disposable Gloves","10/500",5000,"Poly","Valugards","Straight","Wrist","","","","303363007 - BEK - Gloves - VAL 10/500 - M - Valugards Poly Disposable Gloves","305210222 - Handgards - Expendables - PICK PRISM TRI PLAS CRYSTAL 5 - 5 inch - Prism Plastic Picks - Crystal - Triangle shaped - 5 in (Lot 280)"]
["305214034","Expendables","Handgards","Handgards","","3.5 inch","BAMBOO STEAK MARKERS MD WELL","Bamboo Paddle Steak Markers - Medium Well","10/500","Bamboo","","","Handgards Poly Disposable Gloves","10/100",1000,"Poly","Handgards","Straight",null,"","","","303363292 - Handgards - Gloves - POLY STRETCH 10/100 - M - Handgards Poly Disposable Gloves","305210222 - Sysco - Expendables - PICK PRISM TRI PLAS CRYSTAL 5 - 5 inch - Prism Plastic Picks - Crystal - Triangle shaped - 5 in (Lot 280)"]
["305214035","Expendables","Handgards","Handgards","","3.5 inch","BAMBOO PDL STK MRKR-WELL","Bamboo Paddle Steak Markers - Well","10/500","Bamboo","","","Valugards Poly Disposable Gloves","10/100",1000,"Poly","Handgards","Straight",null,"","","","303363293 - Handgards - Gloves - POLY STRETCH 10/100 - L - Valugards Poly Disposable Gloves","305210223 - Handgards - Expendables - STEAK MARKER PINK MED/RARE -  - Steak Markers Plastic - Pink - Medium Rare (Lot 160)"]
["305214041","Expendables","Handgards","Handgards","","3.5 inch","PICK WOOD BAMBOO KNOT 3.5","Bamboo Knot Picks - 3.5 in","10/100","Bamboo","","","Handgards Poly Disposable Gloves","10/100",1000,"Poly","Handgards","Straight",null,"","","","303363294 - Handgards - Gloves - POLY STRETCH 10/100 - XL - Handgards Poly Disposable Gloves","305210223 - Sysco - Expendables - STEAK MARKER PINK MED/RARE -  - Steak Markers Plastic - Pink - Medium Rare (Lot 160)"]
["305214042","Expendables","Handgards","Handgards","","4.5 inch","PICK WOOD BAMBOO KNOT 4.5","Bamboo Knot Picks - 4.5 in","10/100","Bamboo","","","Heavy Duty Cut Resistant Gloves - Woven Knit","6/1",6,"Heavy Duty Cut Resistant Glove","Handgards","Straight",null,"","","","303400041 - Handgards - Gloves - CUT 6/1 - S - Heavy Duty Cut Resistant Gloves - Woven Knit","305210224 - Handgards - Expendables - STEAK MARKER RED RARE -  - Steak Markers Plastic - Red - Rare (Lot 165)"]
["305214046","Expendables","Handgards","Handgards","","5.5 inch","STIRRER COFF BAMBOO 5.5","Bamboo Coffee Stirrer","10/1000","Bamboo","","Flat Pack","Low Density Reclosable Gallon Bags","1/250",250,"Low Density Reclosable bags","ZipGards","",null,"Write-on Block","Orange","Resealable (Zipper)","304985130 - Handgards - Bags - ZG128 - 10.5 x 10.5 - Low Density Reclosable Gallon Bags","305210224 - Sysco - Expendables - STEAK MARKER RED RARE -  - Steak Markers Plastic - Red - Rare (Lot 165)"]
["305214047","Expendables","Handgards","Handgards","","7 inch","STIRRER COFF BAMBOO 7.5","Bamboo Coffee Stirrer","5/1000","Bamboo","","Flat Pack","Low Density Reclosable Gallon Bags","1/250",250,"Low Density Reclosable bags","ZipGards","","","Write-on Block","Orange","Resealable (Zipper)","304985130 - Sysco - Bags - ZG128 - 10.5 x 10.5 - Low Density Reclosable Gallon Bags","305210225 - Handgards - Expendables - STEAK MARKER WHITE MED -  - Steak Markers Plastic - White - Medium (Lot 170)"]
["305214051","Expendables","Handgards","Handgards","","5.5 inch","STIRRER COFF WOOD 5.5 PPR WRPD","Wood Coffee Stirrer - Paper Wrapped","10/1000","Wood","","Flat Pack","Low Density Reclosable Pint Bags","1/1000",1000,"Low Density Reclosable bags","ZipGards","","","Write-on Block","Blue","Resealable (Zipper)","304985110 - Sysco - Bags - ZG6 - 6.5 x 6 - Low Density Reclosable Pint Bags","305210225 - Sysco - Expendables - STEAK MARKER WHITE MED -  - Steak Markers Plastic - White - Medium (Lot 170)"]
["305214055","Expendables","Handgards","Handgards","","","TOOTHPICK BAMBOO  ROUND UNWRP","Toothpicks Round Bamboo - unwrapped","12/300","Bamboo","","Flat Pack","Low Density 2 Gallon Reclosable Bags","1/100",100,"Low Density Reclosable bags","ZipGards","",null,"Write-on Block","Red","Resealable (Zipper)","304985135 - Handgards - Bags - ZG256 - 13 x 15.5 - Low Density 2 Gallon Reclosable Bags","305210226 - Handgards - Expendables - STEAK MARKER YELLOW MDWELL -  - Steak Markers Plastic - Yellow - Medium Well (Lot 175)"]
["305215001","Expendables","Handgards","Neatgards","","5 x 6","MOIST TOWELLETE 1/1000","Moist Towelettes","1/1000","White","","Roll Pack","Low Density Food Storage Bags","1/1000",1000,"Low Density Food Storage Bags","TuffGards","",null,"None","None","None","304985358 - Handgards - Bags - LD428 - 4 x 2 x 8 - Low Density Food Storage Bags","305210226 - Sysco - Expendables - STEAK MARKER YELLOW MDWELL -  - Steak Markers Plastic - Yellow - Medium Well (Lot 175)"]
["303111021","Gloves","Handgards","Planetgards",null,"S","PLT COMPOST POLY 4/100 SM","Poly Disposable Gloves","4/100","Green","Powder Free"]
["303111022","Gloves","Handgards","Planetgards",null,"M","PLT COMPOST POLY 4/100 MD","Poly Disposable Gloves","4/100","Green","Powder Free"]
["303111023","Gloves","Handgards","Planetgards",null,"L","PLT COMPOST POLY 4/100 LG","Poly Disposable Gloves","4/100","Green","Powder Free"]
["303111025","Gloves","Handgards","Planetgards",null,"XL","PLT COMPOST POLY 4/100 XL","Poly Disposable Gloves","4/100","Green","Powder Free"]
["303111211","Gloves","Handgards","Valugards","","S","VAL OEG 4/200","Valugards Poly Disposable Gloves","4/200","Clear","Powder Free","Flat Pack","Low Density Reclosable Quart Bags","1/500",500,"Low Density Reclosable bags","ZipGards","","","Write-on Block","Green","Resealable (Zipper)","304985120 - Sysco - Bags - ZG32 - 7 x 8 - Low Density Reclosable Quart Bags","305210227 - Handgards - Expendables - STEAK MARKER TAN WELL -  - Steak Markers Plastic - Tan - Well (Lot 180)"]
["303111212","Gloves","Handgards","Valugards","","M","VAL OEG 4/200","Valugards Poly Disposable Gloves","4/200","Clear","Powder Free","Flat Pack","Low Density Reclosable Pint Bags","1/500",500,"Low Density Reclosable bags","ZipGards","","","Write-on Block","Blue","Resealable (Zipper)","304985110 - Sysco - Bags - ZG6 - 6.5 x 6 - Low Density Reclosable Pint Bags","305210227 - Sysco - Expendables - STEAK MARKER TAN WELL -  - Steak Markers Plastic - Tan - Well (Lot 180)"]
["303111213","Gloves","Handgards","Valugards","","L","VAL OEG 4/200","Valugards Poly Disposable Gloves","4/200","Clear","Powder Free","Flat Pack","Nylon Ovenable Pan Liners","1/100",100,"Nylon Pan Liners","PanHandlers","",null,"None","None","Twist Tie","304985046 - Handgards - Bags - OPL20.8X12.8 - 20.8 x 12.8 - Nylon Ovenable Pan Liners","305210228 - Handgards - Expendables - SWORD PICK ASSRTD COLOR 3 - 3 inch - Sword Picks Plastic - Assorted colors - 3 in (Lot 205)"]
["303111214","Gloves","Handgards","Valugards","","XL","VAL OEG 4/200","Valugards Poly Disposable Gloves","4/200","Clear","Powder Free","Flat Pack","Nylon Ovenable Pan Liners","1/100",100,"Nylon Pan Liners","Panhandlers","",null,"None","None","Twist Tie","304985050 - Handgards - Bags - OPL13X18 - 13 x 18 - Nylon Ovenable Pan Liners","305210228 - Sysco - Expendables - SWORD PICK ASSRTD COLOR 3 - 3 inch - Sword Picks Plastic - Assorted colors - 3 in (Lot 205)"]
["303111243","Gloves","Handgards","Valugards","","L","VAL OEG 4/200 YELLOW","Valugards Poly Disposable Gloves","4/200","Yellow","Powder Free","Flat Pack","Nylon Ovenable Pan Insert Liners","1/100",100,"Nylon Pan Liners","PanHandlers","",null,"None","None","Twist Tie","304985044 - Handgards - Bags - OPL 20X18 - 20 x 18 - Nylon Ovenable Pan Insert Liners","305210229 - Sysco - Expendables - PICK PRISM TRI PLAS BK3.5 - 3.5 inch - Prism Plastic Picks - Black - Tri shaped - 3.5 in (Lot 250)"]
["303111244","Gloves","Handgards","Valugards","","XL","VAL OEG 4/200 YELLOW","Valugards Poly Disposable Gloves","4/200","Yellow","Powder Free","Flat Pack","Low Density Reclosable Quart Bags","1/500",500,"Low Density Reclosable bags","ZipGards","",null,"Write-on Block","Green","Resealable (Zipper)","304985120 - Handgards - Bags - ZG32 - 7 x 8 - Low Density Reclosable Quart Bags"]
["303120073","Gloves","Handgards","Handgards","","OSFM","MRE 1/250","Poly Disposable Elbow Length Smooth Gloves","1/250","Clear","Powder Free","Flat Pack","Nylon Ovenable Pan Liners Sheets","1/100",100,"Nylon Pan Liners","PanHandlers","",null,"None","None","Twist Tie","304985036 - Handgards - Bags - OPL25.5X17.5 - 25.5 x 17.5 - Nylon Ovenable Pan Liners Sheets"]
["303120273","Gloves","Handgards","Handgards","","OSFM","ERE 1/250","Poly Disposable Elbow Length Embossed Gloves","1/250","Clear","Powder Free","Flat Pack","Nylon Ovenable Pan Liners","1/100",100,"Nylon Pan Liners","PanHandlers","",null,"None","None","Twist Tie","304985038 - Handgards - Bags - OPL15X12 - 15 x 12 - Nylon Ovenable Pan Liners"]
["303362365","Gloves","Handgards","Quickserve","","OSFM","QUICKSERVE CPE IMP","Quickserve Poly Disposable Gloves","20/50","Clear","Powder Free","Flat Pack","Low Density Reclosable Pint Bags","1/500",500,"Low Density Reclosable bags","ZipGards","",null,"Write-on Block","Blue","Resealable (Zipper)","304985110 - Handgards - Bags - ZG6 - 6.5 x 6 - Low Density Reclosable Pint Bags"]
["303362370","Gloves","Handgards","Quickserve","","OSFM","QUICKSERVE HD BLUE","Quickserve Poly Disposable Gloves","1/1000","Blue","Powder Free","Flat Pack","Nylon Ovenable Pan Insert Liners","1/100",100,"Nylon Pan Liners","PanHandlers","",null,"None","None","Twist Tie","304985033 - Handgards - Bags - OPL18X24 - 18 x 24 - Nylon Ovenable Pan Insert Liners"]
["303363006","Gloves","Handgards","Valugards","","S","VAL 10/500","Valugards Poly Disposable Gloves","10/500","Clear","Powder Free","Flat Pack","Nylon Ovenable Roasting Bags","1/100",100,"Nylon Pan Liners","PanHandlers","",null,"None","None","Cooking Ties","304985034 - Handgards - Bags - ORB34X25 - 34 x 25 - Nylon Ovenable Roasting Bags","305214001 - Handgards - Expendables - PICK SANDWICH WOOD 3.5 - 3.5 inch - Sandwich Wood Picks - 3.5 in (Lot 287)"]
["303363007","Gloves","Handgards","Valugards","","M","VAL 10/500","Valugards Poly Disposable Gloves","10/500","Clear","Powder Free","","Valugards Poly Disposable Gloves","4/200",800,"Poly","Valugards","Gauntlet",null,"","","","303111213 - Handgards - Gloves - VAL OEG 4/200 - L - Valugards Poly Disposable Gloves","305214002 - Handgards - Expendables - STIRRER COFF WOOD 5.5 - 5.5 inch - Coffee Wood Stirrers - 5.5 in (Lot 296)"]
["303363008","Gloves","Handgards","Valugards","","L","VAL 10/500","Valugards Poly Disposable Gloves","10/500","Clear","Powder Free","","Valugards Poly Disposable Gloves","4/200",800,"Poly","Valugards","Gauntlet",null,"","","","303111214 - Handgards - Gloves - VAL OEG 4/200 - XL - Valugards Poly Disposable Gloves","305214003 - Handgards - Expendables - STIRRER COFF WOOD 7.5 - 7.5 inch - Coffee Wood Stirrers - 7.5 in (Lot 298)"]
["303363107","Gloves","Handgards","Valugards","","M","VAL 10/10/100","Valugards Poly Disposable Gloves","10/10/100","Clear","Powder Free","","Valugards Poly Disposable Gloves","4/200",800,"Poly","Valugards","Gauntlet",null,"","","","303111242 - Handgards - Gloves - VAL OEG 4/200 YELLOW - M - Valugards Poly Disposable Gloves","305214004 - Handgards - Expendables - PICK PARASOL PAPER -  - Parasol Wood Picks (Lot 350)"]
["303363108","Gloves","Handgards","Valugards","","L","VAL 10/10/100","Valugards Poly Disposable Gloves","10/10/100","Clear","Powder Free","Flat Pack","Nylon Ovenable Pan Liners","1/100",100,"Nylon Pan Liners","PanHandlers","",null,"None","None","Twist Tie","304985055 - Handgards - Bags - OPL 19X14 - 19 x 14 - Nylon Ovenable Pan Liners","305214005 - Handgards - Expendables - PICK WOOD BAMBOO KNOT 4 - 4 inch - Bamboo Knot Picks - 4 in (Lot 360)"]
["303363182","Gloves","Handgards","Valugards","","M","VAL 4/500","Valugards Poly Disposable Gloves","4/500","Clear","Powder Free","Flat Pack","Nylon Ovenable Pan Liners","1/100",100,"Nylon Pan Liners","PanHandlers","",null,"None","None","Twist Tie","304985057 - Handgards - Bags - OPL 23X14 - 23 x 14 - Nylon Ovenable Pan Liners","305214006 - Handgards - Expendables - PICK WOOD BAMBOO KNOT 7 - 7 inch - Bamboo Knot Picks - 7 in (Lot 361)"]
["303363183","Gloves","Handgards","Valugards","","L","VAL 4/500","Valugards Poly Disposable Gloves","4/500","Clear","Powder Free","","Nitrile Disposable Gloves","4/100",400,"Nitrile","Handgards","Rolled",null,"","","","304362534 - Handgards - Gloves - NIT 4/100 PF - XL - Nitrile Disposable Gloves","305214008 - Handgards - Expendables - PICK WOOD FRILL 3 - 3 inch - Frill Wood Picks - 3 in (Lot 390)"]
["303363185","Gloves","Handgards","Valugards","","OSFM","VAL 4/500","Valugards Poly Disposable Gloves","4/500","Clear","Powder Free","Roll Pack","High Density Ice Bag","1/300",300,"High Density Specialty Bag","TuffGards","",null,"None","None","None","303679959 - Handgards - Bags - FB18 - 18 x 18 - High Density Ice Bag","305214009 - Handgards - Expendables - PICK WOOD FRILL 4 - 4 inch - Frill Wood Picks - 4 in (Lot 391)"]
["303363211","Gloves","Handgards","Handgards","","S","POLY OEG 10/100","Poly Disposable Gloves","10/100","Clear","Powder Free","Full Saddle","High Density Color Tinted Preportioning Bags-Variety Case","1/2000",2000,"High Density Preportion bags","TuffGards","",null,"All Days","White","1¾\" Flip Lock","303679898 - Handgards - Bags - PB8.5T - 6.5 x 7 - High Density Color Tinted Preportioning Bags-Variety Case","305214010 - Handgards - Expendables - CHOPSTICK BAMBOO 9 RD ENV - 9 inch - Chopsticks Bamboo 9 in - Grade AB in Red env (Lot 416)"]
["303363212","Gloves","Handgards","Handgards","","M","POLY OEG 10/100","Poly Disposable Gloves","10/100","Clear","Powder Free","Roll Pack","High Density Bun Pan Rack Cover","1/50",50,"High Density Rack Cover","TuffGards","",null,"None","None","None","303679971 - Handgards - Bags - RP8052 - 52 x 80 - High Density Bun Pan Rack Cover","305214011 - Handgards - Expendables - CHOPSTICK BAMBOO 9 WRPED - 9 inch - Chopsticks Bamboo 9 in - Higher Grade- Connected-White env (Lot 472)"]
["303363213","Gloves","Handgards","Handgards","","L","POLY OEG 10/100","Poly Disposable Gloves","10/100","Clear","Powder Free","Full Saddle","High Density Color Tinted Preportioning Bags-Variety Case","1/2000",2000,"High Density Preportion bags","TuffGards","",null,"All Days","White","2\" Flip Lock","303679897 - Handgards - Bags - PB100T - 10 x 8.5 - High Density Color Tinted Preportioning Bags-Variety Case","305214012 - Handgards - Expendables - SKEWER BAMBOO 10 - 10 inch - Skewers Bamboo - 10 in (Lot 601)"]
["303363214","Gloves","Handgards","Handgards","","XL","POLY OEG 10/100","Poly Disposable Gloves","10/100","Clear","Powder Free","Roll Pack","High Density Bun Pan Rack Cover","1/50",50,"High Density Rack Cover","TuffGards","","","None","None","None","303679971 - Sysco - Bags - RP8052 - 52 x 80 - High Density Bun Pan Rack Cover","305214013 - Handgards - Expendables - SKEWER BAMBOO 8 - 8 inch - Skewers Bamboo - 8 in (Lot 603)"]
["303363280","Gloves","Handgards","Valugards","","OSFM","QS POLY MITT","Poly Disposable Gloves","10/200","Clear","Powder Free","","Vinyl Disposable Gloves","4/100",400,"Vinyl","Handgards","Rolled","Wrist","","","","304362414 - Sysco - Gloves - PVC 4/100 PF - XL - Vinyl Disposable Gloves","304362122 - Sysco - Gloves - PVC 10/100 PF - M - Vinyl Disposable Gloves"]
["303363291","Gloves","Handgards","Valugards","","S","POLY STRETCH CLEAR 10/100 SM","Poly Disposable Gloves","10/100","Clear","Powder Free","Roll Pack","High Density Freezer Bags","1/2000",2000,"High Density Food Storage Bag","TuffGards","",null,"None","None","Twist Tie","303679974 - Handgards - Bags - FB9 RM - 6.5 x 9 - High Density Freezer Bags","305214014 - Handgards - Expendables - SKEWER BAMBOO 6 - 6 inch - Skewers Bamboo - 6 in (Lot 605)"]
["303363292","Gloves","Handgards","Valugards","","M","POLY STRETCH CLEAR 10/100 MD","Poly Disposable Gloves","10/100","Clear","Powder Free","Roll Pack","High Density Freezer Bags","1/2000",2000,"High Density Food Storage Bag","TuffGards","","","None","None","Twist Tie","303679974 - Sysco - Bags - FB9 RM - 6.5 x 9 - High Density Freezer Bags","305214015 - Handgards - Expendables - SKEWER WOOD 10 - 10 inch - Skewers Wood - 10 in (Lot 650)"]
["303363293","Gloves","Handgards","Valugards","","L","POLY STRETCH CLEAR 10/100 LG","Poly Disposable Gloves","10/100","Clear","Powder Free","Roll Pack","High Density Freezer Bags","1/1000",1000,"High Density Food Storage Bag","TuffGards","",null,"None","None","Twist Tie","303679975 - Handgards - Bags - FB14 RM - 10 x 14 - High Density Freezer Bags","305214016 - Handgards - Expendables - SKEWER WOOD 4.5 - 4.5 inch - Skewers Wood - 4.5 in (Lot 655)"]
["303363294","Gloves","Handgards","Valugards","","XL","POLY STRETCH CLEAR 10/100 XL","Poly Disposable Gloves","10/100","Clear","Powder Free","Roll Pack","High Density Freezer Bags","1/1000",1000,"High Density Food Storage Bag","TuffGards","","","None","None","Twist Tie","303679975 - BEK - Bags - FB14 RM - 10 x 14 - High Density Freezer Bags","305214017 - Handgards - Expendables - TOOTHPICK MINT WRAPPED -  - Toothpicks Wood Minted Flvr - Cello Wrapped (Lot 700)"]
["303363301","Gloves","Handgards","Grip Gards","","S","STRETCH HYBRID CLEAR 10/100 SM PF","Stretch Hybrid Gloves","10/100","Clear","Powder Free","","Latex Exam Disposable Gloves","10/100",1000,"Latex","ExamGards","Rolled",null,"","","","304750071 - Handgards - Gloves - LTX EXAM 10/100 PF - S - Latex Exam Disposable Gloves","304362142 - Handgards - Gloves - SYN EXAM 10/100 PF - M - Synthetic Exam Disposable Gloves"]
["303363302","Gloves","Handgards","Grip Gards","","M","STRETCH HYBRID CLEAR 10/100 MD PF","Stretch Hybrid Gloves","10/100","Clear","Powder Free","Flat Pack","High Density ZipLess Reclosable Quart bags","1/500",500,"High Density Reclosable bags","ZipGards","",null,"None","None","Tacky Strip","304985620 - Handgards - Bags - ZL32 - 7 x 8 - High Density ZipLess Reclosable Quart bags","304362142 - Sysco - Gloves - SYN EXAM 10/100 PF - M - Synthetic Exam Disposable Gloves"]
["303363303","Gloves","Handgards","Grip Gards","","L","STRETCH HYBRID CLEAR 10/100 LG PF","Stretch Hybrid Gloves","10/100","Clear","Powder Free","","Latex Exam Disposable Gloves","10/100",1000,"Latex","ExamGards","Rolled","Wrist","","","","304750072 - Sysco - Gloves - LTX EXAM 10/100 PF - M - Latex Exam Disposable Gloves","304362143 - Handgards - Gloves - SYN EXAM 10/100 PF - L - Synthetic Exam Disposable Gloves"]
["303363304","Gloves","Handgards","Grip Gards","","XL","STRETCH HYBRID CLEAR 10/100 XL PF","Stretch Hybrid Gloves","10/100","Clear","Powder Free","Flat Pack","High Density ZipLess Reclosable Pint bags","1/500",500,"High Density Reclosable bags","ZipGards","",null,"None","None","Tacky Strip","304985610 - Handgards - Bags - ZL6 - 6.5 x 6 - High Density ZipLess Reclosable Pint bags","304362143 - Sysco - Gloves - SYN EXAM 10/100 PF - L - Synthetic Exam Disposable Gloves"]
["303363561","Gloves","Handgards","Grip Gards","","S","STRETCH HYBRID BLUE 10/100 SM PF","Stretch Hybrid Gloves","10/100","Blue","Powder Free","","Latex Exam Disposable Gloves","10/100",1000,"Latex","ExamGards","Rolled",null,"","","","304750071 - Handgards - Gloves - LTX EXAM 10/100 PF - S - Latex Exam Disposable Gloves","304362142 - Handgards - Gloves - SYN EXAM 10/100 PF - M - Synthetic Exam Disposable Gloves"]
["303363562","Gloves","Handgards","Grip Gards","","M","STRETCH HYBRID BLUE 10/100 MD PF","Stretch Hybrid Gloves","10/100","Blue","Powder Free","Flat Pack","High Density ZipLess Reclosable Quart bags","1/500",500,"High Density Reclosable bags","ZipGards","",null,"None","None","Tacky Strip","304985620 - Handgards - Bags - ZL32 - 7 x 8 - High Density ZipLess Reclosable Quart bags","304362142 - Sysco - Gloves - SYN EXAM 10/100 PF - M - Synthetic Exam Disposable Gloves"]
["303363563","Gloves","Handgards","Grip Gards","","L","STRETCH HYBRID BLUE 10/100 LG PF","Stretch Hybrid Gloves","10/100","Blue","Powder Free","","Latex Exam Disposable Gloves","10/100",1000,"Latex","ExamGards","Rolled","Wrist","","","","304750072 - Sysco - Gloves - LTX EXAM 10/100 PF - M - Latex Exam Disposable Gloves","304362143 - Handgards - Gloves - SYN EXAM 10/100 PF - L - Synthetic Exam Disposable Gloves"]
["303363564","Gloves","Handgards","Grip Gards","","XL","STRETCH HYBRID BLUE 10/100 XL PF","Stretch Hybrid Gloves","10/100","Blue","Powder Free","Flat Pack","High Density ZipLess Reclosable Pint bags","1/500",500,"High Density Reclosable bags","ZipGards","",null,"None","None","Tacky Strip","304985610 - Handgards - Bags - ZL6 - 6.5 x 6 - High Density ZipLess Reclosable Pint bags","304362143 - Sysco - Gloves - SYN EXAM 10/100 PF - L - Synthetic Exam Disposable Gloves"]
["303400072","Gloves","Handgards","Handgards","","M","NIT 12/1-19G","Heavy Duty Utility Nitrile Reusable Gloves","12/1","Green","Powder Free","Roll Pack","High Density Steam Pan Liners","1/500",500,"High Density Pan Liners","PanHandlers","",null,"None","None","Twist Tie","303679946 - Handgards - Bags - SPL15X12 - 15 x 12 - High Density Steam Pan Liners","303111211 - Handgards - Gloves - VAL OEG 4/200 - S - Valugards Poly Disposable Gloves"]
["303400073","Gloves","Handgards","Handgards","","L","NIT 12/1-19G","Heavy Duty Utility Nitrile Reusable Gloves","12/1","Green","Powder Free","Roll Pack","High Density Steam Pan Liners","1/250",250,"High Density Pan Liners","PanHandlers","",null,"None","None","Twist Tie","303679943 - Handgards - Bags - SPL24X12 - 24 x 12 - High Density Steam Pan Liners","303111212 - Handgards - Gloves - VAL OEG 4/200 - M - Valugards Poly Disposable Gloves"]
["303400074","Gloves","Handgards","Handgards","","XL","NIT 12/1-19G","Heavy Duty Utility Nitrile Reusable Gloves","12/1","Green","Powder Free","Roll Pack","High Density Steam Pan Liners","1/250",250,"High Density Pan Liners","PanHandlers","",null,"None","None","Twist Tie","303679943 - Handgards - Bags - SPL24X12 - 24 x 12 - High Density Steam Pan Liners","303111212 - Handgards - Gloves - VAL OEG 4/200 - M - Valugards Poly Disposable Gloves"]
["303400081","Gloves","Handgards","Handgards","","S","CUT 12/1","General Purpose Cut Resistant Glove - Woven Knit","12/1","White","Powder Free","Roll Pack","High Density Steam Pan Liners","1/250",250,"High Density Pan Liners","PanHandlers","",null,"None","None","Twist Tie","303679944 - Handgards - Bags - SPL19.5X10 - 19.5 x 10 - High Density Steam Pan Liners","303111213 - Handgards - Gloves - VAL OEG 4/200 - L - Valugards Poly Disposable Gloves"]
["303400082","Gloves","Handgards","Handgards","","M","CUT 12/1","General Purpose Cut Resistant Glove - Woven Knit","12/1","White","Powder Free","Roll Pack","High Density Bun Pan Rack Cover","1/50",50,"High Density Rack Cover","TuffGards","","","None","None","None","303679971 - BEK - Bags - RP8052 - 52 x 80 - High Density Bun Pan Rack Cover","303111214 - Handgards - Gloves - VAL OEG 4/200 - XL - Valugards Poly Disposable Gloves"]
["303400083","Gloves","Handgards","Handgards","","L","CUT 12/1","General Purpose Cut Resistant Glove - Woven Knit","12/1","White","Powder Free","Full Saddle","High Density Color Tinted Preportioning Bags","1/2000",2000,"High Density Preportion bags","TuffGards","",null,"\"Thursday\"","White","1¾\" Flip Lock","303679894 - Handgards - Bags - PB8.5T - 6.5 x 7 - High Density Color Tinted Preportioning Bags","303111242 - Handgards - Gloves - VAL OEG 4/200 YELLOW - M - Valugards Poly Disposable Gloves"]
["303400402","Gloves","Handgards","Handgards","","M","NIT 12/1-12G","Heavy Duty Utility Nitrile Reusable Gloves","12/1","Green","Powder Free","Full Saddle","High Density Color Tinted Preportioning Bags","1/2000",2000,"High Density Preportion bags","TuffGards","",null,"\"Friday\"","White","1¾\" Flip Lock","303679895 - Handgards - Bags - PB8.5T - 6.5 x 7 - High Density Color Tinted Preportioning Bags","303111244 - Handgards - Gloves - VAL OEG 4/200 YELLOW - XL - Valugards Poly Disposable Gloves"]
["303400403","Gloves","Handgards","Handgards","","L","NIT 12/1-12G","Heavy Duty Utility Nitrile Reusable Gloves","12/1","Green","Powder Free","Full Saddle","High Density Color Tinted Preportioning Bags","1/2000",2000,"High Density Preportion bags","TuffGards","",null,"\"Saturday\"","White","2\" Flip Lock","303679876 - Handgards - Bags - PB100T - 10 x 8.5 - High Density Color Tinted Preportioning Bags","303120073 - Handgards - Gloves - MRE 1/250 - OSFA - Poly Disposable Elbow Length Smooth Gloves"]
["303400404","Gloves","Handgards","Handgards","","XL","NIT 12/1-12G","Heavy Duty Utility Nitrile Reusable Gloves","12/1","Green","Powder Free","Full Saddle","High Density Color Tinted Preportioning Bags","1/2000",2000,"High Density Preportion bags","TuffGards","",null,"\"Saturday\"","White","2\" Flip Lock","303679876 - Handgards - Bags - PB100T - 10 x 8.5 - High Density Color Tinted Preportioning Bags","303120073 - Handgards - Gloves - MRE 1/250 - OSFA - Poly Disposable Elbow Length Smooth Gloves"]
["303400511","Gloves","Handgards","Handgards","","S","LTX 4/12-OL","Heavy Duty Utility Latex Reusable Gloves","4/12","Orange","Powder Free","Roll Pack","High Density Freezer Bags","1/1000",1000,"High Density Food Storage Bag","TuffGards","",null,"None","None","Twist Tie","303679976 - Handgards - Bags - FB18 RM - 12 x 18 - High Density Freezer Bags","303120273 - Handgards - Gloves - ERE 1/250 - OSFA - Poly Disposable Elbow Length Embossed Gloves"]
["303400512","Gloves","Handgards","Handgards","","M","LTX 4/12-OL","Heavy Duty Utility Latex Reusable Gloves","4/12","Orange","Powder Free","Roll Pack","High Density Freezer Bags","1/1000",1000,"High Density Food Storage Bag","TuffGards","","","None","None","Twist Tie","303679976 - Sysco - Bags - FB18 RM - 12 x 18 - High Density Freezer Bags","303362365 - Handgards - Gloves - QUICKSERVE CPE IMP - OSFA - Quickserve Poly Disposable Gloves"]
["303400513","Gloves","Handgards","Handgards","","L","LTX 4/12-OL","Heavy Duty Utility Latex Reusable Gloves","4/12","Orange","Powder Free","Roll Pack","High Density Freezer Bags","1/250",250,"High Density Food Storage Bag","TuffGards","",null,"None","None","Twist Tie","303679977 - Handgards - Bags - FB24 RM - 18 x 24 - High Density Freezer Bags","303362365 - Sysco - Gloves - QUICKSERVE CPE IMP - OSFA - Quickserve Poly Disposable Gloves"]
["303400514","Gloves","Handgards","Handgards","","XL","LTX 4/12-OL","Heavy Duty Utility Latex Reusable Gloves","4/12","Orange","Powder Free","Roll Pack","High Density Freezer Bags","1/250",250,"High Density Food Storage Bag","TuffGards","",null,"None","None","Twist Tie","303679977 - Handgards - Bags - FB24 RM - 18 x 24 - High Density Freezer Bags","303362365 - Sysco - Gloves - QUICKSERVE CPE IMP - OSFA - Quickserve Poly Disposable Gloves"]
["303400531","Gloves","Handgards","Handgards","","S","LTX 4/12-YL","Heavy Duty Utility Latex Reusable Gloves","4/12","Yellow","Powder Free","Roll Pack","High Density Freezer Bags","1/250",250,"High Density Food Storage Bag","TuffGards","","","None","None","Twist Tie","303679977 - Sysco - Bags - FB24 RM - 18 x 24 - High Density Freezer Bags","303362370 - Handgards - Gloves - QUICKSERVE HD BLUE - OSFA - Quickserve Poly Disposable Gloves"]
["303400532","Gloves","Handgards","Handgards","","M","LTX 4/12-YL","Heavy Duty Utility Latex Reusable Gloves","4/12","Yellow","Powder Free","Roll Pack","High Density Freezer Bags","1/250",250,"High Density Food Storage Bag","TuffGards","","","None","None","Twist Tie","303679977 - Sysco - Bags - FB24 RM - 18 x 24 - High Density Freezer Bags","303363006 - Handgards - Gloves - VAL 10/500 - S - Valugards Poly Disposable Gloves"]
["303400533","Gloves","Handgards","Handgards","","L","LTX 4/12-YL","Heavy Duty Utility Latex Reusable Gloves","4/12","Yellow","Powder Free","Roll Pack","High Density Freezer Bags","1/250",250,"High Density Food Storage Bag","TuffGards","","","None","None","Twist Tie","303679977 - BEK - Bags - FB24 RM - 18 x 24 - High Density Freezer Bags","303363006 - BEK - Gloves - VAL 10/500 - S - Valugards Poly Disposable Gloves"]
["303400534","Gloves","Handgards","Handgards","","XL","LTX 4/12-YL","Heavy Duty Utility Latex Reusable Gloves","4/12","Yellow","Powder Free","Roll Pack","High Density Freezer Bags","1/250",250,"High Density Food Storage Bag","TuffGards","","","None","None","Twist Tie","303679977 - BEK - Bags - FB24 RM - 18 x 24 - High Density Freezer Bags","303363006 - BEK - Gloves - VAL 10/500 - S - Valugards Poly Disposable Gloves"]
["303400631","Gloves","Handgards","Handgards",null,"S","LTX 4/12-OL","Heavy Duty Utility Latex Reusable Gloves","1/12","Orange","Powder Free","","Bouffant Paper Cap 21\" - Pleated (Lot 010)","5/100",500,"Bouffant Cap","NeatGards","","","","","","305111224 - Sysco - Expendables - CAP BOUFFANT 21 WE PLT - 21 inch - Bouffant Paper Cap 21\" - Pleated (Lot 010)","303363183 - Sysco - Gloves - VAL 4/500 - L - Valugards Poly Disposable Gloves"]
["303400632","Gloves","Handgards","Handgards",null,"M","LTX 4/12-OL","Heavy Duty Utility Latex Reusable Gloves","1/12","Orange","Powder Free","","Overseas Paper Round Crown (Lot 020)","5/100",500,"Overseas Paper Cap","NeatGards","",null,"","","","305111225 - Handgards - Expendables - CAP 21 WE ROUND CRWN - 21 inch - Overseas Paper Round Crown (Lot 020)","303363184 - Handgards - Gloves - VAL 4/500 - XL - Valugards Poly Disposable Gloves"]
["303400633","Gloves","Handgards","Handgards",null,"L","LTX 4/12-OL","Heavy Duty Utility Latex Reusable Gloves","1/12","Orange","Powder Free","","Overseas Paper Round Crown (Lot 020)","5/100",500,"Overseas Paper Cap","NeatGards","","","","","","305111225 - Sysco - Expendables - CAP 21 WE ROUND CRWN - 21 inch - Overseas Paper Round Crown (Lot 020)","303363185 - Handgards - Gloves - VAL 4/500 - OSFA - Valugards Poly Disposable Gloves"]
["303400634","Gloves","Handgards","Handgards",null,"XL","LTX 4/12-OL","Heavy Duty Utility Latex Reusable Gloves","1/12","Orange","Powder Free","","Nylon Hairnet Light Brown Large Lightweight (Lot 112)","10/144",1440,"Hairnets","SYS Classic","",null,"","","","305113003 - Handgards - Expendables - HAIRNET NYLON LT BRWN LG - L - Nylon Hairnet Light Brown Large Lightweight (Lot 112)","303363210 - Handgards - Gloves - POLY OEG 10/100 - XS - Poly Disposable Gloves"]
["303400672","Gloves","Handgards","Handgards",null,"M","NEOPRENE 12/1 -BL/YL","Heavy Duty Neoprene Reusable Gloves","1/12","Blue/Yellow","Powder Free","","Nylon Hairnet Light Brown Large Lightweight (Lot 112)","10/144",1440,"Hairnets","SYS Classic","",null,"","","","305113003 - Handgards - Expendables - HAIRNET NYLON LT BRWN LG - L - Nylon Hairnet Light Brown Large Lightweight (Lot 112)","303363210 - Handgards - Gloves - POLY OEG 10/100 - XS - Poly Disposable Gloves"]
["303400673","Gloves","Handgards","Handgards",null,"L","NEOPRENE 12/1 -BL/YL","Heavy Duty Neoprene Reusable Gloves","1/12","Blue/Yellow","Powder Free","","Nylon Hairnet Light Brown Large Lightweight (Lot 112)","10/144",1440,"Hairnets","SYS Classic","",null,"","","","305113003 - Handgards - Expendables - HAIRNET NYLON LT BRWN LG - L - Nylon Hairnet Light Brown Large Lightweight (Lot 112)","303363210 - Handgards - Gloves - POLY OEG 10/100 - XS - Poly Disposable Gloves"]
["303400662","Gloves","Handgards","Handgards",null,"M","NEOPRENE BLACK - 1/1","Heavy Duty Neoprene Reusable Gloves","1/1","Black","Powder Free","","Nylon Hairnet Light Brown Large Lightweight (Lot 112)","10/144",1440,"Hairnets","SYS Classic","",null,"","","","305113003 - Handgards - Expendables - HAIRNET NYLON LT BRWN LG - L - Nylon Hairnet Light Brown Large Lightweight (Lot 112)","303363210 - Handgards - Gloves - POLY OEG 10/100 - XS - Poly Disposable Gloves"]
["303400663","Gloves","Handgards","Handgards",null,"L","NEOPRENE BLACK - 1/1","Heavy Duty Neoprene Reusable Gloves","1/1","Black","Powder Free","","Nylon Hairnet Light Brown Large Lightweight (Lot 112)","10/144",1440,"Hairnets","SYS Classic","",null,"","","","305113003 - Handgards - Expendables - HAIRNET NYLON LT BRWN LG - L - Nylon Hairnet Light Brown Large Lightweight (Lot 112)","303363210 - Handgards - Gloves - POLY OEG 10/100 - XS - Poly Disposable Gloves"]
["303400621","Gloves","Handgards","Handgards",null,"S","BLUE SILVERLINED 4/12","Blue Silverlined Reusable Gloves","4/12","Blue","Powder Free","","Nylon Hairnet Light Brown Large Lightweight (Lot 112)","10/144",1440,"Hairnets","SYS Classic","",null,"","","","305113003 - Handgards - Expendables - HAIRNET NYLON LT BRWN LG - L - Nylon Hairnet Light Brown Large Lightweight (Lot 112)","303363210 - Handgards - Gloves - POLY OEG 10/100 - XS - Poly Disposable Gloves"]
["303400622","Gloves","Handgards","Handgards",null,"M","BLUE SILVERLINED 4/12","Blue Silverlined Reusable Gloves","4/12","Blue","Powder Free","","Nylon Hairnet Light Brown Large Lightweight (Lot 112)","10/144",1440,"Hairnets","SYS Classic","",null,"","","","305113003 - Handgards - Expendables - HAIRNET NYLON LT BRWN LG - L - Nylon Hairnet Light Brown Large Lightweight (Lot 112)","303363210 - Handgards - Gloves - POLY OEG 10/100 - XS - Poly Disposable Gloves"]
["303400623","Gloves","Handgards","Handgards",null,"L","BLUE SILVERLINED 4/12","Blue Silverlined Reusable Gloves","4/12","Blue","Powder Free","","Nylon Hairnet Light Brown Large Lightweight (Lot 112)","10/144",1440,"Hairnets","SYS Classic","",null,"","","","305113003 - Handgards - Expendables - HAIRNET NYLON LT BRWN LG - L - Nylon Hairnet Light Brown Large Lightweight (Lot 112)","303363210 - Handgards - Gloves - POLY OEG 10/100 - XS - Poly Disposable Gloves"]
["304340171","Gloves","Handgards","Valugards","","S","VAL PVC 10/100 PP","Vinyl Disposable Gloves","10/100","Clear","Powdered","","Heavy Duty Utility Latex Reusable Gloves","4/12",48,"Latex","Handgards","Straight",null,"","","","303400511 - Handgards - Gloves - LTX 4/12-OL - S - Heavy Duty Utility Latex Reusable Gloves","303400041 - Handgards - Gloves - CUT 6/1 - S - Heavy Duty Cut Resistant Gloves - Woven Knit"]
["304340172","Gloves","Handgards","Valugards","","M","VAL PVC 10/100 PP","Vinyl Disposable Gloves","10/100","Clear","Powdered","","Heavy Duty Utility Latex Reusable Gloves","4/12",48,"Latex","Handgards","Straight",null,"","","","303400512 - Handgards - Gloves - LTX 4/12-OL - M - Heavy Duty Utility Latex Reusable Gloves"]
["304340173","Gloves","Handgards","Valugards","","L","VAL PVC 10/100 PP","Vinyl Disposable Gloves","10/100","Clear","Powdered","","Heavy Duty Utility Latex Reusable Gloves","4/12",48,"Latex","Handgards","Straight",null,"","","","303400513 - Handgards - Gloves - LTX 4/12-OL - L - Heavy Duty Utility Latex Reusable Gloves"]
["304340174","Gloves","Handgards","Valugards","","XL","VAL PVC 10/100 PP","Vinyl Disposable Gloves","10/100","Clear","Powdered","","Heavy Duty Utility Latex Reusable Gloves","4/12",48,"Latex","Handgards","Straight",null,"","","","303400514 - Handgards - Gloves - LTX 4/12-OL - XL - Heavy Duty Utility Latex Reusable Gloves"]
["304340181","Gloves","Handgards","Valugards","","S","VAL PVC 10/100 PF","Vinyl Disposable Gloves","10/100","Clear","Powder Free","","Heavy Duty Utility Latex Reusable Gloves","4/12",48,"Latex","Handgards","Straight",null,"","","","303400531 - Handgards - Gloves - LTX 4/12-YL - S - Heavy Duty Utility Latex Reusable Gloves"]
["304340182","Gloves","Handgards","Valugards","","M","VAL PVC 10/100 PF","Vinyl Disposable Gloves","10/100","Clear","Powder Free","","Heavy Duty Utility Nitrile Reusable Gloves","12/1",12,"Nitrile","Handgards","Straight",null,"","","","303400401 - Handgards - Gloves - NIT 12/1-12G - S - Heavy Duty Utility Nitrile Reusable Gloves","303400042 - Handgards - Gloves - CUT 6/1 - M - Heavy Duty Cut Resistant Gloves - Woven Knit"]
["304340183","Gloves","Handgards","Valugards","","L","VAL PVC 10/100 PF","Vinyl Disposable Gloves","10/100","Clear","Powder Free","","Heavy Duty Utility Nitrile Reusable Gloves","12/1",12,"Nitrile","Handgards","Straight",null,"","","","303400402 - Handgards - Gloves - NIT 12/1-12G - M - Heavy Duty Utility Nitrile Reusable Gloves","303400043 - Handgards - Gloves - CUT 6/1 - L - Heavy Duty Cut Resistant Gloves - Woven Knit"]
["304340184","Gloves","Handgards","Valugards","","XL","VAL PVC 10/100 PF","Vinyl Disposable Gloves","10/100","Clear","Powder Free","","Heavy Duty Utility Nitrile Reusable Gloves","12/1",12,"Nitrile","Handgards","Straight",null,"","","","303400403 - Handgards - Gloves - NIT 12/1-12G - L - Heavy Duty Utility Nitrile Reusable Gloves","303400044 - Handgards - Gloves - CUT 6/1 - XL - Heavy Duty Cut Resistant Gloves - Woven Knit"]
["304340221","Gloves","Handgards","Valugards","","S","VAL WHITE NIT 10/100 PF","Nitrile Disposable Gloves","10/100","White","Powder Free","","Heavy Duty Cut Resistant Glove with Polyurethane - Nylon Knit","12/2",24,"Heavy Duty Cut Resistant Glove with Polyurethane","Handgards","Straight",null,"","","","303400613 - Handgards - Gloves - CUT RES POLYEUR - L - Heavy Duty Cut Resistant Glove with Polyurethane - Nylon Knit","303400083 - Handgards - Gloves - CUT 12/1 - L - General Purpose Cut Resistant Glove - Woven Knit"]
["304340222","Gloves","Handgards","Valugards","","M","VAL WHITE NIT 10/100 PF","Nitrile Disposable Gloves","10/100","White","Powder Free","","Light Duty Smooth Apron","1/100",100,"Low Density Poly Aprons","NeatGards","",null,"","","","303764026 - Handgards - Apparel - ALSW - 28 x 46 - Light Duty Smooth Apron","303400401 - Handgards - Gloves - NIT 12/1-12G - S - Heavy Duty Utility Nitrile Reusable Gloves"]
["304340223","Gloves","Handgards","Valugards","","L","VAL WHITE NIT 10/100 PF","Nitrile Disposable Gloves","10/100","White","Powder Free","","Light Duty Smooth Apron","5/100",500,"Low Density Poly Aprons","NeatGards","","","","","","303764026 - Sysco - Apparel - ALSW - 28 x 46 - Light Duty Smooth Apron","303400402 - Handgards - Gloves - NIT 12/1-12G - M - Heavy Duty Utility Nitrile Reusable Gloves"]
["304340224","Gloves","Handgards","Valugards","","XL","VAL WHITE NIT 10/100 PF","Nitrile Disposable Gloves","10/100","White","Powder Free","","Heavy Duty Smooth Apron","1/100",100,"Low Density Poly Aprons","NeatGards","",null,"","","","303764027 - Handgards - Apparel - AHSW - 28 x 46 - Heavy Duty Smooth Apron","303400403 - Handgards - Gloves - NIT 12/1-12G - L - Heavy Duty Utility Nitrile Reusable Gloves"]
["304340271","Gloves","Handgards","Examgards","","S","NIT EXAM BLUE 10/100 PF 4P","Nitrile Exam Disposable Gloves","10/100","Blue","Powder Free","","Heavy Duty Smooth Apron","1/50",50,"Low Density Poly Aprons","NeatGards","",null,"","","","303764830 - Handgards - Apparel - AHSR - 28 x 46 - Heavy Duty Smooth Apron","303400404 - Handgards - Gloves - NIT 12/1-12G - XL - Heavy Duty Utility Nitrile Reusable Gloves"]
["304340272","Gloves","Handgards","Examgards","","M","NIT EXAM BLUE 10/100 PF 4P","Nitrile Exam Disposable Gloves","10/100","Blue","Powder Free","","Nitrile Exam Disposable Gloves","10/100",1000,"Nitrile","ExamGards","Rolled",null,"","","","304340134 - Handgards - Gloves - NIT EXAM 10/100 PF - XL - Nitrile Exam Disposable Gloves","303400511 - Handgards - Gloves - LTX 4/12-OL - S - Heavy Duty Utility Latex Reusable Gloves"]
["304340273","Gloves","Handgards","Examgards","","L","NIT EXAM BLUE 10/100 PF 4P","Nitrile Exam Disposable Gloves","10/100","Blue","Powder Free","","Valugards Vinyl Gloves","10/100",1000,"Vinyl","Valugards","Rolled",null,"","","","304340171 - Handgards - Gloves - VAL PVC 10/100 PP - S - Valugards Vinyl Gloves","303400512 - Handgards - Gloves - LTX 4/12-OL - M - Heavy Duty Utility Latex Reusable Gloves"]
["304340274","Gloves","Handgards","Examgards","","XL","NIT EXAM BLUE 10/100 PF 4P","Nitrile Exam Disposable Gloves","10/100","Blue","Powder Free","","Valugards Vinyl Gloves","10/100",1000,"Vinyl","Valugards","Rolled","Wrist","","","","304340171 - Sysco - Gloves - VAL PVC 10/100 PP - S - Valugards Vinyl Gloves","303400513 - Handgards - Gloves - LTX 4/12-OL - L - Heavy Duty Utility Latex Reusable Gloves"]
["304340281","Gloves","Handgards","ExamGards","","S","NIT EXAM BLACK 10/100 PF","Nitrile Disposable Gloves","10/100","Black","Powder Free","","Valugards Vinyl Gloves","10/100",1000,"Vinyl","Valugards","Rolled","Wrist","","","","304340171 - PFS - Gloves - VAL PVC 10/100 PP - S - Valugards Vinyl Gloves","303400514 - Handgards - Gloves - LTX 4/12-OL - XL - Heavy Duty Utility Latex Reusable Gloves"]
["304340282","Gloves","Handgards","ExamGards","","M","NIT EXAM BLACK 10/100 PF","Nitrile Disposable Gloves","10/100","Black","Powder Free","","Valugards Vinyl Gloves","4/100",400,"Vinyl","Valugards","Rolled",null,"","","","304340214 - Handgards - Gloves - VAL PVC 4/100 PF - XL - Valugards Vinyl Gloves","303400531 - Handgards - Gloves - LTX 4/12-YL - S - Heavy Duty Utility Latex Reusable Gloves"]
["304340283","Gloves","Handgards","ExamGards","","L","NIT EXAM BLACK 10/100 PF","Nitrile Disposable Gloves","10/100","Black","Powder Free","","Valugards Vinyl Gloves","4/100",400,"Vinyl","Valugards","Rolled","Wrist","","","","304340214 - Sysco - Gloves - VAL PVC 4/100 PF - XL - Valugards Vinyl Gloves","303400532 - Handgards - Gloves - LTX 4/12-YL - M - Heavy Duty Utility Latex Reusable Gloves"]
["304340284","Gloves","Handgards","ExamGards","","XL","NIT EXAM BLACK 10/100 PF","Nitrile Disposable Gloves","10/100","Black","Powder Free","","Valugards Vinyl Gloves","4/100",400,"Vinyl","Valugards","Rolled",null,"","","","304340213 - Handgards - Gloves - VAL PVC 4/100 PF - L - Valugards Vinyl Gloves","303400533 - Handgards - Gloves - LTX 4/12-YL - L - Heavy Duty Utility Latex Reusable Gloves"]
["304340331","Gloves","Handgards","Valugards","","S","VAL NIT PURPLE PF 10/100","Nitrile Disposable Gloves","10/100","Purple","Powder Free","","Valugards Vinyl Gloves","4/100",400,"Vinyl","Valugards","Rolled","Wrist","","","","304340213 - Sysco - Gloves - VAL PVC 4/100 PF - L - Valugards Vinyl Gloves","303400534 - Handgards - Gloves - LTX 4/12-YL - XL - Heavy Duty Utility Latex Reusable Gloves"]
["304340332","Gloves","Handgards","Valugards","","M","VAL NIT PURPLE PF 10/100","Nitrile Disposable Gloves","10/100","Purple","Powder Free","","Heavy Duty Embossed Apron","1/100",100,"Low Density Poly Aprons","NeatGards","","","","","","303764022 - BEK - Apparel - AHEW - 28 x 46 - Heavy Duty Embossed Apron","303400592 - Handgards - Gloves - ORANGE PVC - M - Heavy Duty Utility Vinyl Reusable Gloves"]
["304340333","Gloves","Handgards","Valugards","","L","VAL NIT PURPLE PF 10/100","Nitrile Disposable Gloves","10/100","Purple","Powder Free","","Heavy Duty Embossed Apron","5/100",500,"Low Density Poly Aprons","NeatGards","","","","","","303764022 - Sysco - Apparel - AHEW - 28 x 46 - Heavy Duty Embossed Apron","303400593 - Handgards - Gloves - ORANGE PVC - L - Heavy Duty Utility Vinyl Reusable Gloves"]
["304340334","Gloves","Handgards","Valugards","","XL","VAL NIT PURPLE PF 10/100","Nitrile Disposable Gloves","10/100","Purple","Powder Free","","Heavy Duty Embossed Apron","1/100",100,"Low Density Poly Aprons","NeatGards","","","","","","303764022 - PFS - Apparel - AHEW - 28 x 46 - Heavy Duty Embossed Apron","303400594 - Handgards - Gloves - ORANGE PVC - XL - Heavy Duty Utility Vinyl Reusable Gloves"]
["304340351","Gloves","Handgards","BasicGards","","S","PVC 10/100 PF","Vinyl Disposable Gloves","10/100","Clear","Powder Free","","Heavy Duty Smooth Apron","1/100",100,"Low Density Poly Aprons","NeatGards","",null,"","","","303764023 - Handgards - Apparel - AHSC - 28 x 46 - Heavy Duty Smooth Apron","303400602 - Handgards - Gloves - YELLOW PVC - M - Heavy Duty Utility Vinyl Reusable Gloves"]
["304340352","Gloves","Handgards","BasicGards","","M","PVC 10/100 PF","Vinyl Disposable Gloves","10/100","Clear","Powder Free","","Heavy Duty Cut Resistant Glove with Polyurethane - Nylon Knit","12/2",24,"Heavy Duty Cut Resistant Glove with Polyurethane","Handgards","Straight",null,"","","","303400614 - Handgards - Gloves - CUT RES POLYEUR - XL - Heavy Duty Cut Resistant Glove with Polyurethane - Nylon Knit","303400603 - Handgards - Gloves - YELLOW PVC - L - Heavy Duty Utility Vinyl Reusable Gloves"]
["304340353","Gloves","Handgards","BasicGards","","L","PVC 10/100 PF","Vinyl Disposable Gloves","10/100","Clear","Powder Free","","Nitrile Exam Disposable Gloves","10/100",1000,"Nitrile","ExamGards","Rolled",null,"","","","304340131 - Handgards - Gloves - NIT EXAM 10/100 PF - S - Nitrile Exam Disposable Gloves","303400604 - Handgards - Gloves - YELLOW PVC - XL - Heavy Duty Utility Vinyl Reusable Gloves"]
["304340354","Gloves","Handgards","BasicGards","","XL","PVC 10/100 PF","Vinyl Disposable Gloves","10/100","Clear","Powder Free","","Nitrile Exam Disposable Gloves","10/100",1000,"Nitrile","ExamGards","Rolled",null,"","","","304340132 - Handgards - Gloves - NIT EXAM 10/100 PF - M - Nitrile Exam Disposable Gloves","303400611 - Handgards - Gloves - CUT RES POLYEUR - S - Heavy Duty Cut Resistant Glove with Polyurethane - Nylon Knit"]
["304340371","Gloves","Handgards","Handgards","","S","NIT BLK 10/100 PF","Nitrile Disposable Gloves","10/100","Black","Powder Free"]
["304340372","Gloves","Handgards","Handgards","","M","NIT BLK 10/100 PF","Nitrile Disposable Gloves","10/100","Black","Powder Free"]
["304340373","Gloves","Handgards","Handgards","","L","NIT BLK 10/100 PF","Nitrile Disposable Gloves","10/100","Black","Powder Free"]
["304340374","Gloves","Handgards","Handgards","","XL","NIT BLK 10/100 PF","Nitrile Disposable Gloves","10/100","Black","Powder Free"]
["304340375","Gloves","Handgards","Handgards",null,"XXL","NIT BLK 10/90 PF","Nitrile Disposable Gloves","10/90","Black","Powder Free"]
["304340411","Gloves","Handgards","SOFTFIT",null,"S","SOFTFIT THIN NIT CLEAR 4/250 PF ","Nitrile Disposable Gloves","4/250","Translucent","Powder Free"]
["304340412","Gloves","Handgards","SOFTFIT",null,"M","SOFTFIT THIN NIT CLEAR 4/250 PF","Nitrile Disposable Gloves","4/250","Translucent","Powder Free"]
["304340413","Gloves","Handgards","SOFTFIT",null,"L","SOFTFIT THIN NIT CLEAR 4/250 PF","Nitrile Disposable Gloves","4/250","Translucent","Powder Free"]
["304340414","Gloves","Handgards","SOFTFIT",null,"XL","SOFTFIT THIN NIT CLEAR 4/250 PF","Nitrile Disposable Gloves","4/250","Translucent","Powder Free"]
["304340431","Gloves","Handgards","Handgards",null,"S","PVC BLK 10/100 PF","Vinyl Disposable Gloves","10/100","Black","Powder Free"]
["304340432","Gloves","Handgards","Handgards",null,"M","PVC BLK 10/100 PF","Vinyl Disposable Gloves","10/100","Black","Powder Free"]
["304340433","Gloves","Handgards","Handgards",null,"L","PVC BLK 10/100 PF","Vinyl Disposable Gloves","10/100","Black","Powder Free"]
["304340434","Gloves","Handgards","Handgards",null,"XL","PVC BLK 10/100 PF","Vinyl Disposable Gloves","10/100","Black","Powder Free"]
["304340435","Gloves","Handgards","Handgards",null,"XXL","PVC BLK 10/90 PF","Vinyl Disposable Gloves","10/90","Black","Powder Free"]
["304340481","Gloves","Handgards","SOFTFIT",null,"S","SOFTFIT THIN NIT STEEL BLUE 4/250 PF ","Nitrile Disposable Gloves","4/250","STEEL BLUE","Powder Free"]
["304340482","Gloves","Handgards","SOFTFIT",null,"M","SOFTFIT THIN NIT STEEL BLUE 4/250 PF","Nitrile Disposable Gloves","4/250","STEEL BLUE","Powder Free"]
["304340483","Gloves","Handgards","SOFTFIT",null,"L","SOFTFIT THIN NIT STEEL BLUE 4/250 PF","Nitrile Disposable Gloves","4/250","STEEL BLUE","Powder Free"]
["304340484","Gloves","Handgards","SOFTFIT",null,"XL","SOFTFIT THIN NIT STEEL BLUE 4/250 PF","Nitrile Disposable Gloves","4/250","STEEL BLUE","Powder Free"]
["304362071","Gloves","Handgards","ExamGards","","S","PVC EXAM 10/100 PF","Vinyl Exam Disposable Gloves","10/100","Clear","Powder Free","","Heavy Duty Cut Resistant Gloves - Woven Knit","6/1",6,"Heavy Duty Cut Resistant Glove","Handgards","Straight",null,"","","","303400043 - Handgards - Gloves - CUT 6/1 - L - Heavy Duty Cut Resistant Gloves - Woven Knit","304340132 - Handgards - Gloves - NIT EXAM 10/100 PF - M - Nitrile Exam Disposable Gloves"]
["304362072","Gloves","Handgards","ExamGards","","M","PVC EXAM 10/100 PF","Vinyl Exam Disposable Gloves","10/100","Clear","Powder Free","","Heavy Duty Cut Resistant Gloves - Woven Knit","6/1",6,"Heavy Duty Cut Resistant Glove","Handgards","Straight",null,"","","","303400044 - Handgards - Gloves - CUT 6/1 - XL - Heavy Duty Cut Resistant Gloves - Woven Knit","304340133 - Handgards - Gloves - NIT EXAM 10/100 PF - L - Nitrile Exam Disposable Gloves"]
["304362073","Gloves","Handgards","ExamGards","","L","PVC EXAM 10/100 PF","Vinyl Exam Disposable Gloves","10/100","Clear","Powder Free","","Heavy Duty Utility Nitrile Reusable Gloves","12/1",12,"Nitrile","Handgards","Straight",null,"","","","303400072 - Handgards - Gloves - NIT 12/1-19G - M - Heavy Duty Utility Nitrile Reusable Gloves","304340134 - Handgards - Gloves - NIT EXAM 10/100 PF - XL - Nitrile Exam Disposable Gloves"]
["304362074","Gloves","Handgards","ExamGards","","XL","PVC EXAM 10/100 PF","Vinyl Exam Disposable Gloves","10/100","Clear","Powder Free","","Heavy Duty Utility Nitrile Reusable Gloves","12/1",12,"Nitrile","Handgards","Straight",null,"","","","303400073 - Handgards - Gloves - NIT 12/1-19G - L - Heavy Duty Utility Nitrile Reusable Gloves","304340171 - Handgards - Gloves - VAL PVC 10/100 PP - S - Valugards Vinyl Gloves"]
["304362091","Gloves","Handgards","Valugards","","S","PVC BLUE 10/100 PF ","Vinyl Disposable Gloves","10/100","Blue","Powder Free","","General Purpose Cut Resistant Glove - Woven Knit","12/1",12,"General Purpose Cut Resistant Glove","Handgards","Straight",null,"","","","303400081 - Handgards - Gloves - CUT 12/1 - S - General Purpose Cut Resistant Glove - Woven Knit","304340171 - Sysco - Gloves - VAL PVC 10/100 PP - S - Valugards Vinyl Gloves"]
["304362092","Gloves","Handgards","Valugards","","M","PVC BLUE 10/100 PF ","Vinyl Disposable Gloves","10/100","Blue","Powder Free","","General Purpose Cut Resistant Glove - Woven Knit","12/1",12,"General Purpose Cut Resistant Glove","Handgards","Straight",null,"","","","303400082 - Handgards - Gloves - CUT 12/1 - M - General Purpose Cut Resistant Glove - Woven Knit","304340171 - PFS - Gloves - VAL PVC 10/100 PP - S - Valugards Vinyl Gloves"]
["304362093","Gloves","Handgards","Valugards","","L","PVC BLUE 10/100 PF ","Vinyl Disposable Gloves","10/100","Blue","Powder Free","","General Purpose Cut Resistant Glove - Woven Knit","12/1",12,"General Purpose Cut Resistant Glove","Handgards","Straight",null,"","","","303400083 - Handgards - Gloves - CUT 12/1 - L - General Purpose Cut Resistant Glove - Woven Knit","304340172 - Handgards - Gloves - VAL PVC 10/100 PP - M - Valugards Vinyl Gloves"]
["304362094","Gloves","Handgards","Valugards","","XL","PVC BLUE 10/100 PF ","Vinyl Disposable Gloves","10/100","Blue","Powder Free","","Valugards Vinyl Gloves","10/100",1000,"Vinyl","Valugards","Rolled","Wrist","","","","304340184 - PFS - Gloves - VAL PVC 10/100 PF - XL - Valugards Vinyl Gloves","304340172 - Sysco - Gloves - VAL PVC 10/100 PP - M - Valugards Vinyl Gloves"]
["304362121","Gloves","Handgards","Handgards","","S","PVC 10/100 PF","Vinyl Disposable Gloves","10/100","Clear","Powder Free","","Valugards Vinyl Gloves","4/100",400,"Vinyl","Valugards","Rolled",null,"","","","304340201 - Handgards - Gloves - VAL PVC 4/100 PP - S - Valugards Vinyl Gloves","304340172 - PFS - Gloves - VAL PVC 10/100 PP - M - Valugards Vinyl Gloves"]
["304362122","Gloves","Handgards","Handgards","","M","PVC 10/100 PF","Vinyl Disposable Gloves","10/100","Clear","Powder Free","","Valugards Vinyl Gloves","4/100",400,"Vinyl","Valugards","Rolled",null,"","","","304340202 - Handgards - Gloves - VAL PVC 4/100 PP - M - Valugards Vinyl Gloves","304340173 - Handgards - Gloves - VAL PVC 10/100 PP - L - Valugards Vinyl Gloves"]
["304362123","Gloves","Handgards","Handgards","","L","PVC 10/100 PF","Vinyl Disposable Gloves","10/100","Clear","Powder Free","","Valugards Vinyl Gloves","4/100",400,"Vinyl","Valugards","Rolled",null,"","","","304340203 - Handgards - Gloves - VAL PVC 4/100 PP - L - Valugards Vinyl Gloves","304340173 - PFS - Gloves - VAL PVC 10/100 PP - L - Valugards Vinyl Gloves"]
["304362124","Gloves","Handgards","Handgards","","XL","PVC 10/100 PF","Vinyl Disposable Gloves","10/100","Clear","Powder Free","","Arrow Picks Plastic - Black 3.5 inch Round (Lot 235)","10/1000",10000,"Arrow Picks - Plastic","","","","","","","305210218 - Sysco - Expendables - ARROW PICK BLACK 3.5 - 3.5 inch - Arrow Picks Plastic - Black 3.5 inch Round (Lot 235)","304340173 - Sysco - Gloves - VAL PVC 10/100 PP - L - Valugards Vinyl Gloves"]
["304362125","Gloves","Handgards","Handgards","","XXL","PVC 10/100 PF","Vinyl Disposable Gloves","10/100","Clear","Powder Free","","Valugards Latex Disposable Gloves","10/100",1000,"Latex","Valugards","Rolled",null,"","","","304750133 - Handgards - Gloves - VAL LTX 10/100 PP - L - Valugards Latex Disposable Gloves","304340174 - Handgards - Gloves - VAL PVC 10/100 PP - XL - Valugards Vinyl Gloves"]
["304362131","Gloves","Handgards","Handgards","","S","SYN 10/100 PF","Synthetic Disposable Gloves","10/100","White","Powder Free","","Sword Picks Plastic - Black - 4.5 in (Lot 245)","10/1000",10000,"Sword Picks - Plastic","","",null,"","","","305210219 - Handgards - Expendables - SWORD PICK BLACK 4.5 - 4.5 inch - Sword Picks Plastic - Black - 4.5 in (Lot 245)","304340174 - Sysco - Gloves - VAL PVC 10/100 PP - XL - Valugards Vinyl Gloves"]
["304362132","Gloves","Handgards","Handgards","","M","SYN 10/100 PF","Synthetic Disposable Gloves","10/100","White","Powder Free","","Vinyl Disposable Gloves","4/100",400,"Vinyl","Valugards","Rolled",null,"","","","304363182 - Handgards - Gloves - PVC 4/100 PP RED - M - Vinyl Disposable Gloves","304340174 - PFS - Gloves - VAL PVC 10/100 PP - XL - Valugards Vinyl Gloves"]
["304362133","Gloves","Handgards","Handgards","","L","SYN 10/100 PF","Synthetic Disposable Gloves","10/100","White","Powder Free","","Vinyl Disposable Gloves","4/100",400,"Vinyl","Valugards","Rolled",null,"","","","304363163 - Handgards - Gloves - PVC 4/100 PF GREEN - L - Vinyl Disposable Gloves","304340181 - Handgards - Gloves - VAL PVC 10/100 PF - S - Valugards Vinyl Gloves"]
["304362134","Gloves","Handgards","Handgards","","XL","SYN 10/100 PF","Synthetic Disposable Gloves","10/100","White","Powder Free","","Vinyl Disposable Gloves","4/100",400,"Vinyl","Valugards","Rolled",null,"","","","304363053 - Handgards - Gloves - PVC 4/100 PF YELLOW - L - Vinyl Disposable Gloves","304340181 - Sysco - Gloves - VAL PVC 10/100 PF - S - Valugards Vinyl Gloves"]
["304362191","Gloves","Handgards","Handgards","","S","PVC 10/100 PP","Vinyl Disposable Gloves","10/100","Clear","Powdered","","Vinyl Exam Disposable Gloves","4/100",400,"Vinyl","Examgards","Rolled",null,"","","","304362852 - Handgards - Gloves - PVC EXAM 4/100 PF - M - Vinyl Exam Disposable Gloves","304340181 - PFS - Gloves - VAL PVC 10/100 PF - S - Valugards Vinyl Gloves"]
["304362192","Gloves","Handgards","Handgards","","M","PVC 10/100 PP","Vinyl Disposable Gloves","10/100","Clear","Powdered","","Vinyl Disposable Gloves","4/100",400,"Vinyl","Valugards","Rolled",null,"","","","304363162 - Handgards - Gloves - PVC 4/100 PF GREEN - M - Vinyl Disposable Gloves","304340182 - Handgards - Gloves - VAL PVC 10/100 PF - M - Valugards Vinyl Gloves"]
["304362193","Gloves","Handgards","Handgards","","L","PVC 10/100 PP","Vinyl Disposable Gloves","10/100","Clear","Powdered","","Vinyl Exam Disposable Gloves","4/100",400,"Vinyl","Examgards","Rolled",null,"","","","304362853 - Handgards - Gloves - PVC EXAM 4/100 PF - L - Vinyl Exam Disposable Gloves","304340182 - PFS - Gloves - VAL PVC 10/100 PF - M - Valugards Vinyl Gloves"]
["304362194","Gloves","Handgards","Handgards","","XL","PVC 10/100 PP","Vinyl Disposable Gloves","10/100","Clear","Powdered","","Low Density Embossed Adult Bibs","1/500",500,"Low Density Poly Bibs","NeatGards","",null,"Crab","Various","","303578505 - Handgards - Apparel - ABC - 15.5 x 20 - Low Density Embossed Adult Bibs","304340182 - Sysco - Gloves - VAL PVC 10/100 PF - M - Valugards Vinyl Gloves"]
["304362391","Gloves","Handgards","Handgards","","S","PVC 4/100 PP","Vinyl Disposable Gloves","4/100","Clear","Powdered","Roll Pack","High Density Steam Pan Liners","1/250",250,"High Density Pan Liners","PanHandlers","","","None","None","Twist Tie","303679982 - Sysco - Bags - SPL18X14 - 18 x 14 - High Density Steam Pan Liners","304340183 - Handgards - Gloves - VAL PVC 10/100 PF - L - Valugards Vinyl Gloves"]
["304362392","Gloves","Handgards","Handgards","","M","PVC 4/100 PP","Vinyl Disposable Gloves","4/100","Clear","Powdered","","Synthetic Disposable Gloves","10/100",1000,"Synthetic","Handgards","Rolled",null,"","","","304362552 - Handgards - Gloves - SYN 10/100 PP - M - Synthetic Disposable Gloves","304340183 - Sysco - Gloves - VAL PVC 10/100 PF - L - Valugards Vinyl Gloves"]
["304362393","Gloves","Handgards","Handgards","","L","PVC 4/100 PP","Vinyl Disposable Gloves","4/100","Clear","Powdered","","Synthetic Disposable Gloves","10/100",1000,"Synthetic","Handgards","Rolled",null,"","","","304362553 - Handgards - Gloves - SYN 10/100 PP - L - Synthetic Disposable Gloves","304340183 - PFS - Gloves - VAL PVC 10/100 PF - L - Valugards Vinyl Gloves"]
["304362394","Gloves","Handgards","Handgards","","XL","PVC 4/100 PP","Vinyl Disposable Gloves","4/100","Clear","Powdered","Full Saddle","High Density Daily Preportioning Bags","1/2000",2000,"High Density Preportion bags","TuffGards","",null,"\"Sunday\"","Black","2\" Flip Lock","303679820 - Handgards - Bags - PB100SU - 10 x 8.5 - High Density Daily Preportioning Bags","304340184 - Handgards - Gloves - VAL PVC 10/100 PF - XL - Valugards Vinyl Gloves"]
["304362411","Gloves","Handgards","Handgards","","S","PVC 4/100 PF","Vinyl Disposable Gloves","4/100","Clear","Powder Free","Full Saddle","High Density Sandwich Bags","1/2000",2000,"High Density Food Storage Bag","TuffGards","",null,"None","None","1¾\" Flip Lock","304985211 - Handgards - Bags - SB8.5 - 6.5 x 7 - High Density Sandwich Bags","304340184 - Sysco - Gloves - VAL PVC 10/100 PF - XL - Valugards Vinyl Gloves"]
["304362412","Gloves","Handgards","Handgards","","M","PVC 4/100 PF","Vinyl Disposable Gloves","4/100","Clear","Powder Free","Full Saddle","High Density Daily Preportioning Bags","1/2000",2000,"High Density Preportion bags","TuffGards","",null,"\"Thursday\"","Brown","1¾\" Flip Lock","303679814 - Handgards - Bags - PB8.5TH - 6.5 x 7 - High Density Daily Preportioning Bags","304340184 - PFS - Gloves - VAL PVC 10/100 PF - XL - Valugards Vinyl Gloves"]
["304362413","Gloves","Handgards","Handgards","","L","PVC 4/100 PF","Vinyl Disposable Gloves","4/100","Clear","Powder Free","","Medium Duty Embossed Apron","1/100",100,"Low Density Poly Aprons","NeatGards","",null,"","","","303764019 - Handgards - Apparel - AMEC - 28 x 46 - Medium Duty Embossed Apron","304340201 - Handgards - Gloves - VAL PVC 4/100 PP - S - Valugards Vinyl Gloves"]
["304362414","Gloves","Handgards","Handgards","","XL","PVC 4/100 PF","Vinyl Disposable Gloves","4/100","Clear","Powder Free","Full Saddle","High Density Sandwich Bags","1/2000",2000,"High Density Food Storage Bag","TuffGards","","","None","None","1½\" Flip Lock","304985170 - Sysco - Bags - SB7.5 - 6.5 x 7.5 - High Density Sandwich Bags","304340202 - Handgards - Gloves - VAL PVC 4/100 PP - M - Valugards Vinyl Gloves"]
["304362501","Gloves","Handgards","Handgards","","S","SYN 4/100 PP","Synthetic Disposable Gloves","4/100","White","Powdered","","Low Density Embossed Adult Bibs","1/500",500,"Low Density Poly Bibs","NeatGards","",null,"Plain","None","","303578501 - Handgards - Apparel - ABW - 15.5 x 20 - Low Density Embossed Adult Bibs","304340203 - Handgards - Gloves - VAL PVC 4/100 PP - L - Valugards Vinyl Gloves"]
["304362502","Gloves","Handgards","Handgards","","M","SYN 4/100 PP","Synthetic Disposable Gloves","4/100","White","Powdered","Full Saddle","High Density Deli Sandwich Bags","1/2000",2000,"High Density Specialty Bag","TuffGards","",null,"\"Deli\"","Green","2\" Flip Lock","303679630 - Handgards - Bags - D50 - 8.5 x 8.5 - High Density Deli Sandwich Bags","304340204 - Handgards - Gloves - VAL PVC 4/100 PP - XL - Valugards Vinyl Gloves"]
["304362503","Gloves","Handgards","Handgards","","L","SYN 4/100 PP","Synthetic Disposable Gloves","4/100","White","Powdered","Flat Pack","High Density Silverware Bags","1/2000",2000,"High Density Specialty Bag","TuffGards","","","None","None","","304985171 - Sysco - Bags - SW10 - 3.5 x 10.75 - High Density Silverware Bags","304340211 - Handgards - Gloves - VAL PVC 4/100 PF - S - Valugards Vinyl Gloves"]
["304362504","Gloves","Handgards","Handgards","","XL","SYN 4/100 PP","Synthetic Disposable Gloves","4/100","White","Powdered","Full Saddle","High Density Daily Preportioning Bags","1/2000",2000,"High Density Preportion bags","TuffGards","",null,"\"Tuesday\"","Yellow","1¾\" Flip Lock","303679812 - Handgards - Bags - PB8.5TU - 6.5 x 7 - High Density Daily Preportioning Bags","304340212 - Handgards - Gloves - VAL PVC 4/100 PF - M - Valugards Vinyl Gloves"]
["304362511","Gloves","Handgards","Handgards","","S","SYN 4/100 PF","Synthetic Disposable Gloves","4/100","White","Powder Free","Flat Pack","High Density Reclosable Bags","1/500",500,"High Density Reclosable bags","ZipGards","",null,"None","None","Resealable (Zipper)","303679806 - Handgards - Bags - ZG32HD - 7 x 8 - High Density Reclosable Bags","304340212 - Sysco - Gloves - VAL PVC 4/100 PF - M - Valugards Vinyl Gloves"]
["304362512","Gloves","Handgards","Handgards","","M","SYN 4/100 PF","Synthetic Disposable Gloves","4/100","White","Powder Free","Full Saddle","High Density Weekly Preportioning Bags","1/2000",2000,"High Density Preportion bags","TuffGards","",null,"7 Days","Various","1¾\" Flip Lock","303679817 - Handgards - Bags - PB8.5WK - 6.5 x 7 - High Density Weekly Preportioning Bags","304340213 - Handgards - Gloves - VAL PVC 4/100 PF - L - Valugards Vinyl Gloves"]
["304362513","Gloves","Handgards","Handgards","","L","SYN 4/100 PF","Synthetic Disposable Gloves","4/100","White","Powder Free","Full Saddle","High Density Daily Preportioning Bags","1/2000",2000,"High Density Preportion bags","TuffGards","",null,"\"Monday\"","Blue","1¾\" Flip Lock","303679811 - Handgards - Bags - PB8.5MO - 6.5 x 7 - High Density Daily Preportioning Bags","304340213 - Sysco - Gloves - VAL PVC 4/100 PF - L - Valugards Vinyl Gloves"]
["304362514","Gloves","Handgards","Handgards","","XL","SYN 4/100 PF","Synthetic Disposable Gloves","4/100","White","Powder Free","Full Saddle","High Density Daily Preportioning Bags","1/2000",2000,"High Density Preportion bags","TuffGards","",null,"\"Saturday\"","Orange","1¾\" Flip Lock","303679816 - Handgards - Bags - PB8.5SA - 6.5 x 7 - High Density Daily Preportioning Bags","304340214 - Handgards - Gloves - VAL PVC 4/100 PF - XL - Valugards Vinyl Gloves"]
["304362531","Gloves","Handgards","Handgards","","S","NIT 4/100 PF","Nitrile Disposable Gloves","4/100","Blue","Powder Free","","Nylon Hairnet Dark Black Large Lightweight (Lot 111)","10/144",1440,"Hairnets","NeatGards","",null,"","","","305113005 - Handgards - Expendables - HAIRNET NYLON BK LG - L - Nylon Hairnet Dark Black Large Lightweight (Lot 111)","304340222 - Sysco - Gloves - VAL WHITE NIT 10/100 PF - M - Valugards Nitrile Disposable Gloves"]
["304362532","Gloves","Handgards","Handgards","","M","NIT 4/100 PF","Nitrile Disposable Gloves","4/100","Blue","Powder Free","","Chef Hats Paper Wide Pleated - 7 inch with sizer (Lot 120)","12/1",12,"Chef Hats","NeatGards","",null,"","","","305115017 - Handgards - Expendables - CHEF HAT WIDE PLT WE 7 - 7 inch - Chef Hats Paper Wide Pleated - 7 inch with sizer (Lot 120)","304340223 - Handgards - Gloves - VAL WHITE NIT 10/100 PF - L - Valugards Nitrile Disposable Gloves"]
["304362533","Gloves","Handgards","Handgards","","L","NIT 4/100 PF","Nitrile Disposable Gloves","4/100","Blue","Powder Free","","Chef Hats Paper Wide Pleated - 7 inch with sizer (Lot 120)","12/1",12,"Chef Hats","NeatGards","","","","","","305115017 - Sysco - Expendables - CHEF HAT WIDE PLT WE 7 - 7 inch - Chef Hats Paper Wide Pleated - 7 inch with sizer (Lot 120)","304340223 - Sysco - Gloves - VAL WHITE NIT 10/100 PF - L - Valugards Nitrile Disposable Gloves"]
["304362534","Gloves","Handgards","Handgards","","XL","NIT 4/100 PF","Nitrile Disposable Gloves","4/100","Blue","Powder Free","Roll Pack","High Density Steam Pan Liners","1/250",250,"High Density Pan Liners","PanHandlers","",null,"None","None","Twist Tie","303679981 - Handgards - Bags - SPL34X25 - 34 x 25 - High Density Steam Pan Liners","304340224 - Handgards - Gloves - VAL WHITE NIT 10/100 PF - XL - Valugards Nitrile Disposable Gloves"]
["304362551","Gloves","Handgards","Handgards","","S","SYN 10/100 PP","Synthetic Disposable Gloves","10/100","White","Powdered","Flat Pack","Nylon Ovenable Roasting Bags","1/100",100,"Nylon Pan Liners","PanHandlers","",null,"None","None","Cooking Ties","304985032 - Handgards - Bags - ORB24X17 - 24 x 17 - Nylon Ovenable Roasting Bags","304340224 - Sysco - Gloves - VAL WHITE NIT 10/100 PF - XL - Valugards Nitrile Disposable Gloves"]
["304362552","Gloves","Handgards","Handgards","","M","SYN 10/100 PP","Synthetic Disposable Gloves","10/100","White","Powdered","Roll Pack","High Density Steam Pan Liners","1/250",250,"High Density Pan Liners","PanHandlers","",null,"None","None","Twist Tie","303679980 - Handgards - Bags - SPL24X17 - 24 x 17 - High Density Steam Pan Liners","304340281 - Handgards - Gloves - NIT BK 10/100 PF - S - Examgards Black Nitrile Disposable Gloves"]
["304362553","Gloves","Handgards","Handgards","","L","SYN 10/100 PP","Synthetic Disposable Gloves","10/100","White","Powdered","Roll Pack","High Density Freezer Bags","1/200",200,"High Density Food Storage Bag","TuffGards","","","None","None","Twist Tie","303679979 - Sysco - Bags - FB37 RM - 27 x 37 - High Density Freezer Bags","304340282 - Handgards - Gloves - NIT BK 10/100 PF - M - Examgards Black Nitrile Disposable Gloves"]
["304362554","Gloves","Handgards","Handgards","","XL","SYN 10/100 PP","Synthetic Disposable Gloves","10/100","White","Powdered","Flat Pack","Nylon Ovenable Pan Liners","1/100",100,"Nylon Pan Liners","PanHandlers","",null,"None","None","Twist Tie","304985029 - Handgards - Bags - OPL18X10 - 18 x 10 - Nylon Ovenable Pan Liners","304340283 - Handgards - Gloves - NIT BK 10/100 PF - L - Examgards Black Nitrile Disposable Gloves"]
["304363041","Gloves","Handgards","Handgards","","S","SYN ALOE 4/100 PF","Synthetic Disposable Gloves with Aloe","4/100","Green","Powder Free","Flat Pack","Nylon Ovenable Pan Insert Liners","1/100",100,"Nylon Pan Liners","PanHandlers","",null,"None","None","Twist Tie","304985030 - Handgards - Bags - OPL18X14 - 18 x 14 - Nylon Ovenable Pan Insert Liners","304340284 - Handgards - Gloves - NIT BK 10/100 PF - XL - Examgards Black Nitrile Disposable Gloves"]
["304363042","Gloves","Handgards","Handgards","","M","SYN ALOE 4/100 PF","Synthetic Disposable Gloves with Aloe","4/100","Green","Powder Free","","Vinyl Disposable Gloves","4/100",400,"Vinyl","Handgards","Rolled","Wrist","","","","304362392 - PFS - Gloves - PVC 4/100 PP - M - Vinyl Disposable Gloves","304362071 - Handgards - Gloves - PVC EXAM 10/100 PF - S - Vinyl Exam Disposable Gloves"]
["304363043","Gloves","Handgards","Handgards","","L","SYN ALOE 4/100 PF","Synthetic Disposable Gloves with Aloe","4/100","Green","Powder Free","","Synthetic Disposable Gloves","4/100",400,"Synthetic","Handgards","Rolled","Wrist","","","","304362504 - BEK - Gloves - SYN 4/100 PP - XL - Synthetic Disposable Gloves","304362071 - Sysco - Gloves - PVC EXAM 10/100 PF - S - Vinyl Exam Disposable Gloves"]
["304363044","Gloves","Handgards","Handgards","","XL","SYN ALOE 4/100 PF","Synthetic Disposable Gloves with Aloe","4/100","Green","Powder Free","","Synthetic Disposable Gloves","4/100",400,"Synthetic","Handgards","Rolled",null,"","","","304362511 - Handgards - Gloves - SYN 4/100 PF - S - Synthetic Disposable Gloves","304362072 - Handgards - Gloves - PVC EXAM 10/100 PF - M - Vinyl Exam Disposable Gloves"]
["304363261","Gloves","Handgards","UltraTouch","","S","ULTRATOUCH 10/100 PF","Ultratouch Synthetic Disposable Gloves","10/100","Blurple","Powder Free","","Synthetic Disposable Gloves","4/100",400,"Synthetic","Handgards","Rolled","Wrist","","","","304362503 - Sysco - Gloves - SYN 4/100 PP - L - Synthetic Disposable Gloves","304362073 - Sysco - Gloves - PVC EXAM 10/100 PF - L - Vinyl Exam Disposable Gloves"]
["304363262","Gloves","Handgards","UltraTouch","","M","ULTRATOUCH 10/100 PF","Ultratouch Synthetic Disposable Gloves","10/100","Blurple","Powder Free","","Synthetic Disposable Gloves","4/100",400,"Synthetic","Handgards","Rolled","Wrist","","","","304362503 - PFS - Gloves - SYN 4/100 PP - L - Synthetic Disposable Gloves","304362074 - Handgards - Gloves - PVC EXAM 10/100 PF - XL - Vinyl Exam Disposable Gloves"]
["304363263","Gloves","Handgards","UltraTouch","","L","ULTRATOUCH 10/100 PF","Ultratouch Synthetic Disposable Gloves","10/100","Blurple","Powder Free","","Synthetic Disposable Gloves","4/100",400,"Synthetic","Handgards","Rolled","Wrist","","","","304362503 - BEK - Gloves - SYN 4/100 PP - L - Synthetic Disposable Gloves","304362081 - Handgards - Gloves - PVC EXAM 10/100 PP - S - Vinyl Exam Disposable Powdered Gloves"]
["304363264","Gloves","Handgards","UltraTouch","","XL","ULTRATOUCH 10/100 PF","Ultratouch Synthetic Disposable Gloves","10/100","Blurple","Powder Free","","Synthetic Disposable Gloves","4/100",400,"Synthetic","Handgards","Rolled",null,"","","","304362504 - Handgards - Gloves - SYN 4/100 PP - XL - Synthetic Disposable Gloves","304362081 - Sysco - Gloves - PVC EXAM 10/100 PP - S - Vinyl Exam Disposable Powdered Gloves"]
["304750071","Gloves","Handgards","ExamGards","","S","LTX EXAM 10/100 PF","Latex Exam Disposable Gloves","10/100","Ivory","Powder Free","","Vinyl Disposable Gloves","4/100",400,"Vinyl","Handgards","Rolled","Wrist","","","","304362393 - Sysco - Gloves - PVC 4/100 PP - L - Vinyl Disposable Gloves","304362082 - Handgards - Gloves - PVC EXAM 10/100 PP - M - Vinyl Exam Disposable Powdered Gloves"]
["304750072","Gloves","Handgards","ExamGards","","M","LTX EXAM 10/100 PF","Latex Exam Disposable Gloves","10/100","Ivory","Powder Free","","Vinyl Disposable Gloves","4/100",400,"Vinyl","Handgards","Rolled","Wrist","","","","304362393 - PFS - Gloves - PVC 4/100 PP - L - Vinyl Disposable Gloves","304362082 - Sysco - Gloves - PVC EXAM 10/100 PP - M - Vinyl Exam Disposable Powdered Gloves"]
["304750073","Gloves","Handgards","ExamGards","","L","LTX EXAM 10/100 PF","Latex Exam Disposable Gloves","10/100","Ivory","Powder Free",null,null,null,null,null,null,null,null,null,null,null,null,"304362083 - Handgards - Gloves - PVC EXAM 10/100 PP - L - Vinyl Exam Disposable Powdered Gloves"]
["304750074","Gloves","Handgards","ExamGards","","XL","LTX EXAM 10/100 PF","Latex Exam Disposable Gloves","10/100","Ivory","Powder Free",null,null,null,null,null,null,null,null,null,null,null,null,"304362083 - Sysco - Gloves - PVC EXAM 10/100 PP - L - Vinyl Exam Disposable Powdered Gloves"]
["304750131","Gloves","Handgards","Valugards","","S","VAL LTX 10/100 PP","Latex Disposable Gloves","10/100","Ivory","Powdered",null,null,null,null,null,null,null,null,null,null,null,null,"304362084 - Handgards - Gloves - PVC EXAM 10/100 PP - XL - Vinyl Exam Disposable Powdered Gloves"]
["304750132","Gloves","Handgards","Valugards","","M","VAL LTX 10/100 PP","Latex Disposable Gloves","10/100","Ivory","Powdered",null,null,null,null,null,null,null,null,null,null,null,null,"304362091 - Handgards - Gloves - PVC 10/100 PF BLUE - S - Vinyl Disposable Gloves"]
["304750133","Gloves","Handgards","Valugards","","L","VAL LTX 10/100 PP","Latex Disposable Gloves","10/100","Ivory","Powdered","","Vinyl Disposable Gloves","4/100",400,"Vinyl","Handgards","Rolled","Wrist","","","","304362414 - BEK - Gloves - PVC 4/100 PF - XL - Vinyl Disposable Gloves","304362092 - Handgards - Gloves - PVC 10/100 PF BLUE - M - Vinyl Disposable Gloves"]
["304750134","Gloves","Handgards","Valugards","","XL","VAL LTX 10/100 PP","Latex Disposable Gloves","10/100","Ivory","Powdered","","Synthetic Disposable Gloves","4/100",400,"Synthetic","Handgards","Rolled",null,"","","","304362501 - Handgards - Gloves - SYN 4/100 PP - S - Synthetic Disposable Gloves","304362093 - Handgards - Gloves - PVC 10/100 PF BLUE - L - Vinyl Disposable Gloves"]
["304750141","Gloves","Handgards","Valugards","","S","VAL LTX 10/100 PF","Latex Disposable Gloves","10/100","Ivory","Powder Free","","Synthetic Disposable Gloves","4/100",400,"Synthetic","Handgards","Rolled","Wrist","","","","304362501 - Sysco - Gloves - SYN 4/100 PP - S - Synthetic Disposable Gloves","304362094 - Handgards - Gloves - PVC 10/100 PF BLUE - XL - Vinyl Disposable Gloves"]
["304750142","Gloves","Handgards","Valugards","","M","VAL LTX 10/100 PF","Latex Disposable Gloves","10/100","Ivory","Powder Free","","Synthetic Disposable Gloves","4/100",400,"Synthetic","Handgards","Rolled","Wrist","","","","304362501 - PFS - Gloves - SYN 4/100 PP - S - Synthetic Disposable Gloves","304362121 - Handgards - Gloves - PVC 10/100 PF - S - Vinyl Disposable Gloves"]
["304750143","Gloves","Handgards","Valugards","","L","VAL LTX 10/100 PF","Latex Disposable Gloves","10/100","Ivory","Powder Free","","Vinyl Disposable Gloves","4/100",400,"Vinyl","Handgards","Rolled","Wrist","","","","304362413 - BEK - Gloves - PVC 4/100 PF - L - Vinyl Disposable Gloves","304362121 - Sysco - Gloves - PVC 10/100 PF - S - Vinyl Disposable Gloves"]
["304750144","Gloves","Handgards","Valugards","","XL","VAL LTX 10/100 PF","Latex Disposable Gloves","10/100","Ivory","Powder Free","","Vinyl Disposable Gloves","4/100",400,"Vinyl","Handgards","Rolled",null,"","","","304362414 - Handgards - Gloves - PVC 4/100 PF - XL - Vinyl Disposable Gloves","304362122 - Handgards - Gloves - PVC 10/100 PF - M - Vinyl Disposable Gloves"]
["304762801","Gloves","Handgards","Handgards","","S","LTX 10/100 PP","Latex Disposable Gloves","10/100","Ivory","Powdered","","Vinyl Disposable Gloves","4/100",400,"Vinyl","Handgards","Rolled","Wrist","","","","304362414 - Sysco - Gloves - PVC 4/100 PF - XL - Vinyl Disposable Gloves","304362122 - Sysco - Gloves - PVC 10/100 PF - M - Vinyl Disposable Gloves"]
["304762802","Gloves","Handgards","Handgards","","M","LTX 10/100 PP","Latex Disposable Gloves","10/100","Ivory","Powdered","","Vinyl Disposable Gloves","4/100",400,"Vinyl","Handgards","Rolled","Wrist","","","","304362414 - PFS - Gloves - PVC 4/100 PF - XL - Vinyl Disposable Gloves","304362123 - Handgards - Gloves - PVC 10/100 PF - L - Vinyl Disposable Gloves"]
["304762803","Gloves","Handgards","Handgards","","L","LTX 10/100 PP","Latex Disposable Gloves","10/100","Ivory","Powdered","","Vinyl Disposable Gloves","4/100",400,"Vinyl","Handgards","Rolled","Wrist","","","","304362412 - Sysco - Gloves - PVC 4/100 PF - M - Vinyl Disposable Gloves","304362123 - Sysco - Gloves - PVC 10/100 PF - L - Vinyl Disposable Gloves"]
["304762804","Gloves","Handgards","Handgards","","XL","LTX 10/100 PP","Latex Disposable Gloves","10/100","Ivory","Powdered","","Vinyl Disposable Gloves","4/100",400,"Vinyl","Handgards","Rolled",null,"","","","304362413 - Handgards - Gloves - PVC 4/100 PF - L - Vinyl Disposable Gloves","304362124 - Handgards - Gloves - PVC 10/100 PF - XL - Vinyl Disposable Gloves"]
["304762821","Gloves","Handgards","Handgards","","S","LTX 4/100 PP","Latex Disposable Gloves","4/100","Ivory","Powdered","","Vinyl Disposable Gloves","4/100",400,"Vinyl","Handgards","Rolled","Wrist","","","","304362413 - Sysco - Gloves - PVC 4/100 PF - L - Vinyl Disposable Gloves","304362124 - Sysco - Gloves - PVC 10/100 PF - XL - Vinyl Disposable Gloves"]
["304762822","Gloves","Handgards","Handgards","","M","LTX 4/100 PP","Latex Disposable Gloves","4/100","Ivory","Powdered","","Vinyl Disposable Gloves","4/100",400,"Vinyl","Handgards","Rolled","Wrist","","","","304362413 - PFS - Gloves - PVC 4/100 PF - L - Vinyl Disposable Gloves","304362125 - Handgards - Gloves - PVC 10/100 PF - XXL - Vinyl Disposable Gloves"]
["304762823","Gloves","Handgards","Handgards","","L","LTX 4/100 PP","Latex Disposable Gloves","4/100","Ivory","Powdered","","Vinyl Disposable Gloves","4/100",400,"Vinyl","Handgards","Rolled","Wrist","","","","304362393 - BEK - Gloves - PVC 4/100 PP - L - Vinyl Disposable Gloves","304362131 - Handgards - Gloves - SYN 10/100 PF - S - Synthetic Disposable Gloves"]
["304762824","Gloves","Handgards","Handgards","","XL","LTX 4/100 PP","Latex Disposable Gloves","4/100","Ivory","Powdered","","Vinyl Disposable Gloves","4/100",400,"Vinyl","Handgards","Rolled",null,"","","","304362393 - Handgards - Gloves - PVC 4/100 PP - L - Vinyl Disposable Gloves","304362132 - Handgards - Gloves - SYN 10/100 PF - M - Synthetic Disposable Gloves"]
["304763001","Gloves","Handgards","Handgards","","S","LTX 10/100 PF","Latex Disposable Gloves","10/100","Ivory","Powder Free","","Vinyl Disposable Gloves","4/100",400,"Vinyl","Handgards","Rolled","Wrist","","","","304362392 - Sysco - Gloves - PVC 4/100 PP - M - Vinyl Disposable Gloves","304362133 - Handgards - Gloves - SYN 10/100 PF - L - Synthetic Disposable Gloves"]
["304763002","Gloves","Handgards","Handgards","","M","LTX 10/100 PF","Latex Disposable Gloves","10/100","Ivory","Powder Free","Flat Pack","Valugards High Density Sandwich Bags","1/2000",2000,"High Density Food Storage Bag","Valugards","",null,"None","None","None","304985550 - Handgards - Bags - VAL SB 10X11 YL - 10 x 11 - Valugards High Density Sandwich Bags","304362134 - Handgards - Gloves - SYN 10/100 PF - XL - Synthetic Disposable Gloves"]
["304763003","Gloves","Handgards","Handgards","","L","LTX 10/100 PF","Latex Disposable Gloves","10/100","Ivory","Powder Free","","Latex Exam Grade Disposable Gloves","10/100",1000,"Latex","ExamGards","",null,"","","","304750064 - Handgards - Gloves - LTX EXAM 10/100 PP - XL - Latex Exam Grade Disposable Gloves","304362141 - Handgards - Gloves - SYN EXAM 10/100 PF - S - Synthetic Exam Disposable Gloves"]
["304763004","Gloves","Handgards","Handgards","","XL","LTX 10/100 PF","Latex Disposable Gloves","10/100","Ivory","Powder Free","Flat Pack","Valugards High Density Sandwich Bags","1/2000",2000,"High Density Food Storage Bag","Valugards","",null,"None","None","","304985551 - Handgards - Bags - VAL SB 10X11 CLR - 10 x 11 - Valugards High Density Sandwich Bags","304362141 - Sysco - Gloves - SYN EXAM 10/100 PF - S - Synthetic Exam Disposable Gloves"]
["304763021","Gloves","Handgards","Handgards","","S","LTX 4/100 PF","Latex Disposable Gloves","4/100","Ivory","Powder Free","","Latex Exam Disposable Gloves","10/100",1000,"Latex","ExamGards","Rolled",null,"","","","304750071 - Handgards - Gloves - LTX EXAM 10/100 PF - S - Latex Exam Disposable Gloves","304362142 - Handgards - Gloves - SYN EXAM 10/100 PF - M - Synthetic Exam Disposable Gloves"]
["304763022","Gloves","Handgards","Handgards","","M","LTX 4/100 PF","Latex Disposable Gloves","4/100","Ivory","Powder Free","Flat Pack","High Density ZipLess Reclosable Quart bags","1/500",500,"High Density Reclosable bags","ZipGards","",null,"None","None","Tacky Strip","304985620 - Handgards - Bags - ZL32 - 7 x 8 - High Density ZipLess Reclosable Quart bags","304362142 - Sysco - Gloves - SYN EXAM 10/100 PF - M - Synthetic Exam Disposable Gloves"]
["304763023","Gloves","Handgards","Handgards","","L","LTX 4/100 PF","Latex Disposable Gloves","4/100","Ivory","Powder Free","","Latex Exam Disposable Gloves","10/100",1000,"Latex","ExamGards","Rolled","Wrist","","","","304750072 - Sysco - Gloves - LTX EXAM 10/100 PF - M - Latex Exam Disposable Gloves","304362143 - Handgards - Gloves - SYN EXAM 10/100 PF - L - Synthetic Exam Disposable Gloves"]
["304763024","Gloves","Handgards","Handgards","","XL","LTX 4/100 PF","Latex Disposable Gloves","4/100","Ivory","Powder Free","Flat Pack","High Density ZipLess Reclosable Pint bags","1/500",500,"High Density Reclosable bags","ZipGards","",null,"None","None","Tacky Strip","304985610 - Handgards - Bags - ZL6 - 6.5 x 6 - High Density ZipLess Reclosable Pint bags","304362143 - Sysco - Gloves - SYN EXAM 10/100 PF - L - Synthetic Exam Disposable Gloves"]
["304763443","Gloves","Handgards","Handgards",null,"OSFM","LTX FCOT PF FS","Latex Finger Cot Foodservice","6/144","Ivory","Powder Free","","Latex Exam Disposable Gloves","10/100",1000,"Latex","ExamGards","Rolled","Wrist","","","","304750071 - Sysco - Gloves - LTX EXAM 10/100 PF - S - Latex Exam Disposable Gloves","304362144 - Handgards - Gloves - SYN EXAM 10/100 PF - XL - Synthetic Exam Disposable Gloves"]
["303764041","Apparel","PFG","First Mark","253655","28 x 46","PFG AMEW APRON 253655","Medium Duty Embossed Apron","1/100","White","","Flat Pack","High Density ZipLess Reclosable Pint bags","1/500",500,"High Density Reclosable bags","ZipGards","","","None","None","Tacky Strip","304985610 - PFS - Bags - ZL6 - 6.5 x 6 - High Density ZipLess Reclosable Pint bags","304362191 - Handgards - Gloves - PVC 10/100 PP - S - Vinyl Disposable Gloves"]
["303764042","Apparel","PFG","First Mark","253654","28 x 46","PFG AHEW APRON 253654","Heavy Duty Embossed Apron","1/100","White","","","Latex Exam Disposable Gloves","10/100",1000,"Latex","ExamGards","Rolled",null,"","","","304750072 - Handgards - Gloves - LTX EXAM 10/100 PF - M - Latex Exam Disposable Gloves","304362191 - Sysco - Gloves - PVC 10/100 PP - S - Vinyl Disposable Gloves"]
["304663114","Apparel","PFG","Silver Source","253656","28 x 46","PFG SS ECONOMY APRON 253656","Light Duty Embossed Apron - Economy","10/100","White","","","Nitrile Disposable Gloves","4/100",400,"Nitrile","Handgards","Rolled",null,"","","","304362522 - Handgards - Gloves - NIT 4/100 PP - M - Nitrile Disposable Gloves","304362192 - Handgards - Gloves - PVC 10/100 PP - M - Vinyl Disposable Gloves"]
["303363011","Gloves","PFG","First Mark","981281","S","PFG POLY 4/250 SM GLV 981281","Poly Disposable Gloves","4/250","Clear","Powder Free","Full Saddle","High Density Weekly Preportioning Bags","1/2000",2000,"High Density Preportion bags","TuffGards","","","7 Days","Various","1¾\" Flip Lock","303679817 - Sysco - Bags - PB8.5WK - 6.5 x 7 - High Density Weekly Preportioning Bags","304362194 - Handgards - Gloves - PVC 10/100 PP - XL - Vinyl Disposable Gloves"]
["303363012","Gloves","PFG","First Mark","981280","M","PFG POLY 4/250 MD GLV 981280","Poly Disposable Gloves","4/250","Clear","Powder Free","Flat Pack","High Density ZipLess Reclosable Quart bags","1/500",500,"High Density Reclosable bags","ZipGards","","","None","None","Tacky Strip","304985620 - PFS - Bags - ZL32 - 7 x 8 - High Density ZipLess Reclosable Quart bags","304362194 - Sysco - Gloves - PVC 10/100 PP - XL - Vinyl Disposable Gloves"]
["303363013","Gloves","PFG","First Mark","981278","L","PFG POLY 4/250 LG GLV 981278","Poly Disposable Gloves","4/250","Clear","Powder Free","","Latex Exam Disposable Gloves","10/100",1000,"Latex","ExamGards","Rolled","Wrist","","","","304750073 - Sysco - Gloves - LTX EXAM 10/100 PF - L - Latex Exam Disposable Gloves","304362391 - Handgards - Gloves - PVC 4/100 PP - S - Vinyl Disposable Gloves"]
["303363482","Gloves","PFG","Silver Source","252042","M","PFG POLY 4/500 MD GLV 252042","Poly Disposable Gloves","4/500","Clear","Powder Free","Flat Pack","Low Density Sandwich Bags","1/2000",2000,"Low Density Food Storage Bags","TuffGards","",null,"None","None","1¾\" Flip Lock","304985495 - Handgards - Bags - LDF 7X7 - 7 x 7 - Low Density Sandwich Bags","304362391 - BEK - Gloves - PVC 4/100 PP - S - Vinyl Disposable Gloves"]
["303363483","Gloves","PFG","Silver Source","252043","L","PFG POLY 4/500 LG GLV 252043","Poly Disposable Gloves","4/500","Clear","Powder Free","","Valugards Latex Disposable Gloves","10/100",1000,"Latex","Valugards","Rolled",null,"","","","304750131 - Handgards - Gloves - VAL LTX 10/100 PP - S - Valugards Latex Disposable Gloves","304362391 - PFS - Gloves - PVC 4/100 PP - S - Vinyl Disposable Gloves"]
["304340341","Gloves","PFG","Silver Source","441169","S","PFG SS NIT PF AMETHYST 10/100 SM 441169","Nitrile Disposable Gloves","10/100","Amethyst","Powder Free","","Heavy Duty Utility Latex Reusable Gloves","4/12",48,"Latex","Handgards","Straight",null,"","","","303400532 - Handgards - Gloves - LTX 4/12-YL - M - Heavy Duty Utility Latex Reusable Gloves","304362391 - Sysco - Gloves - PVC 4/100 PP - S - Vinyl Disposable Gloves"]
["304340342","Gloves","PFG","Silver Source","441171","M","PFG SS NIT PF AMETHYST 10/100 MD 441171","Nitrile Disposable Gloves","10/100","Amethyst","Powder Free","","Heavy Duty Utility Latex Reusable Gloves","4/12",48,"Latex","Handgards","Straight",null,"","","","303400533 - Handgards - Gloves - LTX 4/12-YL - L - Heavy Duty Utility Latex Reusable Gloves","304362392 - Handgards - Gloves - PVC 4/100 PP - M - Vinyl Disposable Gloves"]
["304340343","Gloves","PFG","Silver Source","441172","L","PFG SS NIT PF AMETHYST 10/100 LG 441172","Nitrile Disposable Gloves","10/100","Amethyst","Powder Free","","Heavy Duty Utility Latex Reusable Gloves","4/12",48,"Latex","Handgards","Straight",null,"","","","303400534 - Handgards - Gloves - LTX 4/12-YL - XL - Heavy Duty Utility Latex Reusable Gloves","304362392 - BEK - Gloves - PVC 4/100 PP - M - Vinyl Disposable Gloves"]
["304340344","Gloves","PFG","Silver Source","441173","XL","PFG SS NIT PF AMETHYST 10/100 XL 441173","Nitrile Disposable Gloves","10/100","Amethyst","Powder Free","","Heavy Duty Utility Vinyl Reusable Gloves","1/200",200,"Vinyl","Handgards","",null,"","","","303400592 - Handgards - Gloves - ORANGE PVC - M - Heavy Duty Utility Vinyl Reusable Gloves","304362392 - PFS - Gloves - PVC 4/100 PP - M - Vinyl Disposable Gloves"]
["304362301","Gloves","PFG","First Mark","981332","S","PFG PVC 4/100 PF SM GLV 981322","Vinyl Disposable Gloves","4/100","Clear","Powder Free","","Valugards Vinyl Gloves","10/100",1000,"Vinyl","Valugards","Rolled","Wrist","","","","304340183 - Sysco - Gloves - VAL PVC 10/100 PF - L - Valugards Vinyl Gloves","304362392 - Sysco - Gloves - PVC 4/100 PP - M - Vinyl Disposable Gloves"]
["304362302","Gloves","PFG","First Mark","981330","M","PFG PVC 4/100 PF MD GLV 981330","Vinyl Disposable Gloves","4/100","Clear","Powder Free","","Valugards Vinyl Gloves","10/100",1000,"Vinyl","Valugards","Rolled","Wrist","","","","304340183 - PFS - Gloves - VAL PVC 10/100 PF - L - Valugards Vinyl Gloves","304362393 - Handgards - Gloves - PVC 4/100 PP - L - Vinyl Disposable Gloves"]
["304362303","Gloves","PFG","First Mark","981311","L","PFG PVC 4/100 PF LG GLV 981311","Vinyl Disposable Gloves","4/100","Clear","Powder Free","","Valugards Vinyl Gloves","10/100",1000,"Vinyl","Valugards","Rolled",null,"","","","304340184 - Handgards - Gloves - VAL PVC 10/100 PF - XL - Valugards Vinyl Gloves","304362393 - BEK - Gloves - PVC 4/100 PP - L - Vinyl Disposable Gloves"]
["304362304","Gloves","PFG","First Mark","921989","XL","PFG PVC 4/100 PF XL GLV 921989","Vinyl Disposable Gloves","4/100","Clear","Powder Free","","Valugards Vinyl Gloves","10/100",1000,"Vinyl","Valugards","Rolled","Wrist","","","","304340184 - Sysco - Gloves - VAL PVC 10/100 PF - XL - Valugards Vinyl Gloves","304362393 - Sysco - Gloves - PVC 4/100 PP - L - Vinyl Disposable Gloves"]
["304362311","Gloves","PFG","First Mark","981310","S","PFG PVC 4/100 PP SM GLV 981310","Vinyl Disposable Gloves","4/100","Clear","Powdered","","Medium Duty Smooth Apron","1/200",200,"Low Density Poly Aprons","NeatGards","",null,"","","","303764024 - Handgards - Apparel - AMSC - 28 x 46 - Medium Duty Smooth Apron","304362393 - PFS - Gloves - PVC 4/100 PP - L - Vinyl Disposable Gloves"]
["304362312","Gloves","PFG","First Mark","981308","M","PFG PVC 4/100 PP MD GLV 981308","Vinyl Disposable Gloves","4/100","Clear","Powdered","","Medium Duty Smooth Apron","1/100",100,"Low Density Poly Aprons","NeatGards","",null,"","","","303764025 - Handgards - Apparel - AMSW - 28 x 46 - Medium Duty Smooth Apron"]
["304362313","Gloves","PFG","First Mark","981305","L","PFG PVC 4/100 PP LG GLV 981305","Vinyl Disposable Gloves","4/100","Clear","Powdered","","Medium Duty Smooth Apron","5/100",500,"Low Density Poly Aprons","NeatGards","","","","","","303764025 - Sysco - Apparel - AMSW - 28 x 46 - Medium Duty Smooth Apron"]
["304363191","Gloves","PFG","Silver Source","240773","S","PFG SS PVC 10/100 PP SM GLV 240773","Vinyl Disposable Gloves","10/100","Clear","Powdered","","Valugards Vinyl Gloves","10/100",1000,"Vinyl","Valugards","Rolled",null,"","","","304340174 - Handgards - Gloves - VAL PVC 10/100 PP - XL - Valugards Vinyl Gloves","304362394 - BEK - Gloves - PVC 4/100 PP - XL - Vinyl Disposable Gloves"]
["304363192","Gloves","PFG","Silver Source","240774","M","PFG SS PVC 10/100 PP MD GLV 240774","Vinyl Disposable Gloves","10/100","Clear","Powdered","","Valugards Vinyl Gloves","10/100",1000,"Vinyl","Valugards","Rolled","Wrist","","","","304340174 - Sysco - Gloves - VAL PVC 10/100 PP - XL - Valugards Vinyl Gloves","304362411 - Handgards - Gloves - PVC 4/100 PF - S - Vinyl Disposable Gloves"]
["304363193","Gloves","PFG","Silver Source","240775","L","PFG SS PVC 10/100 PP LG GLV 240775","Vinyl Disposable Gloves","10/100","Clear","Powdered","","Medium Duty Embossed Apron","1/100",100,"Low Density Poly Aprons","NeatGards","","","","","","303764020 - BEK - Apparel - AMEW - 28 x 46 - Medium Duty Embossed Apron","304362411 - Sysco - Gloves - PVC 4/100 PF - S - Vinyl Disposable Gloves"]
["304363194","Gloves","PFG","Silver Source","265690","XL","PFG SS PVC 10/100 PP XL GLV 265690","Vinyl Disposable Gloves","10/100","Clear","Powdered","","Medium Duty Embossed Apron","5/100",500,"Low Density Poly Aprons","NeatGards","","","","","","303764020 - Sysco - Apparel - AMEW - 28 x 46 - Medium Duty Embossed Apron","304362411 - BEK - Gloves - PVC 4/100 PF - S - Vinyl Disposable Gloves"]
["304363201","Gloves","PFG","Silver Source","240776","S","PFG SS PVC 10/100 PF SM GLV 240776","Vinyl Disposable Gloves","10/100","Clear","Powder Free","","Light Duty Embossed Apron","1/100",100,"Low Density Poly Aprons","NeatGards","",null,"","","","303764021 - Handgards - Apparel - ALEW - 28 x 46 - Light Duty Embossed Apron","304362411 - PFS - Gloves - PVC 4/100 PF - S - Vinyl Disposable Gloves"]
["304363202","Gloves","PFG","Silver Source","240779","M","PFG SS PVC 10/100 PF MD GLV 240779","Vinyl Disposable Gloves","10/100","Clear","Powder Free","","Heavy Duty Embossed Apron","1/100",100,"Low Density Poly Aprons","NeatGards","",null,"","","","303764022 - Handgards - Apparel - AHEW - 28 x 46 - Heavy Duty Embossed Apron"]
["304363203","Gloves","PFG","Silver Source","240780","L","PFG SS PVC 10/100 PF LG GLV 240780","Vinyl Disposable Gloves","10/100","Clear","Powder Free","","Valugards Vinyl Gloves","10/100",1000,"Vinyl","Valugards","Rolled",null,"","","","304340172 - Handgards - Gloves - VAL PVC 10/100 PP - M - Valugards Vinyl Gloves"]
["304363204","Gloves","PFG","Silver Source","265691","XL","PFG SS PVC 10/100 PF XL GLV 265691","Vinyl Disposable Gloves","10/100","Clear","Powder Free","","Valugards Vinyl Gloves","10/100",1000,"Vinyl","Valugards","Rolled","Wrist","","","","304340172 - Sysco - Gloves - VAL PVC 10/100 PP - M - Valugards Vinyl Gloves"]
["304363271","Gloves","PFG","Silver Source","350957","S","PFG SS PF ULTRATOUCH 10/100 SM GLV 350957","Ultratouch Synthetic Disposable Gloves","10/100","Blurple","Powder Free","","Valugards Vinyl Gloves","10/100",1000,"Vinyl","Valugards","Rolled","Wrist","","","","304340172 - PFS - Gloves - VAL PVC 10/100 PP - M - Valugards Vinyl Gloves"]
["304363272","Gloves","PFG","Silver Source","350958","M","PFG SS PF ULTRATOUCH 10/100 MD GLV 350958","Ultratouch Synthetic Disposable Gloves","10/100","Blurple","Powder Free","","Valugards Vinyl Gloves","10/100",1000,"Vinyl","Valugards","Rolled",null,"","","","304340173 - Handgards - Gloves - VAL PVC 10/100 PP - L - Valugards Vinyl Gloves"]
["304363273","Gloves","PFG","Silver Source","350960","L","PFG SS PF ULTRATOUCH 10/100 LG GLV 350960","Ultratouch Synthetic Disposable Gloves","10/100","Blurple","Powder Free","","Valugards Vinyl Gloves","4/100",400,"Vinyl","Valugards","Rolled",null,"","","","304340204 - Handgards - Gloves - VAL PVC 4/100 PP - XL - Valugards Vinyl Gloves"]
["304363274","Gloves","PFG","Silver Source","350962","XL","PFG SS PF ULTRATOUCH 10/100 XL GLV 350962","Ultratouch Synthetic Disposable Gloves","10/100","Blurple","Powder Free","","Valugards Vinyl Gloves","4/100",400,"Vinyl","Valugards","Rolled",null,"","","","304340211 - Handgards - Gloves - VAL PVC 4/100 PF - S - Valugards Vinyl Gloves"]
["304363461","Gloves","PFG","First Mark","559403","S","PFG FM NIT PF BLK 4/100 SM 559403","Black Nitrile Foodservice Disposable Gloves","4/100","Black","Powder Free","","Valugards Vinyl Gloves","4/100",400,"Vinyl","Valugards","Rolled",null,"","","","304340212 - Handgards - Gloves - VAL PVC 4/100 PF - M - Valugards Vinyl Gloves"]
["304363462","Gloves","PFG","First Mark","559404","M","PFG FM NIT PF BLK 4/100 MD 559404","Black Nitrile Foodservice Disposable Gloves","4/100","Black","Powder Free","","Valugards Vinyl Gloves","4/100",400,"Vinyl","Valugards","Rolled","Wrist","","","","304340212 - Sysco - Gloves - VAL PVC 4/100 PF - M - Valugards Vinyl Gloves"]
["304363463","Gloves","PFG","First Mark","559405","L","PFG FM NIT PF BLK 4/100 LG 559405","Black Nitrile Foodservice Disposable Gloves","4/100","Black","Powder Free","","Heavy Duty Utility Vinyl Reusable Gloves","1/200",200,"Vinyl","Handgards","",null,"","","","303400593 - Handgards - Gloves - ORANGE PVC - L - Heavy Duty Utility Vinyl Reusable Gloves"]
["304363464","Gloves","PFG","First Mark","559406","XL","PFG FM NIT PF BLK 4/100 XL 559406","Black Nitrile Foodservice Disposable Gloves","4/100","Black","Powder Free","","Heavy Duty Utility Vinyl Reusable Gloves","1/200",200,"Vinyl","Handgards","",null,"","","","303400594 - Handgards - Gloves - ORANGE PVC - XL - Heavy Duty Utility Vinyl Reusable Gloves"]
["304763101","Gloves","PFG","First Mark","240758","S","PFG LTX PP 4/100 SM GLV 240758","Latex Disposable Gloves","4/100","Ivory","Powdered","","Heavy Duty Utility Vinyl Reusable Gloves","1/200",200,"Vinyl","Handgards","",null,"","","","303400602 - Handgards - Gloves - YELLOW PVC - M - Heavy Duty Utility Vinyl Reusable Gloves"]
["304763102","Gloves","PFG","First Mark","240786","M","PFG LTX PP 4/100 MD GLV 240786","Latex Disposable Gloves","4/100","Ivory","Powdered","","Heavy Duty Utility Vinyl Reusable Gloves","1/200",200,"Vinyl","Handgards","",null,"","","","303400603 - Handgards - Gloves - YELLOW PVC - L - Heavy Duty Utility Vinyl Reusable Gloves","304362412 - Sysco - Gloves - PVC 4/100 PF - M - Vinyl Disposable Gloves"]
["304763103","Gloves","PFG","First Mark","240759","L","PFG LTX PP 4/100 LG GLV 240759","Latex Disposable Gloves","4/100","Ivory","Powdered","","Valugards Latex Disposable Gloves","10/100",1000,"Latex","Valugards","Rolled","Wrist","","","","304750142 - Sysco - Gloves - VAL LTX 10/100 PF - M - Valugards Latex Disposable Gloves","304362413 - Handgards - Gloves - PVC 4/100 PF - L - Vinyl Disposable Gloves"]
["304763111","Gloves","PFG","First Mark","240762","S","PFG LTX PF 4/100 SM 240762","Latex Disposable Gloves","4/100","Ivory","Powder Free","","Valugards Latex Disposable Gloves","10/100",1000,"Latex","Valugards","Rolled",null,"","","","304750143 - Handgards - Gloves - VAL LTX 10/100 PF - L - Valugards Latex Disposable Gloves","304362413 - Sysco - Gloves - PVC 4/100 PF - L - Vinyl Disposable Gloves"]
["304763112","Gloves","PFG","First Mark","240787","M","PFG LTX PF 4/100 MD 240787","Latex Disposable Gloves","4/100","Ivory","Powder Free","","Valugards Latex Disposable Gloves","10/100",1000,"Latex","Valugards","Rolled","Wrist","","","","304750143 - PFS - Gloves - VAL LTX 10/100 PF - L - Valugards Latex Disposable Gloves","304362413 - PFS - Gloves - PVC 4/100 PF - L - Vinyl Disposable Gloves"]
["304763113","Gloves","PFG","First Mark","240763","L","PFG LTX PF 4/100 LG 240763","Latex Disposable Gloves","4/100","Ivory","Powder Free","","Valugards Latex Disposable Gloves","10/100",1000,"Latex","Valugards","Rolled","Wrist","","","","304750134 - PFS - Gloves - VAL LTX 10/100 PP - XL - Valugards Latex Disposable Gloves","304362413 - BEK - Gloves - PVC 4/100 PF - L - Vinyl Disposable Gloves"]
["304763121","Gloves","PFG","Silver Source","240781","S","PFG SS LTX 10/100 PP SM GLV 240781","Latex Disposable Gloves","10/100","Ivory","Powdered","","Valugards Latex Disposable Gloves","10/100",1000,"Latex","Valugards","Rolled","Wrist","","","","304750134 - Sysco - Gloves - VAL LTX 10/100 PP - XL - Valugards Latex Disposable Gloves","304362414 - Handgards - Gloves - PVC 4/100 PF - XL - Vinyl Disposable Gloves"]
["304763122","Gloves","PFG","Silver Source","240782","M","PFG SS LTX 10/100 PP MD GLV 240782","Latex Disposable Gloves","10/100","Ivory","Powdered","","Valugards Latex Disposable Gloves","10/100",1000,"Latex","Valugards","Rolled",null,"","","","304750141 - Handgards - Gloves - VAL LTX 10/100 PF - S - Valugards Latex Disposable Gloves","304362414 - Sysco - Gloves - PVC 4/100 PF - XL - Vinyl Disposable Gloves"]
["304763123","Gloves","PFG","Silver Source","240764","L","PFG SS LTX 10/100 PP LG GLV 240764","Latex Disposable Gloves","10/100","Ivory","Powdered","","Valugards Latex Disposable Gloves","10/100",1000,"Latex","Valugards","Rolled","Wrist","","","","304750141 - Sysco - Gloves - VAL LTX 10/100 PF - S - Valugards Latex Disposable Gloves","304362414 - PFS - Gloves - PVC 4/100 PF - XL - Vinyl Disposable Gloves"]
["304763124","Gloves","PFG","Silver Source","265692","XL","PFG SS LTX 10/100 PP XL GLV 265692","Latex Disposable Gloves","10/100","Ivory","Powdered","","Valugards Latex Disposable Gloves","10/100",1000,"Latex","Valugards","Rolled","Wrist","","","","304750141 - PFS - Gloves - VAL LTX 10/100 PF - S - Valugards Latex Disposable Gloves","304362414 - BEK - Gloves - PVC 4/100 PF - XL - Vinyl Disposable Gloves"]
["304763131","Gloves","PFG","Silver Source","240765","S","PFG SS LTX 10/100 PF SM GLV 240765","Latex Disposable Gloves","10/100","Ivory","Powder Free","","Valugards Latex Disposable Gloves","10/100",1000,"Latex","Valugards","Rolled",null,"","","","304750142 - Handgards - Gloves - VAL LTX 10/100 PF - M - Valugards Latex Disposable Gloves","304362501 - Handgards - Gloves - SYN 4/100 PP - S - Synthetic Disposable Gloves"]
["304763132","Gloves","PFG","Silver Source","240766","M","PFG SS LTX 10/100 PF MD GLV 240766","Latex Disposable Gloves","10/100","Ivory","Powder Free","","Valugards Latex Disposable Gloves","10/100",1000,"Latex","Valugards","Rolled","Wrist","","","","304750142 - PFS - Gloves - VAL LTX 10/100 PF - M - Valugards Latex Disposable Gloves","304362501 - Sysco - Gloves - SYN 4/100 PP - S - Synthetic Disposable Gloves"]
["304763133","Gloves","PFG","Silver Source","240767","L","PFG SS LTX 10/100 PF LG GLV 240767","Latex Disposable Gloves","10/100","Ivory","Powder Free",null,null,null,null,null,null,null,null,null,null,null,null,"304362502 - Handgards - Gloves - SYN 4/100 PP - M - Synthetic Disposable Gloves"]
["304763134","Gloves","PFG","Silver Source","265693","XL","PFG SS LTX 10/100 PF XL GLV 265693","Latex Disposable Gloves","10/100","Ivory","Powder Free",null,null,null,null,null,null,null,null,null,null,null,null,"304362501 - BEK - Gloves - SYN 4/100 PP - S - Synthetic Disposable Gloves"]
["303578506","Apparel","Sysco","SYS Classic","5330915","15.5 x 20","SYS ADULT LOBSTER BIB 1/100 5330915","Low Density Embossed Adult Bibs-Lobster","1/500","White","",null,null,null,null,null,null,null,null,null,null,null,null,"304362501 - PFS - Gloves - SYN 4/100 PP - S - Synthetic Disposable Gloves"]
["303764613","Apparel","Sysco","SYS Classic","5330899","28 x 46","SYS AHEW APRON 5/100 5330899","Heavy Duty Embossed Apron","5/100","White","",null,null,null,null,null,null,null,null,null,null,null,null,"304362502 - PFS - Gloves - SYN 4/100 PP - M - Synthetic Disposable Gloves"]
["303764808","Apparel","Sysco","SYS Classic","5330873","28 x 46","SYS AMEW APRON 5/100 5330873","Medium Duty Embossed Apron","5/100","White","","","Valugards Latex Disposable Gloves","10/100",1000,"Latex","Valugards","Rolled",null,"","","","304750134 - Handgards - Gloves - VAL LTX 10/100 PP - XL - Valugards Latex Disposable Gloves","304362502 - BEK - Gloves - SYN 4/100 PP - M - Synthetic Disposable Gloves"]
["303765607","Apparel","Sysco","SYS Classic","5330881","28 x 46","SYS ALSW APRON 5/100 5330881","Medium Duty Smooth Apron","5/100","White","","","Valugards Latex Disposable Gloves","10/100",1000,"Latex","Valugards","Rolled","Wrist","","","","304750133 - PFS - Gloves - VAL LTX 10/100 PP - L - Valugards Latex Disposable Gloves","304362502 - Sysco - Gloves - SYN 4/100 PP - M - Synthetic Disposable Gloves"]
["303766407","Apparel","Sysco","SYS Classic","5330717","28 x 46","SYS ALSW APRON 5/100 5330717","Light Duty Smooth Apron","5/100","White","","","Valugards Latex Disposable Gloves","10/100",1000,"Latex","Valugards","Rolled","Wrist","","","","304750133 - Sysco - Gloves - VAL LTX 10/100 PP - L - Valugards Latex Disposable Gloves","304362503 - Handgards - Gloves - SYN 4/100 PP - L - Synthetic Disposable Gloves"]
["303679041","Bags","Sysco","SYS Classic","7041552","6.5 x 7","PB8.5SU","High Density Daily Preportioning Bags","1/2000","Clear"]
["303679042","Bags","Sysco","SYS Classic","7041626","6.5 x 7","PB8.5MO","High Density Daily Preportioning Bags","1/2000","Clear"]
["303679043","Bags","Sysco","SYS Classic","7041629","6.5 x 7","PB8.5TU","High Density Daily Preportioning Bags","1/2000","Clear"]
["303679044","Bags","Sysco","SYS Classic","7041651","6.5 x 7","PB8.5WE","High Density Daily Preportioning Bags","1/2000","Clear"]
["303679045","Bags","Sysco","SYS Classic","7041654","6.5 x 7","PB8.5TH","High Density Daily Preportioning Bags","1/2000","Clear"]
["303679046","Bags","Sysco","SYS Classic","7041652","6.5 x 7","PB8.5FR","High Density Daily Preportioning Bags","1/2000","Clear"]
["303679047","Bags","Sysco","SYS Classic","7041659","6.5 x 7","PB8.5SA","High Density Daily Preportioning Bags","1/2000","Clear"]
["303679716","Bags","Sysco","SYS Classic","5330733","8.5 x 8.5","SYS D90 DELI BAG 1/2000 5330733","High Density Deli Sandwich Bags","1/2000","Clear","","Roll Pack","Low Density Food Storage Bags","1/500",500,"Low Density Food Storage Bags","TuffGards","","","None","None","None","304985386 - Sysco - Bags - LD21635 - 21 x 6 x 35 - Low Density Food Storage Bags","304362503 - Sysco - Gloves - SYN 4/100 PP - L - Synthetic Disposable Gloves"]
["303679721","Bags","Sysco","SYS Classic","5330709","5.5 x 5.5","SYS SB5.5 COOKIE BAG 1/2000 5330709","High Density Sandwich Bags","1/2000","Clear","","Roll Pack","Low Density Food Storage Bags","1/200",200,"Low Density Food Storage Bags","TuffGards","",null,"None","None","None","304985386 - Handgards - Bags - LD21635 - 21 x 6 x 35 - Low Density Food Storage Bags","304362503 - PFS - Gloves - SYN 4/100 PP - L - Synthetic Disposable Gloves"]
["303679722","Bags","Sysco","SYS Classic","5330774","5.5 x 5.5","SYS SB5.6CE COOKIE BAG 1/2000 5330774","High Density Cookie Bags","1/2000","Clear","","","Chef Hats Paper Wide Pleated - 9 inch with sizer (Lot 121)","12/1",12,"Chef Hats","NeatGards","","","","","","305115018 - Sysco - Expendables - CHEF HAT WIDE PLT WE 9 - 9 inch - Chef Hats Paper Wide Pleated - 9 inch with sizer (Lot 121)","304362503 - BEK - Gloves - SYN 4/100 PP - L - Synthetic Disposable Gloves"]
["303679857","Bags","Sysco","SYS Classic","7701311","6.5 x 7","SYS PB8.5 WEEKLY PB 7 DAYS 7701311","High Density Weekly Preportioning Bags","1/2000","Clear","","","Chef Hats Paper Wide Pleated - 9 inch with sizer (Lot 121)","12/1",12,"Chef Hats","NeatGards","",null,"","","","305115018 - Handgards - Expendables - CHEF HAT WIDE PLT WE 9 - 9 inch - Chef Hats Paper Wide Pleated - 9 inch with sizer (Lot 121)","304362504 - Handgards - Gloves - SYN 4/100 PP - XL - Synthetic Disposable Gloves"]
["303679973","Bags","Sysco","SYS Classic","5854377","52 x 80","SYS RP8052 BUN PAN RACK COVER 5854377","High Density Bun Pan Rack Cover","1/50","Clear","","","Chef Hats Paper Wide Pleated - 10 inch with sizer (Lot 122)","12/1",12,"Chef Hats","NeatGards","",null,"","","","305115019 - Handgards - Expendables - CHEF HAT WIDE PLT WE 10 - 10 inch - Chef Hats Paper Wide Pleated - 10 inch with sizer (Lot 122)","304362504 - BEK - Gloves - SYN 4/100 PP - XL - Synthetic Disposable Gloves"]
["303679983","Bags","Sysco","SYS Classic","6239552","18 x 14","SYS SPL18X14 PAN LINER 6239552","High Density Steam Pan Liners","1/250","Clear","","","Chef Hats Paper Wide Pleated - 10 inch with sizer (Lot 122)","12/1",12,"Chef Hats","NeatGards","","","","","","305115019 - Sysco - Expendables - CHEF HAT WIDE PLT WE 10 - 10 inch - Chef Hats Paper Wide Pleated - 10 inch with sizer (Lot 122)","304362511 - Handgards - Gloves - SYN 4/100 PF - S - Synthetic Disposable Gloves"]
["303679984","Bags","Sysco","SYS Classic","5330741","12 x 18","SYS FB18 FREEZER BAG ROLL 5330741","High Density Freezer Bags","1/1000","Clear","","","Examgards Black Nitrile Disposable Gloves","10/100",1000,"Nitrile","ExamGards","Rolled",null,"","","","304340283 - Handgards - Gloves - NIT BK 10/100 PF - L - Examgards Black Nitrile Disposable Gloves","304362511 - BEK - Gloves - SYN 4/100 PF - S - Synthetic Disposable Gloves"]
["303679986","Bags","Sysco","SYS Classic","4358982","18 x 24","SYS FB24 FREEZER BAG ROLL 4358982","High Density Freezer Bags","1/250","Clear","","","Examgards Black Nitrile Disposable Gloves","10/100",1000,"Nitrile","ExamGards","Rolled",null,"","","","304340284 - Handgards - Gloves - NIT BK 10/100 PF - XL - Examgards Black Nitrile Disposable Gloves","304362511 - Sysco - Gloves - SYN 4/100 PF - S - Synthetic Disposable Gloves"]
["303679987","Bags","Sysco","SYS Classic","4358974","10 x 14","SYS FB14 FREEZER BAG ROLL 4358974","High Density Freezer Bags","1/1000","Clear","","","Vinyl Exam Disposable Gloves","10/100",1000,"Vinyl","ExamGards","Rolled",null,"","","","304362071 - Handgards - Gloves - PVC EXAM 10/100 PF - S - Vinyl Exam Disposable Gloves","304362512 - Handgards - Gloves - SYN 4/100 PF - M - Synthetic Disposable Gloves"]
["303679993","Bags","Sysco","SYS Classic","5330766","6.5 x 9","SYS FB9 FREEZER BAG ROLL 5330766","High Density Freezer Bags","1/2000","Clear","","","Vinyl Exam Disposable Gloves","10/100",1000,"Vinyl","ExamGards","Rolled","Wrist","","","","304362071 - Sysco - Gloves - PVC EXAM 10/100 PF - S - Vinyl Exam Disposable Gloves","304362512 - Sysco - Gloves - SYN 4/100 PF - M - Synthetic Disposable Gloves"]
["303679994","Bags","Sysco","SYS Classic","4358958","27 x 37","SYS FB37 FREEZER BAG ROLL 4358958","High Density Freezer Bags","1/200","Clear","","","Prism Plastic Picks - Crystal - Triangle shaped - 5 in (Lot 280)","1/2500",2500,"Prism Picks - Plastic","SYS Classic","",null,"","","","305210222 - Handgards - Expendables - PICK PRISM TRI PLAS CRYSTAL 5 - 5 inch - Prism Plastic Picks - Crystal - Triangle shaped - 5 in (Lot 280)","304362512 - BEK - Gloves - SYN 4/100 PF - M - Synthetic Disposable Gloves"]
["304985002","Bags","Sysco","SYS Classic","7096468","34 X 18","SYS OPL 34X18 7096468 ","Nylon Ovenable Pan Liners","1/50","Clear"]
["304985005","Bags","Sysco","SYS Classic","7096467","13 X 18","SYS OPL 13X18 7096467","Nylon Ovenable Pan Liners","1/100","Clear"]
["304985006","Bags","Sysco","SYS Classic","7096471","18 X 14","SYS OPL 18X14 7096471","Nylon Ovenable Pan Insert Liners","1/100","Clear"]
["304985007","Bags","Sysco","SYS Classic","7096470","18 X 24","SYS OPL 18X24 7096470","Nylon Ovenable Pan Insert Liners","1/100","Clear"]
["304985008","Bags","Sysco","SYS Classic","7096459","19 X 14","SYS OPL 19X14 7096459","Nylon Ovenable Pan Liners","1/100","Clear"]
["304985009","Bags","Sysco","SYS Classic","7096462","19.5 X 10","SYS OPL 19.5X10 7096462","Nylon Ovenable Pan Liners","1/100","Clear"]
["304985010","Bags","Sysco","SYS Classic","7096092","23 X 14","SYS OPL 23X14 7096092","Nylon Ovenable Pan Liners","1/100","Clear"]
["304985011","Bags","Sysco","SYS Classic","7096469","34 X 12","SYS OPL 34X12 7096469","Nylon Ovenable Pan Liners","1/100","Clear"]
["304985012","Bags","Sysco","SYS Classic","7096095","34 X 16","SYS OPL 34X16 7096095","Nylon Ovenable Pan Liners","1/100","Clear"]
["304985015","Bags","Sysco","SYS Classic","7096425","24 X 17","SYS ORB 24X17 7096425","Nylon Ovenable Roasting Bags","1/100","Clear",""]
["304985016","Bags","Sysco","SYS Classic","7096480","34 X 25","SYS ORB 34X25 7096480","Nylon Ovenable Roasting Bags","1/100","Clear"]
["304985040","Bags","Sysco","SYS Classic","1847482","24 x 12","SYS OPL 24X12 PAN LINER 1847482","Nylon Ovenable Pan Liners","1/100","Clear","","","Prism Plastic Picks - Crystal - Triangle shaped - 5 in (Lot 280)","1/2500",2500,"Prism Picks - Plastic","SYS Classic","","","","","","305210222 - Sysco - Expendables - PICK PRISM TRI PLAS CRYSTAL 5 - 5 inch - Prism Plastic Picks - Crystal - Triangle shaped - 5 in (Lot 280)","304362513 - Handgards - Gloves - SYN 4/100 PF - L - Synthetic Disposable Gloves"]
["304985190","Bags","Sysco","SYS Classic","5330725","3.5 x 10.75","SYS SW10 SILVERWARE BAG 5330725","High Density Silverware Bags","1/2000","Clear","","","Medium Duty Embossed Apron","1/100",100,"Low Density Poly Aprons","NeatGards","","","","","","303764019 - BEK - Apparel - AMEC - 28 x 46 - Medium Duty Embossed Apron","304362513 - BEK - Gloves - SYN 4/100 PF - L - Synthetic Disposable Gloves"]
["304985191","Bags","Sysco","SYS Classic","4358990","6.5 x 7.5","SYS SB7.5 SANDWICH BAG 1/2000 4358990","High Density Sandwich Bags","","Clear","","","Medium Duty Embossed Apron","1/100",100,"Low Density Poly Aprons","NeatGards","",null,"","","","303764020 - Handgards - Apparel - AMEW - 28 x 46 - Medium Duty Embossed Apron","304362513 - Sysco - Gloves - SYN 4/100 PF - L - Synthetic Disposable Gloves"]
["304985210","Bags","Sysco","SYS Classic","4022307","6.5 x 7","SYS SB8.5 SANDWICH BAG 1/2000 4022307","High Density Sandwich Bags","1/2000","Clear","","","Medium Duty Embossed Apron","1/100",100,"Low Density Poly Aprons","NeatGards","","","","","","303764020 - PFS - Apparel - AMEW - 28 x 46 - Medium Duty Embossed Apron","304362514 - Handgards - Gloves - SYN 4/100 PF - XL - Synthetic Disposable Gloves"]
["304985430","Bags","Sysco","SYS Classic","7862339","21 x 6 x 35","SYS LD21635 BUN PAN BAG 1/500","Low Density Food Storage Bags","1/500","Clear","","","Sword Picks Plastic - Black - 4.5 in (Lot 245)","10/1000",10000,"Sword Picks - Plastic","","","","","","","305210219 - Sysco - Expendables - SWORD PICK BLACK 4.5 - 4.5 inch - Sword Picks Plastic - Black - 4.5 in (Lot 245)","304362514 - Sysco - Gloves - SYN 4/100 PF - XL - Synthetic Disposable Gloves"]
["304985450","Bags","Sysco","SYS Classic","7863890","6.5 x 7.5","SYS SB7.25 SANDWICH BAG 1/2000 7863890","High Density Sandwich Bags","1/2000","Clear","","","Prism Plastic Picks - Crystal - Triangle shaped - 3.5 in (Lot 270)","1/2500",2500,"Prism Picks - Plastic","","",null,"","","","305210221 - Handgards - Expendables - PICK PRISM TRI PLAS CRYSTAL 3.5 - 3.5 inch - Prism Plastic Picks - Crystal - Triangle shaped - 3.5 in (Lot 270)","304362514 - BEK - Gloves - SYN 4/100 PF - XL - Synthetic Disposable Gloves"]
["304985452","Bags","Sysco","SYS Classic","7863345","6.5 x 6","SYS ZG6 BAG 1/1000 7863345","Low Density Reclosable Pint Bags","2/500","Clear","","","Prism Plastic Picks - Crystal - Triangle shaped - 3.5 in (Lot 270)","1/2500",2500,"Prism Picks - Plastic","","","","","","","305210221 - Sysco - Expendables - PICK PRISM TRI PLAS CRYSTAL 3.5 - 3.5 inch - Prism Plastic Picks - Crystal - Triangle shaped - 3.5 in (Lot 270)","304362521 - Handgards - Gloves - NIT 4/100 PP - S - Nitrile Disposable Gloves"]
["304985473","Bags","Sysco","SYS Classic","7863059","10.5 x 11","SYS SZ128 BAG 1/250 7863059","Low Density Reclosable Gallon Slide Zip bags","1/250","Clear","","","Steak Markers Plastic - Pink - Medium Rare (Lot 160)","2/1000",2000,"Steak Markers - Plastic","Handgards","",null,"","","","305210223 - Handgards - Expendables - STEAK MARKER PINK MED/RARE -  - Steak Markers Plastic - Pink - Medium Rare (Lot 160)","304362522 - Handgards - Gloves - NIT 4/100 PP - M - Nitrile Disposable Gloves"]
["304985481","Bags","Sysco","SYS Classic","7861970","5.5 X 4.75 X 19","SYS LD5.5313 STORAGE BAG 1/1000 7861970","Low Density Food Storage Bags","1/1000","Clear","","","Steak Markers Plastic - Pink - Medium Rare (Lot 160)","2/1000",2000,"Steak Markers - Plastic","Handgards","","","","","","305210223 - Sysco - Expendables - STEAK MARKER PINK MED/RARE -  - Steak Markers Plastic - Pink - Medium Rare (Lot 160)","304362523 - Handgards - Gloves - NIT 4/100 PP - L - Nitrile Disposable Gloves"]
["304985483","Bags","Sysco","SYS Classic","7864061","6 x 3 x 15","SYS LD6315 STORAGE BAG 1/1000 7864061","Low Density Food Storage Bags","1/1000","Clear","","","Steak Markers Plastic - Red - Rare (Lot 165)","2/1000",2000,"Steak Markers - Plastic","Handgards","",null,"","","","305210224 - Handgards - Expendables - STEAK MARKER RED RARE -  - Steak Markers Plastic - Red - Rare (Lot 165)","304362524 - Handgards - Gloves - NIT 4/100 PP - XL - Nitrile Disposable Gloves"]
["304985484","Bags","Sysco","SYS Classic","7863857","8 x 3 x 15","SYS LD8315 STORAGE BAG 1/1000 7863857","Low Density Food Storage Bags","1/1000","Clear","","","Steak Markers Plastic - Red - Rare (Lot 165)","2/1000",2000,"Steak Markers - Plastic","Handgards","","","","","","305210224 - Sysco - Expendables - STEAK MARKER RED RARE -  - Steak Markers Plastic - Red - Rare (Lot 165)","304362531 - Handgards - Gloves - NIT 4/100 PF - S - Nitrile Disposable Gloves"]
["304985486","Bags","Sysco","SYS Classic","7864059","10 x 14","SYS LD1014 STORAGE BAG 1/500 7864059","Low Density Food Storage Bags","1/500","Clear","","","Steak Markers Plastic - White - Medium (Lot 170)","2/1000",2000,"Steak Markers - Plastic","Handgards","",null,"","","","305210225 - Handgards - Expendables - STEAK MARKER WHITE MED -  - Steak Markers Plastic - White - Medium (Lot 170)","304362532 - Handgards - Gloves - NIT 4/100 PF - M - Nitrile Disposable Gloves"]
["304985489","Bags","Sysco","SYS Classic","7862002","10 x 14","SYS FB14 FREEZER BAG ROLL 7862002","High Density Freezer Bags","1/1000","Clear","","","Vinyl Disposable Gloves","10/100",1000,"Vinyl","Valugards","Rolled",null,"","","","304362091 - Handgards - Gloves - PVC 10/100 PF BLUE - S - Vinyl Disposable Gloves","304362533 - Handgards - Gloves - NIT 4/100 PF - L - Nitrile Disposable Gloves"]
["304985491","Bags","Sysco","SYS Classic","7863802","10 x 8 x 24","SYS LD10824 STORAGE BAG 1/500 7863802","Low Density Food Storage Bags","1/500","Clear","","","Vinyl Disposable Gloves","10/100",1000,"Vinyl","Valugards","Rolled",null,"","","","304362092 - Handgards - Gloves - PVC 10/100 PF BLUE - M - Vinyl Disposable Gloves","304362534 - Handgards - Gloves - NIT 4/100 PF - XL - Nitrile Disposable Gloves"]
["304985520","Bags","Sysco","SYS Classic","7863540","7 x 8","SYS ZG32 BAG 1/500 7863540","Low Density Reclosable Quart Bags","1/500","Clear","","","Vinyl Disposable Gloves","10/100",1000,"Vinyl","Valugards","Rolled",null,"","","","304362094 - Handgards - Gloves - PVC 10/100 PF BLUE - XL - Vinyl Disposable Gloves","304362552 - Handgards - Gloves - SYN 10/100 PP - M - Synthetic Disposable Gloves"]
["304985530","Bags","Sysco","SYS Classic","7863634","10.5 x 10.5","SYS ZG128 BAG 1/250 7863634","Low Density Reclosable Gallon Bags","1/250","Clear","","","Vinyl Exam Disposable Powdered Gloves","10/100",1000,"Vinyl","Examgards","Rolled","Wrist","","","","304362082 - Sysco - Gloves - PVC EXAM 10/100 PP - M - Vinyl Exam Disposable Powdered Gloves","304362553 - Handgards - Gloves - SYN 10/100 PP - L - Synthetic Disposable Gloves"]
["304985535","Bags","Sysco","SYS Classic","7863662","13 x 15.5","SYS ZG256 BAG 1/100 7863662","Low Density 2 Gallon Reclosable Bags","1/100","Clear","","","Vinyl Exam Disposable Powdered Gloves","10/100",1000,"Vinyl","Examgards","Rolled",null,"","","","304362083 - Handgards - Gloves - PVC EXAM 10/100 PP - L - Vinyl Exam Disposable Powdered Gloves","304362554 - Handgards - Gloves - SYN 10/100 PP - XL - Synthetic Disposable Gloves"]
["304985536","Bags","Sysco","SYS Classic","0647469","4 x 2 x 8","SYS LD428 STORAGE BAG 1/1000 0647469","Low Density Food Storage Bags","1/1000","Clear","","","Vinyl Exam Disposable Powdered Gloves","10/100",1000,"Vinyl","Examgards","Rolled","Wrist","","","","304362083 - Sysco - Gloves - PVC EXAM 10/100 PP - L - Vinyl Exam Disposable Powdered Gloves"]
["304985537","Bags","Sysco","SYS Classic","0647432","5.5 X 4.75 X 19","SYS LD5.5313 STORAGE BAG 1/1000 0647432","Low Density Food Storage Bags","1/1000","Clear","","","Vinyl Exam Disposable Powdered Gloves","10/100",1000,"Vinyl","ExamGards","Rolled",null,"","","","304362084 - Handgards - Gloves - PVC EXAM 10/100 PP - XL - Vinyl Exam Disposable Powdered Gloves","304362852 - Handgards - Gloves - PVC EXAM 4/100 PF - M - Vinyl Exam Disposable Gloves"]
["304985538","Bags","Sysco","SYS Classic","0647455","6 x 3 x 15","SYS LD6315 STORAGE BAG 1/1000 0647455","Low Density Food Storage Bags","1/1000","Clear","","","Vinyl Disposable Gloves","10/100",1000,"Vinyl","Handgards","Rolled",null,"","","","304362123 - Handgards - Gloves - PVC 10/100 PF - L - Vinyl Disposable Gloves","304362853 - Handgards - Gloves - PVC EXAM 4/100 PF - L - Vinyl Exam Disposable Gloves"]
["304985539","Bags","Sysco","SYS Classic","0647497","8 x 3 x 15","SYS LD8315 STORAGE BAG 1/1000 0647497","Low Density Food Storage Bags","1/1000","Clear","","","Vinyl Disposable Gloves","10/100",1000,"Vinyl","Handgards","Rolled","Wrist","","","","304362123 - Sysco - Gloves - PVC 10/100 PF - L - Vinyl Disposable Gloves","304362854 - Handgards - Gloves - PVC EXAM 4/100 PF - XL - Vinyl Exam Disposable Gloves"]
["304985540","Bags","Sysco","SYS Classic","0647505","8 x 4 x 18","SYS LD8418 STORAGE BAG 1/1000 0647505","Low Density Food Storage Bags","1/1000","Clear","","","Vinyl Disposable Gloves","10/100",1000,"Vinyl","Handgards","Rolled",null,"","","","304362124 - Handgards - Gloves - PVC 10/100 PF - XL - Vinyl Disposable Gloves","304363041 - Handgards - Gloves - SYN ALOE 4/100 PF - S - Synthetic Disposable Gloves with Aloe"]
["304985541","Bags","Sysco","SYS Classic","7861931","21 x 6 x 35","SYS LD21635 BUN PAN BAG 1/200 7861931","Low Density Food Storage Bags","1/200","Clear","","","Vinyl Disposable Gloves","10/100",1000,"Vinyl","Handgards","Rolled","Wrist","","","","304362124 - Sysco - Gloves - PVC 10/100 PF - XL - Vinyl Disposable Gloves","304363042 - Handgards - Gloves - SYN ALOE 4/100 PF - M - Synthetic Disposable Gloves with Aloe"]
["304985543","Bags","Sysco","SYS Classic","7861895","18 x 24","SYS FB24 FREEZER BAG 1/250 7861895","High Density Freezer Bags","1/250","Clear","","","Vinyl Disposable Gloves","10/100",1000,"Vinyl","Handgards","Rolled",null,"","","","304362121 - Handgards - Gloves - PVC 10/100 PF - S - Vinyl Disposable Gloves","304363043 - Handgards - Gloves - SYN ALOE 4/100 PF - L - Synthetic Disposable Gloves with Aloe"]
["304985544","Bags","Sysco","SYS Classic","7863739","4 x 2 x 8","SYS LD428 STORAGE BAG 1/1000 7863739","Low Density Food Storage Bags","1/1000","Clear","","","Vinyl Disposable Gloves","10/100",1000,"Vinyl","Handgards","Rolled","Wrist","","","","304362121 - Sysco - Gloves - PVC 10/100 PF - S - Vinyl Disposable Gloves","304363044 - Handgards - Gloves - SYN ALOE 4/100 PF - XL - Synthetic Disposable Gloves with Aloe"]
["304985546","Bags","Sysco","SYS Classic","7863869","8 x 4 x 18","SYS LD8418 STORAGE BAG 1/1000 7863869","Low Density Food Storage Bags","1/1000","Clear","","","Vinyl Disposable Gloves","10/100",1000,"Vinyl","Handgards","Rolled",null,"","","","304362122 - Handgards - Gloves - PVC 10/100 PF - M - Vinyl Disposable Gloves","304363052 - Handgards - Gloves - PVC 4/100 PF YELLOW - M - Vinyl Disposable Gloves"]
["304986510","Bags","Sysco","SYS Classic","5096353","6.5 x 6","SYS ZG6 PINT BAG 1/500 5096353 2 Mil","Low Density Reclosable Bags ","1/500","Clear"]
["304986520","Bags","Sysco","SYS Classic","5109840","7 x 8","SYS ZG32 QUART BAG 1/500 5109840 2 Mil","Low Density Reclosable Bags ","1/500","Clear"]
["304986530","Bags","Sysco","SYS Classic","5109859","10.5 x 10.5","SYS ZG128 GALLON BAG 1/250 5109859 2 Mil","Low Density Reclosable Bags ","1/250","Clear"]
["304986535","Bags","Sysco","SYS Classic","5109867","13 x 15.5","SYS ZG256 2-GALLON BAG 1/100 5109867 2 Mil","Low Density Reclosable Bags ","1/100","Clear"]
["304986620","Bags","Sysco","SYS Classic","5109901","7 x 8 ","SYS ZG32 QUART BAG 1/500 5109901 2.7 Mil","Low Density Reclosable Freezer Bags","1/500","Clear"]
["304986630","Bags","Sysco","SYS Classic","5096413","10.5 x 11","SYS ZG128 GALLON BAG 1/250 5096413 2.7 Mil","Low Density Reclosable Freezer Bags","1/200","Clear"]
["304986635","Bags","Sysco","SYS Classic","5109915","13 x 15.5","SYS ZG256 2-GALLON BAG 1/100 5109915 2.7 Mil","Low Density Reclosable Freezer Bags","1/100","Clear"]
["304986711","Bags","Sysco","SYS Classic","5109945","7 x 7","SYS LDF 7x7 SANDWICH BAG 1/2000 5109945","Low Density Sandwich Bags","1/2000","Clear"]
["304986715","Bags","Sysco","SYS Classic","5109874","4 x 2 x 12","SYS LD4212 STORAGE BAG 1/1000 5109874 ","Low Density Food Storage Bags","1/1000","Clear"]
["304986719","Bags","Sysco","SYS Classic","5096427","6 x 3 x 12","SYS LD6312 STORAGE BAG 1/1000 5096427","Low Density Food Storage Bags","1/1000","Clear"]
["304986720","Bags","Sysco","SYS Classic","5109926","8 x 7","SYS ZG32 QUART BAG 1/250 5109926 1.75 Mil","Low Density Slide Zip Reclosable Bags ","1/250","Clear"]
["304986722","Bags","Sysco","SYS Classic","5096401","6 x 3 x 15","SYS LD6315 STORAGE BAG 1/1000 5096401 ","Low Density Food Storage Bags","1/1000","Clear"]
["304986725","Bags","Sysco","SYS Classic","5109891","8 x 4 x 18","SYS LD8418 STORAGE BAG 1/1000 5109891","Low Density Food Storage Bags","1/1000","Clear"]
["304986728","Bags","Sysco","SYS Classic","5096431","10 x 8 x 24","SYS LD10824 STORAGE BAG 1/500 5096431","Low Density Food Storage Bags","1/500","Clear"]
["304986731","Bags","Sysco","SYS Classic","5109953","18 x 24","SYS LD1824 STORAGE BAG 1/250 5109953","Low Density Food Storage Bags","1/250","Clear"]
["305111221","Expendables","Sysco","SYS Classic","2098205","21 inch","Bouffant Paper Cap 21\" - Pleated","Bouffant Paper Cap 21\" - Pleated","5/100","White","","","Vinyl Disposable Gloves","10/100",1000,"Vinyl","Handgards","Rolled","Wrist","","","","304362122 - Sysco - Gloves - PVC 10/100 PF - M - Vinyl Disposable Gloves","304363053 - Handgards - Gloves - PVC 4/100 PF YELLOW - L - Vinyl Disposable Gloves"]
["305111222","Expendables","Sysco","SYS Classic","2099313","21 inch","Overseas Paper Peaked Crown - Blue Stripe ","Overseas Paper Peaked Crown ","5/100","White","",null,null,null,null,null,null,null,null,null,null,null,null,"304363163 - Handgards - Gloves - PVC 4/100 PF GREEN - L - Vinyl Disposable Gloves"]
["305111223","Expendables","Sysco","SYS Classic","2099329","21 inch","Overseas Paper Round Crown ","Overseas Paper Round Crown","5/100","White","",null,null,null,null,null,null,null,null,null,null,null,null,"304363182 - Handgards - Gloves - PVC 4/100 PP RED - M - Vinyl Disposable Gloves"]
["305113001","Expendables","Sysco","SYS Classic","2099341","L","NYLON HAIRNET DARK BROWN LARGE LIGHTWEIGHT","Nylon Hairnet Dark Brown Large Lightweight","10/144","Dark Brown","",null,null,null,null,null,null,null,null,null,null,null,null,"304363183 - Handgards - Gloves - PVC 4/100 PP RED - L - Vinyl Disposable Gloves"]
["305113002","Expendables","Sysco","SYS Classic","2099359","L","NYLON HAIRNET DARK BLACK LARGE LIGHTWEIGHT","Nylon Hairnet Dark Black Large Lightweight","10/144","Black","","","Chef Hats Paper Fluted Small Pleats Econo - 7 inch (Lot 125)","12/1",12,"Chef Hats","NeatGards","","","","","","305115020 - Sysco - Expendables - CHEF HAT FLUTED PLT WE 7 - 7 inch - Chef Hats Paper Fluted Small Pleats Econo - 7 inch (Lot 125)","304363241 - Handgards - Gloves - VAL SYN 4/100 PF - S - Valugards Synthetic Disposable Gloves"]
["305113003","Expendables","Sysco","SYS Classic","2099361","L","NYLON HAIRNET LIGHT BROWN LARGE LIGHTWEIGHT","Nylon Hairnet Light Brown Large Lightweight (Lot 112)","10/144","Light Brown","","","Chef Hats Paper Fluted Small Pleats Econo - 9 inch (Lot 126)","12/1",12,"Chef Hats","NeatGards","",null,"","","","305115021 - Handgards - Expendables - CHEF HAT FLUTED PLT WE 9 - 9 inch - Chef Hats Paper Fluted Small Pleats Econo - 9 inch (Lot 126)","304363242 - Handgards - Gloves - VAL SYN 4/100 PF - M - Valugards Synthetic Disposable Gloves"]
["305115011","Expendables","Sysco","SYS Classic","2100679","7 inch","Chef Hats Paper Wide Pleated - 7 inch with sizer","Chef Hats Paper Wide Pleated - 7 inch with sizer","12/1","White","","","Chef Hats Paper Fluted Small Pleats Econo - 9 inch (Lot 126)","12/1",12,"Chef Hats","NeatGards","","","","","","305115021 - Sysco - Expendables - CHEF HAT FLUTED PLT WE 9 - 9 inch - Chef Hats Paper Fluted Small Pleats Econo - 9 inch (Lot 126)","304363244 - Handgards - Gloves - VAL SYN 4/100 PF - XL - Valugards Synthetic Disposable Gloves"]
["305115012","Expendables","Sysco","SYS Classic","2100467","9 inch","Chef Hats Paper Wide Pleated - 9 inch with sizer","Chef Hats Paper Wide Pleated - 9 inch with sizer","12/1","White","","","Chef Hats Paper Fluted Small Pleats Econo - 10 inch (Lot 130)","12/1",12,"Chef Hats","NeatGards","",null,"","","","305115022 - Handgards - Expendables - CHEF HAT FLUTED PLT WE 10 - 10 inch - Chef Hats Paper Fluted Small Pleats Econo - 10 inch (Lot 130)","304363251 - Handgards - Gloves - VAL SYN 4/100 PP - S - Valugards Synthetic Disposable Gloves"]
["305115013","Expendables","Sysco","SYS Classic","2100473","10 inch","Chef Hats Paper Wide Pleated - 10 inch with sizer","Chef Hats Paper Wide Pleated - 10 inch with sizer","12/1","White","","","Chef Hats Paper Fluted Small Pleats Econo - 10 inch (Lot 130)","12/1",12,"Chef Hats","NeatGards","","","","","","305115022 - Sysco - Expendables - CHEF HAT FLUTED PLT WE 10 - 10 inch - Chef Hats Paper Fluted Small Pleats Econo - 10 inch (Lot 130)","304363252 - Handgards - Gloves - VAL SYN 4/100 PP - M - Valugards Synthetic Disposable Gloves"]
["305115014","Expendables","Sysco","SYS Classic","2100487","7 inch","Chef Hats Paper Fluted Small Pleats Econo - 7 inch","Chef Hats Paper Fluted Small Pleats Econo - 7 inch","12/1","White","","","Arrow Picks Plastic - Assorted Colors 3.5 inch Round (Lot 200)","10/1000",10000,"Arrow Picks - Plastic","","",null,"","","","305210216 - Handgards - Expendables - ARROW PICK ASSRTD COLOR 3.5 - 3.5 inch - Arrow Picks Plastic - Assorted Colors 3.5 inch Round (Lot 200)","304363253 - Handgards - Gloves - VAL SYN 4/100 PP - L - Valugards Synthetic Disposable Gloves"]
["305115015","Expendables","Sysco","SYS Classic","2100503","9 inch","Chef Hats Paper Fluted Small Pleats Econo - 9 inch","Chef Hats Paper Fluted Small Pleats Econo - 9 inch","12/1","White","","Roll Pack","Low Density Food Storage Bags","1/1000",1000,"Low Density Food Storage Bags","TuffGards","","","None","None","None","304985356 - Sysco - Bags - LD8315 - 8 x 3 x 15 - Low Density Food Storage Bags","304363254 - Handgards - Gloves - VAL SYN 4/100 PP - XL - Valugards Synthetic Disposable Gloves"]
["305115016","Expendables","Sysco","SYS Classic","2100513","10 inch","Chef Hats Paper Fluted Small Pleats Econo - 10 inch","Chef Hats Paper Fluted Small Pleats Econo - 10 inch","12/1","White","","Roll Pack","Low Density Food Storage Bags","1/1000",1000,"Low Density Food Storage Bags","TuffGards","","","None","None","None","304985356 - Sysco - Bags - LD8315 - 8 x 3 x 15 - Low Density Food Storage Bags","304363261 - Handgards - Gloves - ULTRATOUCH 10/100 PF - S - Ultratouch Synthetic Disposable Gloves"]
["305115025","Expendables","Sysco","SYS Classic","7045233","8 inch","Chef Hats Velcro Wide Pleats - 8 inch","Non-Woven Chef Hats Flat Pack Wide Pleats Velcro - 8 inch","5/10","White"]
["305115026","Expendables","Sysco","SYS Classic","7045223","10 inch","Chef Hats Velcro Wide Pleats - 10 inch","Non-Woven Chef Hats Flat Pack Wide Pleats Velcro - 10 inch","5/10","White"]
["305115027","Expendables","Sysco","SYS Classic","7045227","12 inch","Chef Hats Velcro Wide Pleats - 12 inch","Non-Woven Chef Hats Flat Pack Wide Pleats Velcro - 12inch","5/10","White"]
["305210211","Expendables","Sysco","SYS Classic","2100707","N/A","Steak Markers Plastic - Pink - Medium Rare","Steak Markers Plastic - Pink - Medium Rare","2/1000","Pink","N/A","Roll Pack","Low Density Food Storage Bags","1/1000",1000,"Low Density Food Storage Bags","TuffGards","",null,"None","None","None","304985357 - Handgards - Bags - LD6312 - 6 x 3 x 12 - Low Density Food Storage Bags","304363262 - Handgards - Gloves - ULTRATOUCH 10/100 PF - M - Ultratouch Synthetic Disposable Gloves"]
["305210212","Expendables","Sysco","SYS Classic","2100721","N/A","Steak Markers Plastic - Red - Rare","Steak Markers Plastic - Red - Rare","2/1000","Red","N/A","Full Saddle","High Density Color Tinted Preportioning Bags","1/2000",2000,"High Density Preportion bags","TuffGards","",null,"\"Monday\"","White","2\" Flip Lock","303679871 - Handgards - Bags - PB100T - 10 x 8.5 - High Density Color Tinted Preportioning Bags","304363262 - PFS - Gloves - ULTRATOUCH 10/100 PF - M - Ultratouch Synthetic Disposable Gloves"]
["305210213","Expendables","Sysco","SYS Classic","2100743","N/A","Steak Markers Plastic - White - Medium","Steak Markers Plastic - White - Medium","2/1000","White","N/A","Full Saddle","High Density Daily Preportioning Bags","1/2000",2000,"High Density Preportion bags","TuffGards","",null,"\"Friday\"","Green","2\" Flip Lock","303679825 - Handgards - Bags - PB100FR - 10 x 8.5 - High Density Daily Preportioning Bags","304363263 - Handgards - Gloves - ULTRATOUCH 10/100 PF - L - Ultratouch Synthetic Disposable Gloves"]
["305210214","Expendables","Sysco","SYS Classic","2100752","N/A","Steak Markers Plastic - Yellow - Medium Well","Steak Markers Plastic - Yellow - Medium Well","2/1000","Yellow","N/A","Full Saddle","High Density Color Tinted Preportioning Bags","1/2000",2000,"High Density Preportion bags","TuffGards","",null,"\"Tuesday\"","White","2\" Flip Lock","303679872 - Handgards - Bags - PB100T - 10 x 8.5 - High Density Color Tinted Preportioning Bags","304363263 - PFS - Gloves - ULTRATOUCH 10/100 PF - L - Ultratouch Synthetic Disposable Gloves"]
["305210215","Expendables","Sysco","SYS Classic","2101259","N/A","Steak Markers Plastic - Tan - Well","Steak Markers Plastic - Tan - Well","2/1000","Tan","N/A","Full Saddle","High Density Daily Preportioning Bags","1/2000",2000,"High Density Preportion bags","TuffGards","",null,"\"Thursday\"","Brown","2\" Flip Lock","303679824 - Handgards - Bags - PB100TH - 10 x 8.5 - High Density Daily Preportioning Bags","304363264 - PFS - Gloves - ULTRATOUCH 10/100 PF - XL - Ultratouch Synthetic Disposable Gloves"]
["305210216","Expendables","Sysco","SYS Classic","2101315","3.5 inch","ARROW PICK ASSRTD COLOR 3.5","Arrow Picks Plastic - Assorted Colors 3.5 inch Round (Lot 200)","10/1000","Assorted","","Full Saddle","High Density Color Tinted Preportioning Bags","1/2000",2000,"High Density Preportion bags","TuffGards","",null,"\"Sunday\"","White","2\" Flip Lock","303679870 - Handgards - Bags - PB100T - 10 x 8.5 - High Density Color Tinted Preportioning Bags","304750061 - Handgards - Gloves - LTX EXAM 10/100 PP - S - Latex Exam Disposable Gloves"]
["305210217","Expendables","Sysco","SYS Classic","2101321","3 inch","Sword Picks Plastic - Assorted colors - 3 in","Sword Picks Plastic - Assorted colors - 3 in","10/1000","Assorted","","Full Saddle","High Density Daily Preportioning Bags","1/2000",2000,"High Density Preportion bags","TuffGards","",null,"\"Saturday\"","Orange","2\" Flip Lock","303679826 - Handgards - Bags - PB100SA - 10 x 8.5 - High Density Daily Preportioning Bags","304750061 - Sysco - Gloves - LTX EXAM 10/100 PP - S - Latex Exam Disposable Gloves"]
["305210218","Expendables","Sysco","SYS Classic","2101315","3.5 inch","ARROW PICK BLACK 3.5","Arrow Picks Plastic - Black 3.5 inch Round (Lot 235)","10/1000","Black","","Full Saddle","High Density Weekly Preportioning Bags","1/2000",2000,"High Density Preportion bags","TuffGards","",null,"7 Days","Various","2\" Flip Lock","303679827 - Handgards - Bags - PB100WK - 10 x 8.5 - High Density Weekly Preportioning Bags","304750062 - Handgards - Gloves - LTX EXAM 10/100 PP - M - Latex Exam Disposable Gloves"]
["305210220","Expendables","Sysco","SYS Classic","2101659","3.5 inch","Prism Plastic Picks - Black - Tri shaped - 3.5 in","Prism Plastic Picks - Black - Tri shaped - 3.5 in","1/2500","Black","","Full Saddle","High Density Pizza Bag","1/2000",2000,"High Density Specialty Bag","TuffGards","",null,"\"Pizza\"","Brown","2\" Flip Lock","303679653 - Handgards - Bags - PP20 - 8.5 x 12 - High Density Pizza Bag","304750063 - Handgards - Gloves - LTX EXAM 10/100 PP - L - Latex Exam Disposable Gloves"]
["305210221","Expendables","Sysco","SYS Classic","2101683","3.5 inch","PICK PRISM TRI PLAS CRYSTAL 3.5\"","Prism Plastic Picks - Crystal - Triangle shaped - 3.5 in (Lot 270)","1/2500","Crystal","","Full Saddle","Valugards High Density Random Print Portion Bags","1/2000",2000,"High Density Preportion bags","Valugards","",null,"\"Thursday\"","Brown","2\" Flip Lock","303679775 - Handgards - Bags - VAL PB50 TH - 8.5 x 8.5 - Valugards High Density Random Print Portion Bags","304750063 - Sysco - Gloves - LTX EXAM 10/100 PP - L - Latex Exam Disposable Gloves"]
["305210222","Expendables","Sysco","SYS Classic","2101705","5 inch","PICK PRISM TRI PLAS CRYSTAL 5\"","Prism Plastic Picks - Crystal - Triangle shaped - 5 in (Lot 280)","1/2500","Crystal","","Full Saddle","High Density Deli Sandwich Bags","1/2000",2000,"High Density Specialty Bag","TuffGards","","","\"Deli Fresh\"","Red/Gr/Gld","2\" Flip Lock","303679640 - Sysco - Bags - D90 - 8.5 x 8.5 - High Density Deli Sandwich Bags","304750064 - Handgards - Gloves - LTX EXAM 10/100 PP - XL - Latex Exam Grade Disposable Gloves"]
["303363111","Gloves","Sysco","SYS Classic","8348237","S","SYS OEG 10/100 SM GLV 8348237","Poly Disposable Gloves","10/100","Clear","Powder Free","Full Saddle","Valugards High Density Random Print Portion Bags","1/2000",2000,"High Density Preportion bags","Valugards","",null,"\"Tuesday\"","Yellow","2\" Flip Lock","303679773 - Handgards - Bags - VAL PB50 TU - 8.5 x 8.5 - Valugards High Density Random Print Portion Bags","304750071 - Handgards - Gloves - LTX EXAM 10/100 PF - S - Latex Exam Disposable Gloves"]
["303363112","Gloves","Sysco","SYS Classic","8348245","M","SYS OEG 10/100 MD GLV 8348245","Poly Disposable Gloves","10/100","Clear","Powder Free","Full Saddle","Valugards High Density Random Print Portion Bags","1/2000",2000,"High Density Preportion bags","Valugards","",null,"\"Sunday\"","Black","2\" Flip Lock","303679771 - Handgards - Bags - VAL PB50 SU - 8.5 x 8.5 - Valugards High Density Random Print Portion Bags","304750071 - Sysco - Gloves - LTX EXAM 10/100 PF - S - Latex Exam Disposable Gloves"]
["303363113","Gloves","Sysco","SYS Classic","8346538","L","SYS OEG 10/100 LG GLV 8346538","Poly Disposable Gloves","10/100","Clear","Powder Free","Full Saddle","Valugards High Density Random Print Portion Bags","1/2000",2000,"High Density Preportion bags","Valugards","",null,"\"Monday\"","Blue","2\" Flip Lock","303679772 - Handgards - Bags - VAL PB50 MO - 8.5 x 8.5 - Valugards High Density Random Print Portion Bags","304750072 - Handgards - Gloves - LTX EXAM 10/100 PF - M - Latex Exam Disposable Gloves"]
["303363121","Gloves","Sysco","SYS Classic","8346579","S","SYS OEG 4/100 SM GLV 8346579","Poly Disposable Gloves","4/100","Clear","Powder Free","","Sword Picks Plastic - Assorted colors - 3 in (Lot 205)","10/1000",10000,"Sword Picks - Plastic","Handgards","",null,"","","","305210228 - Handgards - Expendables - SWORD PICK ASSRTD COLOR 3 - 3 inch - Sword Picks Plastic - Assorted colors - 3 in (Lot 205)","304750072 - Sysco - Gloves - LTX EXAM 10/100 PF - M - Latex Exam Disposable Gloves"]
["303363122","Gloves","Sysco","SYS Classic","8348260","M","SYS OEG 4/100 MD GLV 8348260","Poly Disposable Gloves","4/100","Clear","Powder Free","","Sword Picks Plastic - Assorted colors - 3 in (Lot 205)","10/1000",10000,"Sword Picks - Plastic","Handgards","","","","","","305210228 - Sysco - Expendables - SWORD PICK ASSRTD COLOR 3 - 3 inch - Sword Picks Plastic - Assorted colors - 3 in (Lot 205)","304750073 - Handgards - Gloves - LTX EXAM 10/100 PF - L - Latex Exam Disposable Gloves"]
["303363123","Gloves","Sysco","SYS Classic","8348278","L","SYS OEG 4/100 SM GLV 8348278","Poly Disposable Gloves","4/100","Clear","Powder Free","","Prism Plastic Picks - Black - Tri shaped - 3.5 in (Lot 250)","1/2500",2500,"Prism Picks - Plastic","Handgards","",null,"","","","305210229 - Handgards - Expendables - PICK PRISM TRI PLAS BK3.5 - 3.5 inch - Prism Plastic Picks - Black - Tri shaped - 3.5 in (Lot 250)","304750073 - Sysco - Gloves - LTX EXAM 10/100 PF - L - Latex Exam Disposable Gloves"]
["303363225","Gloves","Sysco","SYS Classic","7730017","OSFM","SYS QSQ 20/50 CPE OSFM 7730017","Quickserve Poly Disposable Gloves","20/50","Clear","Powder Free","","Prism Plastic Picks - Black - Tri shaped - 3.5 in (Lot 250)","1/2500",2500,"Prism Picks - Plastic","Handgards","","","","","","305210229 - Sysco - Expendables - PICK PRISM TRI PLAS BK3.5 - 3.5 inch - Prism Plastic Picks - Black - Tri shaped - 3.5 in (Lot 250)","304750074 - Handgards - Gloves - LTX EXAM 10/100 PF - XL - Latex Exam Disposable Gloves"]
["303363271","Gloves","Sysco","SYS Reliance","8347007","S","SYS VG POLY 4/500 SM GLV 8347007","Poly Disposable Gloves","4/500","Clear","Powder Free","","Valugards Poly Disposable Gloves","4/500",2000,"Poly","Valugards","Straight",null,"","","","303363181 - Handgards - Gloves - VAL 4/500 - S - Valugards Poly Disposable Gloves","304750131 - Handgards - Gloves - VAL LTX 10/100 PP - S - Valugards Latex Disposable Gloves"]
["303363272","Gloves","Sysco","SYS Reliance","8348708","M","SYS VG POLY 4/500 MD GLV 8348708","Poly Disposable Gloves","4/500","Clear","Powder Free","","Valugards Poly Disposable Gloves","4/500",2000,"Poly","Valugards","Straight","Wrist","","","","303363181 - Sysco - Gloves - VAL 4/500 - S - Valugards Poly Disposable Gloves","304750131 - PFS - Gloves - VAL LTX 10/100 PP - S - Valugards Latex Disposable Gloves"]
["303363273","Gloves","Sysco","SYS Reliance","8348740","L","SYS VG POLY 4/500 LG GLV 8348740","Poly Disposable Gloves","4/500","Clear","Powder Free","","Valugards Poly Disposable Gloves","4/500",2000,"Poly","Valugards","Straight",null,"","","","303363182 - Handgards - Gloves - VAL 4/500 - M - Valugards Poly Disposable Gloves","304750132 - Handgards - Gloves - VAL LTX 10/100 PP - M - Valugards Latex Disposable Gloves"]
["303363312","Gloves","sysco","SYS Classic","5081601","M","STRETCH HYBRID CLEAR 10/100 MD PF 5081601","Stretch Hybrid Gloves","10/100","Clear","Powder Free"]
["303363313","Gloves","sysco","SYS Classic","5081611","L","STRETCH HYBRID CLEAR 10/100 LG PF 5081611","Stretch Hybrid Gloves","10/100","Clear","Powder Free"]
["303363314","Gloves","sysco","SYS Classic","5081627","XL","STRETCH HYBRID CLEAR 10/100 XL PF 5081627","Stretch Hybrid Gloves","10/100","Clear","Powder Free"]
["303363521","Gloves","Sysco","SYS Classic","2306583","S","SYS CL STRTCH POLY 10/100 SM 2306583","Poly Disposable Gloves","10/100","Clear","Powder Free","","Valugards Poly Disposable Gloves","4/500",2000,"Poly","Valugards","Straight","Wrist","","","","303363182 - PFS - Gloves - VAL 4/500 - M - Valugards Poly Disposable Gloves","304750132 - PFS - Gloves - VAL LTX 10/100 PP - M - Valugards Latex Disposable Gloves"]
["303363522","Gloves","Sysco","SYS Classic","2306599","M","SYS CL STRTCH POLY 10/100 MD 2306599","Poly Disposable Gloves","10/100","Clear","Powder Free","","Valugards Poly Disposable Gloves","10/500",5000,"Poly","Valugards","Straight",null,"","","","303363008 - Handgards - Gloves - VAL 10/500 - L - Valugards Poly Disposable Gloves","304750133 - Handgards - Gloves - VAL LTX 10/100 PP - L - Valugards Latex Disposable Gloves"]
["303363523","Gloves","Sysco","SYS Classic","2306605","L","SYS CL STRTCH POLY 10/100 LG 2306605","Poly Disposable Gloves","10/100","Clear","Powder Free","","Valugards Poly Disposable Gloves","10/500",5000,"Poly","Valugards","Straight","Wrist","","","","303363008 - BEK - Gloves - VAL 10/500 - L - Valugards Poly Disposable Gloves"]
["303363524","Gloves","Sysco","SYS Classic","2306610","XL","SYS CL STRTCH POLY 10/100 XL 2306610","Poly Disposable Gloves","10/100","Clear","Powder Free","","Valugards Poly Disposable Gloves","10/10/100",10000,"Poly","Valugards","Straight",null,"","","","303363107 - Handgards - Gloves - VAL 10/10/100 - M - Valugards Poly Disposable Gloves"]
["304362761","Gloves","Sysco","SYS Classic","8400897","S","SYS SYN PF 4/100 SM GLV 8400897","Synthetic Disposable Gloves","4/100","White","Powder Free","","Valugards Poly Disposable Gloves","10/10/100",10000,"Poly","Valugards","Straight",null,"","","","303363108 - Handgards - Gloves - VAL 10/10/100 - L - Valugards Poly Disposable Gloves"]
["304362762","Gloves","Sysco","SYS Classic","8400988","M","SYS SYN PF 4/100 MD GLV 8400988","Synthetic Disposable Gloves","4/100","White","Powder Free","","Valugards Poly Disposable Gloves","4/500",2000,"Poly","Valugards","Straight",null,"","","","303363184 - Handgards - Gloves - VAL 4/500 - XL - Valugards Poly Disposable Gloves"]
["304362763","Gloves","Sysco","SYS Classic","8401036","L","SYS SYN PF 4/100 LG GLV 8401036","Synthetic Disposable Gloves","4/100","White","Powder Free","","Valugards Poly Disposable Gloves","4/500",2000,"Poly","Valugards","Straight",null,"","","","303363185 - Handgards - Gloves - VAL 4/500 - OSFA - Valugards Poly Disposable Gloves","304750133 - Sysco - Gloves - VAL LTX 10/100 PP - L - Valugards Latex Disposable Gloves"]
["304362764","Gloves","Sysco","SYS Classic","8396515","XL","SYS SYN PF 4/100 XL GLV 8396515","Synthetic Disposable Gloves","4/100","White","Powder Free","","Poly Disposable Gloves","10/100",1000,"Poly","Handgards","Straight",null,"","","","303363210 - Handgards - Gloves - POLY OEG 10/100 - XS - Poly Disposable Gloves","304750133 - PFS - Gloves - VAL LTX 10/100 PP - L - Valugards Latex Disposable Gloves"]
["304362771","Gloves","Sysco","SYS Classic","8393480","S","SYS SYN 4/100 SM GLV 8393480","Synthetic Disposable Gloves","4/100","White","Powdered","","Poly Disposable Gloves","10/100",1000,"Poly","Handgards","Straight",null,"","","","303363211 - Handgards - Gloves - POLY OEG 10/100 - S - Poly Disposable Gloves","304750134 - Handgards - Gloves - VAL LTX 10/100 PP - XL - Valugards Latex Disposable Gloves"]
["304362772","Gloves","Sysco","SYS Classic","8394249","M","SYS SYN 4/100 MD GLV 8394249","Synthetic Disposable Gloves","4/100","White","Powdered"]
["304362773","Gloves","Sysco","SYS Classic","8394983","L","SYS SYN 4/100 LG GLV 8394983","Synthetic Disposable Gloves","4/100","White","Powdered"]
["304362801","Gloves","Sysco","SYS Classic","5478126","S","SYS PVC 10/100 SM GLV 5478126","Vinyl Disposable Gloves","10/100","Clear","Powdered"]
["304362802","Gloves","Sysco","SYS Classic","5478498","M","SYS PVC 10/100 MD GLV 5478498","Vinyl Disposable Gloves","10/100","Clear","Powdered","","Valugards Poly Disposable Gloves","4/500",2000,"Poly","Valugards","Straight","Wrist","","","","303363182 - Sysco - Gloves - VAL 4/500 - M - Valugards Poly Disposable Gloves","304750134 - PFS - Gloves - VAL LTX 10/100 PP - XL - Valugards Latex Disposable Gloves"]
["304362803","Gloves","Sysco","SYS Classic","5478500","L","SYS PVC 10/100 LG GLV 5478500","Vinyl Disposable Gloves","10/100","Clear","Powdered","","Valugards Poly Disposable Gloves","4/500",2000,"Poly","Valugards","Straight",null,"","","","303363183 - Handgards - Gloves - VAL 4/500 - L - Valugards Poly Disposable Gloves","304750134 - Sysco - Gloves - VAL LTX 10/100 PP - XL - Valugards Latex Disposable Gloves"]
["304362804","Gloves","Sysco","SYS Classic","8396689","XL","SYS PVC 10/100 XL GLV 8396689","Vinyl Disposable Gloves","10/100","Clear","Powdered","","Valugards Poly Disposable Gloves","4/500",2000,"Poly","Valugards","Straight","Wrist","","","","303363183 - PFS - Gloves - VAL 4/500 - L - Valugards Poly Disposable Gloves","304750141 - Handgards - Gloves - VAL LTX 10/100 PF - S - Valugards Latex Disposable Gloves"]
["304362811","Gloves","Sysco","SYS Classic","5478510","S","SYS PVC PF 10/100 SM GLV 5478510","Vinyl Disposable Gloves","10/100","Clear","Powder Free","","Valugards Poly Disposable Gloves","4/500",2000,"Poly","Valugards","Straight","Wrist","","","","303363183 - Sysco - Gloves - VAL 4/500 - L - Valugards Poly Disposable Gloves","304750141 - Sysco - Gloves - VAL LTX 10/100 PF - S - Valugards Latex Disposable Gloves"]
["304362812","Gloves","Sysco","SYS Classic","5478526","M","SYS PVC PF 10/100 MD GLV 5478526","Vinyl Disposable Gloves","10/100","Clear","Powder Free","Full Saddle","Valugards High Density Sandwich Bags","1/2000",2000,"High Density Food Storage Bag","Valugards","",null,"None","None","1¾\" Flip Lock","304985445 - Handgards - Bags - VAL SB8.5 - 6.5 x 7 - Valugards High Density Sandwich Bags","304750141 - PFS - Gloves - VAL LTX 10/100 PF - S - Valugards Latex Disposable Gloves"]
["304362813","Gloves","Sysco","SYS Classic","5478536","L","SYS PVC PF 10/100 LG GLV 5478536","Vinyl Disposable Gloves","10/100","Clear","Powder Free","Flat Pack","Nylon Ovenable Pan Liners","1/50",50,"Nylon Pan Liners","PanHandlers","",null,"None","None","Twist Tie","304985431 - Handgards - Bags - OPL 34X18 - 34 x 18 - Nylon Ovenable Pan Liners","304750142 - Handgards - Gloves - VAL LTX 10/100 PF - M - Valugards Latex Disposable Gloves"]
["304362814","Gloves","Sysco","SYS Classic","8399737","XL","SYS PVC PF 10/100 XL GLV 8399737","Vinyl Disposable Gloves","10/100","Clear","Powder Free","Roll Pack","Low Density Food Storage Bags","1/1000",1000,"Low Density Food Storage Bags","TuffGards","","","None","None","None","304985358 - Sysco - Bags - LD428 - 4 x 2 x 8 - Low Density Food Storage Bags","304750142 - PFS - Gloves - VAL LTX 10/100 PF - M - Valugards Latex Disposable Gloves"]
["304363001","Gloves","Sysco","Sysco Imperial","5679160","S","SYS PVC-EX PF 10/100 SM GLV 5679160","Vinyl Exam Disposable Gloves","10/100","Clear","Powder Free","","Valugards Nitrile Disposable Gloves","10/100",1000,"Nitrile","Valugards","Rolled",null,"","","","304340222 - Handgards - Gloves - VAL WHITE NIT 10/100 PF - M - Valugards Nitrile Disposable Gloves","304750142 - Sysco - Gloves - VAL LTX 10/100 PF - M - Valugards Latex Disposable Gloves"]
["304363002","Gloves","Sysco","Sysco Imperial","5679176","M","SYS PVC-EX PF 10/100 MD GLV 5679176","Vinyl Exam Disposable Gloves","10/100","Clear","Powder Free","","Valugards Nitrile Disposable Gloves","10/100",1000,"Nitrile","Valugards","Rolled","Wrist","","","","304340222 - Sysco - Gloves - VAL WHITE NIT 10/100 PF - M - Valugards Nitrile Disposable Gloves","304750143 - Handgards - Gloves - VAL LTX 10/100 PF - L - Valugards Latex Disposable Gloves"]
["304363003","Gloves","Sysco","Sysco Imperial","5679182","L","SYS PVC-EX PF 10/100 LG GLV 5679182","Vinyl Exam Disposable Gloves","10/100","Clear","Powder Free","","Valugards Nitrile Disposable Gloves","10/100",1000,"Nitrile","Valugards","Rolled",null,"","","","304340223 - Handgards - Gloves - VAL WHITE NIT 10/100 PF - L - Valugards Nitrile Disposable Gloves","304750143 - PFS - Gloves - VAL LTX 10/100 PF - L - Valugards Latex Disposable Gloves"]
["304363004","Gloves","Sysco","Sysco Imperial","4688675","XL","SYS PVC-EX PF 10/100 XL GLV 5688675","Vinyl Exam Disposable Gloves","10/100","Clear","Powder Free"]
["304363061","Gloves","Sysco","SYS Classic","5989912","S","SYS PVC 4/100 SM GLV 5989912","Vinyl Disposable Gloves","4/100","Clear","Powdered","","Examgards Black Nitrile Disposable Gloves","10/100",1000,"Nitrile","ExamGards","Rolled",null,"","","","304340281 - Handgards - Gloves - NIT BK 10/100 PF - S - Examgards Black Nitrile Disposable Gloves","304750144 - Sysco - Gloves - VAL LTX 10/100 PF - XL - Valugards Latex Disposable Gloves"]
["304363062","Gloves","Sysco","SYS Classic","5989924","M","SYS PVC 4/100 MD GLV 5989924","Vinyl Disposable Gloves","4/100","Clear","Powdered","","Examgards Black Nitrile Disposable Gloves","10/100",1000,"Nitrile","ExamGards","Rolled",null,"","","","304340282 - Handgards - Gloves - NIT BK 10/100 PF - M - Examgards Black Nitrile Disposable Gloves","304750281 - Handgards - Gloves - VAL LTX 4/100 PP - S - Valugards Latex Disposable Gloves"]
["304363063","Gloves","Sysco","SYS Classic","5989965","L","SYS PVC 4/100 LG GLV 5989965","Vinyl Disposable Gloves","4/100","Clear","Powdered","","Poly Disposable Gloves","10/100",1000,"Poly","Handgards","Straight",null,"","","","303363212 - Handgards - Gloves - POLY OEG 10/100 - M - Poly Disposable Gloves","304750282 - Handgards - Gloves - VAL LTX 4/100 PP - M - Valugards Latex Disposable Gloves"]
["304363064","Gloves","Sysco","SYS Classic","8396709","XL","SYS PVC 4/100 XL GLV 8396709","Vinyl Disposable Gloves","4/100","Clear","Powdered","","Poly Disposable Gloves","10/100",1000,"Poly","Handgards","Straight",null,"","","","303363213 - Handgards - Gloves - POLY OEG 10/100 - L - Poly Disposable Gloves","304750283 - Handgards - Gloves - VAL LTX 4/100 PP - L - Valugards Latex Disposable Gloves"]
["304363071","Gloves","Sysco","SYS Classic","5989864","S","SYS PVC PF 4/100 MD GLV 5989864","Vinyl Disposable Gloves","4/100","Clear","Powder Free","","Poly Disposable Gloves","10/100",1000,"Poly","Handgards","Straight",null,"","","","303363214 - Handgards - Gloves - POLY OEG 10/100 - XL - Poly Disposable Gloves","304750284 - Handgards - Gloves - VAL LTX 4/100 PP - XL - Valugards Latex Disposable Gloves"]
["304363072","Gloves","Sysco","SYS Classic","5989878","M","SYS PVC PF 4/100 MD GLV 5989878","Vinyl Disposable Gloves","4/100","Clear","Powder Free","","Handgards Poly Disposable Gloves","10/100",1000,"Poly","Handgards","Straight",null,"","","","303363291 - Handgards - Gloves - POLY STRETCH 10/100 - S - Handgards Poly Disposable Gloves","304750291 - Handgards - Gloves - VAL LTX 4/100 PF - S - Valugards Latex Disposable Gloves"]
["304363073","Gloves","Sysco","SYS Classic","5989894","L","SYS PVC PF 4/100 LG GLV 5989894","Vinyl Disposable Gloves","4/100","Clear","Powder Free","Full Saddle","High Density Sandwich Bags","1/2000",2000,"High Density Food Storage Bag","TuffGards","",null,"Solid Band","Blue","1¾\" Flip Lock","303679617 - Handgards - Bags - SB8.5B - 6.5 x 7 - High Density Sandwich Bags","304750292 - Handgards - Gloves - VAL LTX 4/100 PF - M - Valugards Latex Disposable Gloves"]
["304363074","Gloves","Sysco","SYS Classic","8396567","XL","SYS PVC PF 4/100 XL GLV 8396567","Vinyl Disposable Gloves","4/100","Clear","Powder Free","Full Saddle","High Density Silverware Bags","1/2000",2000,"High Density Specialty Bag","TuffGards","",null,"None","None","","303679628 - Handgards - Bags - SW25 - 3.5 x 10 - High Density Silverware Bags","304750293 - Handgards - Gloves - VAL LTX 4/100 PF - L - Valugards Latex Disposable Gloves"]
["304363281","Gloves","Sysco","SYS Classic","2306746","S","SYS NIT HPPF 10/100 PF 2306746","High Performance Nitrile Disposable Gloves ","10/100","Cobalt Blue","Powder Free","","Valugards Latex Disposable Gloves","4/100",400,"Latex","Valugards","Rolled",null,"","","","304750281 - Handgards - Gloves - VAL LTX 4/100 PP - S - Valugards Latex Disposable Gloves","304750294 - Handgards - Gloves - VAL LTX 4/100 PF - XL - Valugards Latex Disposable Gloves"]
["304363282","Gloves","Sysco","SYS Classic","2306753","M","SYS NIT HPPF 10/100 PF 2306753","High Performance Nitrile Disposable Gloves  ","10/100","Cobalt Blue","Powder Free","","Valugards Latex Disposable Gloves","4/100",400,"Latex","Valugards","Rolled",null,"","","","304750283 - Handgards - Gloves - VAL LTX 4/100 PP - L - Valugards Latex Disposable Gloves","304762801 - Sysco - Gloves - LTX 10/100 PP - S - Latex Disposable Gloves"]
["304363283","Gloves","Sysco","SYS Classic","2306775","L","SYS NIT HPPF 10/100 PF 2306775","High Performance Nitrile Disposable Gloves ","10/100","Cobalt Blue","Powder Free","","Valugards Latex Disposable Gloves","10/100",1000,"Latex","Valugards","Rolled","Wrist","","","","304750143 - Sysco - Gloves - VAL LTX 10/100 PF - L - Valugards Latex Disposable Gloves","304762802 - Sysco - Gloves - LTX 10/100 PP - M - Latex Disposable Gloves"]
["304363284","Gloves","Sysco","SYS Classic","2306781","XL","SYS NIT HPPF 10/100 PF 2306781","High Performance Nitrile Disposable Gloves  ","10/100","Cobalt Blue","Powder Free","","Valugards Latex Disposable Gloves","10/100",1000,"Latex","Valugards","Rolled","Wrist","","","","304750144 - PFS - Gloves - VAL LTX 10/100 PF - XL - Valugards Latex Disposable Gloves","304762803 - Sysco - Gloves - LTX 10/100 PP - L - Latex Disposable Gloves"]
["304363291","Gloves","Sysco","SYS Reliance","952020","S","SYS REL PVC 10/100 PP SM GLV 0952020","Vinyl Disposable Gloves","10/100","Clear","Powdered","","Latex Disposable Gloves","4/100",400,"Latex","Handgards","Rolled","Wrist","","","","304762822 - Sysco - Gloves - LTX 4/100 PP - M - Latex Disposable Gloves","304762821 - Handgards - Gloves - LTX 4/100 PP - S - Latex Disposable Gloves"]
["304363292","Gloves","Sysco","SYS Reliance","0952061","M","SYS REL PVC 10/100 PP MD GLV 0952061","Vinyl Disposable Gloves","10/100","Clear","Powdered","","Latex Disposable Gloves","4/100",400,"Latex","Handgards","Rolled",null,"","","","304762823 - Handgards - Gloves - LTX 4/100 PP - L - Latex Disposable Gloves","304762821 - Sysco - Gloves - LTX 4/100 PP - S - Latex Disposable Gloves"]
["304363293","Gloves","Sysco","SYS Reliance","0952073","L","SYS REL PVC 10/100 PP LG GLV 0952073","Vinyl Disposable Gloves","10/100","Clear","Powdered","","Latex Disposable Gloves","4/100",400,"Latex","Handgards","Rolled","Wrist","","","","304762823 - BEK - Gloves - LTX 4/100 PP - L - Latex Disposable Gloves","304762821 - BEK - Gloves - LTX 4/100 PP - S - Latex Disposable Gloves"]
["304363294","Gloves","Sysco","SYS Reliance","0952089","XL","SYS REL PVC 10/100 PP XL GLV 0952089","Vinyl Disposable Gloves","10/100","Clear","Powdered","","Latex Disposable Gloves","4/100",400,"Latex","Handgards","Rolled","Wrist","","","","304762823 - Sysco - Gloves - LTX 4/100 PP - L - Latex Disposable Gloves","304762821 - PFS - Gloves - LTX 4/100 PP - S - Latex Disposable Gloves"]
["304363301","Gloves","Sysco","SYS Reliance","0951980","S","SYS REL PVC 10/100 PF SM GLV 0951980","Vinyl Disposable Gloves","10/100","Clear","Powder Free","","Latex Disposable Gloves","4/100",400,"Latex","Handgards","Rolled","Wrist","","","","304762823 - PFS - Gloves - LTX 4/100 PP - L - Latex Disposable Gloves","304762822 - Handgards - Gloves - LTX 4/100 PP - M - Latex Disposable Gloves"]
["304363302","Gloves","Sysco","SYS Reliance","0951998","M","SYS REL PVC 10/100 PF MD GLV 0951998","Vinyl Disposable Gloves","10/100","Clear","Powder Free","","Latex Disposable Gloves","4/100",400,"Latex","Handgards","Rolled",null,"","","","304762824 - Handgards - Gloves - LTX 4/100 PP - XL - Latex Disposable Gloves","304762822 - PFS - Gloves - LTX 4/100 PP - M - Latex Disposable Gloves"]
["304363303","Gloves","Sysco","SYS Reliance","0952004","L","SYS REL PVC 10/100 PF LG GLV 0952004","Vinyl Disposable Gloves","10/100","Clear","Powder Free","","Latex Disposable Gloves","4/100",400,"Latex","Handgards","Rolled","Wrist","","","","304762824 - BEK - Gloves - LTX 4/100 PP - XL - Latex Disposable Gloves","304762822 - BEK - Gloves - LTX 4/100 PP - M - Latex Disposable Gloves"]
["304363304","Gloves","Sysco","SYS Reliance","0952018","XL","SYS REL PVC 10/100 PF XL GLV 0952018","Vinyl Disposable Gloves","10/100","Clear","Powder Free","","Latex Disposable Gloves","10/100",1000,"Latex","Handgards","Rolled",null,"","","","304763001 - Handgards - Gloves - LTX 10/100 PF - S - Latex Disposable Gloves","304762822 - Sysco - Gloves - LTX 4/100 PP - M - Latex Disposable Gloves"]
["304363322","Gloves","Sysco","SYS Reliance","0952097","M","SYS REL PVC 4/100 PF MD GLV 0952097","Vinyl Disposable Gloves","4/100","Clear","Powder Free","","Latex Disposable Gloves","10/100",1000,"Latex","Handgards","Rolled","Wrist","","","","304763001 - Sysco - Gloves - LTX 10/100 PF - S - Latex Disposable Gloves","304762823 - Handgards - Gloves - LTX 4/100 PP - L - Latex Disposable Gloves"]
["304363323","Gloves","Sysco","SYS Reliance","0952105","L","SYS REL PVC 4/100 PF LG GLV 0952105","Vinyl Disposable Gloves","4/100","Clear","Powder Free","","Latex Disposable Gloves","10/100",1000,"Latex","Handgards","Rolled",null,"","","","304763002 - Handgards - Gloves - LTX 10/100 PF - M - Latex Disposable Gloves","304762823 - BEK - Gloves - LTX 4/100 PP - L - Latex Disposable Gloves"]
["304363324","Gloves","Sysco","SYS Reliance","0952117","XL","SYS REL PVC 4/100 PF XL GLV 0952117","Vinyl Disposable Gloves","4/100","Clear","Powder Free","","Latex Disposable Gloves","10/100",1000,"Latex","Handgards","Rolled","Wrist","","","","304763002 - Sysco - Gloves - LTX 10/100 PF - M - Latex Disposable Gloves","304762823 - Sysco - Gloves - LTX 4/100 PP - L - Latex Disposable Gloves"]
["304363441","Gloves","Sysco","SYS Classic","4685576","S","SYS NIT HPPF 10/100 PF 4685576","High Performance Nitrile Disposable Gloves  ","10/100","Black","Powder Free"]
["304363442","Gloves","Sysco","SYS Classic","4685594","M","SYS NIT HPPF 10/100 PF 4685594","High Performance Nitrile Disposable Gloves  ","10/100","Black","Powder Free"]
["304363443","Gloves","Sysco","SYS Classic","4685614","L","SYS NIT HPPF 10/100 PF 4685614","High Performance Nitrile Disposable Gloves  ","10/100","Black","Powder Free"]
["304363444","Gloves","Sysco","SYS Classic","4685621","XL","SYS NIT HPPF 10/100 PF 4685621","High Performance Nitrile Disposable Gloves  ","10/100","Black","Powder Free"]
["304363502","Gloves","Sysco","SYS Classic","9907461","M","SYS SYN 10/100 PF","Synthetic Disposable Gloves","10/100","White","Powder Free"]
["304363503","Gloves","Sysco","SYS Classic","9907603","L","SYS SYN 10/100 PF","Synthetic Disposable Gloves","10/100","White","Powder Free"]
["304363504","Gloves","Sysco","SYS Classic","9907465","XL","SYS SYN 10/100 PF","Synthetic Disposable Gloves","10/100","White","Powder Free"]
["304750021","Gloves","Sysco","SYS Classic","8347692","S","SYS LTX 4/100 PF SM 8347692","Latex Disposable Gloves","4/100","Ivory","Powder Free","","Latex Disposable Gloves","10/100",1000,"Latex","Handgards","Rolled",null,"","","","304762804 - Handgards - Gloves - LTX 10/100 PP - XL - Latex Disposable Gloves","304762823 - PFS - Gloves - LTX 4/100 PP - L - Latex Disposable Gloves"]
["304750022","Gloves","Sysco","SYS Classic","8347841","M","SYS LTX 4/100 PF MD 8347841","Latex Disposable Gloves","4/100","Ivory","Powder Free","","Latex Disposable Gloves","4/100",400,"Latex","Handgards","Rolled",null,"","","","304762821 - Handgards - Gloves - LTX 4/100 PP - S - Latex Disposable Gloves","304762824 - Handgards - Gloves - LTX 4/100 PP - XL - Latex Disposable Gloves"]
["304750023","Gloves","Sysco","SYS Classic","8345811","L","SYS LTX 4/100 PF LG 8345811","Latex Disposable Gloves","4/100","Ivory","Powder Free","","Latex Disposable Gloves","4/100",400,"Latex","Handgards","Rolled","Wrist","","","","304762821 - Sysco - Gloves - LTX 4/100 PP - S - Latex Disposable Gloves","304762824 - BEK - Gloves - LTX 4/100 PP - XL - Latex Disposable Gloves"]
["304750024","Gloves","Sysco","SYS Classic","8807778","XL","SYS LTX 4/100 PF XL 8807778","Latex Disposable Gloves","4/100","Ivory","Powder Free","","Latex Disposable Gloves","4/100",400,"Latex","Handgards","Rolled","Wrist","","","","304762821 - BEK - Gloves - LTX 4/100 PP - S - Latex Disposable Gloves","304763001 - Handgards - Gloves - LTX 10/100 PF - S - Latex Disposable Gloves"]
["304750031","Gloves","Sysco","SYS Classic","8334955","S","SYS LTX 4/100 PP SM 8334955","Latex Disposable Gloves","4/100","Ivory","Powdered","","Latex Disposable Gloves","10/100",1000,"Latex","Handgards","Rolled",null,"","","","304762802 - Handgards - Gloves - LTX 10/100 PP - M - Latex Disposable Gloves","304763001 - Sysco - Gloves - LTX 10/100 PF - S - Latex Disposable Gloves"]
["304750032","Gloves","Sysco","SYS Classic","8337156","M","SYS LTX 4/100 PP MD 8337156","Latex Disposable Gloves","4/100","Ivory","Powdered","","Latex Disposable Gloves","10/100",1000,"Latex","Handgards","Rolled","Wrist","","","","304762802 - Sysco - Gloves - LTX 10/100 PP - M - Latex Disposable Gloves","304763002 - Handgards - Gloves - LTX 10/100 PF - M - Latex Disposable Gloves"]
["304750033","Gloves","Sysco","SYS Classic","8338501","L","SYS LTX 4/100 PP LG 8338501","Latex Disposable Gloves","4/100","Ivory","Powdered","","Latex Disposable Gloves","10/100",1000,"Latex","Handgards","Rolled",null,"","","","304762803 - Handgards - Gloves - LTX 10/100 PP - L - Latex Disposable Gloves","304763002 - Sysco - Gloves - LTX 10/100 PF - M - Latex Disposable Gloves"]
["304750158","Gloves","Sysco","Sysco Imperial","5361363","S","SYS LTX-EX 10/100 PF SM 5361363","Latex Exam Disposable Gloves","10/100","Ivory","Powder Free","","Valugards Latex Disposable Gloves","4/100",400,"Latex","Valugards","Rolled",null,"","","","304750293 - Handgards - Gloves - VAL LTX 4/100 PF - L - Valugards Latex Disposable Gloves","304763021 - Handgards - Gloves - LTX 4/100 PF - S - Latex Disposable Gloves"]
["304750159","Gloves","Sysco","Sysco Imperial","5361377","M","SYS LTX-EX 10/100 PF MD 5361377","Latex Exam Disposable Gloves","10/100","Ivory","Powder Free","","Valugards Latex Disposable Gloves","4/100",400,"Latex","Valugards","Rolled",null,"","","","304750294 - Handgards - Gloves - VAL LTX 4/100 PF - XL - Valugards Latex Disposable Gloves","304763021 - PFS - Gloves - LTX 4/100 PF - S - Latex Disposable Gloves"]
["304750160","Gloves","Sysco","Sysco Imperial","5361387","L","SYS LTX-EX 10/100 PF LG 5361387","Latex Exam Disposable Gloves","10/100","Ivory","Powder Free","","Latex Disposable Gloves","10/100",1000,"Latex","Handgards","Rolled",null,"","","","304762801 - Handgards - Gloves - LTX 10/100 PP - S - Latex Disposable Gloves","304763021 - Sysco - Gloves - LTX 4/100 PF - S - Latex Disposable Gloves"]
["304750161","Gloves","Sysco","Sysco Imperial","4688715","XL","SYS LTX-EX 10/100 PF XL 4688715","Latex Exam Disposable Gloves","10/100","Ivory","Powder Free"]
["304750171","Gloves","Sysco","SYS Classic","5478462","S","SYS LTX 10/100 PF SM 5478462","Latex Disposable Gloves","10/100","Ivory","Powder Free","","Latex Disposable Gloves","10/100",1000,"Latex","Handgards","Rolled","Wrist","","","","304762801 - Sysco - Gloves - LTX 10/100 PP - S - Latex Disposable Gloves","304763021 - BEK - Gloves - LTX 4/100 PF - S - Latex Disposable Gloves"]
["304750172","Gloves","Sysco","SYS Classic","5478477","M","SYS LTX 10/100 PF MD 5478477","Latex Disposable Gloves","10/100","Ivory","Powder Free","","Synthetic Disposable Gloves","4/100",400,"Synthetic","Handgards","Rolled","Wrist","","","","304362514 - BEK - Gloves - SYN 4/100 PF - XL - Synthetic Disposable Gloves","304763022 - Handgards - Gloves - LTX 4/100 PF - M - Latex Disposable Gloves"]
["304750173","Gloves","Sysco","SYS Classic","5478480","L","SYS LTX 10/100 PF LG 5478480","Latex Disposable Gloves","10/100","Ivory","Powder Free",null,null,null,null,null,null,null,null,null,null,null,null,"304763022 - BEK - Gloves - LTX 4/100 PF - M - Latex Disposable Gloves"]
["304750181","Gloves","Sysco","SYS Classic","5477837","S","SYS LTX 10/100 PP SM 5477837","Latex Disposable Gloves","10/100","Ivory","Powdered","","Valugards Poly Disposable Gloves","4/200",800,"Poly","Valugards","Gauntlet",null,"","","","303111243 - Handgards - Gloves - VAL OEG 4/200 YELLOW - L - Valugards Poly Disposable Gloves","304763022 - Sysco - Gloves - LTX 4/100 PF - M - Latex Disposable Gloves"]
["304750182","Gloves","Sysco","SYS Classic","5478187","M","SYS LTX 10/100 PP MD 5478187","Latex Disposable Gloves","10/100","Ivory","Powdered","","Valugards Poly Disposable Gloves","4/200",800,"Poly","Valugards","Gauntlet",null,"","","","303111244 - Handgards - Gloves - VAL OEG 4/200 YELLOW - XL - Valugards Poly Disposable Gloves","304763022 - PFS - Gloves - LTX 4/100 PF - M - Latex Disposable Gloves"]
["304750183","Gloves","Sysco","SYS Classic","5478191","L","SYS LTX 10/100 PP LG 5478191","Latex Disposable Gloves","10/100","Ivory","Powdered","","Poly Disposable Elbow Length Smooth Gloves","1/250",250,"Poly","Handgards","Straight",null,"","","","303120073 - Handgards - Gloves - MRE 1/250 - OSFA - Poly Disposable Elbow Length Smooth Gloves","304763023 - Handgards - Gloves - LTX 4/100 PF - L - Latex Disposable Gloves"]
["304763362","Gloves","Sysco","SYS Reliance","0951956","M","SYS REL PVC 10/100 PP SM GLV 0951956","Latex Disposable Gloves","10/100","Ivory","Powdered","Roll Pack","Low Density Food Storage Bags","1/500",500,"Low Density Food Storage Bags","TuffGards","",null,"None","None","None","304985362 - Handgards - Bags - LD12830 - 12 x 8 x 30 - Low Density Food Storage Bags","304763023 - BEK - Gloves - LTX 4/100 PF - L - Latex Disposable Gloves"]
["304763363","Gloves","Sysco","SYS Reliance","0951968","L","SYS REL PVC 10/100 PP LG GLV 0951968","Latex Disposable Gloves","10/100","Ivory","Powdered","Roll Pack","Low Density Food Storage Bags","1/1000",1000,"Low Density Food Storage Bags","TuffGards","",null,"None","None","None","304985370 - Handgards - Bags - LD8418 - 8 x 4 x 18 - Low Density Food Storage Bags","304763023 - PFS - Gloves - LTX 4/100 PF - L - Latex Disposable Gloves"]
["304763364","Gloves","Sysco","SYS Reliance","0951976","XL","SYS REL PVC 10/100 PP XL GLV 0951976","Latex Disposable Gloves","10/100","Ivory","Powdered","Roll Pack","Low Density Food Storage Bags","1/500",500,"Low Density Food Storage Bags","TuffGards","",null,"None","None","None","304985361 - Handgards - Bags - LD10824 - 10 x 8 x 24 - Low Density Food Storage Bags","304763023 - Sysco - Gloves - LTX 4/100 PF - L - Latex Disposable Gloves"]
["304763371","Gloves","Sysco","SYS Reliance","0951915","S","SYS REL LTX 10/100 PF SM GLV 0951915","Latex Disposable Gloves","10/100","Ivory","Powder Free","Roll Pack","Low Density Food Storage Bags","1/1000",1000,"Low Density Food Storage Bags","TuffGards","","","None","None","None","304985358 - Sysco - Bags - LD428 - 4 x 2 x 8 - Low Density Food Storage Bags","304763024 - Handgards - Gloves - LTX 4/100 PF - XL - Latex Disposable Gloves"]
["304763372","Gloves","Sysco","SYS Reliance","0951923","M","SYS REL LTX 10/100 PF MD GLV 0951923","Latex Disposable Gloves","10/100","Ivory","Powder Free","Full Saddle","High Density Sandwich Bags","",null,"High Density Food Storage Bag","TuffGards","","","None","None","1½\" Flip Lock","304985170 - Sysco - Bags - SB7.5 - 6.5 x 7.5 - High Density Sandwich Bags","304763024 - BEK - Gloves - LTX 4/100 PF - XL - Latex Disposable Gloves"]
["304763373","Gloves","Sysco","SYS Reliance","0951931","L","SYS REL LTX 10/100 PF LG GLV 0951931","Latex Disposable Gloves","10/100","Ivory","Powder Free","Full Saddle","High Density Color Tinted Preportioning Bags","1/2000",2000,"High Density Preportion bags","TuffGards","",null,"\"Friday\"","White","2\" Flip Lock","303679875 - Handgards - Bags - PB100T - 10 x 8.5 - High Density Color Tinted Preportioning Bags","304763024 - Sysco - Gloves - LTX 4/100 PF - XL - Latex Disposable Gloves"]
["304763374","Gloves","Sysco","SYS Reliance","0951949","XL","SYS REL LTX 10/100 PF XL GLV 0951949","Latex Disposable Gloves","10/100","Ivory","Powder Free","Full Saddle","High Density Sandwich Bags","1/2000",2000,"High Density Food Storage Bag","TuffGards","","","None","None","1½\" Flip Lock","304985170 - BEK - Bags - SB7.5 - 6.5 x 7.5 - High Density Sandwich Bags","304763311 - Handgards - Gloves - LTX TXT 4/100 PF - S - Latex Textured Disposable Gloves"]
["303363531","Gloves","Sysco Canada","SYS Classic","3384774","S","Poly Disposable Gloves","Poly Disposable Gloves","10/100","Clear","Powder Free"]
["303363532","Gloves","Sysco Canada","SYS Classic","3384767","M","Poly Disposable Gloves","Poly Disposable Gloves","10/100","Clear","Powder Free"]
["303363533","Gloves","Sysco Canada","SYS Classic","3384753","L","Poly Disposable Gloves","Poly Disposable Gloves","10/100","Clear","Powder Free"]
["304363371","Gloves","Sysco Canada","SYS Classic","3384423","S","Vinyl Disposable Gloves -Lightly Powdered","Vinyl Disposable Gloves","4/100","Clear","Powdered"]
["304363372","Gloves","Sysco Canada","SYS Classic","3384412","M","Vinyl Disposable Gloves -Lightly Powdered","Vinyl Disposable Gloves","4/100","Clear","Powdered"]
["304363373","Gloves","Sysco Canada","SYS Classic","3384346","L","Vinyl Disposable Gloves -Lightly Powdered","Vinyl Disposable Gloves","4/100","Clear","Powdered"]
["304363374","Gloves","Sysco Canada","SYS Classic","3384441","XL","Vinyl Disposable Gloves -Lightly Powdered","Vinyl Disposable Gloves","4/100","Clear","Powdered"]
["304363381","Gloves","Sysco Canada","SYS Classic","3384734","S","Vinyl Disposable Gloves -Powder Free","Vinyl Disposable Gloves","4/100","Clear","Powder Free"]
["304363382","Gloves","Sysco Canada","SYS Classic","3384726","M","Vinyl Disposable Gloves -Powder Free","Vinyl Disposable Gloves","4/100","Clear","Powder Free"]
["304363383","Gloves","Sysco Canada","SYS Classic","3384718","L","Vinyl Disposable Gloves -Powder Free","Vinyl Disposable Gloves","4/100","Clear","Powder Free"]
["304363384","Gloves","Sysco Canada","SYS Classic","3384743","XL","Vinyl Disposable Gloves -Powder Free","Vinyl Disposable Gloves","4/100","Clear","Powder Free"]
["304363391","Gloves","Sysco Canada","SYS Reliance","3384868","S","SYS REL CANADA PVC 4/100 - Lightly Powdered","Valugards Vinyl Gloves","4/100","Clear","Powdered"]
["304363392","Gloves","Sysco Canada","SYS Reliance","3384850","M","SYS REL CANADA PVC 4/100 - Lightly Powdered","Valugards Vinyl Gloves","4/100","Clear","Powdered"]
["304363393","Gloves","Sysco Canada","SYS Reliance","3384833","L","SYS REL CANADA PVC 4/100 - Lightly Powdered","Valugards Vinyl Gloves","4/100","Clear","Powdered"]
["304363394","Gloves","Sysco Canada","SYS Reliance","3384882","XL","SYS REL CANADA PVC 4/100 - Lightly Powdered","Valugards Vinyl Gloves","4/100","Clear","Powdered"]
["304363401","Gloves","Sysco Canada","SYS Classic","3384650","S","SYS CN NIT 4/100 PF SM 3384650","High Performance Nitrile Disposable Gloves ","4/100","Cobalt Blue","Powder Free"]
["304363402","Gloves","Sysco Canada","SYS Classic","3384646","M","SYS CN NIT 4/100 PF MD 3384646","High Performance Nitrile Disposable Gloves  ","4/100","Cobalt Blue","Powder Free"]
["304363403","Gloves","Sysco Canada","SYS Classic","3384629","L","SYS CN NIT 4/100 PF LG 3384668","High Performance Nitrile Disposable Gloves  ","4/100","Cobalt Blue","Powder Free"]
["304363404","Gloves","Sysco Canada","SYS Classic","3384668","XL","SYS CN NIT 4/100 PF XL 3384668","High Performance Nitrile Disposable Gloves ","4/100","Cobalt Blue","Powder Free"]
["304363411","Gloves","Sysco Canada","SYS Classic","3384697","S","SYS CN NIT 10/100 PF SM 3384697","High Performance Nitrile Disposable Gloves ","10/100","Cobalt Blue","Powder Free"]
["304363412","Gloves","Sysco Canada","SYS Classic","3384680","M","SYS CN NIT 10/100 PF MD 3384680","High Performance Nitrile Disposable Gloves  ","10/100","Cobalt Blue","Powder Free"]
["304363413","Gloves","Sysco Canada","SYS Classic","3384675","L","SYS CN NIT 10/100 PF LG 3384675","High Performance Nitrile Disposable Gloves  ","10/100","Cobalt Blue","Powder Free"]
["304363414","Gloves","Sysco Canada","SYS Classic","3384709","XL","SYS CN NIT 10/100 PF XL 3384709","High Performance Nitrile Disposable Gloves  ","10/100","Cobalt Blue","Powder Free"]
["304363421","Gloves","Sysco Canada","SYS Reliance","3419805","S","SYS REL CNPVC 10/100","Vinyl Disposable Gloves","10/100","Clear","Powdered"]
["304363422","Gloves","Sysco Canada","SYS Reliance","3419795","M","SYS REL CNPVC 10/100","Vinyl Disposable Gloves","10/100","Clear","Powdered"]
["304363423","Gloves","Sysco Canada","SYS Reliance","3419783","L","SYS REL CNPVC 10/100","Vinyl Disposable Gloves","10/100","Clear","Powdered"]
["304363424","Gloves","Sysco Canada","SYS Reliance","3419761","XL","SYS REL CNPVC 10/100","Vinyl Disposable Gloves","10/100","Clear","Powdered"]
["304750321","Gloves","Sysco Canada","SYS Classic","3384313","S","Latex Disposable Gloves - Lightly Powdered","Latex Disposable Gloves","4/100","Ivory","Powdered"]
["304750322","Gloves","Sysco Canada","SYS Classic","3384304","M","Latex Disposable Gloves - Lightly Powdered","Latex Disposable Gloves","4/100","Ivory","Powdered"]
["304750323","Gloves","Sysco Canada","SYS Classic","3384296","L","Latex Disposable Gloves - Lightly Powdered","Latex Disposable Gloves","4/100","Ivory","Powdered"]
["304750331","Gloves","Sysco Canada","SYS Classic","3384262","S","Latex Disposable Gloves - Powder Free","Latex Disposable Gloves","4/100","Ivory","Powder Free"]
["304750332","Gloves","Sysco Canada","SYS Classic","3384253","M","Latex Disposable Gloves - Powder Free","Latex Disposable Gloves","4/100","Ivory","Powder Free"]
["304750333","Gloves","Sysco Canada","SYS Classic","3384249","L","Latex Disposable Gloves - Powder Free","Latex Disposable Gloves","4/100","Ivory","Powder Free"]
["304763402","Gloves","Sysco Canada","SYS Reliance","3384805","M","SYS REL CN LTX 4/100","Latex Disposable Gloves","4/100","Ivory","Powdered"]
["304763403","Gloves","Sysco Canada","SYS Reliance","3384793","L","SYS REL CN LTX 4/100","Latex Disposable Gloves","4/100","Ivory","Powdered"]
["303363321","Glove","Affex","Affex","AF-HS10100","S","STRETCH HYBRID CLEAR 10/100 SM PF","Stretch Hybrid Gloves","10/100","Clear","Powder Free"]
["303363322","Glove","Affex","Affex","AF-HM10100","M","STRETCH HYBRID CLEAR 10/100 MD PF","Stretch Hybrid Gloves","10/100","Clear","Powder Free"]
["303363323","Glove","Affex","Affex","AF-HL10100","L","STRETCH HYBRID CLEAR 10/100 LG PF","Stretch Hybrid Gloves","10/100","Clear","Powder Free"]
["303363324","Glove","Affex","Affex","AF-HX10100","XL","STRETCH HYBRID CLEAR 10/100 XL PF","Stretch Hybrid Gloves","10/100","Clear","Powder Free"]
["304340501","Glove","Affex","Affex","AF-NS4250","S","SOFTFIT THIN NITRILE ROYAL BLUE 4/250 PF ","Nitrile Disposable Gloves","4/250","ROYAL BLUE","Powder Free"]
["304340502","Glove","Affex","Affex","AF-NM4250","M","SOFTFIT THIN NITRILE ROYAL BLUE 4/250 PF","Nitrile Disposable Gloves","4/250","ROYAL BLUE","Powder Free"]
["304340503","Glove","Affex","Affex","AF-NL4250","L","SOFTFIT THIN NITRILE ROYAL BLUE 4/250 PF","Nitrile Disposable Gloves","4/250","ROYAL BLUE","Powder Free"]
["304340504","Glove","Affex","Affex","AF-NX4250","XL","SOFTFIT THIN NITRILE ROYAL BLUE 4/250 PF","Nitrile Disposable Gloves","4/250","ROYAL BLUE","Powder Free"]
["304340511","Glove","Affex","Affex","AF-VSPF12160","S","GENERAL PURPOSE PVC PF CLR 10/100 SM","Vinyl Disposable Gloves","12/160","Clear","Powder Free"]
["304340512","Glove","Affex","Affex","AF-VMPF12160","M","GENERAL PURPOSE PVC PF CLR 10/100 MD","Vinyl Disposable Gloves","12/160","Clear","Powder Free"]
["304340513","Glove","Affex","Affex","AF-VLPF12160","L","GENERAL PURPOSE PVC PF CLR 10/100 LG","Vinyl Disposable Gloves","12/160","Clear","Powder Free"]
["304340514","Glove","Affex","Affex","AF-VXPF12160","XL","GENERAL PURPOSE PVC PF CLR 10/100 XL","Vinyl Disposable Gloves","12/160","Clear","Powder Free"]
["304340521","Glove","Affex","Affex","AF-VSPF10100","S","PVC BLK 10/100 PF SM","Vinyl Disposable Gloves","10/100","Black","Powder Free"]
["304340522","Glove","Affex","Affex","AF-VMPF10100","M","PVC BLK 10/100 PF MD","Vinyl Disposable Gloves","10/100","Black","Powder Free"]
["304340523","Glove","Affex","Affex","AF-VLPF10100","L","PVC BLK 10/100 PF LG","Vinyl Disposable Gloves","10/100","Black","Powder Free"]
["304340524","Glove","Affex","Affex","AF-VXPF10100","XL","PVC BLK 10/100 PF XL","Vinyl Disposable Gloves","10/100","Black","Powder Free"]
["304750411","Glove","Affex","Affex","AF-LS10100","S","Latex Disposable Gloves - Lightly Powdered","Latex Disposable Gloves","10/100","Ivory","Powdered"]
["304750412","Glove","Affex","Affex","AF-LM10100","M","Latex Disposable Gloves - Lightly Powdered","Latex Disposable Gloves","10/100","Ivory","Powdered"]
["304750413","Glove","Affex","Affex","AF-LL10100","L","Latex Disposable Gloves - Lightly Powdered","Latex Disposable Gloves","10/100","Ivory","Powdered"]
["304750414","Glove","Affex","Affex","AF-LX10100","XL","Latex Disposable Gloves - Lightly Powdered","Latex Disposable Gloves","10/100","Ivory","Powdered"]
["304750421","Glove","Affex","Affex","AF-LSPF10100","S","Latex Disposable Gloves - Powder Free","Latex Disposable Gloves","10/100","Ivory","Powder Free"]
["304750422","Glove","Affex","Affex","AF-LMPF10100","M","Latex Disposable Gloves - Powder Free","Latex Disposable Gloves","10/100","Ivory","Powder Free"]
["304750423","Glove","Affex","Affex","AF-LLPF10100","L","Latex Disposable Gloves - Powder Free","Latex Disposable Gloves","10/100","Ivory","Powder Free"]
["304750424","Glove","Affex","Affex","AF-LXPF10100","XL","Latex Disposable Gloves - Powder Free","Latex Disposable Gloves","10/100","Ivory","Powder Free"]
["304763411","Glove","Affex","Affex","AF-LSPF4100","S","Latex Disposable Gloves - Powder Free","Latex Disposable Gloves","4/100","Ivory","Powder Free"]
["304763412","Glove","Affex","Affex","AF-LMPF4100","M","Latex Disposable Gloves - Powder Free","Latex Disposable Gloves","4/100","Ivory","Powder Free"]
["304763413","Glove","Affex","Affex","AF-LLPF4100","L","Latex Disposable Gloves - Powder Free","Latex Disposable Gloves","4/100","Ivory","Powder Free"]
["304763414","Glove","Affex","Affex","AF-LXPF4100","XL","Latex Disposable Gloves - Powder Free","Latex Disposable Gloves","4/100","Ivory","Powder Free"]
["303363231","Gloves","UniPro","Companions Merit","00279","S","CPN OEG POLY CLR 10/100 SM","Poly Disposable Gloves","10/100","Clear","Powder Free"]
["303363232","Gloves","UniPro","Companions Merit","00278","M","CPN OEG POLY CLR 10/100 MD","Poly Disposable Gloves","10/100","Clear","Powder Free"]
["303363233","Gloves","UniPro","Companions Merit","00277","L","CPN OEG POLY CLR 10/100 LG","Poly Disposable Gloves","10/100","Clear","Powder Free"]
["303363234","Gloves","UniPro","Companions Merit","00280","XL","CPN OEG POLY CLR 10/100 XL","Poly Disposable Gloves","10/100","Clear","Powder Free"]
["303363581","Gloves","UniPro","Companions Essentials","00271","S","CPN HYBD STRCH CLR GLV 10/100 SM","Poly Disposable Gloves","10/100","Clear","Powder Free"]
["303363582","Gloves","UniPro","Companions Essentials","00270","M","CPN HYBD STRCH CLR GLV 10/100 MD","Poly Disposable Gloves","10/100","Clear","Powder Free"]
["303363583","Gloves","UniPro","Companions Essentials","00269","L","CPN HYBD STRCH CLR GLV 10/100 LG","Poly Disposable Gloves","10/100","Clear","Powder Free"]
["303363584","Gloves","UniPro","Companions Essentials","00272","XL","CPN HYBD STRCH CLR GLV 10/100 XL","Poly Disposable Gloves","10/100","Clear","Powder Free"]
["304340311","Gloves","UniPro","Companions Merit","00291","S","CPN PVC PP CLR 4/100 SM","Vinyl Disposable Gloves","4/100","Clear","Powdered"]
["304340312","Gloves","UniPro","Companions Merit","87721","M","CPN PVC PP CLR 4/100 MD","Vinyl Disposable Gloves","4/100","Clear","Powdered"]
["304340313","Gloves","UniPro","Companions Merit","87722","L","CPN PVC PP CLR 4/100 LG","Vinyl Disposable Gloves","4/100","Clear","Powdered"]
["304340314","Gloves","UniPro","Companions Merit","00297","XL","CPN PVC PP CLR 4/100 XL","Vinyl Disposable Gloves","4/100","Clear","Powdered"]
["304340316","Gloves","UniPro","Companions Merit","87723","S","CPN PVC PF CLR 4/100 SM","Vinyl Disposable Gloves","4/100","Clear","Powder Free"]
["304340317","Gloves","UniPro","Companions Merit","87724","M","CPN PVC PF CLR 4/100 MD","Vinyl Disposable Gloves","4/100","Clear","Powder Free"]
["304340318","Gloves","UniPro","Companions Merit","87725","L","CPN PVC PF CLR 4/100 LG","Vinyl Disposable Gloves","4/100","Clear","Powder Free"]
["304340319","Gloves","UniPro","Companions Merit","87727","XL","CPN PVC PF CLR 4/100 XL","Vinyl Disposable Gloves","4/100","Clear","Powder Free"]
["304340321","Gloves","UniPro","Companions Essentials","87711","S","CPN PVC PP CLR 10/100 SM","Vinyl Disposable Gloves","10/100","Clear","Powdered"]
["304340322","Gloves","UniPro","Companions Essentials","87719","M","CPN PVC PP CLR 10/100 MD","Vinyl Disposable Gloves","10/100","Clear","Powdered"]
["304340323","Gloves","UniPro","Companions Essentials","87718","L","CPN PVC PP CLR 10/100 LG","Vinyl Disposable Gloves","10/100","Clear","Powdered"]
["304340324","Gloves","UniPro","Companions Essentials","87710","XL","CPN PVC PP CLR 10/100 XL","Vinyl Disposable Gloves","10/100","Clear","Powdered"]
["304340326","Gloves","UniPro","Companions Essentials","87709","S","CPN PVC PF CLR 10/100 SM","Vinyl Disposable Gloves","10/100","Clear","Powder Free"]
["304340327","Gloves","UniPro","Companions Essentials","87717","M","CPN PVC PF CLR 10/100 MD","Vinyl Disposable Gloves","10/100","Clear","Powder Free"]
["304340328","Gloves","UniPro","Companions Essentials","87716","L","CPN PVC PF CLR 10/100 LG","Vinyl Disposable Gloves","10/100","Clear","Powder Free"]
["304340329","Gloves","UniPro","Companions Essentials","87708","XL","CPN PVC PF CLR 10/100 XL","Vinyl Disposable Gloves","10/100","Clear","Powder Free"]
["304340461","Gloves","UniPro","Companions Essentials","00275","S","CPN THIN NITRILE PF CLR 4/250 SM","Nitrile Disposable Gloves","4/250","Clear","Powder Free"]
["304340462","Gloves","UniPro","Companions Essentials","00274","M","CPN THIN NITRILE PF CLR 4/250 MD","Nitrile Disposable Gloves","4/250","Clear","Powder Free"]
["304340463","Gloves","UniPro","Companions Essentials","00273","L","CPN THIN NITRILE PF CLR 4/250 LG","Nitrile Disposable Gloves","4/250","Clear","Powder Free"]
["304340464","Gloves","UniPro","Companions Essentials","00276","XL","CPN THIN NITRILE PF CLR 4/250 XL","Nitrile Disposable Gloves","4/250","Clear","Powder Free"]
["304340471","Gloves","UniPro","Companions Essentials","00283","S","CPNX PVC PF CLR 10/100 SM","Vinyl Disposable Gloves","10/100","Clear","Powder Free"]
["304340472","Gloves","UniPro","Companions Essentials","00282","M","CPNX PVC PF CLR 10/100 MD","Vinyl Disposable Gloves","10/100","Clear","Powder Free"]
["304340473","Gloves","UniPro","Companions Essentials","00281","L","CPNX PVC PF CLR 10/100 LG","Vinyl Disposable Gloves","10/100","Clear","Powder Free"]
["304340474","Gloves","UniPro","Companions Essentials","00284","XL","CPNX PVC PF CLR 10/100 XL","Vinyl Disposable Gloves","10/100","Clear","Powder Free"]
["304363481","Gloves","UniPro","Companions Merit","00287","S","CPN PVC PF BLK 10/100 SM","Vinyl Disposable Gloves","10/100","Black","Powder Free"]
["304363482","Gloves","UniPro","Companions Merit","00286","M","CPN PVC PF BLK 10/100 MD","Vinyl Disposable Gloves","10/100","Black","Powder Free"]
["304363483","Gloves","UniPro","Companions Merit","00285","L","CPN PVC PF BLK 10/100 LG","Vinyl Disposable Gloves","10/100","Black","Powder Free"]
["304363484","Gloves","UniPro","Companions Merit","00288","XL","CPN PVC PF BLK 10/100 XL","Vinyl Disposable Gloves","10/100","Black","Powder Free"]
["304750301","Gloves","UniPro","Companions Merit","00292","S","CPN LTX PP IVORY 4/100 SM","Latex Disposable Gloves","4/100","Ivory","Powdered"]
["304750302","Gloves","UniPro","Companions Merit","87731","M","CPN LTX PP IVORY 4/100 MD","Latex Disposable Gloves","4/100","Ivory","Powdered"]
["304750303","Gloves","UniPro","Companions Merit","87732","L","CPN LTX PP IVORY 4/100 LG","Latex Disposable Gloves","4/100","Ivory","Powdered"]
["304750304","Gloves","UniPro","Companions Merit","00298","XL","CPN LTX PP IVORY 4/100 XL","Latex Disposable Gloves","4/100","Ivory","Powdered"]
["304750306","Gloves","UniPro","Companions Merit","00299","S","CPN LTX PF IVORY 4/100 SM","Latex Disposable Gloves","4/100","Ivory","Powder Free"]
["304750307","Gloves","UniPro","Companions Merit","87734","M","CPN LTX PF IVORY 4/100 MD","Latex Disposable Gloves","4/100","Ivory","Powder Free"]
["304750308","Gloves","UniPro","Companions Merit","87735","L","CPN LTX PF IVORY 4/100 LG","Latex Disposable Gloves","4/100","Ivory","Powder Free"]
["304750309","Gloves","UniPro","Companions Merit","87737","XL","CPN LTX PF IVORY 4/100 XL","Latex Disposable Gloves","4/100","Ivory","Powder Free"]
["304750311","Gloves","UniPro","Companions Essentials","00293","S","CPN LTX PP IVORY 10/100 SM","Latex Disposable Gloves","10/100","Ivory","Powdered"]
["304750312","Gloves","UniPro","Companions Essentials","87715","M","CPN LTX PP IVORY 10/100 MD","Latex Disposable Gloves","10/100","Ivory","Powdered"]
["304750313","Gloves","UniPro","Companions Essentials","87714","L","CPN LTX PP IVORY 10/100 LG","Latex Disposable Gloves","10/100","Ivory","Powdered"]
["304750314","Gloves","UniPro","Companions Essentials","00294","XL","CPN LTX PP IVORY 10/100 XL","Latex Disposable Gloves","10/100","Ivory","Powdered"]
["304750316","Gloves","UniPro","Companions Essentials","00295","S","CPN LTX PF IVORY 10/100 SM","Latex Disposable Gloves","10/100","Ivory","Powder Free"]
["304750317","Gloves","UniPro","Companions Essentials","87713","M","CPN LTX PF IVORY 10/100 MD","Latex Disposable Gloves","10/100","Ivory","Powder Free"]
["304750318","Gloves","UniPro","Companions Essentials","87712","L","CPN LTX PF IVORY 10/100 LG","Latex Disposable Gloves","10/100","Ivory","Powder Free"]
["304750319","Gloves","UniPro","Companions Essentials","87707","XL","CPN LTX PF IVORY 10/100 XL","Latex Disposable Gloves","10/100","Ivory","Powder Free"]

{"sheet":"lists","index":5,"n_rows":55,"n_cols":17,"rows_kept":55,"cut":false,"hidden":true,"merged":[]}
[]
[]
[]
[]
["PackType",null,"Product Type",null,"Label",null,"Brand","Brand","Brand","Brand","Brand",null,5,10,15,25,50]
["Case(Outer Case)",null,"Accessory",null,"Handgards",null,"Examgards","Sys Classic","BEK","First Mark","Subway",null,1,1,1,1,1]
["Dispenser(Inner case)",null,"Apparel",null,"BEK",null,"Handgards","Reliance","Handgards","Silver Source",null,null,2,2,2,2,2]
["Saddle Pack (SP)",null,"Bags",null,"PFG",null,"Neatgards","Neatgards","Neatgards","Handgards","Neatgards",null,3,3,3,3,3]
["Header (HD)",null,"Expendables",null,"Sysco",null,"Panhandlers","Panhandlers","Panhandlers","Neatgards","Panhandlers",null,4,4,4,4,4]
["Pair (PR)",null,"Gloves",null,null,null,"Quickserve","Quickserve","Quickserve","Panhandlers","Quickserve",null,5,5,5,5,5]
["Each (EA)",null,null,null,null,null,"Tuffgards","Tuffgards","Tuffgards","Quickserve","Tuffgards",null,null,6,6,6,6]
["Knockdown (Empty)",null,null,null,null,null,"Ultratouch","Ultratouch","Ultratouch","Tuffgards","Ultratouch",null,null,7,7,7,7]
[null,null,null,null,null,null,"Valugards","Valugards","Valugards","Ultratouch","Valugards",null,null,8,8,8,8]
[null,null,null,null,null,null,"Zipgards","Zipgards","Zipgards","Valugards","Zipgards",null,null,9,9,9,9]
[null,null,null,null,null,null,null,null,null,"Zipgards",null,null,null,10,10,10,10]
[null,null,null,null,null,null,null,null,null,null,null,null,null,null,11,11,11]
[null,null,null,null,null,null,null,null,null,null,null,null,null,null,12,12,12]
[null,null,null,null,null,null,null,null,null,null,null,null,null,null,13,13,13]
[null,null,null,null,null,null,null,null,null,null,null,null,null,null,14,14,14]
[null,null,null,null,null,null,null,null,null,null,null,null,null,null,15,15,15]
[null,null,null,null,null,null,null,null,null,null,null,null,null,null,null,16,16]
[null,null,null,null,null,null,null,null,null,null,null,null,null,null,null,17,17]
[null,null,null,null,null,null,null,null,null,null,null,null,null,null,null,18,18]
[null,null,null,null,null,null,null,null,null,null,null,null,null,null,null,19,19]
[null,null,null,null,null,null,null,null,null,null,null,null,null,null,null,20,20]
[null,null,null,null,null,null,null,null,null,null,null,null,null,null,null,21,21]
[null,null,null,null,null,null,null,null,null,null,null,null,null,null,null,22,22]
[null,null,null,null,null,null,null,null,null,null,null,null,null,null,null,23,23]
[null,null,null,null,null,null,null,null,null,null,null,null,null,null,null,24,24]
[null,null,null,null,null,null,null,null,null,null,null,null,null,null,null,25,25]
[null,null,null,null,null,null,null,null,null,null,null,null,null,null,null,null,26]
[null,null,null,null,null,null,null,null,null,null,null,null,null,null,null,null,27]
[null,null,null,null,null,null,null,null,null,null,null,null,null,null,null,null,28]
[null,null,null,null,null,null,null,null,null,null,null,null,null,null,null,null,29]
[null,null,null,null,null,null,null,null,null,null,null,null,null,null,null,null,30]
[null,null,null,null,null,null,null,null,null,null,null,null,null,null,null,null,31]
[null,null,null,null,null,null,null,null,null,null,null,null,null,null,null,null,32]
[null,null,null,null,null,null,null,null,null,null,null,null,null,null,null,null,33]
[null,null,null,null,null,null,null,null,null,null,null,null,null,null,null,null,34]
[null,null,null,null,null,null,null,null,null,null,null,null,null,null,null,null,35]
[null,null,null,null,null,null,null,null,null,null,null,null,null,null,null,null,36]
[null,null,null,null,null,null,null,null,null,null,null,null,null,null,null,null,37]
[null,null,null,null,null,null,null,null,null,null,null,null,null,null,null,null,38]
[null,null,null,null,null,null,null,null,null,null,null,null,null,null,null,null,39]
[null,null,null,null,null,null,null,null,null,null,null,null,null,null,null,null,40]
[null,null,null,null,null,null,null,null,null,null,null,null,null,null,null,null,41]
[null,null,null,null,null,null,null,null,null,null,null,null,null,null,null,null,42]
[null,null,null,null,null,null,null,null,null,null,null,null,null,null,null,null,43]
[null,null,null,null,null,null,null,null,null,null,null,null,null,null,null,null,44]
[null,null,null,null,null,null,null,null,null,null,null,null,null,null,null,null,45]
[null,null,null,null,null,null,null,null,null,null,null,null,null,null,null,null,46]
[null,null,null,null,null,null,null,null,null,null,null,null,null,null,null,null,47]
[null,null,null,null,null,null,null,null,null,null,null,null,null,null,null,null,48]
[null,null,null,null,null,null,null,null,null,null,null,null,null,null,null,null,49]
[null,null,null,null,null,null,null,null,null,null,null,null,null,null,null,null,50]

{"sheet":"tabnames","index":6,"n_rows":12,"n_cols":1,"rows_kept":12,"cut":false,"hidden":true,"merged":[]}
[]
[]
[]
[]
[]
["tabs"]
["HGI Gloves"]
["HGI Food Storage"]
["HGI Apparel"]
["Sysco Gloves"]
["Sysco Food Storage "]
["Sysco Apparel"]